Workbook

Sheet Data Read File (hidden)
A1: PwC Log Path: | B1: E:\Google Drive\EAS Models\Middle Tier Model\2016 08 27\PwC Company Log.xlsx
A2: Ticker: | B2: PSE:JFC
A3: File Location | B3: Sheet 44
A4: File Location | B4: ="Performance and Valuation Prime Database - " & B3&" - Unlinked No Formula.xlsx" -> Performance and Valuation Prime Database - Sheet 44 - Unlinked No Formula.xlsx
A5: Scenario # | B5: 0
A6: Location of First Ticker+Scenario | B6: 1881
B7: 980
A8: Rows to Copy | B8: 27
H10: 1 | I10: 2 | J10: 3 | K10: 4 | L10: 5 | M10: 6 | N10: 7 | O10: 8 | P10: 9 | Q10: 10 | R10: 11 | S10: 12 | T10: 13 | U10: 14 | V10: 15 | W10: 16 | X10: 17 | Y10: 18 | Z10: 19 | AA10: 20 | AB10: 21 | AC10: 22 | AD10: 23 | AE10: 24 | AF10: 25 | AG10: 26 | AH10: 27 | AI10: 28 | AJ10: 29 | AK10: 30 | AL10: 31 | AM10: 32 | AN10: 33 | AO10: 34 | AP10: 35 | AQ10: 36 | AR10: 37 | AS10: 38 | AT10: 39 | AU10: 40 | AV10: 41 | AW10: 42 | AX10: 43 | AY10: 44 | AZ10: 45 | BA10: 46 | BB10: 47 | BC10: 48 | BD10: 49 | BE10: 50 | BF10: 51 | BG10: 52 | BH10: 53 | BI10: 54 | BJ10: 55 | BK10: 56 | BL10: 57 | BM10: 58 | BN10: 59 | BO10: 60 | BP10: 61 | BQ10: 62 | BR10: 63 | BS10: 64 | BT10: 65 | BU10: 66 | BV10: 67 | BW10: 68 | BX10: 69 | BY10: 70 | BZ10: 71 | CA10: 72 | CB10: 73 | CC10: 74 | CD10: 75 | CE10: 76 | CF10: 77 | CG10: 78 | CH10: 79 | CI10: 80 | CJ10: 81 | CK10: 82 | CL10: 83 | CM10: 84 | CN10: 85 | CO10: 86 | CP10: 87 | CQ10: 88 | CR10: 89 | CS10: 90 | CT10: 91 | CU10: 92 | CV10: 93 | CW10: 94 | CX10: 95 | CY10: 96 | CZ10: 97 | DA10: 98 | DB10: 99 | DC10: 100 | DD10: 101 | DE10: 102 | DF10: 103 | DG10: 104 | DH10: 105 | DI10: 106 | DJ10: 107 | DK10: 108 | DL10: 109 | DM10: 110 | DN10: 111 | DO10: 112 | DP10: 113 | DQ10: 114 | DR10: 115 | DS10: 116 | DT10: 117 | DU10: 118 | DV10: 119 | DW10: 120 | DX10: 121 | DY10: 122 | DZ10: 123 | EA10: 124 | EB10: 125 | EC10: 126 | ED10: 127 | EE10: 128 | EF10: 129 | EG10: 130 | EH10: 131 | EI10: 132 | EJ10: 133 | EK10: 134 | EL10: 135 | EM10: 136 | EN10: 137 | EO10: 138 | EP10: 139 | EQ10: 140 | ER10: 141 | ES10: 142 | ET10: 143 | EU10: 144 | EV10: 145 | EW10: 146 | EX10: 147 | EY10: 148 | EZ10: 149 | FA10: 150 | FB10: 151 | FC10: 152 | FD10: 153 | FE10: 154 | FF10: 155 | FG10: 156 | FH10: 157 | FI10: 158 | FJ10: 159 | FK10: 160 | FL10: 161 | FM10: 162 | FN10: 163 | FO10: 164 | FP10: 165 | FQ10: 166 | FR10: 167 | FS10: 168 | FT10: 169 | FU10: 170 | FV10: 171 | FW10: 172 | FX10: 173 | FY10: 174 | FZ10: 175 | GA10: 176 | GB10: 177 | GC10: 178 | GD10: 179 | GE10: 180 | GF10: 181 | GG10: 182 | GH10: 183 | GI10: 184 | GJ10: 185 | GK10: 186 | GL10: 187 | GM10: 188 | GN10: 189 | GO10: 190 | GP10: 191 | GQ10: 192 | GR10: 193 | GS10: 194 | GT10: 195 | GU10: 196 | GV10: 197 | GW10: 198 | GX10: 199 | GY10: 200 | GZ10: 201 | HA10: 202 | HB10: 203 | HC10: 204 | HD10: 205 | HE10: 206 | HF10: 207 | HG10: 208 | HH10: 209 | HI10: 210 | HJ10: 211 | HK10: 212 | HL10: 213 | HM10: 214 | HN10: 215 | HO10: 216 | HP10: 217 | HQ10: 218 | HR10: 219 | HS10: 220 | HT10: 221 | HU10: 222 | HV10: 223 | HW10: 224 | HX10: 225 | HY10: 226 | HZ10: 227 | IA10: 228 | IB10: 229 | IC10: 230 | ID10: 231 | IE10: 232 | IF10: 233 | IG10: 234 | IH10: 235 | II10: 236 | IJ10: 237 | IK10: 238 | IL10: 239 | IM10: 240 | IN10: 241 | IO10: 242 | IP10: 243 | IQ10: 244 | IR10: 245 | IS10: 246 | IT10: 247 | IU10: 248 | IV10: 249 | IW10: 250 | IX10: 251 | IY10: 252 | IZ10: 253 | JA10: 254 | JB10: 255 | JC10: 256 | JD10: 257 | JE10: 258 | JF10: 259 | JG10: 260 | JH10: 261 | JI10: 262 | JJ10: 263 | JK10: 264 | JL10: 265 | JM10: 266 | JN10: 267 | JO10: 268 | JP10: 269 | JQ10: 270 | JR10: 271 | JS10: 272 | JT10: 273 | JU10: 274 | JV10: 275 | JW10: 276 | JX10: 277 | JY10: 278 | JZ10: 279 | KA10: 280 | KB10: 281 | KC10: 282 | KD10: 283 | KE10: 284 | KF10: 285 | KG10: 286 | KH10: 287 | KI10: 288 | KJ10: 289 | KK10: 290 | KL10: 291 | KM10: 292 | KN10: 293 | KO10: 294 | KP10: 295 | KQ10: 296 | KR10: 297 | KS10: 298 | KT10: 299 | KU10: 300 | KV10: 301 | KW10: 302 | KX10: 303 | KY10: 304 | KZ10: 305 | LA10: 306 | LB10: 307 | LC10: 308 | LD10: 309 | LE10: 310 | LF10: 311 | LG10: 312 | LH10: 313 | LI10: 314 | LJ10: 315 | LK10: 316 | LL10: 317 | LM10: 318 | LN10: 319 | LO10: 320 | LP10: 321 | LQ10: 322 | LR10: 323 | LS10: 324 | LT10: 325 | LU10: 326 | LV10: 327 | LW10: 328 | LX10: 329 | LY10: 330 | LZ10: 331 | MA10: 332 | MB10: 333 | MC10: 334 | MD10: 335 | ME10: 336 | MF10: 337 | MG10: 338 | MH10: 339 | MI10: 340 | MJ10: 341 | MK10: 342 | ML10: 343 | MM10: 344 | MN10: 345 | MO10: 346 | MP10: 347 | MQ10: 348 | MR10: 349 | MS10: 350 | MT10: 351 | MU10: 352 | MV10: 353 | MW10: 354 | MX10: 355 | MY10: 356 | MZ10: 357 | NA10: 358 | NB10: 359 | NC10: 360 | ND10: 361 | NE10: 362 | NF10: 363 | NG10: 364 | NH10: 365 | NI10: 366 | NJ10: 367 | NK10: 368 | NL10: 369 | NM10: 370 | NN10: 371 | NO10: 372 | NP10: 373 | NQ10: 374 | NR10: 375 | NS10: 376 | NT10: 377 | NU10: 378 | NV10: 379 | NW10: 380 | NX10: 381 | NY10: 382 | NZ10: 383 | OA10: 384 | OB10: 385 | OC10: 386 | OD10: 387 | OE10: 388 | OF10: 389 | OG10: 390 | OH10: 391 | OI10: 392 | OJ10: 393 | OK10: 394 | OL10: 395 | OM10: 396 | ON10: 397 | OO10: 398 | OP10: 399 | OQ10: 400 | OR10: 401 | OS10: 402 | OT10: 403 | OU10: 404 | OV10: 405 | OW10: 406 | OX10: 407 | OY10: 408 | OZ10: 409 | PA10: 410 | PB10: 411 | PC10: 412 | PD10: 413 | PE10: 414 | PF10: 415 | PG10: 416 | PH10: 417 | PI10: 418 | PJ10: 419 | PK10: 420 | PL10: 421 | PM10: 422 | PN10: 423 | PO10: 424 | PP10: 425 | PQ10: 426 | PR10: 427 | PS10: 428 | PT10: 429 | PU10: 430 | PV10: 431 | PW10: 432 | PX10: 433 | PY10: 434 | PZ10: 435 | QA10: 436 | QB10: 437 | QC10: 438 | QD10: 439 | QE10: 440 | QF10: 441 | QG10: 442 | QH10: 443 | QI10: 444 | QJ10: 445 | QK10: 446 | QL10: 447 | QM10: 448 | QN10: 449 | QO10: 450 | QP10: 451 | QQ10: 452 | QR10: 453 | QS10: 454 | QT10: 455 | QU10: 456 | QV10: 457 | QW10: 458 | QX10: 459 | QY10: 460 | QZ10: 461 | RA10: 462 | RB10: 463 | RC10: 464 | RD10: 465 | RE10: 466 | RF10: 467 | RG10: 468 | RH10: 469 | RI10: 470 | RJ10: 471 | RK10: 472 | RL10: 473 | RM10: 474 | RN10: 475 | RO10: 476 | RP10: 477 | RQ10: 478 | RR10: 479 | RS10: 480 | RT10: 481 | RU10: 482 | RV10: 483 | RW10: 484 | RX10: 485 | RY10: 486 | RZ10: 487 | SA10: 488 | SB10: 489 | SC10: 490 | SD10: 491 | SE10: 492 | SF10: 493 | SG10: 494 | SH10: 495 | SI10: 496 | SJ10: 497 | SK10: 498 | SL10: 499 | SM10: 500 | SN10: 501 | SO10: 502 | SP10: 503 | SQ10: 504 | SR10: 505 | SS10: 506 | ST10: 507 | SU10: 508 | SV10: 509 | SW10: 510 | SX10: 511 | SY10: 512 | SZ10: 513 | TA10: 514 | TB10: 515 | TC10: 516 | TD10: 517 | TE10: 518 | TF10: 519 | TG10: 520 | TH10: 521 | TI10: 522 | TJ10: 523 | TK10: 524 | TL10: 525 | TM10: 526 | TN10: 527 | TO10: 528 | TP10: 529 | TQ10: 530 | TR10: 531 | TS10: 532 | TT10: 533 | TU10: 534 | TV10: 535 | TW10: 536 | TX10: 537 | TY10: 538 | TZ10: 539 | UA10: 540 | UB10: 541 | UC10: 542 | UD10: 543 | UE10: 544 | UF10: 545 | UG10: 546 | UH10: 547 | UI10: 548 | UJ10: 549 | UK10: 550 | UL10: 551 | UM10: 552 | UN10: 553 | UO10: 554 | UP10: 555 | UQ10: 556 | UR10: 557 | US10: 558 | UT10: 559 | UU10: 560 | UV10: 561 | UW10: 562 | UX10: 563 | UY10: 564 | UZ10: 565 | VA10: 566 | VB10: 567 | VC10: 568 | VD10: 569 | VE10: 570 | VF10: 571 | VG10: 572 | VH10: 573 | VI10: 574 | VJ10: 575 | VK10: 576 | VL10: 577 | VM10: 578 | VN10: 579 | VO10: 580 | VP10: 581 | VQ10: 582 | VR10: 583 | VS10: 584 | VT10: 585 | VU10: 586 | VV10: 587 | VW10: 588 | VX10: 589 | VY10: 590 | VZ10: 591 | WA10: 592 | WB10: 593 | WC10: 594 | WD10: 595 | WE10: 596 | WF10: 597 | WG10: 598 | WH10: 599 | WI10: 600 | WJ10: 601 | WK10: 602 | WL10: 603 | WM10: 604 | WN10: 605 | WO10: 606 | WP10: 607 | WQ10: 608 | WR10: 609 | WS10: 610 | WT10: 611 | WU10: 612 | WV10: 613 | WW10: 614 | WX10: 615 | WY10: 616 | WZ10: 617 | XA10: 618 | XB10: 619 | XC10: 620 | XD10: 621 | XE10: 622 | XF10: 623 | XG10: 624 | XH10: 625 | XI10: 626 | XJ10: 627 | XK10: 628 | XL10: 629 | XM10: 630 | XN10: 631 | XO10: 632 | XP10: 633 | XQ10: 634 | XR10: 635 | XS10: 636 | XT10: 637 | XU10: 638 | XV10: 639 | XW10: 640 | XX10: 641 | XY10: 642 | XZ10: 643 | YA10: 644 | YB10: 645 | YC10: 646 | YD10: 647 | YE10: 648 | YF10: 649 | YG10: 650 | YH10: 651 | YI10: 652 | YJ10: 653 | YK10: 654 | YL10: 655 | YM10: 656 | YN10: 657 | YO10: 658 | YP10: 659 | YQ10: 660 | YR10: 661 | YS10: 662 | YT10: 663 | YU10: 664 | YV10: 665 | YW10: 666 | YX10: 667 | YY10: 668 | YZ10: 669 | ZA10: 670 | ZB10: 671 | ZC10: 672 | ZD10: 673 | ZE10: 674 | ZF10: 675 | ZG10: 676 | ZH10: 677 | ZI10: 678 | ZJ10: 679 | ZK10: 680 | ZL10: 681 | ZM10: 682 | ZN10: 683 | ZO10: 684 | ZP10: 685 | ZQ10: 686 | ZR10: 687 | ZS10: 688 | ZT10: 689 | ZU10: 690 | ZV10: 691 | ZW10: 692 | ZX10: 693 | ZY10: 694 | ZZ10: 695 | AAA10: 696 | AAB10: 697 | AAC10: 698 | AAD10: 699 | AAE10: 700 | AAF10: 701 | AAG10: 702 | AAH10: 703 | AAI10: 704 | AAJ10: 705 | AAK10: 706 | AAL10: 707 | AAM10: 708 | AAN10: 709 | AAO10: 710 | AAP10: 711 | AAQ10: 712 | AAR10: 713 | AAS10: 714 | AAT10: 715 | AAU10: 716 | AAV10: 717 | AAW10: 718 | AAX10: 719 | AAY10: 720 | AAZ10: 721 | ABA10: 722 | ABB10: 723 | ABC10: 724 | ABD10: 725 | ABE10: 726 | ABF10: 727 | ABG10: 728 | ABH10: 729 | ABI10: 730 | ABJ10: 731 | ABK10: 732 | ABL10: 733 | ABM10: 734 | ABN10: 735 | ABO10: 736 | ABP10: 737 | ABQ10: 738 | ABR10: 739 | ABS10: 740 | ABT10: 741 | ABU10: 742 | ABV10: 743 | ABW10: 744 | ABX10: 745 | ABY10: 746 | ABZ10: 747 | ACA10: 748 | ACB10: 749 | ACC10: 750 | ACD10: 751 | ACE10: 752 | ACF10: 753 | ACG10: 754 | ACH10: 755 | ACI10: 756 | ACJ10: 757 | ACK10: 758 | ACL10: 759 | ACM10: 760 | ACN10: 761 | ACO10: 762 | ACP10: 763 | ACQ10: 764 | ACR10: 765 | ACS10: 766 | ACT10: 767 | ACU10: 768 | ACV10: 769 | ACW10: 770 | ACX10: 771 | ACY10: 772 | ACZ10: 773 | ADA10: 774 | ADB10: 775 | ADC10: 776 | ADD10: 777 | ADE10: 778 | ADF10: 779 | ADG10: 780 | ADH10: 781 | ADI10: 782 | ADJ10: 783 | ADK10: 784 | ADL10: 785 | ADM10: 786 | ADN10: 787 | ADO10: 788 | ADP10: 789 | ADQ10: 790 | ADR10: 791 | ADS10: 792 | ADT10: 793 | ADU10: 794 | ADV10: 795 | ADW10: 796 | ADX10: 797 | ADY10: 798 | ADZ10: 799 | AEA10: 800 | AEB10: 801 | AEC10: 802 | AED10: 803 | AEE10: 804 | AEF10: 805 | AEG10: 806 | AEH10: 807 | AEI10: 808 | AEJ10: 809 | AEK10: 810 | AEL10: 811 | AEM10: 812 | AEN10: 813 | AEO10: 814 | AEP10: 815 | AEQ10: 816 | AER10: 817 | AES10: 818 | AET10: 819 | AEU10: 820 | AEV10: 821
A11: ValensYrID | B11: Ticker | C11: Scenario Number | D11: Scenario Name | E11: User Access Level | F11: Data Date | G11: Company Name | H11: Valens Year Code | I11: Valens Year | J11: Year Code | K11: Year | L11: Fiscal Year Date | M11: Sector | N11: Industry Group | O11: Industry | P11: Sub-Industry | Q11: Home Country | R11: Country Code | S11: Home Currency | T11: Exchange | U11: Ticker | V11: Trading Currency | W11: Stock Price | X11: 5 Year CDS | Y11: Key Model Calcs | Z11: Earnings' Margin | AA11: Net Asset' Turns | AB11: ROA' | AC11: Real Growth Rate in Gross Asset' | AD11: ROA' With Goodwill | AE11: Cost of Capital | AF11: V/A' | AG11: P/B' | AH11: Fwd V/E' | AI11: Fwd P/E' | AJ11: Trailing V/E' | AK11: Trailing P/E' | AL11: PwC | AM11: NOPAT Margin | AN11: Capital Turnover | AO11: ROIC | AP11: Growth in Capital | AQ11: Cost of Capital | AR11: V/A | AS11: Fwd V/E | AT11: Trailing V/E | AU11: Gross Asset | AV11: Accum Depreciation | AW11: Net Asset | AX11: NOPAT | AY11: Enterprise Value | AZ11: Key Model Data | BA11: Excess Cash - 3x R&D Check | BB11: Excess Cash - Unearned COGS | BC11: Excess Cash - 10% of Revenue | BD11: Excess Cash - Required Cash Level | BE11: Excess Cash | BF11: Operating Cash | BG11: Inventory - Adj | BH11: Other Current Assets - Adj | BI11: Current Assets | BJ11: Other Current Liabilities | BK11: Current Liabilities | BL11: Net Working Capital | BM11: GDP Deflator Adjusted Land | BN11: Pension Assets | BO11: Postretirement Assets | BP11: Other Assets Adjusted for Pensions | BQ11: Non-Depreciating Intangible Assets | BR11: Total Non-Depreciating Assets | BS11: Operating LT Investments | BT11: Total Non-Depreciating Assets (ex-non-op LT Investments) | BU11: GDP Deflator Adjusted Gross PP&E | BV11: Capitalized Operating Leases | BW11: GDP Deflator Adjusted Capitalized R&D | BX11: Depreciating Intangible Assets | BY11: Total Depreciating Assets | BZ11: Total Assets' | CA11: Accumulated Depreciation' | CB11: Net Assets' | CC11: Adjusted Special Items - After Taxes | CD11: Special Item Add Back - Recurring Special Items | CE11: Depreciation Expense | CF11: Amortization Expense | CG11: Adjusted Tax Expense | CH11: Total Pension & OPEB Expenses | CI11: Total Pension Service Costs | CJ11: COGS - LIFO Adjustment to FIFO Accounting | CK11: Acquisition Adjustment - Gross Earnings Adjustment | CL11: Divestiture Adjustment - Gross Earnings Adjustment | CM11: Gross Earnings' | CN11: Earnings' | CO11: EPS' | CP11: Equity Earnings' | CQ11: Equity EPS' | CR11: Stock Option Claims | CS11: Total Debt' | CT11: Non-Operating Assets | CU11: Enterprise Value' | CV11: Debt' | CW11: Capital Lease Adjustment - PP&E | CX11: Capital lease Adjustment - Depreciation Expense | CY11: Capital Lease Adjustment - Interest Expense | CZ11: Capital Lease Adjustment - Rental Expense | DA11: Capital Lease - Adjusted PP&E | DB11: Capital Lease - GDP Deflator Adjusted Gross PP&E | DC11: Capital Lease - Adjusted Operating Lease Expense | DD11: Capital Lease - Adjusted Operating Lease Asset | DE11: Capital Lease - Adjusted Operating Lease Depreciation | DF11: Capital Lease - Adjusted Lease Interest Expense | DG11: Capital Lease - Adjusted Capital Lease Debt | DH11: Recovery Rate - Cash | DI11: Recovery Rate - Accounts Receivable | DJ11: Recovery Rate - Inventory | DK11: Recovery Rate - Other Current Assets | DL11: Recovery Rate - Current Assets | DM11: Recovery Rate - Net Working Capital | DN11: Recovery Rate - Land | DO11: Recovery Rate - LT Investments @ Cost | DP11: Recovery Rate - Other Assets | DQ11: Recovery Rate - Non-Depreciating Intangibles | DR11: Recovery Rate - Non-Depreciating Assets | DS11: Recovery Rate - PP&E | DT11: Recovery Rate - Operating Leases | DU11: Recovery Rate - Capitalized R&D | DV11: Recovery Rate - Depreciating Intangible Assets | DW11: Recovery Rate - Depreciating Assets | DX11: Recovery Rate - Total Assets' | DY11: Recovery Rate - Credit Facility Debt | DZ11: Recovery Rate - Credit Facility Recovery | EA11: Recovery Rate - Book Debt ex Credit Facility Debt | EB11: Recovery Rate - Adj Debt Prime | EC11: Recovery Rate - Unsecured Obligations | ED11: Liquidation Recovery Rate - Cash | EE11: Liquidation Recovery Rate - Accounts Receivable | EF11: Liquidation Recovery Rate - Inventory | EG11: Liquidation Recovery Rate - Other Current Assets | EH11: Liquidation Recovery Rate - Current Assets | EI11: Liquidation Recovery Rate - Net Working Capital | EJ11: Liquidation Recovery Rate - Land | EK11: Liquidation Recovery Rate - LT Investments @ Cost | EL11: Liquidation Recovery Rate - Other Assets | EM11: Liquidation Recovery Rate - Non-Depreciating Intangibles | EN11: Liquidation Recovery Rate - Non-Depreciating Assets | EO11: Liquidation Recovery Rate - PP&E | EP11: Liquidation Recovery Rate - Operating Leases | EQ11: Liquidation Recovery Rate - Capitalized R&D | ER11: Liquidation Recovery Rate - Depreciating Intangible Assets | ES11: Liquidation Recovery Rate - Depreciating Assets | ET11: Liquidation Recovery Rate - Total Assets' | EU11: Liquidation Recovery Rate - Credit Facility Debt | EV11: Liquidation Recovery Rate - Credit Facility Recovery | EW11: Liquidation Recovery Rate - Book Debt ex Credit Facility Debt | EX11: Liquidation Recovery Rate - Adj Debt Prime | EY11: Liquidation Recovery Rate - Unsecured Obligations | EZ11: Adjusted Gross Earnings' - Full Pension Addback | FA11: Gross Cash Earnings' | FB11: Other Uses of Cash | FC11: Cash Earnings' | FD11: Adjusted Interest Expense | FE11: Interest Coverage Ratio' | FF11: Leverage Ratio' | FG11: Model Adjust Calcs | FH11: Cumulative PP&E Recapturing | FI11: Gross PP&E Adjusted | FJ11: Cumulative PP&E Impairment Recapturing | FK11: Net PP&E Adjusted | FL11: Net/Gross PP&E Ratio | FM11: Net/Gross PP&E Ratio FY-1 | FN11: Cumulative PP&E Recapturing FY-1 | FO11: Cumulative PP&E Recapturing FY-2 | FP11: Gross PP&E Adj FY-1 | FQ11: Cumulative PP&E Impairment Recapturing FY-1 | FR11: Net PP&E Adj FY-1 | FS11: Gross PP&E Adj FY-2 | FT11: Depreciation Expense FY-1 | FU11: Depreciation Expense FY-2 | FV11: Asset Life - PP&E FY0 | FW11: Asset Life - PP&E FY-1 | FX11: Asset Life - PP&E -2 | FY11: Asset Life - PP&E - 3 Year Median | FZ11: Asset Life - Leased Assets | GA11: Asset Life - R&D | GB11: Implied Age of Assets | GC11: Implied Age of Assets FY-1 | GD11: Implied Age of Assets - 2 Year Average | GE11: GDP Deflator Reference Column | GF11: Average GDP Deflator - Adj for Age of Assets | GG11: GDP Deflator Adjustment - PP&E | GH11: GDP Deflator Adjusted PP&E (ex CIP) | GI11: GDP Deflator Adjustment - Land | GJ11: Real Secured Debt Rate | GK11: Capitalized Leases - Economic Depreciation | GL11: Capitalized Leases - Interest Expense | GM11: Capitalized Leases - Debt Obligation | GN11: Capitalized R&D | GO11: Average GDP Deflator - Capitalized R&D | GP11: Net Pension Liability (Asset) | GQ11: Net OPEB Liability (Assets) | GR11: Economic PP&E Depreciation | GS11: Economic R&D Depreciation | GT11: Total Economic Depreciation | GU11: Asset Life - Depreciating Assets (Harmonic Mean) | GV11: Special Items - Income Tax Adjustment | GW11: Average Effective Tax Rate | GX11: Pre-Tax Income | GY11: Tax Adjustment - NOL Shield Adjustment | GZ11: Tax Adjustment - Interest Shield Adjustment | HA11: COGS/Inventory | HB11: PPI Change | HC11: Earnings - % of Earnings' | HD11: Stock Option Claims - In The Money Option Value | HE11: High Enterprise Value' | HF11: Low Enterprise Value' | HG11: Gross Asset' FY-1 | HH11: Growth Rate - Inflation Distorted | HI11: GDP Deflator | HJ11: Book Equity' | HK11: Earnings' FY1 | HL11: Equity Earnings' FY1 | HM11: High V/A' | HN11: Low V/A' | HO11: High Fwd V/E' | HP11: Low Fwd V/E' | HQ11: Raw Financial Data | HR11: Cash | HS11: Accounts Receivable | HT11: Inventory | HU11: LIFO Reserve | HV11: Other Current Assets | HW11: Other Current Assets - Discontinued Operations | HX11: Prepaid Expenses | HY11: Other Receivables | HZ11: Accounts Payable | IA11: Income Taxes Payable | IB11: Accrued Expenses | IC11: Other Current Liabilities | ID11: Current Pension Liabilities | IE11: Current postretirement Liabilities | IF11: Non Current Unearned Revenue | IG11: Long Term Investments @ Cost | IH11: Other Assets | II11: Current Unearned Revenue | IJ11: Revenue | IK11: Gross PP&E | IL11: Land | IM11: Construction in Progress | IN11: Net PP&E | IO11: Net Income | IP11: Effective Tax Rate | IQ11: Total Unusual Items | IR11: EBITDA | IS11: EBITA | IT11: EBIT | IU11: Operating Lease Expense | IV11: R&D Expense | IW11: Interest Expense | IX11: Minority Interest Expense | IY11: Non-Cash Pension Expense | IZ11: Interest & Investment Income | JA11: Equity Investment Income | JB11: Stock Option Expense (After Tax) | JC11: Diluted Shares Outstanding | JD11: Total Debt | JE11: Other Long-Term Liabilities | JF11: Preferred Stock | JG11: Minority Interest | JH11: Market Capitalization | JI11: High Market Cap | JJ11: Low Market Cap | JK11: Goodwill | JL11: Other Intangibles | JM11: Tangible P/B | JN11: Forward P/E | JO11: Trailing P/E | JP11: Dividend Yield | JQ11: Income Taxes | JR11: Cash Taxes | JS11: Other Non-Cash Gains & Losses | JT11: Dividends | JU11: Interest Coverage Ratio | JV11: Leverage Ratio | JW11: Capex | JX11: Debt Repaid | JY11: Debt Issued | JZ11: Change in Working Capital | KA11: Dividend Paid | KB11: Share Buybacks | KC11: Divestitures | KD11: Acquisition Cost | KE11: Earnings from Discontinued Operations | KF11: Average Stock Price of Options Outstanding | KG11: End of Year Stock Price | KH11: Options Outstanding | KI11: Total Pension Expense | KJ11: Total Postretirement Expense | KK11: Pension Service Cost | KL11: Defined Contribution Plan Expense | KM11: Postretirement Service Cost | KN11: COGS | KO11: EBT | KP11: Net Operating Losses | KQ11: Pension - Projected Benefit Obligations | KR11: Pension - Plan Assets | KS11: OPEB - Projected Benefit Obligation | KT11: OPEB - Plan Assets | KU11: Pensions - Defined Benefit Plan Costs | KV11: R&D For Cap R&D Yr0 | KW11: R&D For Cap R&D Yr-1 | KX11: R&D For Cap R&D Yr-2 | KY11: R&D For Cap R&D Yr-3 | KZ11: R&D For Cap R&D Yr-4 | LA11: R&D For Cap R&D Yr-5 | LB11: R&D For Cap R&D Yr-6 | LC11: R&D For Cap R&D Yr-7 | LD11: R&D For Cap R&D Yr-8 | LE11: R&D For Cap R&D Yr-9 | LF11: R&D For Cap R&D Yr-10 | LG11: R&D For Cap R&D Yr-11 | LH11: Gross PP&E Yr-1 | LI11: Land Yr-1 | LJ11: Construction In Process Yr-1 | LK11: Net PP&E Yr-1 | LL11: EBITDA Yr-1 | LM11: EBITA Yr-1 | LN11: Gross PP&E Yr-2 | LO11: Land Yr-2 | LP11: Construction In Process Yr-2 | LQ11: EBITDA Yr-2 | LR11: EBITA Yr-2 | LS11: Effective Tax Rate - FY-1 | LT11: Effective Tax Rate - FY-2 | LU11: Effective Tax Rate - FY-3 | LV11: Effective Tax Rate - FY-4 | LW11: Effective Tax Rate - FY-5 | LX11: Effective Tax Rate - FY-6 | LY11: Effective Tax Rate - FY-7 | LZ11: Effective Tax Rate - FY-8 | MA11: Effective Tax Rate - FY-9 | MB11: Inventory Method | MC11: Drawn Revolver | MD11: Term Loan | ME11: Debt Due FY1 | MF11: Debt Due FY2 | MG11: Debt Due FY3 | MH11: Debt Due FY4 | MI11: Debt Due FY5 | MJ11: DRS | MK11: Cash - Beginning of Period | ML11: YTD Net Income | MM11: % Through Year | MN11: Rest of Year - Gross Cash Earnings | MO11: Rest of Year - Dividends | MP11: Rest of Year - Maintenance Capex | MQ11: Rest of Year - Maintenance R&D Capex | MR11: Rest of Year - Maintenance Operating Lease Expense | MS11: Rest of Year - Maintenance Capital Lease Capex | MT11: Rest of Year - Interest Expense | MU11: Cash Flows in Excess of Operating Obligations | MV11: Cash Flows in Excess of Operating Obligations - % | MW11: Cash Flows in Excess of All Obligations | MX11: Cash Flows in Excess of All Obligations - % | MY11: End of Year Cash | MZ11: Revolver | NA11: Drawn Revolver | NB11: Undrawn Revolver | NC11: End of Year Cash & Undrawn Revolver | ND11: Historics for Forecast / Signal Flag | NE11: Cash | NF11: Accounts Receivable | NG11: Inventory | NH11: LIFO Reserve | NI11: Other Current Assets | NJ11: Other Current Assets - Discontinued Operations | NK11: Prepaid Expenses | NL11: Other Receivables | NM11: Accounts Payable | NN11: Income Taxes Payable | NO11: Accrued Expenses | NP11: Other Current Liabilities | NQ11: Current Pension Liabilities | NR11: Current postretirement Liabilities | NS11: Non Current Unearned Revenue | NT11: Long Term Investments @ Cost | NU11: Other Assets | NV11: Current Unearned Revenue | NW11: Revenue | NX11: Gross PP&E | NY11: Land | NZ11: Construction in Progress | OA11: Net PP&E | OB11: Net Income | OC11: Effective Tax Rate | OD11: Total Unusual Items | OE11: EBITDA | OF11: EBITA | OG11: EBIT | OH11: Operating Lease Expense | OI11: R&D Expense | OJ11: Interest Expense | OK11: Minority Interest Expense | OL11: Non-Cash Pension Expense | OM11: Interest & Investment Income | ON11: Equity Investment Income | OO11: Stock Option Expense (After Tax) | OP11: Diluted Shares Outstanding | OQ11: Total Debt | OR11: Other Long-Term Liabilities | OS11: Preferred Stock | OT11: Minority Interest | OU11: Market Capitalization | OV11: High Market Cap | OW11: Low Market Cap | OX11: Goodwill | OY11: Other Intangibles | OZ11: Tangible P/B | PA11: Forward P/E | PB11: Trailing P/E | PC11: Dividend Yield | PD11: Income Taxes | PE11: Cash Taxes | PF11: Other Non-Cash Gains & Losses | PG11: Dividends | PH11: Interest Coverage Ratio | PI11: Leverage Ratio | PJ11: Capex | PK11: Debt Repaid | PL11: Debt Issued | PM11: Change in Working Capital | PN11: Dividend Paid | PO11: Share Buybacks | PP11: Divestitures | PQ11: Acquisition Cost | PR11: Earnings from Discontinued Operations | PS11: Average Stock Price of Options Outstanding | PT11: End of Year Stock Price | PU11: Options Outstanding | PV11: Total Pension Expense | PW11: Total Postretirement Expense | PX11: Pension Service Cost | PY11: Defined Contribution Plan Expense | PZ11: Postretirement Service Cost | QA11: COGS | QB11: EBT | QC11: Net Operating Losses | QD11: Pension - Projected Benefit Obligations | QE11: Pension - Plan Assets | QF11: OPEB - Projected Benefit Obligation | QG11: OPEB - Plan Assets | QH11: Pensions - Defined Benefit Plan Costs | QI11: R&D For Cap R&D Yr0 | QJ11: R&D For Cap R&D Yr-1 | QK11: R&D For Cap R&D Yr-2 | QL11: R&D For Cap R&D Yr-3 | QM11: R&D For Cap R&D Yr-4 | QN11: R&D For Cap R&D Yr-5 | QO11: R&D For Cap R&D Yr-6 | QP11: R&D For Cap R&D Yr-7 | QQ11: R&D For Cap R&D Yr-8 | QR11: R&D For Cap R&D Yr-9 | QS11: R&D For Cap R&D Yr-10 | QT11: R&D For Cap R&D Yr-11 | QU11: Front Yr Mkt Data | QV11: Mkt Implied ROA' | QW11: 5 Year Asset Growth CAGR | QX11: V/A Valuation | QY11: iCDS | QZ11: Valens Rating | RA11: Moody's Rating | RB11: 1 Yr CDS | RC11: 2 Yr CDS | RD11: 3 Yr CDS | RE11: 4 Yr CDS | RF11: 6 Yr CDS | RG11: 7 Yr CDS | RH11: Estimates | RI11: Revenue Estimates - FY1 | RJ11: # of Revenue Estimates - FY1 | RK11: Net Income Estimates - FY1 | RL11: # of Net Income Estimates - FY1 | RM11: Capex Estimates - FY1 | RN11: # of Capex Estimates - FY1 | RO11: Revenue Estimates - FY2 | RP11: # of Revenue Estimates - FY2 | RQ11: Net Income Estimates - FY2 | RR11: # of Net Income Estimates - FY2 | RS11: Capex Estimates - FY2 | RT11: # of Capex Estimates - FY2 | RU11: Revenue Estimates - FY3 | RV11: # of Revenue Estimates - FY3 | RW11: Net Income Estimates - FY3 | RX11: # of Net Income Estimates - FY3 | RY11: Capex Estimates - FY3 | RZ11: # of Capex Estimates - FY3 | SA11: Revenue Estimates - FY4 | SB11: # of Revenue Estimates - FY4 | SC11: Net Income Estimates - FY4 | SD11: # of Net Income Estimates - FY4 | SE11: Capex Estimates - FY4 | SF11: # of Capex Estimates - FY4 | SG11: Revenue Estimates - FY5 | SH11: # of Revenue Estimates - FY5 | SI11: Net Income Estimates - FY5 | SJ11: # of Net Income Estimates - FY5 | SK11: Capex Estimates - FY5 | SL11: # of Capex Estimates - FY5 | SM11: FY0 Revenue - Override Option | SN11: FY1 Revenue - Override Option | SO11: FY2 Revenue - Override Option | SP11: FY3 Revenue - Override Option | SQ11: FY 4 Revenue - Override Option | SR11: FY5 Revenue - Override Option | SS11: FY 1 Rev Growth | ST11: FY 2 Rev Growth | SU11: FY 3 Rev Growth | SV11: FY 4 Rev Growth | SW11: FY 5 Rev Growth | SX11: FY1 Net Income - Override Option | SY11: FY2 Net Income - Override Option | SZ11: FY3 Net Income - Override Option | TA11: FY 4 Net Income - Override Option | TB11: FY5 Net Income - Override Option | TC11: FY1 Capex - Override Option | TD11: FY2 Capex - Override Option | TE11: FY3 Capex - Override Option | TF11: FY 4 Capex - Override Option | TG11: FY5 Capex - Override Option | TH11: Revenue Input | TI11: Revenue Growth Input | TJ11: Net Income Input | TK11: Capex Input | TL11: Added Data | TM11: Cash Available for Outlays | TN11: Cash Available & Undrawn Revolver | TO11: Earnings - % of Equity Earnings' | TP11: Other Current Assets | TQ11: Current Pension/Postretirement Liability | TR11: Tax Cash Adjustment (addback change in Deferred Taxes) | TS11: Pension Obligations | TT11: Excess Cash - 5% of Revenue | TU11: PwC - Excess Cash | TV11: PwC - Operating Cash | TW11: PwC - Current Assets | TX11: PwC - Gross Asset ex-Intangibles | TY11: PwC - Net Asset ex-Intangibles | TZ11: PwC - ROIC ex-Intangibles | UA11: Gross Other Intangibles | UB11: Total Gross Intangibles | UC11: Total Net Intangibles | UD11: PwC - Net Asset w/ Gross Intangibles & Goodwill | UE11: PwC - ROIC with Gross Intangibles & Goodwill | UF11: PwC - Growth in Capital (ex Intangibles) | UG11: PwC - NOPAT Margin (ex Intangibles) | UH11: PwC - Capital Turnover (ex-Intangibles) | UI11: PwC - Growth in Capital (w Gross Intangibles) | UJ11: PwC - NOPAT Margin (w Gross Intangibles) | UK11: PwC - Capital Turnover - ROIC w Gross Intangibles | UL11: FY1 Net Income Estimate (13 Weeks Ago) | UM11: FY1 Net Income Estimate (4 Weeks Ago) | UN11: FY1 Net Income Estimate (1 Week Ago) | UO11: FY1 ROA' - 13 Weeks Ago | UP11: FY1 ROA' - 4 Weeks Ago | UQ11: FY1 ROA' - 1 Week Ago | UR11: ROA' Momentum - 13 Week | US11: ROA' Momentum - 4 Weeks | UT11: ROA' Momentum - 1 Week | UU11: Update Flag | UV11: Model Change Update Flag | UW11: Forecast Data Update Flag | UX11: Database Update Flag | UY11: Alt ROIC - Valuations | UZ11: PwC - V/A ex-Intangibles | VA11: PwC - Fwd V/E - ex Intangibles | VB11: PwC - V/A - Gross Intangibles | VC11: PwC - Fwd V/E - Gross Intangibles | VD11: Valens vs Traditional | VE11: EBITDA' | VF11: EV/EBITDA' | VG11: EV/EBITDA | VH11: Fwd P/E | VI11: P/B | VJ11: Enterprise Value | VK11: ROA | VL11: EBITDA' Margin | VM11: EBITDA Margin | VN11: Equity Earnings' Margin | VO11: Net Income Margin | VP11: Cash Flow from Operations | VQ11: Net Asset' - % of Revenue | VR11: Total Assets | VS11: Assets - % of Revenue | VT11: Absolute Asset' Growth | VU11: Acquired In-Process R&D | VV11: Capital Leases | VW11: DRS - Yrs 6 | VX11: Cash - Beginning of Period | VY11: YTD Net Income | VZ11: % Through Year | WA11: Rest of Year - Gross Cash Earnings | WB11: Rest of Year - Dividends | WC11: Rest of Year - Maintenance Capex | WD11: Rest of Year - Maintenance R&D Capex | WE11: Rest of Year - Maintenance Operating Lease Expense | WF11: Rest of Year - Maintenance Capital Lease Capex | WG11: Rest of Year - Interest Expense | WH11: Cash Flows in Excess of Operating Obligations | WI11: Cash Flows in Excess of Operating Obligations - % | WJ11: Debt Maturing - Yr 6 | WK11: Cash Flows in Excess of All Obligations | WL11: Cash Flows in Excess of All Obligations - % | WM11: End of Year Cash | WN11: Revolver | WO11: Drawn Revolver | WP11: Undrawn Revolver | WQ11: End of Year Cash & Undrawn Revolver | WR11: DRS - Yrs 7 | WS11: Cash - Beginning of Period | WT11: YTD Net Income | WU11: % Through Year | WV11: Rest of Year - Gross Cash Earnings | WW11: Rest of Year - Dividends | WX11: Rest of Year - Maintenance Capex | WY11: Rest of Year - Maintenance R&D Capex | WZ11: Rest of Year - Maintenance Operating Lease Expense | XA11: Rest of Year - Maintenance Capital Lease Capex | XB11: Rest of Year - Interest Expense | XC11: Cash Flows in Excess of Operating Obligations | XD11: Cash Flows in Excess of Operating Obligations - % | XE11: Debt Maturiting - Yr 7 | XF11: Cash Flows in Excess of All Obligations | XG11: Cash Flows in Excess of All Obligations - % | XH11: End of Year Cash | XI11: Revolver | XJ11: Drawn Revolver | XK11: Undrawn Revolver | XL11: End of Year Cash & Undrawn Revolver | XM11: Details Additional Input | XN11: PP&E Turns | XO11: R&D Turns | XP11: Capitalized Lease Turns | XQ11: PP&E Growth | XR11: Working Capital Growth | XS11: R&D Growth | XT11: Cap Lease Growth | XU11: Sales Growth | XV11: Key Statistics | XW11: Avg. Daily Vol. (3 Mo.) (mn) | XX11: CS Outstanding (mn) | XY11: FY Annual Dividend ($) | XZ11: Fiscal Year End | YA11: 52 Week High/Low | YB11: EPS | YC11: EV/Sales | YD11: S&P Rating | YE11: Fitch Rating | YF11: New PwC Data | YG11: PwC - Gross Asset ex-Goodwill | YH11: PwC - Net Asset ex-Goodwill | YI11: PwC - ROIC ex-Goodwill | YJ11: PwC - Growth in Capital ex-Goodwill | YK11: PwC - NOPAT Margin ex-Goodwill | YL11: PwC - Capital Turnover ex-Goodwill | YM11: PwC - V/A ex-Goodwill | YN11: Manual Adjustments Flag | YO11: Manual Adjustment Level
A12: PSE:JFC0980 | B12: PSE:JFC | C12: 0 | D12: CapIQ Raw | E12: 0 | F12: 2016-02-24 | G12: Jollibee Foods Corp. | H12: 980 | I12: 1995 | J12: 980 | K12: 1995 | L12: 1995-12-31 | M12: Consumer Discretionary | N12: Consumer Services | O12: Hotels, Restaurants and Leisure | P12: Restaurants | Q12: Philippines | R12: PH | S12: PHP | T12: PSE | U12: JFC | V12: PHP | W12: 14.2 | X12: 0 | Z12: 0.09381274867 | AA12: 3.178044521 | AB12: 0.2981410919 | AC12: -0.07549595885 | AD12: 0.2981410919 | AE12: 0.06 | AF12: -0.2153818819 | AG12: 0 | AH12: -0.6352211572 | AI12: 0 | AJ12: -0.7224159559 | AK12: 0 | AM12: 0.09381274867 | AN12: 3.178044521 | AO12: 0.2981410919 | AQ12: 0.06 | AR12: -0.2153818819 | AS12: -0.6352211572 | AT12: -0.7224159559 | AU12: 2311.263895 | AV12: 784.7047174 | AW12: 1526.559178 | AX12: 455.13002 | AY12: -328.7931885 | BA12: 0 | BB12: 0 | BC12: 242.5736515 | BD12: 242.5736515 | BE12: 113.0041985 | BF12: 242.5736515 | BG12: 201.23967 | BH12: 202.80948 | BI12: 852.6681015 | BJ12: 0 | BK12: 743.57825 | BL12: 109.0898515 | BM12: 0 | BN12: 0 | BO12: 0 | BP12: 240.41225 | BQ12: 0 | BR12: 608.0208115 | BS12: 0 | BT12: 349.5021015 | BU12: 1961.761793 | BV12: 0 | BW12: 0 | BX12: 0 | BY12: 1961.761793 | BZ12: 2311.263895 | CA12: 784.7047174 | CB12: 1526.559178 | CC12: 0 | CD12: 0 | CE12: 173.29873 | CF12: 0 | CG12: 168.58952 | CH12: 0 | CI12: 0 | CJ12: 0 | CK12: 0 | CL12: 0 | CM12: 666.47254 | CN12: 455.13002 | CO12: 0.5166107553 | CP12: 455.13002 | CQ12: 0.5166107553 | CR12: 0 | CS12: 41.25 | CT12: 371.5229085 | CU12: -328.7931885 | CW12: 0 | CX12: 0 | CY12: 0 | CZ12: 0 | DA12: 1608.62484 | DB12: 1961.761793 | DC12: 0 | DD12: 0 | DE12: 0 | DF12: 0 | DG12: 0 | DH12: 355.57785 | DI12: 164.83624 | DJ12: 120.743802 | DK12: 121.685688 | DL12: 762.84358 | DM12: 19.26533 | DN12: 0 | DO12: 258.51871 | DP12: 96.1649 | DQ12: 0 | DR12: 373.94894 | DS12: 784.7047174 | DT12: 0 | DU12: 0 | DV12: 0 | DW12: 784.7047174 | DX12: 1158.653657 | DY12: 0 | EA12: 41.25 | EB12: 41.25 | EC12: 28.08857351 | ED12: 320.020065 | EE12: 51.511325 | EF12: 30.1859505 | EG12: 20.280948 | EH12: 421.9982885 | EI12: -321.5799615 | EJ12: 0 | EK12: 258.51871 | EL12: 24.041225 | EM12: 0 | EN12: -39.0200265 | EO12: 576.1948006 | EP12: 0 | EQ12: 0 | ER12: 0 | ES12: 576.1948006 | ET12: 537.1747741 | EU12: 0 | EW12: 41.25 | EX12: 41.25 | EY12: 13.02241877 | EZ12: 666.47254 | FA12: 690.05139 | FB12: -41.25 | FC12: 389.92612 | FD12: 0 | FF12: 0.105789271 | FH12: 0 | FI12: 1608.62484 | FJ12: 0 | FK12: 1181.18478 | FL12: 73.42823203 | FM12: 0 | FN12: 0 | FO12: 0 | FP12: 0 | FQ12: 0 | FR12: 0 | FS12: 0 | FT12: 0 | FU12: 0 | FV12: 9.282381008 | FW12: 0 | FX12: 0 | FY12: 9.282381008 | FZ12: 9.282381008 | GA12: 5 | GB12: 2.466492743 | GC12: 9.282381008 | GD12: 5.874436876 | GE12: 36 | GF12: 0.08378956333 | GG12: 353.1369534 | GH12: 1961.761793 | GI12: 0 | GJ12: 0.032 | GK12: 0 | GL12: 0 | GM12: 0 | GN12: 0 | GO12: 0.08017570682 | GP12: 0 | GQ12: 0 | GR12: 211.34252 | GS12: 0 | GT12: 211.34252 | GU12: 9.282381008 | GV12: 0 | GW12: 2.43486 | GX12: 705.99473 | GY12: 0 | GZ12: 0 | HA12: 14.20225297 | HC12: 1.180772936 | HD12: 14.2 | HE12: -328.7931885 | HF12: -328.7931885 | HG12: 2311.263895 | HH12: 0 | HI12: 0.07549595885 | HJ12: 1855.352366 | HK12: 517.6042781 | HL12: 517.6042781 | HM12: -0.2153818819 | HN12: -0.2153818819 | HO12: -0.6352211572 | HP12: -0.6352211572 | HR12: 355.57785 | HS12: 206.0453 | HT12: 201.23967 | HU12: 0 | HV12: 83.20271 | HW12: 0 | HX12: 119.60677 | HY12: 0 | HZ12: 715.47438 | IA12: 28.10387 | IB12: 0 | IC12: 28.10387 | ID12: 0 | IE12: 0 | IF12: 0 | IG12: 258.51871 | IH12: 240.41225 | II12: 0 | IJ12: 4851.47303 | IK12: 1608.62484 | IL12: 0 | IM12: 0 | IN12: 1181.18478 | IO12: 537.40521 | IP12: 24.3486 | IQ12: 0 | IR12: 821.25441 | IS12: 647.95568 | IT12: 647.95568 | IU12: 0 | IV12: 0 | IW12: 0 | IX12: 0.13769 | IY12: 0 | IZ12: -44.36909 | JA12: 0 | JB12: 0 | JC12: 880.99215 | JD12: 41.25 | JE12: 0 | JF12: 0 | JG12: 1.47972 | JH12: 0 | JI12: 0 | JJ12: 0 | JK12: 0 | JL12: 0 | JM12: 0 | JN12: 0 | JO12: 0 | JP12: 0 | JQ12: 168.58952 | JR12: 159.19203 | JS12: -14.18136 | JT12: 88.78275 | JU12: 0 | JV12: 0.05023 | JW12: 742.97175 | JX12: 0 | JY12: -41.25 | JZ12: 0 | KA12: 88.78275 | KB12: 0 | KC12: 0 | KD12: 0 | KE12: 0 | KF12: 0 | KG12: 14.2 | KH12: 0 | KI12: 0 | KJ12: 0 | KK12: 0 | KL12: 0 | KM12: 0 | KN12: 2858.0567 | KO12: 692.39878 | KP12: 0 | KQ12: 0 | KR12: 0 | KS12: 0 | KT12: 0 | KU12: 0 | KV12: 0 | KW12: 0 | KX12: 0 | KY12: 0 | KZ12: 0 | LA12: 0 | LB12: 0 | LC12: 0 | LD12: 0 | LE12: 0 | LF12: 0 | LG12: 0 | LH12: 0 | LI12: 0 | LJ12: 0 | LK12: 0 | LL12: 0 | LM12: 0 | LN12: 0 | LO12: 0 | LP12: 0 | LQ12: 0 | LR12: 0 | LS12: 0 | LT12: 0 | LU12: 0 | LV12: 0 | LW12: 0 | LX12: 0 | LY12: 0 | LZ12: 0 | MA12: 0 | MB12: 0 | MC12: 0 | MD12: 0 | ME12: 0 | MF12: 0 | MG12: 0 | MH12: 0 | MI12: 0 | NE12: AUDIT | NF12: AUDIT | NG12: AUDIT | NI12: AUDIT | NK12: AUDIT | NM12: AUDIT | NT12: AUDIT | NU12: AUDIT | NW12: AUDIT | NX12: AUDIT | OA12: AUDIT | OB12: AUDIT | OE12: AUDIT | OF12: AUDIT | OG12: AUDIT | OM12: AUDIT | OP12: AUDIT | PD12: AUDIT | PE12: AUDIT | QA12: AUDIT | QB12: AUDIT | TO12: 1.180772936 | TP12: 83.20271 | TQ12: 0 | TR12: 9.39749 | TS12: 0 | TT12: 242.5736515 | TU12: 113.0041985 | TV12: 242.5736515 | TW12: 852.6681015 | TX12: 2311.263895 | TY12: 1526.559178 | TZ12: 0.2981410919 | UA12: 0 | UB12: 0 | UC12: 0 | UD12: 1526.559178 | UE12: 0.2981410919 | UG12: 0.09381274867 | UH12: 3.178044521 | UJ12: 0.09381274867 | UK12: 3.178044521 | UV12: x | UX12: x | UZ12: -0.2153818819 | VA12: -0.6352211572 | VB12: -0.2153818819 | VC12: -0.6352211572 | VE12: 661.76333 | VF12: -0.4968440734 | VG12: 0 | VH12: 0 | VI12: 0 | VJ12: 0 | VK12: 0 | VL12: 0.1364046189 | VM12: 0.16729 | VN12: 0.09381274867 | VO12: 0.109469 | VP12: 810.65337 | VQ12: 0.3146589022 | VR12: 2645.78804 | VS12: 0.5453576725 | VU12: 0 | VV12: 0 | XN12: 4.121697349 | XO12: 0 | XP12: 0 | XW12: 0 | XX12: 0 | XY12: 0 | XZ12: Dec-1995 | YA12: $14.6/$8.0 | YB12: 0 | YC12: 0 | YG12: 2311.263895 | YH12: 1526.559178 | YI12: 0.2981410919 | YK12: 0.09381274867 | YL12: 3.178044521 | YM12: -0.2153818819 | YQ12: 10.15987 | YR12: 0 | YS12: 0 | YT12: 0.07401 | YU12: 0 | YV12: 0 | YW12: 2.38279 | YX12: 880.78125 | YY12: 0 | YZ12: 0 | ZA12: 0 | ZB12: 0 | ZC12: 0 | ZD12: 0 | ZE12: 0 | ZF12: 0 | ZG12: 0 | ZH12: 0 | ZI12: 0 | ZJ12: 0 | ZK12: 0 | ZL12: 0 | ZM12: 0 | ZN12: 0 | ZO12: 0 | ZP12: 0 | ZQ12: 0 | ZR12: 0 | ZS12: 0 | ZT12: 1860.95979 | ZU12: 1902.20979 | ZV12: 0.61 | ZW12: 0.59441 | ZX12: 0 | ZY12: 0 | ZZ12: 0 | AAA12: 0 | AAB12: 0 | AAC12: 0 | AAD12: 0 | AAE12: 12.47116 | AAF12: 0 | AAG12: 0 | AAH12: 0 | AAI12: 7.5241 | AAJ12: 0 | AAK12: 0 | AAL12: 33.7259 | AAM12: 0 | AAN12: 1859.48007 | AAP12: 235.5 | AAQ12: 0 | AAR12: 0 | AAS12: 0 | AAT12: 0 | AAU12: 0 | AAV12: 0 | AAW12: 0 | AAX12: 0 | AAY12: 0 | AAZ12: 0 | ABA12: 0 | ABB12: 0 | ABC12: 0 | ABD12: 0 | ABE12: 0 | ABF12: 0 | ABG12: 0 | ABH12: 0 | ABI12: 0 | ABJ12: 0 | ABK12: 0 | ABL12: 0 | ABM12: 0 | ABN12: 0 | ABO12: 0 | ABP12: 0 | ABQ12: 0 | ABR12: 0 | ABS12: 0 | ABT12: 0 | ABU12: 0 | ABV12: 0 | ABW12: 0 | ABX12: 0 | ABY12: 0 | ABZ12: 0 | ACA12: 0 | ACB12: 0 | ACC12: 0 | ACD12: 0 | ACE12: 0 | ACF12: 0 | ACG12: 0 | ACH12: 0 | ACI12: 0 | ACJ12: 0 | ACK12: 0 | ACL12: 0 | ACM12: 0 | ACN12: 0 | ACO12: 0 | ACP12: 0 | ACQ12: 0 | ACR12: 0 | ACS12: 0 | ACT12: 0 | ACU12: 0 | ACV12: 0 | ACW12: 0 | ACX12: 0 | ACY12: 0 | ACZ12: 0 | ADA12: 0 | ADB12: 0 | ADC12: 0 | ADD12: 0 | ADE12: 0 | ADG12: 647.95568 | ADH12: 157.7681367 | ADI12: 490.1875433 | ADJ12: 526.89174 | ADK12: 0 | ADL12: 743.57825 | ADM12: -216.68651 | ADN12: 0 | ADO12: 0 | ADP12: 964.49827 | ADQ12: 964.49827 | ADR12: 0.1335585452 | ADY12: 83.20271 | ADZ12: 238.02946 | AEA12: 0 | AEB12: 0 | AEC12: 1902.20979 | AED12: 7.5241 | AEE12: 33.7259 | AEF12: 0 | AEG12: 0 | AEH12: 42.72972 | AEI12: 1859.48007 | AEJ12: -0.1183323536 | AEK12: 0 | AEL12: 42.72972 | AEM12: 42.72972 | AEN12: -892.59901 | AEP12: 2.550440575 | AEQ12: 1902.20979 | AER12: 2.550440575 | AET12: 0 | AEU12: 0 | AEV12: 0.385
A13: PSE:JFC0981 | B13: PSE:JFC | C13: 0 | D13: CapIQ Raw | E13: 0 | F13: 2016-02-24 | G13: Jollibee Foods Corp. | H13: 981 | I13: 1996 | J13: 981 | K13: 1996 | L13: 1996-12-31 | M13: Consumer Discretionary | N13: Consumer Services | O13: Hotels, Restaurants and Leisure | P13: Restaurants | Q13: Philippines | R13: PH | S13: PHP | T13: PSE | U13: JFC | V13: PHP | W13: 27.5 | X13: 0 | Z13: 0.07496511071 | AA13: 2.297765721 | AB13: 0.1722522617 | AC13: 0.7785987334 | AD13: 0.1722522617 | AE13: 0.06 | AF13: 8.293042888 | AG13: 10.50152321 | AH13: 36.85764728 | AI13: 80.7307556 | AJ13: 48.14475471 | AK13: 46.7953713 | AM13: 0.07496511071 | AN13: 2.297765721 | AO13: 0.1722522617 | AP13: 0.8552141618 | AQ13: 0.06 | AR13: 8.293042888 | AS13: 36.85764728 | AT13: 48.14475471 | AU13: 4287.88951 | AV13: 1282.969441 | AW13: 3004.920069 | AX13: 517.6042781 | AY13: 24919.93101 | BA13: 0 | BB13: 0 | BC13: 345.2301165 | BD13: 345.2301165 | BE13: 135.5928035 | BF13: 345.2301165 | BG13: 323.0192 | BH13: 329.51687 | BI13: 1576.855867 | BJ13: 16.81081 | BK13: 1350.41595 | BL13: 226.4399165 | BM13: 490.3777615 | BN13: 0 | BO13: 0 | BP13: 363.64823 | BQ13: 0 | BR13: 1098.965128 | BS13: 0 | BT13: 1080.465908 | BU13: 3207.423602 | BV13: 0 | BW13: 0 | BX13: 0 | BY13: 3207.423602 | BZ13: 4287.88951 | CA13: 1282.969441 | CB13: 3004.920069 | CC13: 0 | CD13: 0 | CE13: 221.70064 | CF13: 0 | CG13: 219.90035 | CH13: 0 | CI13: 0 | CJ13: 0 | CK13: 0 | CL13: 0 | CM13: 826.72781 | CN13: 517.6042781 | CO13: 0.5876649601 | CP13: 517.6042781 | CQ13: 0.5876649601 | CR13: 0 | CS13: 807.33452 | CT13: 154.0920235 | CU13: 24919.93101 | CW13: 0 | CX13: 0 | CY13: 0 | CZ13: 0 | DA13: 2542.76139 | DB13: 3207.423602 | DC13: 0 | DD13: 0 | DE13: 0 | DF13: 0 | DG13: 0 | DH13: 480.82292 | DI13: 463.271744 | DJ13: 193.81152 | DK13: 197.710122 | DL13: 1335.616306 | DM13: -14.799644 | DN13: 490.3777615 | DO13: 18.49922 | DP13: 145.459292 | DQ13: 0 | DR13: 639.5366295 | DS13: 1282.969441 | DT13: 0 | DU13: 0 | DV13: 0 | DW13: 1282.969441 | DX13: 1922.50607 | DY13: 0 | EA13: 807.33452 | EB13: 807.33452 | EC13: 2.381300468 | ED13: 432.740628 | EE13: 144.77242 | EF13: 48.45288 | EG13: 32.951687 | EH13: 658.917615 | EI13: -691.498335 | EJ13: 490.3777615 | EK13: 18.49922 | EL13: 36.364823 | EM13: 0 | EN13: -146.2565305 | EO13: 968.395936 | EP13: 0 | EQ13: 0 | ER13: 0 | ES13: 968.395936 | ET13: 822.1394055 | EU13: 0 | EW13: 807.33452 | EX13: 807.33452 | EY13: 1.018337981 | EZ13: 826.72781 | FA13: 847.6461 | FB13: -751.39092 | FC13: 428.5008781 | FD13: 0 | FF13: 1.884090701 | FH13: 0 | FI13: 2542.76139 | FJ13: 0 | FK13: 1919.29731 | FL13: 75.48082638 | FM13: 73.42823203 | FN13: 0 | FO13: 0 | FP13: 1608.62484 | FQ13: 0 | FR13: 1181.18478 | FS13: 0 | FT13: 173.29873 | FU13: 0 | FV13: 11.46934619 | FW13: 9.282381008 | FX13: 0 | FY13: 10.3758636 | FZ13: 10.3758636 | GA13: 5 | GB13: 2.54407601 | GC13: 2.7570504 | GD13: 2.650563205 | GE13: 37 | GF13: 0.07927041952 | GG13: 544.6289716 | GH13: 3087.390362 | GI13: 86.50475148 | GJ13: 0.032 | GK13: 0 | GL13: 0 | GM13: 0 | GN13: 0 | GO13: 0.08329938599 | GP13: 0 | GQ13: 0 | GR13: 309.1235319 | GS13: 0 | GT13: 309.1235319 | GU13: 10.3758636 | GV13: 0 | GW13: 5.10055 | GX13: 822.09787 | GY13: 0 | GZ13: 0 | HA13: 16.94263651 | HC13: 1.16343227 | HD13: 27.5 | HE13: 26241.10288 | HF13: 17961.75913 | HG13: 2311.263895 | HH13: 0.8552141618 | HI13: 0.07661542841 | HJ13: 2306.473442 | HK13: 676.1129058 | HL13: 300.0279658 | HM13: 8.732712443 | HN13: 5.977449887 | HO13: 38.81171717 | HP13: 26.56621249 | HR13: 480.82292 | HS13: 579.08968 | HT13: 323.0192 | HU13: 0 | HV13: 116.63577 | HW13: 0 | HX13: 212.8811 | HY13: 0 | HZ13: 1333.60514 | IA13: 0 | IB13: 0 | IC13: 16.81081 | ID13: 0 | IE13: 0 | IF13: 0 | IG13: 18.49922 | IH13: 363.64823 | II13: 0 | IJ13: 6904.60233 | IK13: 3066.66764 | IL13: 403.87301 | IM13: 120.03324 | IN13: 2443.20356 | IO13: 602.19752 | IP13: 26.6569 | IQ13: 0 | IR13: 1061.7338 | IS13: 840.03316 | IT13: 840.03316 | IU13: 0 | IV13: 0 | IW13: 0 | IX13: 2.82965 | IY13: 0 | IZ13: 0 | JA13: 0 | JB13: 0 | JC13: 880.78125 | JD13: 807.33452 | JE13: 0 | JF13: 0 | JG13: 45.20413 | JH13: 24221.48438 | JI13: 25542.65625 | JJ13: 17263.3125 | JK13: 0 | JL13: 0 | JM13: 0 | JN13: 32.29612 | JO13: 0 | JP13: 0 | JQ13: 219.90035 | JR13: 187.72784 | JS13: 11.25422 | JT13: 110.02169 | JU13: 0 | JV13: 0.76039 | JW13: 1236.51691 | JX13: 235.6062 | JY13: -1001.69072 | JZ13: 14.6936 | KA13: 110.02169 | KB13: 0 | KC13: 0 | KD13: 0 | KE13: 0 | KF13: 0 | KG13: 27.5 | KH13: 0 | KI13: 0 | KJ13: 0 | KK13: 0 | KL13: 0 | KM13: 0 | KN13: 5472.79689 | KO13: 824.92752 | KP13: 0 | KQ13: 0 | KR13: 0 | KS13: 0 | KT13: 0 | KU13: 0 | KV13: 0 | KW13: 0 | KX13: 0 | KY13: 0 | KZ13: 0 | LA13: 0 | LB13: 0 | LC13: 0 | LD13: 0 | LE13: 0 | LF13: 0 | LG13: 0 | LH13: 1608.62484 | LI13: 0 | LJ13: 0 | LK13: 1181.18478 | LL13: 821.25441 | LM13: 647.95568 | LN13: 0 | LO13: 0 | LP13: 0 | LQ13: 0 | LR13: 0 | LS13: 24.3486 | LT13: 0 | LU13: 0 | LV13: 0 | LW13: 0 | LX13: 0 | LY13: 0 | LZ13: 0 | MA13: 0 | MB13: 0 | MC13: 0 | MD13: 0 | ME13: 0 | MF13: 0 | MG13: 0 | MH13: 0 | MI13: 0 | NF13: AUDIT | NY13: AUDIT | OA13: AUDIT | OQ13: AUDIT | TO13: 1.16343227 | TP13: 116.63577 | TQ13: 0 | TR13: 32.17251 | TS13: 0 | TT13: 345.2301165 | TU13: 135.5928035 | TV13: 345.2301165 | TW13: 1576.855867 | TX13: 4287.88951 | TY13: 3004.920069 | TZ13: 0.1722522617 | UA13: 0 | UB13: 0 | UC13: 0 | UD13: 3004.920069 | UE13: 0.1722522617 | UF13: 0.9684268472 | UG13: 0.07496511071 | UH13: 2.297765721 | UI13: 0.9684268472 | UJ13: 0.07496511071 | UK13: 2.297765721 | UV13: x | UX13: x | UZ13: 8.293042888 | VA13: 36.85764728 | VB13: 8.293042888 | VC13: 36.85764728 | VE13: 824.92752 | VF13: 30.20863094 | VG13: 0 | VH13: 32.29612 | VI13: 0 | VJ13: 23908.63626 | VK13: 0.146172 | VL13: 0.1194750227 | VM13: 0.152452 | VN13: 0.07496511071 | VO13: 0.086468 | VP13: 819.89026 | VQ13: 0.4352053783 | VR13: 4537.79968 | VS13: 0.6572137631 | VT13: 1976.625615 | VU13: 0 | VV13: 0 | XN13: 3.587823742 | XO13: 0 | XP13: 0 | XQ13: 0.6349709798 | XR13: 1.075719358 | XS13: 0 | XT13: 0 | XU13: 0.4231970965 | XW13: 0 | XX13: 880.78125 | XY13: 0 | XZ13: Dec-1996 | YA13: $29.0/$14.2 | YB13: 0.1362804215 | YC13: 3.462710105 | YG13: 4287.88951 | YH13: 3004.920069 | YI13: 0.1722522617 | YJ13: 0.9684268472 | YK13: 0.07496511071 | YL13: 2.297765721 | YM13: 8.293042888 | YQ13: 19.79584 | YR13: 0 | YS13: 0 | YT13: -15.10563 | YU13: 0 | YV13: 0 | YW13: 2.56404 | YX13: 880.78125 | YY13: 0 | YZ13: 0 | ZA13: 0 | ZB13: 0 | ZC13: 0 | ZD13: 0 | ZE13: 0 | ZF13: 0 | ZG13: 0 | ZH13: 0 | ZI13: 0 | ZJ13: 0 | ZK13: 0 | ZL13: 0 | ZM13: 0 | ZN13: 0 | ZO13: 0 | ZP13: 0 | ZQ13: 0 | ZR13: 0 | ZS13: 0 | ZT13: 2380.04921 | ZU13: 3187.38373 | ZV13: 0.68371 | ZW13: 0.68371 | ZX13: 16.81081 | ZY13: 0 | ZZ13: 0 | AAA13: 0 | AAB13: 0 | AAC13: 0 | AAD13: 0 | AAE13: 10.79913 | AAF13: 0 | AAG13: 0 | AAH13: 771.69072 | AAI13: 6.70703 | AAJ13: 0 | AAK13: 0 | AAL13: 28.93677 | AAM13: 0 | AAN13: 2334.84508 | AAP13: 235.5 | AAQ13: 0 | AAR13: 0 | AAS13: 0 | AAT13: 0 | AAU13: 0 | AAV13: 0 | AAW13: 0 | AAX13: 0 | AAY13: 0 | AAZ13: 0 | ABA13: 0 | ABB13: 0 | ABC13: 0 | ABD13: 0 | ABE13: 0 | ABF13: 0 | ABG13: 0 | ABH13: 0 | ABI13: 0 | ABJ13: 0 | ABK13: 0 | ABL13: 0 | ABM13: 0 | ABN13: 0 | ABO13: 0 | ABP13: 0 | ABQ13: 0 | ABR13: 0 | ABS13: 0 | ABT13: 0 | ABU13: 0 | ABV13: 0 | ABW13: 0 | ABX13: 0 | ABY13: 0 | ABZ13: 0 | ACA13: 0 | ACB13: 0 | ACC13: 0 | ACD13: 0 | ACE13: 0 | ACF13: 0 | ACG13: 0 | ACH13: 0 | ACI13: 0 | ACJ13: 0 | ACK13: 0 | ACL13: 0 | ACM13: 0 | ACN13: 0 | ACO13: 0 | ACP13: 0 | ACQ13: 0 | ACR13: 0 | ACS13: 0 | ACT13: 0 | ACU13: 0 | ACV13: 0 | ACW13: 0 | ACX13: 0 | ACY13: 0 | ACZ13: 0 | ADA13: 0 | ADB13: 0 | ADC13: 0 | ADD13: 0 | ADE13: 0 | ADG13: 840.03316 | ADH13: 223.9267994 | ADI13: 616.1063606 | ADJ13: 1114.98998 | ADK13: 0 | ADL13: 1333.60514 | ADM13: -218.61516 | ADN13: 0 | ADO13: 0 | ADP13: 2224.5884 | ADQ13: 2224.5884 | ADR13: 0.1216627866 | ADS13: 4.330144047 | ADT13: 4.330144047 | ADU13: 0.5268173913 | ADV13: 0.5268173913 | ADW13: 0.3863842061 | ADX13: 0.3863842061 | ADY13: 116.63577 | ADZ13: 361.08419 | AEA13: 16.81081 | AEB13: 0 | AEC13: 3187.38373 | AED13: 778.39775 | AEE13: 28.93677 | AEF13: 0 | AEG13: 0 | AEH13: 852.53865 | AEI13: 2334.84508 | AEJ13: -0.2405503298 | AEK13: 24221.48438 | AEL13: 852.53865 | AEM13: 25074.02303 | AEN13: 24113.79174 | AEO13: -0.6902386779 | AEP13: 2.166228768 | AEQ13: 3187.38373 | AER13: 2.166228768 | AET13: 0 | AEU13: 0 | AEV13: 0
A14: PSE:JFC0982 | B14: PSE:JFC | C14: 0 | D14: CapIQ Raw | E14: 0 | F14: 2016-02-24 | G14: Jollibee Foods Corp. | H14: 982 | I14: 1997 | J14: 982 | K14: 1997 | L14: 1997-12-31 | M14: Consumer Discretionary | N14: Consumer Services | O14: Hotels, Restaurants and Leisure | P14: Restaurants | Q14: Philippines | R14: PH | S14: PHP | T14: PSE | U14: JFC | V14: PHP | W14: 16.75 | X14: 0 | Z14: 0.07721170839 | AA14: 2.27457447 | AB14: 0.1756237807 | AC14: 0.2090232269 | AD14: 0.1756237807 | AE14: 0.06 | AF14: 4.125109362 | AG14: 5.419739033 | AH14: 19.16272633 | AI14: 17.83437705 | AJ14: 23.48833026 | AK14: 49.17236932 | AM14: 0.07721170839 | AN14: 2.27457447 | AO14: 0.1756237807 | AP14: 0.2712629582 | AQ14: 0.06 | AR14: 4.125109362 | AS14: 19.16272633 | AT14: 23.48833026 | AU14: 5451.035103 | AV14: 1601.255174 | AW14: 3849.779929 | AX14: 676.1129058 | AY14: 15880.76323 | BA14: 0 | BB14: 0 | BC14: 437.830557 | BD14: 437.830557 | BE14: 138.640273 | BF14: 437.830557 | BG14: 436.42758 | BH14: 477.93088 | BI14: 1940.688017 | BJ14: 1038.46475 | BK14: 1673.1828 | BL14: 267.505217 | BM14: 593.1836016 | BN14: 0 | BO14: 0 | BP14: 587.20835 | BQ14: 0 | BR14: 1459.151679 | BS14: 0 | BT14: 1447.897169 | BU14: 4003.137934 | BV14: 0 | BW14: 0 | BX14: 0 | BY14: 4003.137934 | BZ14: 5451.035103 | CA14: 1601.255174 | CB14: 3849.779929 | CC14: 0 | CD14: 0 | CE14: 335.26407 | CF14: 0 | CG14: 188.526068 | CH14: 0 | CI14: 0 | CJ14: 0 | CK14: 0 | CL14: 0 | CM14: 1091.478242 | CN14: 676.1129058 | CO14: 0.7676286318 | CP14: 300.0279658 | CQ14: 0.3406384568 | CR14: 0 | CS14: 1209.95599 | CT14: 149.894783 | CU14: 15880.76323 | CW14: 0 | CX14: 0 | CY14: 0 | CZ14: 0 | DA14: 3231.15147 | DB14: 4003.137934 | DC14: 0 | DD14: 0 | DE14: 0 | DF14: 0 | DG14: 0 | DH14: 576.47083 | DI14: 470.7992 | DJ14: 261.856548 | DK14: 286.758528 | DL14: 1595.885106 | DM14: -77.297694 | DN14: 593.1836016 | DO14: 11.25451 | DP14: 234.88334 | DQ14: 0 | DR14: 762.0237576 | DS14: 1601.255174 | DT14: 0 | DU14: 0 | DV14: 0 | DW14: 1601.255174 | DX14: 2363.278931 | DY14: 0 | EA14: 1209.95599 | EB14: 1209.95599 | EC14: 1.953194125 | ED14: 518.823747 | EE14: 147.12475 | EF14: 65.464137 | EG14: 47.793088 | EH14: 779.205722 | EI14: -893.977078 | EJ14: 593.1836016 | EK14: 11.25451 | EL14: 58.720835 | EM14: 0 | EN14: -230.8181314 | EO14: 1146.556546 | EP14: 0 | EQ14: 0 | ER14: 0 | ES14: 1146.556546 | ET14: 915.7384144 | EU14: 0 | EW14: 1209.95599 | EX14: 1209.95599 | EY14: 0.7568361345 | EZ14: 1091.478242 | FA14: 891.419172 | FB14: -281.96768 | FC14: 344.6002958 | FD14: 376.08494 | FE14: 0.9162831562 | FF14: 3.511186742 | FH14: 0 | FI14: 3231.15147 | FJ14: 0 | FK14: 2313.62117 | FL14: 71.60361226 | FM14: 75.48082638 | FN14: 0 | FO14: 0 | FP14: 2542.76139 | FQ14: 0 | FR14: 1919.29731 | FS14: 1608.62484 | FT14: 221.70064 | FU14: 173.29873 | FV14: 9.637631226 | FW14: 11.46934619 | FX14: 9.282381008 | FY14: 9.637631226 | FZ14: 9.637631226 | GA14: 5 | GB14: 2.736739132 | GC14: 2.363067533 | GD14: 2.549903333 | GE14: 38 | GF14: 0.0711381472 | GG14: 668.5972839 | GH14: 3899.748754 | GI14: 101.6991016 | GJ14: 0.032 | GK14: 0 | GL14: 0 | GM14: 0 | GN14: 0 | GO14: 0.0711381472 | GP14: 0 | GQ14: 0 | GR14: 415.3653362 | GS14: 0 | GT14: 415.3653362 | GU14: 9.637631226 | GV14: 0 | GW14: 7.09608 | GX14: 555.23487 | GY14: 0 | GZ14: 75.04887803 | HA14: 15.71972443 | HC14: 0.6533785647 | HD14: 16.75 | HE14: 26229.94292 | HF14: 12357.63823 | HG14: 4287.88951 | HH14: 0.2712629582 | HI14: 0.06223973137 | HJ14: 2722.102642 | HK14: 828.7319328 | HL14: 827.2274328 | HM14: 6.813361647 | HN14: 3.209959648 | HO14: 31.65069654 | HP14: 14.91150243 | HR14: 576.47083 | HS14: 588.499 | HT14: 436.42758 | HU14: 0 | HV14: 339.24185 | HW14: 0 | HX14: 138.68903 | HY14: 0 | HZ14: 629.20335 | IA14: 5.5147 | IB14: 909.96037 | IC14: 134.01908 | ID14: 0 | IE14: 0 | IF14: 0 | IG14: 11.25451 | IH14: 587.20835 | II14: 0 | IJ14: 8756.61114 | IK14: 3826.02515 | IL14: 491.4845 | IM14: 103.38918 | IN14: 2908.49485 | IO14: 441.75768 | IP14: 19.9553 | IQ14: 0 | IR14: 1280.00431 | IS14: 944.74024 | IT14: 944.74024 | IU14: 0 | IV14: 0 | IW14: 376.08494 | IX14: 13.42043 | IY14: 0 | IZ14: 0 | JA14: 0 | JB14: 0 | JC14: 880.78125 | JD14: 1209.95599 | JE14: 0 | JF14: 0 | JG14: 67.61608 | JH14: 14753.08594 | JI14: 25102.26563 | JJ14: 11229.96094 | JK14: 0 | JL14: 0 | JM14: 6.31866 | JN14: 20.69153 | JO14: 24.63235 | JP14: 0.9552 | JQ14: 113.47719 | JR14: 227.71504 | JS14: 85.82122 | JT14: 131.45354 | JU14: 3.4035 | JV14: 0.94527 | JW14: 870.90381 | JX14: 778.39775 | JY14: -1008.83029 | JZ14: -51.53514 | KA14: 131.45354 | KB14: 0 | KC14: 0 | KD14: 0 | KE14: 0 | KF14: 0 | KG14: 16.75 | KH14: 0 | KI14: 0 | KJ14: 0 | KK14: 0 | KL14: 0 | KM14: 0 | KN14: 6860.52129 | KO14: 568.6553 | KP14: 0 | KQ14: 0 | KR14: 0 | KS14: 0 | KT14: 0 | KU14: 0 | KV14: 0 | KW14: 0 | KX14: 0 | KY14: 0 | KZ14: 0 | LA14: 0 | LB14: 0 | LC14: 0 | LD14: 0 | LE14: 0 | LF14: 0 | LG14: 0 | LH14: 3066.66764 | LI14: 403.87301 | LJ14: 120.03324 | LK14: 2443.20356 | LL14: 1061.7338 | LM14: 840.03316 | LN14: 1608.62484 | LO14: 0 | LP14: 0 | LQ14: 821.25441 | LR14: 647.95568 | LS14: 26.6569 | LT14: 24.3486 | LU14: 0 | LV14: 0 | LW14: 0 | LX14: 0 | LY14: 0 | LZ14: 0 | MA14: 0 | MB14: Avg Cost | MC14: 0 | MD14: 0 | ME14: 0 | MF14: 0 | MG14: 0 | MH14: 0 | MI14: 0 | NI14: AUDIT | NM14: AUDIT | NO14: AUDIT | TO14: 1.472388345 | TP14: 339.24185 | TQ14: 0 | TR14: -114.23785 | TS14: 0 | TT14: 437.830557 | TU14: 138.640273 | TV14: 437.830557 | TW14: 1940.688017 | TX14: 5451.035103 | TY14: 3849.779929 | TZ14: 0.1756237807 | UA14: 0 | UB14: 0 | UC14: 0 | UD14: 3849.779929 | UE14: 0.1756237807 | UF14: 0.2811588464 | UG14: 0.07721170839 | UH14: 2.27457447 | UI14: 0.2811588464 | UJ14: 0.07721170839 | UK14: 2.27457447 | UV14: x | UX14: x | UZ14: 4.125109362 | VA14: 19.16272633 | VB14: 4.125109362 | VC14: 19.16272633 | VE14: 944.74024 | VF14: 16.80966106 | VG14: 15.09525 | VH14: 20.69153 | VI14: 6.31866 | VJ14: 15124.80167 | VK14: 0.116645 | VL14: 0.1078887968 | VM14: 0.144553 | VN14: 0.03426302265 | VO14: 0.049888 | VP14: 1003.12346 | VQ14: 0.4396426731 | VR14: 5586.28599 | VS14: 0.6379506753 | VT14: 1163.145593 | VU14: 0 | VV14: 0 | XN14: 3.645727962 | XO14: 0 | XP14: 0 | XQ14: 0.2480852021 | XR14: 0.1813518621 | XS14: 0 | XT14: 0 | XU14: 0.2682281646 | XW14: 0 | XX14: 880.78125 | XY14: 0.16 | XZ14: Dec-1997 | YA14: $28.5/$12.8 | YB14: 0.1173834933 | YC14: 1.727243728 | YG14: 5451.035103 | YH14: 3849.779929 | YI14: 0.1756237807 | YJ14: 0.2811588464 | YK14: 0.07721170839 | YL14: 2.27457447 | YM14: 4.125109362 | YQ14: 12.17014 | YR14: 0 | YS14: 0 | YT14: 0 | YU14: 0 | YV14: 0 | YW14: 0 | YX14: 880.78125 | YY14: 0 | YZ14: 0 | ZA14: 0 | ZB14: 0 | ZC14: 0 | ZD14: 0 | ZE14: 0 | ZF14: 0 | ZG14: 0 | ZH14: 0 | ZI14: 0 | ZJ14: 0 | ZK14: 0 | ZL14: 0 | ZM14: 0 | ZN14: 0 | ZO14: 0 | ZP14: 0 | ZQ14: 0 | ZR14: 0 | ZS14: 0 | ZT14: 2703.1472 | ZU14: 3913.10319 | ZV14: 0.50155 | ZW14: 0.50155 | ZX14: 128.50438 | ZY14: 0 | ZZ14: 0 | AAA14: 0 | AAB14: 0 | AAC14: 0 | AAD14: 0 | AAE14: 62.72229 | AAF14: 0 | AAG14: 0 | AAH14: 1181.01922 | AAI14: 8.01132 | AAJ14: 0 | AAK14: 0 | AAL14: 20.92546 | AAM14: 0 | AAN14: 2635.53112 | AAP14: 235.5 | AAQ14: 0 | AAR14: 0 | AAS14: 0 | AAT14: 0 | AAU14: 0 | AAV14: 0 | AAW14: 0 | AAX14: 0 | AAY14: 0 | AAZ14: 0 | ABA14: 0 | ABB14: 0 | ABC14: 0 | ABD14: 0 | ABE14: 0 | ABF14: 0 | ABG14: 0 | ABH14: 0 | ABI14: 0 | ABJ14: 0 | ABK14: 0 | ABL14: 0 | ABM14: 0 | ABN14: 0 | ABO14: 0 | ABP14: 0 | ABQ14: 0 | ABR14: 0 | ABS14: 0 | ABT14: 0 | ABU14: 0 | ABV14: 0 | ABW14: 0 | ABX14: 0 | ABY14: 0 | ABZ14: 0 | ACA14: 0 | ACB14: 0 | ACC14: 0 | ACD14: 0 | ACE14: 0 | ACF14: 0 | ACG14: 0 | ACH14: 0 | ACI14: 0 | ACJ14: 0 | ACK14: 0 | ACL14: 0 | ACM14: 0 | ACN14: 0 | ACO14: 0 | ACP14: 0 | ACQ14: 0 | ACR14: 0 | ACS14: 0 | ACT14: 0 | ACU14: 0 | ACV14: 0 | ACW14: 0 | ACX14: 0 | ACY14: 0 | ACZ14: 0 | ADA14: 0 | ADB14: 0 | ADC14: 0 | ADD14: 0 | ADE14: 0 | ADG14: 944.74024 | ADH14: 188.5257491 | ADI14: 756.2144909 | ADJ14: 1163.61561 | ADK14: 909.96037 | ADL14: 1544.67842 | ADM14: -381.06281 | ADN14: 0 | ADO14: 0 | ADP14: 2527.43204 | ADQ14: 2527.43204 | ADR14: 0.1078887968 | ADS14: 3.685426547 | ADT14: 3.685426547 | ADU14: 0.3976162358 | ADV14: 0.3976162358 | ADW14: 0.3182707231 | ADX14: 0.3182707231 | ADY14: 339.24185 | ADZ14: 587.20835 | AEA14: 128.50438 | AEB14: 0 | AEC14: 3913.1032 | AED14: 1189.03054 | AEE14: 20.92546 | AEF14: 0 | AEG14: 0 | AEH14: 1277.57208 | AEI14: 2635.53112 | AEJ14: -0.2288922492 | AEK14: 14753.08594 | AEL14: 1277.57208 | AEM14: 16030.65802 | AEN14: 14644.98686 | AEO14: 0.03136024807 | AEP14: 2.237766471 | AEQ14: 3913.1032 | AER14: 2.237766471 | AET14: 0 | AEU14: 0 | AEV14: 0
A15: PSE:JFC0983 | B15: PSE:JFC | C15: 0 | D15: CapIQ Raw | E15: 0 | F15: 2016-02-24 | G15: Jollibee Foods Corp. | H15: 983 | I15: 1998 | J15: 983 | K15: 1998 | L15: 1998-12-31 | M15: Consumer Discretionary | N15: Consumer Services | O15: Hotels, Restaurants and Leisure | P15: Restaurants | Q15: Philippines | R15: PH | S15: PHP | T15: PSE | U15: JFC | V15: PHP | W15: 15 | X15: 0 | Z15: 0.06424596636 | AA15: 2.504173836 | AB15: 0.160883068 | AC15: 0.204325065 | AD15: 0.160883068 | AE15: 0.06 | AF15: 2.546762871 | AG15: 2.519339673 | AH15: 31.40414933 | AI15: 35.0230478 | AJ15: 15.82989995 | AK15: 15.97108392 | AM15: 0.06424596636 | AN15: 2.504173836 | AO15: 0.160883068 | AP15: 0.3089037262 | AQ15: 0.06 | AR15: 2.546762871 | AS15: 31.40414933 | AT15: 15.82989995 | AU15: 7134.880157 | AV15: 1983.735646 | AW15: 5151.144511 | AX15: 828.7319328 | AY15: 13118.74359 | BA15: 0 | BB15: 0 | BC15: 644.9680655 | BD15: 644.9680655 | BE15: 190.4379145 | BF15: 644.9680655 | BG15: 568.98295 | BH15: 550.25908 | BI15: 2446.380645 | BJ15: 1051.06725 | BK15: 1933.84064 | BL15: 512.5400055 | BM15: 634.7604359 | BN15: 0 | BO15: 0 | BP15: 1028.2406 | BQ15: 0 | BR15: 2186.086561 | BS15: 0 | BT15: 2175.541041 | BU15: 4959.339116 | BV15: 0 | BW15: 0 | BX15: 0 | BY15: 4959.339116 | BZ15: 7134.880157 | CA15: 1983.735646 | CB15: 5151.144511 | CC15: 0 | CD15: 0 | CE15: 467.17527 | CF15: 0 | CG15: 355.1766975 | CH15: 0 | CI15: 0 | CJ15: 0 | CK15: 0 | CL15: 0 | CM15: 1343.312642 | CN15: 828.7319328 | CO15: 0.8302257164 | CP15: 827.2274328 | CQ15: 0.8287185046 | CR15: 0 | CS15: 23.487 | CT15: 200.9834345 | CU15: 13118.74359 | CW15: 0 | CX15: 0 | CY15: 0 | CZ15: 0 | DA15: 3746.55295 | DB15: 4959.339116 | DC15: 0 | DD15: 0 | DE15: 0 | DF15: 0 | DG15: 0 | DH15: 835.40598 | DI15: 545.73644 | DJ15: 341.38977 | DK15: 330.155448 | DL15: 2052.687638 | DM15: 118.846998 | DN15: 634.7604359 | DO15: 10.54552 | DP15: 411.29624 | DQ15: 0 | DR15: 1175.449194 | DS15: 1983.735646 | DT15: 0 | DU15: 0 | DV15: 0 | DW15: 1983.735646 | DX15: 3159.18484 | DY15: 0 | EA15: 23.487 | EB15: 23.487 | EC15: 134.507806 | ED15: 751.865382 | EE15: 170.5426375 | EF15: 85.3474425 | EG15: 55.025908 | EH15: 1062.78137 | EI15: -871.05927 | EJ15: 634.7604359 | EK15: 10.54552 | EL15: 102.82406 | EM15: 0 | EN15: -122.9292541 | EO15: 1299.878744 | EP15: 0 | EQ15: 0 | ER15: 0 | ES15: 1299.878744 | ET15: 1176.94949 | EU15: 0 | EW15: 23.487 | EX15: 23.487 | EY15: 50.11067784 | EZ15: 1343.312642 | FA15: 1672.729962 | FB15: 1178.24988 | FC15: 997.0676528 | FD15: 1.5045 | FE15: 662.7235977 | FF15: 0.02355607459 | FH15: 0 | FI15: 3746.55295 | FJ15: 0 | FK15: 2454.99674 | FL15: 65.52681285 | FM15: 71.60361226 | FN15: 0 | FO15: 0 | FP15: 3231.15147 | FQ15: 0 | FR15: 2313.62117 | FS15: 2542.76139 | FT15: 335.26407 | FU15: 221.70064 | FV15: 8.019587488 | FW15: 9.637631226 | FX15: 11.46934619 | FY15: 9.637631226 | FZ15: 9.637631226 | GA15: 5 | GB15: 3.322398649 | GC15: 2.736739132 | GD15: 3.029568891 | GE15: 39 | GF15: 0.0783317234 | GG15: 1066.807046 | GH15: 4813.359996 | GI15: 140.6848659 | GJ15: 0.032 | GK15: 0 | GL15: 0 | GM15: 0 | GN15: 0 | GO15: 0.07930045402 | GP15: 0 | GQ15: 0 | GR15: 514.5807097 | GS15: 0 | GT15: 514.5807097 | GU15: 9.637631226 | GV15: 0 | GW15: 9.98061 | GX15: 1232.27464 | GY15: 0 | GZ15: 0.4339775385 | HA15: 17.51313947 | HC15: 1.05888513 | HD15: 15 | HE15: 17522.64984 | HF15: 8098.290466 | HG15: 5451.035103 | HH15: 0.3089037262 | HI15: 0.1045786611 | HJ15: 5244.119675 | HK15: 417.7391799 | HL15: 377.2292699 | HM15: 3.401700301 | HN15: 1.572134202 | HO15: 41.94638827 | HP15: 19.38599695 | HR15: 835.40598 | HS15: 682.17055 | HT15: 568.98295 | HU15: 0 | HV15: 433.62053 | HW15: 0 | HX15: 116.63855 | HY15: 0 | HZ15: 781.62573 | IA15: 101.14766 | IB15: 885.38558 | IC15: 266.82933 | ID15: 0 | IE15: 0 | IF15: 0 | IG15: 10.54552 | IH15: 1028.2406 | II15: 0 | IJ15: 12899.36131 | IK15: 4386.60764 | IL15: 494.07557 | IM15: 145.97912 | IN15: 3095.05143 | IO15: 877.53192 | IP15: 28.8453 | IQ15: 0 | IR15: 1698.48934 | IS15: 1231.31407 | IT15: 1231.31407 | IU15: 0 | IV15: 0 | IW15: 1.5045 | IX15: -2.46507 | IY15: 0 | IZ15: 0 | JA15: 0 | JB15: 0 | JC15: 998.20075 | JD15: 23.487 | JE15: 0 | JF15: 0 | JG15: 84.52127 | JH15: 13211.71875 | JI15: 17615.625 | JJ15: 8191.26563 | JK15: 0 | JL15: 0 | JM15: 5.01292 | JN15: 15.02248 | JO15: 29.88048 | JP15: 1.0666 | JQ15: 354.74272 | JR15: 0 | JS15: 25.3254 | JT15: 161.0816 | JU15: 1128.94166 | JV15: 0.01383 | JW15: 1065.88916 | JX15: 1186.46899 | JY15: -46.11638 | JZ15: 37.89727 | KA15: 161.0816 | KB15: 0 | KC15: 0 | KD15: 0 | KE15: 0 | KF15: 0 | KG15: 15 | KH15: 0 | KI15: 0 | KJ15: 0 | KK15: 0 | KL15: 0 | KM15: 0 | KN15: 9964.67776 | KO15: 1229.80957 | KP15: 0 | KQ15: 0 | KR15: 0 | KS15: 0 | KT15: 0 | KU15: 0 | KV15: 0 | KW15: 0 | KX15: 0 | KY15: 0 | KZ15: 0 | LA15: 0 | LB15: 0 | LC15: 0 | LD15: 0 | LE15: 0 | LF15: 0 | LG15: 0 | LH15: 3826.02515 | LI15: 491.4845 | LJ15: 103.38918 | LK15: 2908.49485 | LL15: 1280.00431 | LM15: 944.74024 | LN15: 3066.66764 | LO15: 403.87301 | LP15: 120.03324 | LQ15: 1061.7338 | LR15: 840.03316 | LS15: 19.9553 | LT15: 26.6569 | LU15: 24.3486 | LV15: 0 | LW15: 0 | LX15: 0 | LY15: 0 | LZ15: 0 | MA15: 0 | MB15: Avg Cost | MC15: 0 | MD15: 0 | ME15: 0 | MF15: 0 | MG15: 0 | MH15: 0 | MI15: 0 | PD15: AUDIT | QB15: AUDIT | TO15: 1.060810951 | TP15: 433.62053 | TQ15: 0 | TR15: 354.74272 | TS15: 0 | TT15: 644.9680655 | TU15: 190.4379145 | TV15: 644.9680655 | TW15: 2446.380645 | TX15: 7134.880157 | TY15: 5151.144511 | TZ15: 0.160883068 | UA15: 0 | UB15: 0 | UC15: 0 | UD15: 5151.144511 | UE15: 0.160883068 | UF15: 0.3380360971 | UG15: 0.06424596636 | UH15: 2.504173836 | UI15: 0.3380360971 | UJ15: 0.06424596636 | UK15: 2.504173836 | UV15: x | UX15: x | UZ15: 2.546762871 | VA15: 31.40414933 | VB15: 2.546762871 | VC15: 31.40414933 | VE15: 1231.31407 | VF15: 10.65426271 | VG15: 10.86935 | VH15: 15.02248 | VI15: 5.01292 | VJ15: 13912.81999 | VK15: 0.124556 | VL15: 0.09545542918 | VM15: 0.131672 | VN15: 0.06412933268 | VO15: 0.068029 | VP15: 1396.98663 | VQ15: 0.3993332993 | VR15: 6770.6561 | VS15: 0.5248830494 | VT15: 1683.845055 | VU15: 0 | VV15: 0 | XN15: 4.335040419 | XO15: 0 | XP15: 0 | XQ15: 0.2388629115 | XR15: 0.9160000364 | XS15: 0 | XT15: 0 | XU15: 0.4730997076 | XW15: 0 | XX15: 880.78125 | XY15: 0.16 | XZ15: Dec-1998 | YA15: $20.0/$9.3 | YB15: 0.1462422464 | YC15: 1.078566578 | YG15: 7134.880157 | YH15: 5151.144511 | YI15: 0.160883068 | YJ15: 0.3380360971 | YK15: 0.06424596636 | YL15: 2.504173836 | YM15: 2.546762871 | YQ15: 11.02715 | YR15: 0 | YS15: 0 | YT15: 0 | YU15: 0 | YV15: 0 | YW15: 11.45532 | YX15: 963.88262 | YY15: 0 | YZ15: 0 | ZA15: 0 | ZB15: 0 | ZC15: 0 | ZD15: 0 | ZE15: 0 | ZF15: 0 | ZG15: 0 | ZH15: 0 | ZI15: 0 | ZJ15: 0 | ZK15: 0 | ZL15: 0 | ZM15: 0 | ZN15: 0 | ZO15: 0 | ZP15: 0 | ZQ15: 0 | ZR15: 0 | ZS15: 0 | ZT15: 4813.32846 | ZU15: 4836.81546 | ZV15: 0.88169 | ZW15: 0.88169 | ZX15: 165.68167 | ZY15: 0 | ZZ15: 0 | AAA15: 0 | AAB15: 0 | AAC15: 0 | AAD15: 0 | AAE15: 35.42548 | AAF15: 0 | AAG15: 0 | AAH15: 23.487 | AAI15: 0 | AAJ15: 0 | AAK15: 0 | AAL15: 0 | AAM15: 0 | AAN15: 4728.80718 | AAP15: 235.5 | AAQ15: 0 | AAR15: 0 | AAS15: 0 | AAT15: 0 | AAU15: 0 | AAV15: 0 | AAW15: 0 | AAX15: 0 | AAY15: 0 | AAZ15: 0 | ABA15: 0 | ABB15: 0 | ABC15: 0 | ABD15: 0 | ABE15: 0 | ABF15: 0 | ABG15: 0 | ABH15: 0 | ABI15: 0 | ABJ15: 0 | ABK15: 0 | ABL15: 0 | ABM15: 0 | ABN15: 0 | ABO15: 0 | ABP15: 0 | ABQ15: 0 | ABR15: 0 | ABS15: 0 | ABT15: 0 | ABU15: 1 | ABV15: 0 | ABW15: 0 | ABX15: 0 | ABY15: 0 | ABZ15: 0 | ACA15: 0 | ACB15: 0 | ACC15: 0 | ACD15: 0 | ACE15: 0 | ACF15: 0 | ACG15: 0 | ACH15: 0 | ACI15: 0 | ACJ15: 0 | ACK15: 0 | ACL15: 0 | ACM15: 0 | ACN15: 0 | ACO15: 0 | ACP15: 0 | ACQ15: 0 | ACR15: 0 | ACS15: 0 | ACT15: 0 | ACU15: 0 | ACV15: 0 | ACW15: 0 | ACX15: 0 | ACY15: 0 | ACZ15: 0 | ADA15: 0.8 | ADB15: 0.8 | ADC15: 0.8 | ADD15: 0.8 | ADE15: 1 | ADG15: 1231.31407 | ADH15: 355.1762374 | ADI15: 876.1378326 | ADJ15: 1367.79205 | ADK15: 885.38558 | ADL15: 1768.15897 | ADM15: -400.36692 | ADN15: 0 | ADO15: 0 | ADP15: 2694.68451 | ADQ15: 2694.68451 | ADR15: 0.09545542918 | ADS15: 4.940280894 | ADT15: 4.940280894 | ADU15: 0.471576633 | ADV15: 0.471576633 | ADW15: 0.3355489385 | ADX15: 0.3355489385 | ADY15: 433.62053 | ADZ15: 1016.78528 | AEA15: 165.68167 | AEB15: 0 | AEC15: 4836.81547 | AED15: 23.487 | AEE15: 0 | AEF15: 0 | AEG15: 0 | AEH15: 108.00827 | AEI15: 4728.80718 | AEJ15: 0.1123347366 | AEK15: 13211.71875 | AEL15: 108.00827 | AEM15: 13319.72702 | AEN15: 11189.05138 | AEO15: 0.05982510199 | AEP15: 2.666912019 | AEQ15: 4836.81547 | AER15: 2.666912019 | AET15: 0 | AEU15: 0 | AEV15: 1388.00585
A16: PSE:JFC0984 | B16: PSE:JFC | C16: 0 | D16: CapIQ Raw | E16: 0 | F16: 2016-02-24 | G16: Jollibee Foods Corp. | H16: 984 | I16: 1999 | J16: 984 | K16: 1999 | L16: 1999-12-31 | M16: Consumer Discretionary | N16: Consumer Services | O16: Hotels, Restaurants and Leisure | P16: Restaurants | Q16: Philippines | R16: PH | S16: PHP | T16: PSE | U16: JFC | V16: PHP | W16: 16.25 | X16: 0 | Z16: 0.02956833085 | AA16: 2.536322464 | AB16: 0.07499482175 | AC16: 0.1100776378 | AD16: 0.07499482175 | AE16: 0.06 | AF16: 2.700173475 | AG16: 2.529276048 | AH16: 25.44302256 | AI16: 26.49601845 | AJ16: 36.0047989 | AK16: 41.52141361 | AM16: 0.02956833085 | AN16: 2.536322464 | AO16: 0.07499482175 | AP16: 0.1759338245 | AQ16: 0.06 | AR16: 2.700173475 | AS16: 25.44302256 | AT16: 36.0047989 | AU16: 8390.146911 | AV16: 2819.906591 | AW16: 5570.240319 | AX16: 417.7391799 | AY16: 15040.61516 | BA16: 0 | BB16: 0 | BC16: 706.3962825 | BD16: 706.3962825 | BE16: 1006.697147 | BF16: 706.3962825 | BG16: 674.49713 | BH16: 537.2012 | BI16: 2734.320302 | BJ16: 1302.19988 | BK16: 2566.51987 | BL16: 167.8004325 | BM16: 0 | BN16: 0 | BO16: 0 | BP16: 1172.58 | BQ16: 0 | BR16: 1343.645272 | BS16: 0 | BT16: 1340.380432 | BU16: 7049.766478 | BV16: 0 | BW16: 0 | BX16: 0 | BY16: 7049.766478 | BZ16: 8390.146911 | CA16: 2819.906591 | CB16: 5570.240319 | CC16: 0 | CD16: 0 | CE16: 609.08715 | CF16: 0 | CG16: 293.8933539 | CH16: 0 | CI16: 0 | CJ16: 0 | CK16: 0 | CL16: 0 | CM16: 1195.556956 | CN16: 417.7391799 | CO16: 0.4082599233 | CP16: 377.2292699 | CQ16: 0.3686692564 | CR16: 0 | CS16: 336.1241 | CT16: 1009.961987 | CU16: 15040.61516 | CW16: 0 | CX16: 0 | CY16: 0 | CZ16: 0 | DA16: 5520.47318 | DB16: 7049.766478 | DC16: 0 | DD16: 0 | DE16: 0 | DF16: 0 | DG16: 0 | DH16: 1713.09343 | DI16: 652.980552 | DJ16: 404.698278 | DK16: 322.32072 | DL16: 3093.09298 | DM16: 526.57311 | DN16: 0 | DO16: 3.26484 | DP16: 469.032 | DQ16: 0 | DR16: 998.86995 | DS16: 2819.906591 | DT16: 0 | DU16: 0 | DV16: 0 | DW16: 2819.906591 | DX16: 3818.776541 | DY16: 0 | EA16: 336.1241 | EB16: 336.1241 | EC16: 11.36121016 | ED16: 1541.784087 | EE16: 204.0564225 | EF16: 101.1745695 | EG16: 53.72012 | EH16: 1900.735199 | EI16: -665.784671 | EJ16: 0 | EK16: 3.26484 | EL16: 117.258 | EM16: 0 | EN16: -545.261831 | EO16: 1777.329875 | EP16: 0 | EQ16: 0 | ER16: 0 | ES16: 1777.329875 | ET16: 1232.068044 | EU16: 0 | EW16: 336.1241 | EX16: 336.1241 | EY16: 3.665515339 | EZ16: 1195.556956 | FA16: 1463.152616 | FB16: -461.75559 | FC16: 502.7914599 | FD16: 40.50991 | FE16: 12.41156694 | FF16: 0.6685159292 | FH16: 0 | FI16: 5520.47318 | FJ16: 0 | FK16: 3479.44217 | FL16: 63.02796982 | FM16: 65.52681285 | FN16: 0 | FO16: 0 | FP16: 3746.55295 | FQ16: 0 | FR16: 2454.99674 | FS16: 3231.15147 | FT16: 467.17527 | FU16: 335.26407 | FV16: 9.063519367 | FW16: 8.019587488 | FX16: 9.637631226 | FY16: 9.063519367 | FZ16: 9.063519367 | GA16: 5 | GB16: 3.350967115 | GC16: 3.124483993 | GD16: 3.237725554 | GE16: 40 | GF16: 0.07570174673 | GG16: 1529.293298 | GH16: 7049.766478 | GI16: 0 | GJ16: 0.032 | GK16: 0 | GL16: 0 | GM16: 0 | GN16: 0 | GO16: 0.07539961398 | GP16: 0 | GQ16: 0 | GR16: 777.8177762 | GS16: 0 | GT16: 777.8177762 | GU16: 9.063519367 | GV16: 0 | GW16: 13.08045 | GX16: 927.37535 | GY16: 0 | GZ16: 12.55742394 | HA16: 17.26971795 | HC16: 1.546513832 | HD16: 16.25 | HE16: 21064.88153 | HF16: 11907.99665 | HG16: 7134.880157 | HH16: 0.1759338245 | HI16: 0.06585618676 | HJ16: 6192.717697 | HK16: 591.1489143 | HL16: 591.1489143 | HM16: 3.781682715 | HN16: 2.137788672 | HO16: 35.6337989 | HP16: 20.14381887 | HR16: 1713.09343 | HS16: 816.22569 | HT16: 674.49713 | HU16: 0 | HV16: 347.57429 | HW16: 0 | HX16: 189.62691 | HY16: 0 | HZ16: 1217.92814 | IA16: 46.39185 | IB16: 999.44079 | IC16: 349.15094 | ID16: 0 | IE16: 0 | IF16: 0 | IG16: 3.26484 | IH16: 1172.58 | II16: 0 | IJ16: 14127.92565 | IK16: 5520.47318 | IL16: 0 | IM16: 0 | IN16: 3479.44217 | IO16: 646.03942 | IP16: 30.9984 | IQ16: 0 | IR16: 1675.10707 | IS16: 1066.01992 | IT16: 1066.01992 | IU16: 0 | IV16: 0 | IW16: 40.50991 | IX16: -19.79448 | IY16: 0 | IZ16: -67.72762 | JA16: 0 | JB16: 0 | JC16: 1023.21868 | JD16: 336.1241 | JE16: 0 | JF16: 0 | JG16: 51.36051 | JH16: 15663.09254 | JI16: 21687.35891 | JJ16: 12530.47403 | JK16: 0 | JL16: 0 | JM16: 3.31227 | JN16: 13.67495 | JO16: 17.62475 | JP16: 1.1076 | JQ16: 281.33593 | JR16: 0 | JS16: 13.74027 | JT16: 182.54338 | JU16: 41.35055 | JV16: 0.20066 | JW16: 624.50762 | JX16: 0 | JY16: -55.5878 | JZ16: -406.16779 | KA16: 182.54338 | KB16: 0 | KC16: 0 | KD16: 0 | KE16: 0 | KF16: 0 | KG16: 16.25 | KH16: 0 | KI16: 0 | KJ16: 0 | KK16: 0 | KL16: 0 | KM16: 0 | KN16: 11648.37519 | KO16: 907.58086 | KP16: 0 | KQ16: 0 | KR16: 0 | KS16: 0 | KT16: 0 | KU16: 0 | KV16: 0 | KW16: 0 | KX16: 0 | KY16: 0 | KZ16: 0 | LA16: 0 | LB16: 0 | LC16: 0 | LD16: 0 | LE16: 0 | LF16: 0 | LG16: 0 | LH16: 4386.60764 | LI16: 494.07557 | LJ16: 145.97912 | LK16: 3095.05143 | LL16: 1698.48934 | LM16: 1231.31407 | LN16: 3826.02515 | LO16: 491.4845 | LP16: 103.38918 | LQ16: 1280.00431 | LR16: 944.74024 | LS16: 28.8453 | LT16: 19.9553 | LU16: 26.6569 | LV16: 24.3486 | LW16: 0 | LX16: 0 | LY16: 0 | LZ16: 0 | MA16: 0 | MB16: Avg Cost | MC16: 0 | MD16: 0 | ME16: 0 | MF16: 0 | MG16: 0 | MH16: 0 | MI16: 0 | NE16: AUDIT | OH16: AUDIT | OM16: AUDIT | TO16: 1.712590914 | TP16: 347.57429 | TQ16: 0 | TR16: 281.33593 | TS16: 0 | TT16: 706.3962825 | TU16: 1006.697147 | TV16: 706.3962825 | TW16: 2734.320302 | TX16: 8390.146911 | TY16: 5570.240319 | TZ16: 0.07499482175 | UA16: 0 | UB16: 0 | UC16: 0 | UD16: 5570.240319 | UE16: 0.07499482175 | UF16: 0.08135974591 | UG16: 0.02956833085 | UH16: 2.536322464 | UI16: 0.08135974591 | UJ16: 0.02956833085 | UK16: 2.536322464 | UV16: x | UX16: x | UZ16: 2.700173475 | VA16: 25.44302256 | VB16: 2.700173475 | VC16: 25.44302256 | VE16: 880.36316 | VF16: 17.08455765 | VG16: 9.58342 | VH16: 13.67495 | VI16: 3.31227 | VJ16: 14935.69483 | VK16: 0.087857 | VL16: 0.06231368863 | VM16: 0.118567 | VN16: 0.02670096653 | VO16: 0.045727 | VP16: 1625.40698 | VQ16: 0.3942716332 | VR16: 8396.30445 | VS16: 0.5943055377 | VT16: 1255.266754 | VU16: 0 | VV16: 0 | XN16: 3.340045776 | XO16: 0 | XP16: 0 | XQ16: 0.4215132931 | XR16: -0.6726100778 | XS16: 0 | XT16: 0 | XU16: 0.09524226126 | XW16: 0 | XX16: 963.88262 | XY16: 0.18 | XZ16: Dec-1999 | YA16: $22.5/$13.0 | YB16: 0 | YC16: 1.057175356 | YG16: 8390.146911 | YH16: 5570.240319 | YI16: 0.07499482175 | YJ16: 0.08135974591 | YK16: 0.02956833085 | YL16: 2.536322464 | YM16: 2.700173475 | YQ16: 12.09405 | YR16: 0 | YS16: 0 | YT16: -185.65677 | YU16: 0 | YV16: 0 | YW16: 15.32383 | YX16: 1016.25849 | YY16: 0 | YZ16: 0 | ZA16: 0 | ZB16: 0 | ZC16: 0 | ZD16: 0 | ZE16: 0 | ZF16: 0 | ZG16: 0 | ZH16: 0 | ZI16: 0 | ZJ16: 0 | ZK16: 0 | ZL16: 0 | ZM16: 0 | ZN16: 0 | ZO16: 0 | ZP16: 0 | ZQ16: 0 | ZR16: 0 | ZS16: 0 | ZT16: 5493.66049 | ZU16: 5829.78459 | ZV16: 0.63574 | ZW16: 0.63574 | ZX16: 302.75909 | ZY16: 0 | ZZ16: 0 | AAA16: 0 | AAB16: 0 | AAC16: 0 | AAD16: 0 | AAE16: 89.42937 | AAF16: 0 | AAG16: 0 | AAH16: 336.1241 | AAI16: 0 | AAJ16: 0 | AAK16: 0 | AAL16: 0 | AAM16: 0 | AAN16: 5442.29999 | AAP16: 235.5 | AAQ16: 12920.5 | AAR16: 14193 | AAS16: 11976 | AAT16: 8 | AAU16: 0 | AAV16: 1668.45 | AAW16: 1839 | AAX16: 1594.47 | AAY16: 1699.974 | AAZ16: 5 | ABA16: 0 | ABB16: 1266.825 | ABC16: 1351 | ABD16: 1182.65 | ABE16: 1266.825 | ABF16: 2 | ABG16: 0 | ABH16: 0 | ABI16: 0 | ABJ16: 0 | ABK16: 0 | ABL16: 0 | ABM16: 0 | ABN16: 0 | ABO16: 0 | ABP16: 0 | ABQ16: 0 | ABR16: 0 | ABS16: 0 | ABT16: 0 | ABU16: 16 | ABV16: 0 | ABW16: 0 | ABX16: 0 | ABY16: 0 | ABZ16: 0 | ACA16: 0 | ACB16: 0 | ACC16: 0 | ACD16: 0 | ACE16: 0 | ACF16: 0 | ACG16: 0 | ACH16: 0 | ACI16: 0 | ACJ16: 0 | ACK16: 0 | ACL16: 0 | ACM16: 0 | ACN16: 0 | ACO16: 0 | ACP16: 0 | ACQ16: 0 | ACR16: 0 | ACS16: 0 | ACT16: 0 | ACU16: 0 | ACV16: 0.2 | ACW16: 0.225 | ACX16: 0 | ACY16: 0.17375 | ACZ16: 12 | ADA16: 0.955 | ADB16: 1.06 | ADC16: 0.76 | ADD16: 0.914 | ADE16: 16 | ADG16: 1066.01992 | ADH16: 330.4491189 | ADI16: 735.5708011 | ADJ16: 1680.34973 | ADK16: 999.44079 | ADL16: 2263.76078 | ADM16: -583.41105 | ADN16: 0 | ADO16: 0 | ADP16: 2896.03112 | ADQ16: 2896.03112 | ADR16: 0.07545480819 | ADS16: 5.054066987 | ADT16: 5.054066987 | ADU16: 0.3813536551 | ADV16: 0.3813536551 | ADW16: 0.2631401237 | ADX16: 0.2631401237 | ADY16: 347.57429 | ADZ16: 1157.25617 | AEA16: 302.75909 | AEB16: 0 | AEC16: 5829.78459 | AED16: 336.1241 | AEE16: 0 | AEF16: 0 | AEG16: 0 | AEH16: 387.48461 | AEI16: 5442.29999 | AEJ16: -24.44316448 | AEK16: 15663.09254 | AEL16: 387.48461 | AEM16: 16050.57715 | AEN16: 13132.14751 | AEO16: 0.0657402291 | AEP16: 2.423404404 | AEQ16: 5829.78459 | AER16: 2.423404404 | AET16: 0 | AEU16: 0 | AEV16: 37.64905
A17: PSE:JFC0985 | B17: PSE:JFC | C17: 0 | D17: CapIQ Raw | E17: 0 | F17: 2016-02-24 | G17: Jollibee Foods Corp. | H17: 985 | I17: 2000 | J17: 985 | K17: 2000 | L17: 2000-12-31 | M17: Consumer Discretionary | N17: Consumer Services | O17: Hotels, Restaurants and Leisure | P17: Restaurants | Q17: Philippines | R17: PH | S17: PHP | T17: PSE | U17: JFC | V17: PHP | W17: 9.7 | X17: 0 | Z17: 0.03786111805 | AA17: 2.373027883 | AB17: 0.08984548882 | AC17: 0.09819748996 | AD17: 0.08984548882 | AE17: 0.06 | AF17: 1.355743825 | AG17: 1.333855987 | AH17: 15.72645835 | AI17: 19.12769799 | AJ17: 15.08972618 | AK17: 15.81943135 | AM17: 0.03786111805 | AN17: 2.373027883 | AO17: 0.08984548882 | AP17: 0.1552911167 | AQ17: 0.06 | AR17: 1.355743825 | AS17: 15.72645835 | AT17: 15.08972618 | AU17: 9693.062194 | AV17: 3113.445097 | AW17: 6579.617097 | AX17: 591.1489143 | AY17: 8920.275251 | BA17: 0 | BB17: 0 | BC17: 780.6807415 | BD17: 780.6807415 | BE17: 436.8366185 | BF17: 780.6807415 | BG17: 897.67292 | BH17: 717.93119 | BI17: 3234.833362 | BJ17: 1693.08521 | BK17: 3010.34201 | BL17: 224.4913515 | BM17: 0 | BN17: 0 | BO17: 0 | BP17: 1684.9581 | BQ17: 0 | BR17: 1912.800072 | BS17: 0 | BT17: 1909.449452 | BU17: 7783.612743 | BV17: 0 | BW17: 0 | BX17: 0 | BY17: 7783.612743 | BZ17: 9693.062194 | CA17: 3113.445097 | CB17: 6579.617097 | CC17: 0 | CD17: 0 | CE17: 708.49612 | CF17: 0 | CG17: 325.01615 | CH17: 34.586 | CI17: 0 | CJ17: 0 | CK17: 0 | CL17: 0 | CM17: 1496.38037 | CN17: 591.1489143 | CO17: 0.5868558408 | CP17: 591.1489143 | CQ17: 0.5868558408 | CR17: 0 | CS17: 0 | CT17: 440.1872385 | CU17: 8920.275251 | CW17: 0 | CX17: 0 | CY17: 0 | CZ17: 0 | DA17: 6091.98829 | DB17: 7783.612743 | DC17: 0 | DD17: 0 | DE17: 0 | DF17: 0 | DG17: 0 | DH17: 1217.51736 | DI17: 670.838808 | DJ17: 538.603752 | DK17: 430.758714 | DL17: 2857.718634 | DM17: -152.623376 | DN17: 0 | DO17: 3.35062 | DP17: 673.98324 | DQ17: 0 | DR17: 524.710484 | DS17: 3113.445097 | DT17: 0 | DU17: 0 | DV17: 0 | DW17: 3113.445097 | DX17: 3638.155581 | DY17: 0 | EA17: 0 | EB17: 0 | ED17: 1095.765624 | EE17: 209.6371275 | EF17: 134.650938 | EG17: 71.793119 | EH17: 1511.846808 | EI17: -1498.495201 | EJ17: 0 | EK17: 3.35062 | EL17: 168.49581 | EM17: 0 | EN17: -1326.648771 | EO17: 1808.064425 | EP17: 0 | EQ17: 0 | ER17: 0 | ES17: 1808.064425 | ET17: 481.4156531 | EU17: 0 | EW17: 0 | EX17: 0 | EZ17: 1496.38037 | FA17: 1269.32342 | FB17: 353.11659 | FC17: 185.8571443 | FD17: 0 | FF17: 0 | FH17: 0 | FI17: 6091.98829 | FJ17: 0 | FK17: 3537.78755 | FL17: 58.07278973 | FM17: 63.02796982 | FN17: 0 | FO17: 0 | FP17: 5520.47318 | FQ17: 0 | FR17: 3479.44217 | FS17: 3746.55295 | FT17: 609.08715 | FU17: 467.17527 | FV17: 8.598477985 | FW17: 9.063519367 | FX17: 8.019587488 | FY17: 8.598477985 | FZ17: 8.598477985 | GA17: 5 | GB17: 3.605101945 | GC17: 3.179031875 | GD17: 3.39206691 | GE17: 41 | GF17: 0.07033536569 | GG17: 1691.624453 | GH17: 7783.612743 | GI17: 0 | GJ17: 0.032 | GK17: 0 | GL17: 0 | GM17: 0 | GN17: 0 | GO17: 0.07326149271 | GP17: 0 | GQ17: 0 | GR17: 905.2314557 | GS17: 0 | GT17: 905.2314557 | GU17: 8.598477985 | GV17: 0 | GW17: 15.96149 | GX17: 1185.01818 | GY17: 0 | GZ17: 0 | HA17: 14.40986333 | HC17: 1.454797614 | HD17: 9.7 | HE17: 15472.69878 | HF17: 8823.866591 | HG17: 8390.146911 | HH17: 0.1552911167 | HI17: 0.05709362678 | HJ17: 7010.981516 | HK17: 567.2145027 | HL17: 488.9056527 | HM17: 2.351610824 | HN17: 1.3410912 | HO17: 27.27839064 | HP17: 15.55648974 | HR17: 1217.51736 | HS17: 838.54851 | HT17: 897.67292 | HU17: 0 | HV17: 546.06491 | HW17: 0 | HX17: 171.86628 | HY17: 0 | HZ17: 1251.31263 | IA17: 65.94417 | IB17: 1287.97545 | IC17: 471.05393 | ID17: 0 | IE17: 0 | IF17: 0 | IG17: 3.35062 | IH17: 1684.9581 | II17: 0 | IJ17: 15613.61483 | IK17: 6091.98829 | IL17: 0 | IM17: 0 | IN17: 3537.78755 | IO17: 860.00203 | IP17: 28.8104 | IQ17: 0 | IR17: 1709.25069 | IS17: 1000.75457 | IT17: 1000.75457 | IU17: 0 | IV17: 0 | IW17: 0 | IX17: -56.89738 | IY17: 34.586 | IZ17: -51.31046 | JA17: -1.50406 | JB17: 0 | JC17: 1007.31538 | JD17: 0 | JE17: 0 | JF17: 0 | JG17: 8.82282 | JH17: 9351.63967 | JI17: 15904.0632 | JJ17: 9255.23101 | JK17: 0 | JL17: 0 | JM17: 1.64517 | JN17: 9.28226 | JO17: 12.13498 | JP17: 2.0618 | JQ17: 325.01615 | JR17: 312.02316 | JS17: 240.04994 | JT17: 178.23482 | JU17: 0 | JV17: 0 | JW17: 1142.30024 | JX17: 336.1241 | JY17: 0 | JZ17: -17.59351 | KA17: 178.23482 | KB17: 0 | KC17: 0 | KD17: 0 | KE17: 0 | KF17: 0 | KG17: 9.7 | KH17: 0 | KI17: 34.586 | KJ17: 0 | KK17: 0 | KL17: 0 | KM17: 0 | KN17: 12935.34409 | KO17: 1128.1208 | KP17: 0 | KQ17: 0 | KR17: 0 | KS17: 0 | KT17: 0 | KU17: 34.586 | KV17: 0 | KW17: 0 | KX17: 0 | KY17: 0 | KZ17: 0 | LA17: 0 | LB17: 0 | LC17: 0 | LD17: 0 | LE17: 0 | LF17: 0 | LG17: 0 | LH17: 5520.47318 | LI17: 0 | LJ17: 0 | LK17: 3479.44217 | LL17: 1675.10707 | LM17: 1066.01992 | LN17: 4386.60764 | LO17: 494.07557 | LP17: 145.97912 | LQ17: 1698.48934 | LR17: 1231.31407 | LS17: 30.9984 | LT17: 28.8453 | LU17: 19.9553 | LV17: 26.6569 | LW17: 24.3486 | LX17: 0 | LY17: 0 | LZ17: 0 | MA17: 0 | MB17: 0 | MC17: 0 | MD17: 0 | ME17: 0 | MF17: 0 | MG17: 0 | MH17: 0 | MI17: 0 | OK17: AUDIT | PE17: AUDIT | TO17: 1.454797614 | TP17: 546.06491 | TQ17: 0 | TR17: 12.99299 | TS17: 0 | TT17: 780.6807415 | TU17: 436.8366185 | TV17: 780.6807415 | TW17: 3234.833362 | TX17: 9693.062194 | TY17: 6579.617097 | TZ17: 0.08984548882 | UA17: 0 | UB17: 0 | UC17: 0 | UD17: 6579.617097 | UE17: 0.08984548882 | UF17: 0.1812088384 | UG17: 0.03786111805 | UH17: 2.373027883 | UI17: 0.1812088384 | UJ17: 0.03786111805 | UK17: 2.373027883 | UV17: x | UX17: x | UZ17: 1.355743825 | VA17: 15.72645835 | VB17: 1.355743825 | VC17: 15.72645835 | VE17: 1112.9004 | VF17: 8.015340143 | VG17: 5.14008 | VH17: 9.28226 | VI17: 1.64517 | VJ17: 8236.03567 | VK17: 0.072333 | VL17: 0.07127756206 | VM17: 0.109471 | VN17: 0.03786111805 | VO17: 0.05508 | VP17: 1441.79614 | VQ17: 0.4214025496 | VR17: 8897.76625 | VS17: 0.5698722779 | VT17: 1302.915283 | VU17: 0 | VV17: 0 | XN17: 3.343266455 | XO17: 0 | XP17: 0 | XQ17: 0.1040951167 | XR17: 0.3378472758 | XS17: 0 | XT17: 0 | XU17: 0.1051597536 | XW17: 0 | XX17: 964.08656 | XY17: 0.2 | XZ17: Dec-2000 | YA17: $16.5/$9.6 | YB17: 0 | YC17: 0.5274906394 | YG17: 9693.062194 | YH17: 6579.617097 | YI17: 0.08984548882 | YJ17: 0.1812088384 | YK17: 0.03786111805 | YL17: 2.373027883 | YM17: 1.355743825 | YQ17: 7.35092 | YR17: 0 | YS17: 0 | YT17: 76.05576 | YU17: 0 | YV17: 0 | YW17: 90.497 | YX17: 1008.61986 | YY17: 0 | YZ17: 0 | ZA17: 0 | ZB17: 0 | ZC17: 0 | ZD17: 0 | ZE17: 0 | ZF17: 0 | ZG17: 0 | ZH17: 0 | ZI17: 0 | ZJ17: 0 | ZK17: 0 | ZL17: 0 | ZM17: 0 | ZN17: 0 | ZO17: 0 | ZP17: 0 | ZQ17: 0 | ZR17: 0 | ZS17: 0 | ZT17: 5887.42425 | ZU17: 5887.42425 | ZV17: 0.85387 | ZW17: 0.85387 | ZX17: 405.10976 | ZY17: 0 | ZZ17: 0 | AAA17: 0 | AAB17: 0 | AAC17: 0 | AAD17: 0 | AAE17: 33.27733 | AAF17: 0 | AAG17: 0 | AAH17: 0 | AAI17: 0 | AAJ17: 0 | AAK17: 0 | AAL17: 0 | AAM17: 0 | AAN17: 5878.60143 | AAP17: 235.5 | AAQ17: 15366 | AAR17: 16989 | AAS17: 14025 | AAT17: 7 | AAU17: 0 | AAV17: 1854.64 | AAW17: 2156 | AAX17: 1561.68 | AAY17: 1854.38667 | AAZ17: 6 | ABA17: 0 | ABB17: 1204.495 | ABC17: 1552 | ABD17: 1092.1 | ABE17: 1261.25167 | ABF17: 6 | ABG17: 0 | ABH17: 0 | ABI17: 0 | ABJ17: 0 | ABK17: 0 | ABL17: 0 | ABM17: 0 | ABN17: 0 | ABO17: 0 | ABP17: 0 | ABQ17: 0 | ABR17: 0 | ABS17: 0 | ABT17: 0 | ABU17: 17 | ABV17: 0 | ABW17: 0 | ABX17: 0 | ABY17: 0 | ABZ17: 0 | ACA17: 0 | ACB17: 0 | ACC17: 0 | ACD17: 0 | ACE17: 0 | ACF17: 0 | ACG17: 0 | ACH17: 0 | ACI17: 0 | ACJ17: 0 | ACK17: 0 | ACL17: 0 | ACM17: 0 | ACN17: 0 | ACO17: 0 | ACP17: 0 | ACQ17: 0 | ACR17: 0 | ACS17: 0 | ACT17: 0 | ACU17: 0 | ACV17: 0.2 | ACW17: 0.25 | ACX17: 0 | ACY17: 0.18364 | ACZ17: 11 | ADA17: 0.9 | ADB17: 1.19 | ADC17: 0.68 | ADD17: 0.93059 | ADE17: 17 | ADG17: 1000.75457 | ADH17: 288.3213946 | ADI17: 712.4331754 | ADJ17: 1908.08771 | ADK17: 1287.97545 | ADL17: 2605.23225 | ADM17: -697.14454 | ADN17: 0 | ADO17: 0 | ADP17: 2840.64301 | ADQ17: 2840.64301 | ADR17: 0.06409499535 | ADS17: 5.443437949 | ADT17: 5.443437949 | ADU17: 0.3488971301 | ADV17: 0.3488971301 | ADW17: 0.2483784713 | ADX17: 0.2483784713 | ADY17: 546.06491 | ADZ17: 1594.4611 | AEA17: 405.10976 | AEB17: 0 | AEC17: 5887.42424 | AED17: 0 | AEE17: 0 | AEF17: 0 | AEG17: 0 | AEH17: 8.82282 | AEI17: 5878.60143 | AEJ17: -0.1434640299 | AEK17: 9351.63967 | AEL17: 8.82282 | AEM17: 9360.46249 | AEN17: 6404.17826 | AEO17: 0.05425107926 | AEP17: 2.652028152 | AEQ17: 5887.42424 | AER17: 2.652028152 | AET17: 0 | AEU17: 0 | AEV17: 45.38077
A18: PSE:JFC0986 | B18: PSE:JFC | C18: 0 | D18: CapIQ Raw | E18: 0 | F18: 2016-02-24 | G18: Jollibee Foods Corp. | H18: 986 | I18: 2001 | J18: 986 | K18: 2001 | L18: 2001-12-31 | M18: Consumer Discretionary | N18: Consumer Services | O18: Hotels, Restaurants and Leisure | P18: Restaurants | Q18: Philippines | R18: PH | S18: PHP | T18: PSE | U18: JFC | V18: PHP | W18: 12.25 | X18: 0 | Z18: 0.03022458493 | AA18: 2.555186652 | AB18: 0.07722945596 | AC18: 0.04571710532 | AD18: 0.07722945596 | AE18: 0.06 | AF18: 1.676029156 | AG18: 1.733672499 | AH18: 15.34494056 | AI18: 16.419632 | AJ18: 21.70194177 | AK18: 23.99769554 | AM18: 0.03022458493 | AN18: 2.555186652 | AO18: 0.07722945596 | AP18: 0.1012071053 | AQ18: 0.06 | AR18: 1.676029156 | AS18: 15.34494056 | AT18: 21.70194177 | AU18: 10674.06896 | AV18: 3329.533179 | AW18: 7344.535781 | AX18: 567.2145027 | AY18: 12309.65611 | BA18: 0 | BB18: 0 | BC18: 938.3329895 | BD18: 938.3329895 | BE18: 341.0934205 | BF18: 938.3329895 | BG18: 1088.90006 | BH18: 632.879 | BI18: 3520.15426 | BJ18: 1920.01168 | BK18: 3107.14088 | BL18: 413.0133795 | BM18: 695.7247032 | BN18: 0 | BO18: 0 | BP18: 1241.49793 | BQ18: 0 | BR18: 2400.230043 | BS18: 0 | BT18: 2350.236013 | BU18: 8323.832948 | BV18: 0 | BW18: 0 | BX18: 0 | BY18: 8323.832948 | BZ18: 10674.06896 | CA18: 3329.533179 | CB18: 7344.535781 | CC18: -229.8338963 | CD18: 0 | CE18: 808.22894 | CF18: 0 | CG18: 308.7158559 | CH18: 42.79813 | CI18: 0 | CJ18: 0 | CK18: 0 | CL18: 0 | CM18: 1535.27338 | CN18: 567.2145027 | CO18: 0.5843024874 | CP18: 488.9056527 | CQ18: 0.5036344938 | CR18: 0 | CS18: 869.12669 | CT18: 391.0874505 | CU18: 12309.65611 | CW18: 0 | CX18: 0 | CY18: 0 | CZ18: 0 | DA18: 6455.1685 | DB18: 8323.832948 | DC18: 0 | DD18: 0 | DE18: 0 | DF18: 0 | DG18: 0 | DH18: 1279.42641 | DI18: 688.033768 | DJ18: 653.340036 | DK18: 379.7274 | DL18: 3000.527614 | DM18: -106.613266 | DN18: 695.7247032 | DO18: 49.99403 | DP18: 496.599172 | DQ18: 0 | DR18: 1135.704639 | DS18: 3329.533179 | DT18: 0 | DU18: 0 | DV18: 0 | DW18: 3329.533179 | DX18: 4465.237818 | DY18: 850 | DZ18: 5.253220963 | EA18: 0 | EB18: 19.12669 | EC18: 189.0153403 | ED18: 1151.483769 | EE18: 215.0105525 | EF18: 163.335009 | EG18: 63.2879 | EH18: 1593.117231 | EI18: -1514.023649 | EJ18: 695.7247032 | EK18: 49.99403 | EL18: 124.149793 | EM18: 0 | EN18: -644.1551233 | EO18: 1972.635534 | EP18: 0 | EQ18: 0 | ER18: 0 | ES18: 1972.635534 | ET18: 1328.480411 | EU18: 850 | EV18: 1.562918131 | EW18: 0 | EX18: 19.12669 | EY18: 25.01637298 | EZ18: 1535.27338 | FA18: 791.3039004 | FB18: -161.71309 | FC18: -396.9510473 | FD18: 78.30885 | FE18: -5.069044524 | FF18: -2.141321974 | FH18: 0 | FI18: 6455.1685 | FJ18: 0 | FK18: 3824.4685 | FL18: 59.24660991 | FM18: 58.07278973 | FN18: 0 | FO18: 0 | FP18: 6091.98829 | FQ18: 0 | FR18: 3537.78755 | FS18: 5520.47318 | FT18: 708.49612 | FU18: 609.08715 | FV18: 7.986806931 | FW18: 8.598477985 | FX18: 9.063519367 | FY18: 8.598477985 | FZ18: 8.598477985 | GA18: 5 | GB18: 3.504171275 | GC18: 3.605101945 | GD18: 3.55463661 | GE18: 42 | GF18: 0.06707828413 | GG18: 1649.069448 | GH18: 8104.237948 | GI18: 141.5677032 | GJ18: 0.032 | GK18: 0 | GL18: 0 | GM18: 0 | GN18: 0 | GO18: 0.05931069034 | GP18: 0 | GQ18: 0 | GR18: 968.0588777 | GS18: 0 | GT18: 968.0588777 | GU18: 8.598477985 | GV18: 0 | GW18: 19.78619 | GX18: 765.15834 | GY18: 0 | GZ18: 29.95078586 | HA18: 14.69053088 | HC18: 0.8575120482 | HD18: 12.25 | HE18: 14697.72521 | HF18: 9735.869469 | HG18: 9693.062194 | HH18: 0.1012071053 | HI18: 0.05549 | HJ18: 6767.488672 | HK18: 802.1964022 | HL18: 714.5476222 | HM18: 2.001178243 | HN18: 1.325593579 | HO18: 18.32185381 | HP18: 12.136516 | HR18: 1279.42641 | HS18: 860.04221 | HT18: 1088.90006 | HU18: 0 | HV18: 82.01732 | HW18: 0 | HX18: 295.79646 | HY18: 255.06522 | HZ18: 1166.30035 | IA18: 20.82885 | IB18: 1462.73719 | IC18: 478.10334 | ID18: 0 | IE18: 0 | IF18: 0 | IG18: 49.99403 | IH18: 1241.49793 | II18: 0 | IJ18: 18766.65979 | IK18: 7228.9205 | IL18: 554.157 | IM18: 219.595 | IN18: 4598.2205 | IO18: 486.39327 | IP18: 38.247 | IQ18: -372.18256 | IR18: 1943.53977 | IS18: 1135.31083 | IT18: 1135.31083 | IU18: 0 | IV18: 0 | IW18: 78.30885 | IX18: -36.3053 | IY18: 42.79813 | IZ18: -45.67677 | JA18: -1.64315 | JB18: 0 | JC18: 970.7549 | JD18: 850 | JE18: 19.12669 | JF18: 0 | JG18: 99.00787 | JH18: 11732.609 | JI18: 14120.6781 | JJ18: 9158.82236 | JK18: 0 | JL18: 0 | JM18: 1.96127 | JN18: 11.26653 | JO18: 12.73532 | JP18: 1.9591 | JQ18: 278.76507 | JR18: 369.16631 | JS18: 653.56824 | JT18: 220.19607 | JU18: 24.8189 | JV18: 0.43735 | JW18: 1903.44228 | JX18: 0 | JY18: -850 | JZ18: 30.86976 | KA18: 220.19607 | KB18: 614.61902 | KC18: 0 | KD18: 0 | KE18: 0 | KF18: 0 | KG18: 12.25 | KH18: 0 | KI18: 42.79813 | KJ18: 0 | KK18: 0 | KL18: 0 | KM18: 0 | KN18: 15996.51996 | KO18: 728.85304 | KP18: 0 | KQ18: 0 | KR18: 0 | KS18: 0 | KT18: 0 | KU18: 42.79813 | KV18: 0 | KW18: 0 | KX18: 0 | KY18: 0 | KZ18: 0 | LA18: 0 | LB18: 0 | LC18: 0 | LD18: 0 | LE18: 0 | LF18: 0 | LG18: 0 | LH18: 6091.98829 | LI18: 0 | LJ18: 0 | LK18: 3537.78755 | LL18: 1709.25069 | LM18: 1000.75457 | LN18: 5520.47318 | LO18: 0 | LP18: 0 | LQ18: 1675.10707 | LR18: 1066.01992 | LS18: 28.8104 | LT18: 30.9984 | LU18: 28.8453 | LV18: 19.9553 | LW18: 26.6569 | LX18: 24.3486 | LY18: 0 | LZ18: 0 | MA18: 0 | MB18: 0 | MC18: 0 | MD18: 850 | ME18: 0 | MF18: 0 | MG18: 0 | MH18: 0 | MI18: 0 | NY18: AUDIT | OQ18: AUDIT | PF18: AUDIT | TO18: 0.9948612116 | TP18: 82.01732 | TQ18: 0 | TR18: -90.40124 | TS18: 0 | TT18: 938.3329895 | TU18: 341.0934205 | TV18: 938.3329895 | TW18: 3520.15426 | TX18: 10674.06896 | TY18: 7344.535781 | TZ18: 0.07722945596 | UA18: 0 | UB18: 0 | UC18: 0 | UD18: 7344.535781 | UE18: 0.07722945596 | UF18: 0.1162558053 | UG18: 0.03022458493 | UH18: 2.555186652 | UI18: 0.1162558053 | UJ18: 0.03022458493 | UK18: 2.555186652 | UV18: x | UX18: x | UZ18: 1.676029156 | VA18: 15.34494056 | VB18: 1.676029156 | VC18: 15.34494056 | VE18: 1035.760296 | VF18: 11.88465725 | VG18: 5.78107 | VH18: 11.26653 | VI18: 1.96127 | VJ18: 11536.701 | VK18: 0.076098 | VL18: 0.05519151026 | VM18: 0.103563 | VN18: 0.02605182052 | VO18: 0.025917 | VP18: 1257.17816 | VQ18: 0.3913608422 | VR18: 9750.96014 | VS18: 0.5195895407 | VT18: 981.0067663 | VU18: 0 | VV18: 0 | XN18: 3.757615814 | XO18: 0 | XP18: 0 | XQ18: 0.06940481535 | XR18: 0.8397741238 | XS18: 0 | XT18: 0 | XU18: 0.2019420227 | XW18: 0 | XX18: 957.764 | XY18: 0.24 | XZ18: Dec-2001 | YA18: $14.0/$9.5 | YB18: 0.2262105502 | YC18: 0.6147445059 | YG18: 10674.06896 | YH18: 7344.535781 | YI18: 0.07722945596 | YJ18: 0.1162558053 | YK18: 0.03022458493 | YL18: 2.555186652 | YM18: 1.676029156 | YQ18: 9.47322 | YR18: 0 | YS18: 0 | YT18: -1.64315 | YU18: 0 | YV18: -372.18256 | YW18: 213.40395 | YX18: 957.75079 | YY18: 0 | YZ18: 0 | ZA18: 0 | ZB18: 0 | ZC18: 0 | ZD18: 0 | ZE18: 0 | ZF18: 0 | ZG18: 0 | ZH18: 0 | ZI18: 0 | ZJ18: 0 | ZK18: 0 | ZL18: 0 | ZM18: 0 | ZN18: 0 | ZO18: 0 | ZP18: 0 | ZQ18: 0 | ZR18: 0 | ZS18: 0 | ZT18: 5774.69258 | ZU18: 6624.69258 | ZV18: 0.50146 | ZW18: 0.50146 | ZX18: 457.27449 | ZY18: 0 | ZZ18: 0 | AAA18: 0 | AAB18: 0 | AAC18: 0 | AAD18: 0 | AAE18: 15.39919 | AAF18: 0 | AAG18: 0 | AAH18: 0 | AAI18: 113.33333 | AAJ18: 0 | AAK18: 0 | AAL18: 736.66667 | AAM18: 0 | AAN18: 5675.68471 | AAP18: 235.5 | AAQ18: 18193.5 | AAR18: 19368 | AAS18: 16025 | AAT18: 8 | AAU18: 0 | AAV18: 1865.965 | AAW18: 1964 | AAX18: 1657 | AAY18: 1820.38 | AAZ18: 6 | ABA18: 0 | ABB18: 1202.44 | ABC18: 1306 | ABD18: 1060.23 | ABE18: 1192.085 | ABF18: 6 | ABG18: 0 | ABH18: 0 | ABI18: 0 | ABJ18: 0 | ABK18: 0 | ABL18: 0 | ABM18: 0 | ABN18: 0 | ABO18: 0 | ABP18: 0 | ABQ18: 0 | ABR18: 0 | ABS18: 0 | ABT18: 0 | ABU18: 12 | ABV18: 0 | ABW18: 0 | ABX18: 0 | ABY18: 0 | ABZ18: 0 | ACA18: 0 | ACB18: 0 | ACC18: 0 | ACD18: 0 | ACE18: 0 | ACF18: 0 | ACG18: 0 | ACH18: 0 | ACI18: 0 | ACJ18: 0 | ACK18: 0 | ACL18: 0 | ACM18: 0 | ACN18: 0 | ACO18: 0 | ACP18: 0 | ACQ18: 0 | ACR18: 0 | ACS18: 0 | ACT18: 0 | ACU18: 0 | ACV18: 0.235 | ACW18: 1.53 | ACX18: 0 | ACY18: 0.36125 | ACZ18: 8 | ADA18: 0.99 | ADB18: 1.06 | ADC18: 0.91 | ADD18: 0.989 | ADE18: 11 | ADG18: 1135.31083 | ADH18: 434.2223332 | ADI18: 701.0884968 | ADJ18: 2499.80395 | ADK18: 1462.73719 | ADL18: 2649.86639 | ADM18: -150.06244 | ADN18: 0 | ADO18: 0 | ADP18: 4448.15806 | ADQ18: 4448.15806 | ADR18: 0.06049615876 | ADS18: 5.149450399 | ADT18: 5.149450399 | ADU18: 0.3115219689 | ADV18: 0.3115219689 | ADW18: 0.1923741614 | ADX18: 0.1923741614 | ADY18: 82.01732 | ADZ18: 1028.09398 | AEA18: 457.27449 | AEB18: 0 | AEC18: 6624.69257 | AED18: 113.33333 | AEE18: 736.66667 | AEF18: 0 | AEG18: 0 | AEH18: 949.00787 | AEI18: 5675.68471 | AEJ18: -1.171377931 | AEK18: 11732.609 | AEL18: 949.00787 | AEM18: 12681.61687 | AEN18: 10718.48631 | AEO18: 0.1094736074 | AEP18: 2.832834821 | AEQ18: 6624.69257 | AER18: 2.832834821 | AET18: 0 | AEU18: 0 | AEV18: 19.78642
A19: PSE:JFC0987 | B19: PSE:JFC | C19: 0 | D19: CapIQ Raw | E19: 0 | F19: 2016-02-24 | G19: Jollibee Foods Corp. | H19: 987 | I19: 2002 | J19: 987 | K19: 2002 | L19: 2002-12-31 | M19: Consumer Discretionary | N19: Consumer Services | O19: Hotels, Restaurants and Leisure | P19: Restaurants | Q19: Philippines | R19: PH | S19: PHP | T19: PSE | U19: JFC | V19: PHP | W19: 18.25 | X19: 0 | Z19: 0.03959544413 | AA19: 2.747694087 | AB19: 0.1087961677 | AC19: -0.01615055918 | AD19: 0.1087961677 | AE19: 0.06 | AF19: 2.303309092 | AG19: 2.221200125 | AH19: 19.229309 | AI19: 21.15123969 | AJ19: 21.17086604 | AK19: 24.46156326 | AM19: 0.03959544413 | AN19: 2.747694087 | AO19: 0.1087961677 | AP19: 0.02547939468 | AQ19: 0.06 | AR19: 2.303309092 | AS19: 19.229309 | AT19: 21.17086604 | AU19: 10946.03778 | AV19: 3572.649365 | AW19: 7373.388411 | AX19: 802.1964022 | AY19: 16983.19257 | BA19: 0 | BB19: 0 | BC19: 1012.990787 | BD19: 1012.990787 | BE19: 1383.627413 | BF19: 1012.990787 | BG19: 818.3421 | BH19: 989.81181 | BI19: 3681.204417 | BJ19: 2008.77807 | BK19: 3525.2098 | BL19: 155.994617 | BM19: 672.8790657 | BN19: 0 | BO19: 0 | BP19: 1185.54068 | BQ19: 0 | BR19: 2083.464503 | BS19: 0 | BT19: 2014.414363 | BU19: 8931.623414 | BV19: 0 | BW19: 0 | BX19: 0 | BY19: 8931.623414 | BZ19: 10946.03778 | CA19: 3572.649365 | CB19: 7373.388411 | CC19: -41.65400161 | CD19: 0 | CE19: 900.47 | CF19: 0 | CG19: 407.0617113 | CH19: 0 | CI19: 0 | CJ19: 0 | CK19: 0 | CL19: 0 | CM19: 1920.49355 | CN19: 802.1964022 | CO19: 0.8203035112 | CP19: 714.5476222 | CQ19: 0.7306763304 | CR19: 0 | CS19: 777.27085 | CT19: 1452.677553 | CU19: 16983.19257 | CW19: 0 | CX19: 0 | CY19: 0 | CZ19: 0 | DA19: 7112.40245 | DB19: 8931.623414 | DC19: 0 | DD19: 0 | DE19: 0 | DF19: 0 | DG19: 0 | DH19: 2396.6182 | DI19: 688.047776 | DJ19: 491.00526 | DK19: 593.887086 | DL19: 4169.558322 | DM19: 644.348522 | DN19: 672.8790657 | DO19: 69.05014 | DP19: 474.216272 | DQ19: 0 | DR19: 1860.494 | DS19: 3572.649365 | DT19: 0 | DU19: 0 | DV19: 0 | DW19: 3572.649365 | DX19: 5433.143365 | DY19: 736.66667 | DZ19: 7.375307702 | EA19: 0 | EB19: 40.60418 | EC19: 115.6648575 | ED19: 2156.95638 | EE19: 215.01493 | EF19: 122.751315 | EG19: 98.981181 | EH19: 2593.703806 | EI19: -931.505994 | EJ19: 672.8790657 | EK19: 69.05014 | EL19: 118.554068 | EM19: 0 | EN19: -71.0227203 | EO19: 1993.652814 | EP19: 0 | EQ19: 0 | ER19: 0 | ES19: 1993.652814 | ET19: 1922.630094 | EU19: 736.66667 | EV19: 2.609905093 | EW19: 0 | EX19: 40.60418 | EY19: 29.20791466 | EZ19: 1920.49355 | FA19: 2115.22367 | FB19: -218.34323 | FC19: 744.6615022 | FD19: 87.64878 | FE19: 8.495971104 | FF19: 0.9892638036 | FH19: 0 | FI19: 7112.40245 | FJ19: 0 | FK19: 3968.94845 | FL19: 55.80320402 | FM19: 59.24660991 | FN19: 0 | FO19: 0 | FP19: 6455.1685 | FQ19: 0 | FR19: 3824.4685 | FS19: 6091.98829 | FT19: 808.22894 | FU19: 708.49612 | FV19: 7.898544593 | FW19: 7.986806931 | FX19: 8.598477985 | FY19: 7.986806931 | FZ19: 7.986806931 | GA19: 5 | GB19: 3.529912765 | GC19: 3.254894585 | GD19: 3.392403675 | GE19: 43 | GF19: 0.05428767178 | GG19: 1459.160964 | GH19: 8571.563414 | GI19: 114.5460657 | GJ19: 0.032 | GK19: 0 | GL19: 0 | GM19: 0 | GN19: 0 | GO19: 0.05090214636 | GP19: 0 | GQ19: 0 | GR19: 1118.297148 | GS19: 0 | GT19: 1118.297148 | GU19: 7.986806931 | GV19: 0 | GW19: 22.62722 | GX19: 1352.97167 | GY19: 0 | GZ19: 24.90128134 | HA19: 20.91855263 | HC19: 1.210191466 | HD19: 18.25 | HE19: 16983.19257 | HF19: 10757.81246 | HG19: 10674.06896 | HH19: 0.02547939468 | HI19: 0.04162995386 | HJ19: 7869.147704 | HK19: 883.1930763 | HL19: 826.3795463 | HM19: 2.303309092 | HN19: 1.459005257 | HO19: 19.229309 | HP19: 12.18058966 | HR19: 2396.6182 | HS19: 860.05972 | HT19: 818.3421 | HU19: 0 | HV19: 112.83408 | HW19: 0 | HX19: 245.07745 | HY19: 631.90028 | HZ19: 1510.98241 | IA19: 5.44932 | IB19: 1505.08137 | IC19: 509.14602 | ID19: 0 | IE19: 0 | IF19: 0 | IG19: 69.05014 | IH19: 1185.54068 | II19: 0 | IJ19: 20259.81574 | IK19: 8030.79545 | IL19: 558.333 | IM19: 360.06 | IN19: 4887.34145 | IO19: 970.81124 | IP19: 28.4103 | IQ19: -58.18435 | IR19: 2344.08559 | IS19: 1443.61559 | IT19: 1443.61559 | IU19: 0 | IV19: 0 | IW19: 87.64878 | IX19: -7.82729 | IY19: 0 | IZ19: -63.28902 | JA19: -15.92712 | JB19: 0 | JC19: 977.92633 | JD19: 736.66667 | JE19: 40.60418 | JF19: 0 | JG19: 179.64741 | JH19: 17478.95186 | JI19: 17478.95186 | JJ19: 11253.57175 | JK19: 0 | JL19: 0 | JM19: 2.63144 | JN19: 15.16942 | JO19: 25.83533 | JP19: 1.315 | JQ19: 382.16043 | JR19: 0 | JS19: 187.43031 | JT19: 252.26502 | JU19: 26.74408 | JV19: 0.31427 | JW19: 1612.55448 | JX19: 113.33333 | JY19: 0 | JZ19: -331.67656 | KA19: 252.26502 | KB19: 0 | KC19: 0 | KD19: 0 | KE19: 0 | KF19: 0 | KG19: 18.25 | KH19: 0 | KI19: 0 | KJ19: 0 | KK19: 0 | KL19: 0 | KM19: 0 | KN19: 17118.53229 | KO19: 1345.14437 | KP19: 0 | KQ19: 0 | KR19: 0 | KS19: 0 | KT19: 0 | KU19: 0 | KV19: 0 | KW19: 0 | KX19: 0 | KY19: 0 | KZ19: 0 | LA19: 0 | LB19: 0 | LC19: 0 | LD19: 0 | LE19: 0 | LF19: 0 | LG19: 0 | LH19: 7228.9205 | LI19: 554.157 | LJ19: 219.595 | LK19: 4598.2205 | LL19: 1943.53977 | LM19: 1135.31083 | LN19: 6091.98829 | LO19: 0 | LP19: 0 | LQ19: 1709.25069 | LR19: 1000.75457 | LS19: 38.247 | LT19: 28.8104 | LU19: 30.9984 | LV19: 28.8453 | LW19: 19.9553 | LX19: 26.6569 | LY19: 24.3486 | LZ19: 0 | MA19: 0 | MB19: FIFO | MC19: 0 | MD19: 736.66667 | ME19: 0 | MF19: 0 | MG19: 0 | MH19: 0 | MI19: 0 | NL19: AUDIT | TO19: 1.358637563 | TP19: 112.83408 | TQ19: 0 | TR19: 382.16043 | TS19: 0 | TT19: 1012.990787 | TU19: 1383.627413 | TV19: 1012.990787 | TW19: 3681.204417 | TX19: 10946.03778 | TY19: 7373.388411 | TZ19: 0.1087961677 | UA19: 0 | UB19: 0 | UC19: 0 | UD19: 7373.388411 | UE19: 0.1087961677 | UF19: 0.003928448361 | UG19: 0.03959544413 | UH19: 2.747694087 | UI19: 0.003928448361 | UJ19: 0.03959544413 | UK19: 2.747694087 | UV19: x | UX19: x | UZ19: 2.303309092 | VA19: 19.229309 | VB19: 2.303309092 | VC19: 19.229309 | VE19: 1427.085262 | VF19: 11.90061521 | VG19: 7.52751 | VH19: 15.16942 | VI19: 2.63144 | VJ19: 16745.12086 | VK19: 0.086102 | VL19: 0.07043920241 | VM19: 0.115701 | VN19: 0.03526920636 | VO19: 0.047918 | VP19: 2806.09485 | VQ19: 0.3639415336 | VR19: 11206.76409 | VS19: 0.5531523205 | VT19: 271.9688159 | VU19: 0 | VV19: 0 | XN19: 3.780539998 | XO19: 0 | XP19: 0 | XQ19: 0.07301809991 | XR19: -0.6223012988 | XS19: 0 | XT19: 0 | XU19: 0.07956428937 | XW19: 0 | XX19: 957.75079 | XY19: 0.24 | XZ19: Dec-2002 | YA19: $18.3/$11.8 | YB19: 0.3681872437 | YC19: 0.8265189119 | YG19: 10946.03778 | YH19: 7373.388411 | YI19: 0.1087961677 | YJ19: 0.003928448361 | YK19: 0.03959544413 | YL19: 2.747694087 | YM19: 2.303309092 | YQ19: 14.4102 | YR19: 0 | YS19: 0 | YT19: -15.92712 | YU19: -5 | YV19: -53.18435 | YW19: 165.98853 | YX19: 982.1191 | YY19: 0 | YZ19: 0 | ZA19: 0 | ZB19: 0 | ZC19: 0 | ZD19: 0 | ZE19: 0 | ZF19: 0 | ZG19: 0 | ZH19: 0 | ZI19: 0 | ZJ19: 0 | ZK19: 0 | ZL19: 435.2 | ZM19: 0 | ZN19: 0 | ZO19: 0 | ZP19: 0 | ZQ19: 0 | ZR19: 0 | ZS19: 0 | ZT19: 6904.28344 | ZU19: 7640.95011 | ZV19: 0.99662 | ZW19: 0.99662 | ZX19: 503.6967 | ZY19: 0 | ZZ19: 0 | AAA19: 0 | AAB19: 0 | AAC19: 0 | AAD19: 0 | AAE19: 6.95212 | AAF19: 0 | AAG19: 0 | AAH19: 0 | AAI19: 226.66667 | AAJ19: 0 | AAK19: 0 | AAL19: 510 | AAM19: 0 | AAN19: 6724.63604 | AAP19: 235.5 | AAQ19: 20789 | AAR19: 22319 | AAS19: 18865 | AAT19: 7 | AAU19: 0 | AAV19: 2297 | AAW19: 2585 | AAX19: 2123.09 | AAY19: 2332.113 | AAZ19: 7 | ABA19: 0 | ABB19: 1451.605 | ABC19: 1567 | ABD19: 1345.55 | ABE19: 1446.893 | ABF19: 6 | ABG19: 0 | ABH19: 0 | ABI19: 0 | ABJ19: 0 | ABK19: 0 | ABL19: 0 | ABM19: 0 | ABN19: 0 | ABO19: 0 | ABP19: 0 | ABQ19: 0 | ABR19: 0 | ABS19: 0 | ABT19: 0 | ABU19: 9 | ABV19: 0 | ABW19: 0 | ABX19: 0 | ABY19: 0 | ABZ19: 0 | ACA19: 0 | ACB19: 0 | ACC19: 0 | ACD19: 0 | ACE19: 0 | ACF19: 0 | ACG19: 0 | ACH19: 0 | ACI19: 0 | ACJ19: 0 | ACK19: 0 | ACL19: 0 | ACM19: 0 | ACN19: 0 | ACO19: 0 | ACP19: 0 | ACQ19: 0 | ACR19: 0 | ACS19: 0 | ACT19: 0 | ACU19: 0 | ACV19: 0.26 | ACW19: 0.74 | ACX19: 0 | ACY19: 0.27 | ACZ19: 9 | ADA19: 1.13 | ADB19: 1.16 | ADC19: 0.98 | ADD19: 1.09778 | ADE19: 9 | ADG19: 1443.61559 | ADH19: 410.13552 | ADI19: 1033.48007 | ADJ19: 2555.37955 | ADK19: 1505.08137 | ADL19: 3021.5131 | ADM19: -466.13355 | ADN19: 0 | ADO19: 0 | ADP19: 4421.2079 | ADQ19: 4421.2079 | ADR19: 0.07125511942 | ADS19: 4.568492456 | ADT19: 4.568492456 | ADU19: 0.3255284755 | ADV19: 0.3255284755 | ADW19: 0.2330448591 | ADX19: 0.2330448591 | ADY19: 112.83408 | ADZ19: 1019.55215 | AEA19: 503.6967 | AEB19: 0 | AEC19: 7640.95012 | AED19: 226.66667 | AEE19: 510 | AEF19: 0 | AEG19: 0 | AEH19: 916.31408 | AEI19: 6724.63604 | AEJ19: 3.311649164 | AEK19: 17478.95186 | AEL19: 916.31408 | AEM19: 18395.26594 | AEN19: 15341.51225 | AEO19: 0.09642033774 | AEP19: 2.651478602 | AEQ19: 7640.95012 | AER19: 2.651478602 | AET19: 0 | AEU19: 0 | AEV19: 47.46137
A20: PSE:JFC0988 | B20: PSE:JFC | C20: 0 | D20: CapIQ Raw | E20: 0 | F20: 2016-02-24 | G20: Jollibee Foods Corp. | H20: 988 | I20: 2003 | J20: 988 | K20: 2003 | L20: 2003-12-31 | M20: Consumer Discretionary | N20: Consumer Services | O20: Hotels, Restaurants and Leisure | P20: Restaurants | Q20: Philippines | R20: PH | S20: PHP | T20: PSE | U20: JFC | V20: PHP | W20: 18.25 | X20: 0 | Z20: 0.04077465578 | AA20: 2.727415999 | AB20: 0.1112094485 | AC20: 0.1093875044 | AD20: 0.1112094485 | AE20: 0.06 | AF20: 2.218366167 | AG20: 2.173154939 | AH20: 12.2861744 | AI20: 12.96163987 | AJ20: 19.94764111 | AK20: 21.68940098 | AM20: 0.04077465578 | AN20: 2.727415999 | AO20: 0.1112094485 | AP20: 0.1413949992 | AQ20: 0.06 | AR20: 2.218366167 | AS20: 12.2861744 | AT20: 19.94764111 | AU20: 12493.75278 | AV20: 4552.043797 | AW20: 7941.708982 | AX20: 883.1930763 | AY20: 17617.61852 | BA20: 0 | BB20: 0 | BC20: 1083.017207 | BD20: 1083.017207 | BE20: 1839.195813 | BF20: 1083.017207 | BG20: 880.98489 | BH20: 643.38126 | BI20: 3483.825557 | BJ20: 2429.79995 | BK20: 4138.77658 | BL20: -654.951023 | BM20: 0 | BN20: 0 | BO20: 0 | BP20: 1768.59431 | BQ20: 0 | BR20: 1164.675567 | BS20: 0 | BT20: 1113.643287 | BU20: 11380.10949 | BV20: 0 | BW20: 0 | BX20: 0 | BY20: 11380.10949 | BZ20: 12493.75278 | CA20: 4552.043797 | CB20: 7941.708982 | CC20: -193.8707644 | CD20: 0 | CE20: 980.00817 | CF20: 0 | CG20: 150.1935814 | CH20: 0 | CI20: 0 | CJ20: 0 | CK20: 0 | CL20: 0 | CM20: 2308.056553 | CN20: 883.1930763 | CO20: 0.8963298843 | CP20: 826.3795463 | CQ20: 0.8386712973 | CR20: 0 | CS20: 1404.75931 | CT20: 1890.228093 | CU20: 17617.61852 | CW20: 0 | CX20: 0 | CY20: 0 | CZ20: 0 | DA20: 9746.81691 | DB20: 11380.10949 | DC20: 0 | DD20: 0 | DE20: 0 | DF20: 0 | DG20: 0 | DH20: 2922.21302 | DI20: 701.15376 | DJ20: 528.590934 | DK20: 386.028756 | DL20: 4537.98647 | DM20: 399.20989 | DN20: 0 | DO20: 51.03228 | DP20: 707.437724 | DQ20: 0 | DR20: 1157.679894 | DS20: 4552.043797 | DT20: 0 | DU20: 0 | DV20: 0 | DW20: 4552.043797 | DX20: 5709.723691 | DY20: 510 | DZ20: 11.19553665 | EA20: 0 | EB20: 894.75931 | EC20: 5.811309961 | ED20: 2629.991718 | EE20: 219.11055 | EF20: 132.1477335 | EG20: 64.338126 | EH20: 3045.588128 | EI20: -1093.188452 | EJ20: 0 | EK20: 51.03228 | EL20: 176.859431 | EM20: 0 | EN20: -865.2967415 | EO20: 2700.45878 | EP20: 0 | EQ20: 0 | ER20: 0 | ES20: 2700.45878 | ET20: 1835.162039 | EU20: 510 | EV20: 3.598356939 | EW20: 0 | EX20: 894.75931 | EY20: 1.481026265 | EZ20: 2308.056553 | FA20: 2347.424253 | FB20: -517.88017 | FC20: 601.0024663 | FD20: 56.81353 | FE20: 10.57850949 | FF20: 0.8485822082 | FH20: 0 | FI20: 9746.81691 | FJ20: 0 | FK20: 5782.21091 | FL20: 59.32409486 | FM20: 55.80320402 | FN20: 0 | FO20: 0 | FP20: 7112.40245 | FQ20: 0 | FR20: 3968.94845 | FS20: 6455.1685 | FT20: 900.47 | FU20: 808.22894 | FV20: 9.945648627 | FW20: 7.898544593 | FX20: 7.986806931 | FY20: 7.986806931 | FZ20: 7.986806931 | GA20: 5 | GB20: 3.248706011 | GC20: 3.529912765 | GD20: 3.389309388 | GE20: 44 | GF20: 0.04884400983 | GG20: 1633.292582 | GH20: 11380.10949 | GI20: 0 | GJ20: 0.032 | GK20: 0 | GL20: 0 | GM20: 0 | GN20: 0 | GO20: 0.04197178562 | GP20: 0 | GQ20: 0 | GR20: 1424.863477 | GS20: 0 | GT20: 1424.863477 | GU20: 7.986806931 | GV20: 0 | GW20: 23.70791 | GX20: 1326.26155 | GY20: 0 | GZ20: 6.139781374 | HA20: 20.75765727 | HC20: 1.338560935 | HD20: 18.25 | HE20: 18108.67817 | HF20: 14539.07838 | HG20: 10946.03778 | HH20: 0.1413949992 | HI20: 0.03200749479 | HJ20: 8247.767805 | HK20: 1433.938502 | HL20: 1382.824822 | HM20: 2.280199162 | HN20: 1.830724144 | HO20: 12.62862957 | HP20: 10.13926215 | HR20: 2922.21302 | HS20: 876.4422 | HT20: 880.98489 | HU20: 0 | HV20: 395.74535 | HW20: 0 | HX20: 125.32078 | HY20: 122.31513 | HZ20: 1701.21001 | IA20: 7.76662 | IB20: 1979.36303 | IC20: 458.20354 | ID20: 0 | IE20: 0 | IF20: 0 | IG20: 51.03228 | IH20: 1768.59431 | II20: 0 | IJ20: 21660.34414 | IK20: 9746.81691 | IL20: 0 | IM20: 0 | IN20: 5782.21091 | IO20: 1182.20775 | IP20: 10.8069 | IQ20: -217.36072 | IR20: 2481.74009 | IS20: 1501.73192 | IT20: 1501.73192 | IU20: 0 | IV20: 0 | IW20: 56.81353 | IX20: 6.71193 | IY20: 0 | IZ20: -129.50973 | JA20: -24.09392 | JB20: 0 | JC20: 985.34378 | JD20: 510 | JE20: 894.75931 | JF20: 0 | JG20: 179.40996 | JH20: 17923.67734 | JI20: 18414.73699 | JJ20: 14845.1372 | JK20: 0 | JL20: 0 | JM20: 2.39419 | JN20: 0 | JO20: 15.49404 | JP20: 1.5342 | JQ20: 144.0538 | JR20: 0 | JS20: 104.6861 | JT20: 321.55831 | JU20: 43.6822 | JV20: 0.2055 | JW20: 2011.10214 | JX20: 226.66667 | JY20: 0 | JZ20: -880.97205 | KA20: 321.55831 | KB20: 136.42521 | KC20: 0 | KD20: 0 | KE20: 0 | KF20: 0 | KG20: 18.25 | KH20: 0 | KI20: 0 | KJ20: 0 | KK20: 0 | KL20: 0 | KM20: 0 | KN20: 18287.18241 | KO20: 1332.97349 | KP20: 0 | KQ20: 0 | KR20: 0 | KS20: 0 | KT20: 0 | KU20: 0 | KV20: 0 | KW20: 0 | KX20: 0 | KY20: 0 | KZ20: 0 | LA20: 0 | LB20: 0 | LC20: 0 | LD20: 0 | LE20: 0 | LF20: 0 | LG20: 0 | LH20: 8030.79545 | LI20: 558.333 | LJ20: 360.06 | LK20: 4887.34145 | LL20: 2344.08559 | LM20: 1443.61559 | LN20: 7228.9205 | LO20: 554.157 | LP20: 219.595 | LQ20: 1943.53977 | LR20: 1135.31083 | LS20: 28.4103 | LT20: 38.247 | LU20: 28.8104 | LV20: 30.9984 | LW20: 28.8453 | LX20: 19.9553 | LY20: 26.6569 | LZ20: 24.3486 | MA20: 0 | MB20: FIFO | MC20: 0 | MD20: 510 | ME20: 226.66667 | MF20: 283.33333 | MG20: 0 | MH20: 0 | MI20: 0 | OM20: AUDIT | OR20: AUDIT | TO20: 1.430586896 | TP20: 395.74535 | TQ20: 0 | TR20: 144.0538 | TS20: 0 | TT20: 1083.017207 | TU20: 1839.195813 | TV20: 1083.017207 | TW20: 3483.825557 | TX20: 12493.75278 | TY20: 7941.708982 | TZ20: 0.1112094485 | UA20: 0 | UB20: 0 | UC20: 0 | UD20: 7941.708982 | UE20: 0.1112094485 | UF20: 0.07707725938 | UG20: 0.04077465578 | UH20: 2.727415999 | UI20: 0.07707725938 | UJ20: 0.04077465578 | UK20: 2.727415999 | UV20: x | UX20: x | UZ20: 2.218366167 | VA20: 12.2861744 | VB20: 2.218366167 | VC20: 12.2861744 | VE20: 1478.241964 | VF20: 11.91795318 | VG20: 6.24774 | VH20: 0 | VI20: 2.39419 | VJ20: 16467.55333 | VK20: 0.077788 | VL20: 0.06824646713 | VM20: 0.114575 | VN20: 0.03815172746 | VO20: 0.054579 | VP20: 3096.42743 | VQ20: 0.3666474055 | VR20: 12924.85887 | VS20: 0.596706072 | VT20: 1547.715002 | VU20: 0 | VV20: 0 | XN20: 3.172251866 | XO20: 0 | XP20: 0 | XQ20: 0.2741367347 | XR20: -5.19854887 | XS20: 0 | XT20: 0 | XU20: 0.06912838784 | XW20: 0 | XX20: 982.11931 | XY20: 0.28 | XZ20: Dec-2003 | YA20: $18.8/$14.8 | YB20: 0 | YC20: 0.7602627744 | YG20: 12493.75278 | YH20: 7941.708982 | YI20: 0.1112094485 | YJ20: 0.07707725938 | YK20: 0.04077465578 | YL20: 2.727415999 | YM20: 2.218366167 | YQ20: 14.7217 | YR20: 0 | YS20: 0 | YT20: -24.09392 | YU20: -184.4617 | YV20: -32.89902 | YW20: 623.38063 | YX20: 984.66849 | YY20: 0 | YZ20: 0 | ZA20: 0 | ZB20: 0 | ZC20: 0 | ZD20: 0 | ZE20: 0 | ZF20: 0 | ZG20: 0 | ZH20: 0 | ZI20: 0 | ZJ20: 0 | ZK20: 0 | ZL20: 485.72388 | ZM20: 0 | ZN20: 0 | ZO20: 0 | ZP20: 0 | ZQ20: 0 | ZR20: 0 | ZS20: 0 | ZT20: 7381.32298 | ZU20: 7891.32298 | ZV20: 1.20154 | ZW20: 1.20154 | ZX20: 450.43692 | ZY20: 0 | ZZ20: 0 | AAA20: 0 | AAB20: 0 | AAC20: 0 | AAD20: 0 | AAE20: 0 | AAF20: 0 | AAG20: 0 | AAH20: 0 | AAI20: 226.66667 | AAJ20: 0 | AAK20: 0 | AAL20: 283.33333 | AAM20: 0 | AAN20: 7201.91302 | AAP20: 235.5 | AAQ20: 22456 | AAR20: 23253 | AAS20: 20595 | AAT20: 8 | AAU20: 0 | AAV20: 2618.6 | AAW20: 2844.8 | AAX20: 2528 | AAY20: 2640.833 | AAZ20: 6 | ABA20: 0 | ABB20: 1676 | ABC20: 1723 | ABD20: 1637 | ABE20: 1676.6 | ABF20: 5 | ABG20: 0 | ABH20: 0 | ABI20: 0 | ABJ20: 0 | ABK20: 0 | ABL20: 0 | ABM20: 0 | ABN20: 0 | ABO20: 0 | ABP20: 0 | ABQ20: 0 | ABR20: 1206 | ABS20: 1213 | ABT20: 1197.2 | ABU20: 9 | ABV20: 0 | ABW20: 0 | ABX20: 0 | ABY20: 0 | ABZ20: 0 | ACA20: 0 | ACB20: 0 | ACC20: 0 | ACD20: 0 | ACE20: 0 | ACF20: 0 | ACG20: 0 | ACH20: 0 | ACI20: 0 | ACJ20: 0 | ACK20: 0 | ACL20: 0 | ACM20: 0 | ACN20: 0 | ACO20: 0 | ACP20: 0 | ACQ20: 0 | ACR20: 0 | ACS20: 0 | ACT20: 0 | ACU20: 0 | ACV20: 0.3 | ACW20: 0.35 | ACX20: 0.2 | ACY20: 0.295 | ACZ20: 6 | ADA20: 1.25 | ADB20: 1.42 | ADC20: 1.2 | ADD20: 1.26333 | ADE20: 9 | ADG20: 1501.73192 | ADH20: 162.2906669 | ADI20: 1339.441253 | ADJ20: 2005.063 | ADK20: 1979.36303 | ADL20: 3688.33966 | ADM20: -1683.27666 | ADN20: 0 | ADO20: 0 | ADP20: 4098.93425 | ADQ20: 4098.93425 | ADR20: 0.06933093539 | ADS20: 5.084502995 | ADT20: 5.084502995 | ADU20: 0.3525133486 | ADV20: 0.3525133486 | ADW20: 0.3144175835 | ADX20: 0.3144175835 | ADY20: 395.74535 | ADZ20: 1145.21368 | AEA20: 450.43692 | AEB20: 0 | AEC20: 7891.32298 | AED20: 226.66667 | AEE20: 283.33333 | AEF20: 0 | AEG20: 0 | AEH20: 689.40996 | AEI20: 7201.91302 | AEJ20: -0.5295918248 | AEK20: 17923.67734 | AEL20: 689.40996 | AEM20: 18613.0873 | AEN20: 15444.0792 | AEO20: 0.08730829343 | AEP20: 2.744830518 | AEQ20: 7891.32298 | AER20: 2.744830518 | AET20: 0 | AEU20: 0 | AEV20: 72.05108
A21: PSE:JFC0989 | B21: PSE:JFC | C21: 0 | D21: CapIQ Raw | E21: 0 | F21: 2016-02-24 | G21: Jollibee Foods Corp. | H21: 989 | I21: 2004 | J21: 989 | K21: 2004 | L21: 2004-12-31 | M21: Consumer Discretionary | N21: Consumer Services | O21: Hotels, Restaurants and Leisure | P21: Restaurants | Q21: Philippines | R21: PH | S21: PHP | T21: PSE | U21: JFC | V21: PHP | W21: 28.5 | X21: 0 | Z21: 0.0546068757 | AA21: 2.825887905 | AB21: 0.1543129096 | AC21: 0.1136156157 | AD21: 0.1394004763 | AE21: 0.06 | AF21: 3.03004638 | AG21: 3.031896031 | AH21: 20.92072447 | AI21: 21.60877742 | AJ21: 19.63572839 | AK21: 20.3554113 | AM21: 0.0546068757 | AN21: 2.552800807 | AO21: 0.1394004763 | AP21: 0.2483528228 | AQ21: 0.06 | AR21: 2.737229891 | AS21: 20.92072447 | AT21: 19.63572839 | AU21: 15596.61155 | AV21: 5310.143815 | AW21: 10286.46773 | AX21: 1433.938502 | AY21: 28156.42696 | BA21: 0 | BB21: 0 | BC21: 1312.965157 | BD21: 1312.965157 | BE21: 2096.284964 | BF21: 1312.965156 | BG21: 1105.39706 | BH21: 789.50981 | BI21: 4351.545707 | BJ21: 3501.55668 | BK21: 5400.63739 | BL21: -1049.091683 | BM21: 560.4178442 | BN21: 0 | BO21: 0 | BP21: 1815.86603 | BQ21: 0 | BR21: 1327.192191 | BS21: 0 | BT21: 1327.192191 | BU21: 12182.5342 | BV21: 1092.825342 | BW21: 0 | BX21: 0 | BY21: 13275.35954 | BZ21: 14602.55173 | CA21: 5310.143815 | CB21: 9292.407914 | CC21: -59.8543097 | CD21: 0 | CE21: 1207.41647 | CF21: 0 | CG21: 374.9289425 | CH21: 65.4954 | CI21: 40.68 | CJ21: 0 | CK21: 0 | CL21: 0 | CM21: 3009.235487 | CN21: 1433.938502 | CO21: 1.451791472 | CP21: 1382.824822 | CQ21: 1.400041411 | CR21: 0 | CS21: 1865.942909 | CT21: 2096.284964 | CU21: 28156.42696 | CW21: 0 | CX21: 0 | CY21: 0 | CZ21: 0 | DA21: 10175.15294 | DB21: 12182.5342 | DC21: 150 | DD21: 1092.825342 | DE21: 129.6781802 | DF21: 20.3218198 | DG21: 635.0568687 | DH21: 3409.25012 | DI21: 914.938944 | DJ21: 663.238236 | DK21: 473.705886 | DL21: 5461.133186 | DM21: 60.495796 | DN21: 560.4178442 | DO21: 0 | DP21: 726.346412 | DQ21: 0 | DR21: 1347.260052 | DS21: 4873.013678 | DT21: 0 | DU21: 0 | DV21: 0 | DW21: 4873.013678 | DX21: 6220.273731 | DY21: 310.56253 | DZ21: 20.02905415 | EA21: 0 | EB21: 920.32351 | EC21: 6.421341122 | ED21: 3068.325108 | EE21: 285.91842 | EF21: 165.809559 | EG21: 78.950981 | EH21: 3599.004068 | EI21: -1801.633322 | EJ21: 560.4178442 | EK21: 0 | EL21: 181.586603 | EM21: 0 | EN21: -1059.628875 | EO21: 2667.384827 | EP21: 0 | EQ21: 0 | ER21: 0 | ES21: 2667.384827 | ET21: 1607.755952 | EU21: 310.56253 | EV21: 5.176915426 | EW21: 0 | EX21: 920.32351 | EY21: 1.409497213 | EZ21: 3049.915487 | FA21: 2978.363257 | FB21: 116.22146 | FC21: 995.8408319 | FD21: 71.4354998 | FE21: 13.94041947 | FF21: 0.3118596065 | FH21: 0 | FI21: 10175.15294 | FJ21: 0 | FK21: 5569.66394 | FL21: 54.73788918 | FM21: 59.32409486 | FN21: 0 | FO21: 0 | FP21: 9746.81691 | FQ21: 0 | FR21: 5782.21091 | FS21: 7112.40245 | FT21: 980.00817 | FU21: 900.47 | FV21: 8.427210654 | FW21: 9.945648627 | FX21: 7.898544593 | FY21: 8.427210654 | FZ21: 8.427210654 | GA21: 5 | GB21: 3.814333425 | GC21: 3.427844211 | GD21: 3.621088818 | GE21: 45 | GF21: 0.04494165475 | GG21: 1857.582256 | GH21: 12032.7352 | GI21: 86.51584419 | GJ21: 0.032 | GK21: 129.6781802 | GL21: 20.3218198 | GM21: 635.0568687 | GN21: 0 | GO21: 0.04189162146 | GP21: 0 | GQ21: 0 | GR21: 1445.618805 | GS21: 0 | GT21: 1575.296985 | GU21: 8.427210654 | GV21: 0 | GW21: 25.5687 | GX21: 1929.76544 | GY21: 0 | GZ21: 9.511182461 | HA21: 19.86501498 | HC21: 1.09094475 | HD21: 28.5 | HE21: 30625.54696 | HF21: 16009.32189 | HG21: 12493.75278 | HH21: 0.1687882726 | HI21: 0.05517265692 | HJ21: 9283.948958 | HK21: 1345.862903 | HL21: 1302.617333 | HM21: 3.29576007 | HN21: 1.722838906 | HO21: 22.75532441 | HP21: 11.89521002 | HR21: 3409.25012 | HS21: 1143.67368 | HT21: 1105.39706 | HU21: 0 | HV21: 479.98463 | HW21: 0 | HX21: 268.32697 | HY21: 41.19821 | HZ21: 1887.65395 | IA21: 11.42676 | IB21: 2388.08883 | IC21: 1124.89461 | ID21: 0 | IE21: 0 | IF21: 0 | IG21: 0 | IH21: 1815.86603 | II21: 0 | IJ21: 26259.30313 | IK21: 10798.85394 | IL21: 473.902 | IM21: 149.799 | IN21: 6193.36494 | IO21: 1564.34768 | IP21: 18.6079 | IQ21: -73.53823 | IR21: 3196.26218 | IS21: 1988.84571 | IT21: 1988.84571 | IU21: 150 | IV21: 0 | IW21: 51.11368 | IX21: 34.00389 | IY21: 24.8154 | IZ21: -122.66916 | JA21: -23.09362 | JB21: 26.77078 | JC21: 987.7028 | JD21: 310.56253 | JE21: 920.32351 | JF21: 0 | JG21: 238.80101 | JH21: 28147.968 | JI21: 30617.088 | JJ21: 16000.86293 | JK21: 994.05982 | JL21: 0 | JM21: 3.21935 | JN21: 15.51021 | JO21: 18.64565 | JP21: 1.5789 | JQ21: 365.41776 | JR21: 402.66609 | JS21: 34.3039 | JT21: 407.22544 | JU21: 62.53242 | JV21: 0.09716 | JW21: 1414.41748 | JX21: 226.66667 | JY21: 0 | JZ21: -624.08862 | KA21: 407.22544 | KB21: 0 | KC21: 0 | KD21: 448.14801 | KE21: 0 | KF21: 0 | KG21: 28.5 | KH21: 0 | KI21: 65.4954 | KJ21: 0 | KK21: 40.68 | KL21: 0 | KM21: 0 | KN21: 21958.72916 | KO21: 1963.76933 | KP21: 0 | KQ21: 0 | KR21: 0 | KS21: 0 | KT21: 0 | KU21: 65.4954 | KV21: 0 | KW21: 0 | KX21: 0 | KY21: 0 | KZ21: 0 | LA21: 0 | LB21: 0 | LC21: 0 | LD21: 0 | LE21: 0 | LF21: 0 | LG21: 0 | LH21: 9746.81691 | LI21: 0 | LJ21: 0 | LK21: 5782.21091 | LL21: 2481.74009 | LM21: 1501.73192 | LN21: 8030.79545 | LO21: 558.333 | LP21: 360.06 | LQ21: 2344.08559 | LR21: 1443.61559 | LS21: 10.8069 | LT21: 28.4103 | LU21: 38.247 | LV21: 28.8104 | LW21: 30.9984 | LX21: 28.8453 | LY21: 19.9553 | LZ21: 26.6569 | MA21: 24.3486 | MB21: 0 | MC21: 0 | MD21: 310.56253 | ME21: 0 | MF21: 0 | MG21: 0 | MH21: 0 | MI21: 0 | NP21: AUDIT | OH21: AUDIT | OX21: AUDIT | TO21: 1.131269598 | TP21: 479.98463 | TQ21: 0 | TR21: -37.24833 | TS21: 0 | TT21: 1312.965157 | TU21: 2096.284964 | TV21: 1312.965156 | TW21: 4351.545707 | TX21: 14602.55173 | TY21: 9292.407914 | TZ21: 0.1543129096 | UA21: 0 | UB21: 994.05982 | UC21: 994.05982 | UD21: 10286.46773 | UE21: 0.1394004763 | UF21: 0.1700766088 | UG21: 0.0546068757 | UH21: 2.825887905 | UI21: 0.2952461185 | UJ21: 0.0546068757 | UK21: 2.552800807 | UV21: x | UX21: x | UZ21: 3.03004638 | VA21: 20.92072447 | VB21: 2.737229891 | VC21: 20.92072447 | VE21: 2047.069779 | VF21: 13.75450277 | VG21: 7.98806 | VH21: 15.51021 | VI21: 3.21935 | VJ21: 25689.978 | VK21: 0.087611 | VL21: 0.07795598266 | VM21: 0.121719 | VN21: 0.05266037774 | VO21: 0.059573 | VP21: 2487.7544 | VQ21: 0.3538710783 | VR21: 15451.12146 | VS21: 0.588405617 | VT21: 2108.79895 | VU21: 0 | VV21: 0 | XN21: 3.59247957 | XO21: 0 | XP21: 24.02881973 | XQ21: 0.07051115855 | XR21: 0.6017864644 | XS21: 0 | XT21: 0 | XU21: 0.212321603 | XW21: 0 | XX21: 987.648 | XY21: 0.45 | XZ21: Dec-2004 | YA21: $31.0/$16.3 | YB21: 0.1516640431 | YC21: 0.9783191074 | YG21: 14602.55173 | YH21: 9292.407914 | YI21: 0.1543129096 | YJ21: 0.1700766088 | YK21: 0.0546068757 | YL21: 2.825887905 | YM21: 3.03004638 | YQ21: 23.42263 | YR21: 0 | YS21: 0 | YT21: -23.09362 | YU21: 0 | YV21: -73.53823 | YW21: 684.20008 | YX21: 987.64782 | YY21: 40.6211 | YZ21: -15.8057 | ZA21: 0 | ZB21: 0 | ZC21: 0 | ZD21: 0 | ZE21: 0 | ZF21: 0 | ZG21: 0 | ZH21: 0 | ZI21: 0 | ZJ21: 0 | ZK21: 0 | ZL21: 0 | ZM21: 0 | ZN21: 0 | ZO21: 0 | ZP21: 0 | ZQ21: 0 | ZR21: 0 | ZS21: 0 | ZT21: 8607.5457 | ZU21: 8918.10823 | ZV21: 1.58559 | ZW21: 1.58559 | ZX21: 1113.46785 | ZY21: 0 | ZZ21: 0 | AAA21: 0 | AAB21: 0 | AAC21: 212.05232 | AAD21: 0 | AAE21: 0 | AAF21: 0 | AAG21: 0 | AAH21: 27.2292 | AAI21: 226.66667 | AAJ21: 0 | AAK21: 0 | AAL21: 56.66667 | AAM21: 0 | AAN21: 8368.74469 | AAP21: 235.5 | AAQ21: 26684 | AAR21: 27717 | AAS21: 23602.36 | AAT21: 8 | AAU21: 0 | AAV21: 3105.5 | AAW21: 3421 | AAX21: 2575 | AAY21: 3089.341 | AAZ21: 8 | ABA21: 0 | ABB21: 2021.51 | ABC21: 2276 | ABD21: 1930.214 | ABE21: 2038.029 | ABF21: 8 | ABG21: 0 | ABH21: 0 | ABI21: 0 | ABJ21: 0 | ABK21: 0 | ABL21: 0 | ABM21: 0 | ABN21: 0 | ABO21: 0 | ABP21: 0 | ABQ21: 0 | ABR21: 1512.5 | ABS21: 1590 | ABT21: 1475 | ABU21: 8 | ABV21: 0 | ABW21: 0 | ABX21: 0 | ABY21: 0 | ABZ21: 0 | ACA21: 0 | ACB21: 0 | ACC21: 0 | ACD21: 0 | ACE21: 0 | ACF21: 0 | ACG21: 0 | ACH21: 0 | ACI21: 0 | ACJ21: 0 | ACK21: 0 | ACL21: 0 | ACM21: 0 | ACN21: 0 | ACO21: 0 | ACP21: 0 | ACQ21: 0 | ACR21: 0 | ACS21: 0 | ACT21: 0 | ACU21: 0 | ACV21: 0.4 | ACW21: 0.45 | ACX21: 0.35 | ACY21: 0.398 | ACZ21: 5 | ADA21: 1.56 | ADB21: 1.8 | ADC21: 1.5 | ADD21: 1.588 | ADE21: 8 | ADG21: 1988.84571 | ADH21: 370.0824209 | ADI21: 1618.763289 | ADJ21: 2558.59592 | ADK21: 2388.08883 | ADL21: 4287.16954 | ADM21: -1728.57362 | ADN21: 0 | ADO21: 212.05232 | ADP21: 4252.739 | ADQ21: 5246.79882 | ADR21: 0.07573870868 | ADS21: 6.288393318 | ADT21: 5.619527742 | ADU21: 0.4762747896 | ADV21: 0.4256157746 | ADW21: 0.387650053 | ADX21: 0.3464176169 | ADY21: 479.98463 | ADZ21: 1131.66595 | AEA21: 1113.46785 | AEB21: 0 | AEC21: 8918.10824 | AED21: 253.89587 | AEE21: 56.66667 | AEF21: 0 | AEG21: 0 | AEH21: 549.36355 | AEI21: 8368.74469 | AEJ21: 0.1361958265 | AEK21: 28147.968 | AEL21: 549.36355 | AEM21: 28697.33155 | AEN21: 25710.22221 | AEO21: 0.1048144903 | AEP21: 2.944492534 | AEQ21: 7924.04842 | AER21: 3.313874643 | AET21: 0 | AEU21: 0 | AEV21: 223.58549
A22: PSE:JFC0990 | B22: PSE:JFC | C22: 0 | D22: CapIQ Raw | E22: 0 | F22: 2016-02-24 | G22: Jollibee Foods Corp. | H22: 990 | I22: 2005 | J22: 990 | K22: 2005 | L22: 2005-12-31 | M22: Consumer Discretionary | N22: Consumer Services | O22: Hotels, Restaurants and Leisure | P22: Restaurants | Q22: Philippines | R22: PH | S22: PHP | T22: PSE | U22: JFC | V22: PHP | W22: 40.5 | X22: 0 | Z22: 0.04634430286 | AA22: 2.525850011 | AB22: 0.1170587579 | AC22: 0.1594556855 | AD22: 0.09849715301 | AE22: 0.06 | AF22: 3.48130513 | AG22: 3.717244878 | AH22: 22.31167218 | AI22: 22.77603991 | AJ22: 29.73980924 | AK22: 29.96074612 | AM22: 0.04634430286 | AN22: 2.125334656 | AO22: 0.09849715301 | AP22: 0.2790374175 | AQ22: 0.06 | AR22: 2.929286541 | AS22: 22.31167218 | AT22: 29.73980924 | AU22: 19948.64976 | AV22: 6284.672052 | AW22: 13663.9777 | AX22: 1345.862903 | AY22: 40025.70599 | BA22: 0 | BB22: 0 | BC22: 1452.026268 | BD22: 1452.026268 | BE22: 1437.512082 | BF22: 1452.026268 | BG22: 1380.06019 | BH22: 1107.17996 | BI22: 5347.343308 | BJ22: 4093.82484 | BK22: 6191.14582 | BL22: -843.802512 | BM22: 909.0080679 | BN22: 0 | BO22: 0 | BP22: 2005.11409 | BQ22: 0 | BR22: 2070.319646 | BS22: 0 | BT22: 2070.319646 | BU22: 15198.87514 | BV22: 512.8049953 | BW22: 0 | BX22: 0 | BY22: 15711.68013 | BZ22: 17781.99978 | CA22: 6284.672052 | CB22: 11497.32772 | CC22: -33.95860205 | CD22: 0 | CE22: 1400.2864 | CF22: 0 | CG22: 448.7584211 | CH22: 119.52248 | CI22: 95.96084 | CJ22: 0 | CK22: 0 | CL22: 0 | CM22: 3145.555307 | CN22: 1345.862903 | CO22: 1.353211286 | CP22: 1302.617333 | CQ22: 1.309729597 | CR22: 197.08272 | CS22: 2194.306748 | CT22: 1437.512082 | CU22: 40025.70599 | CW22: 0 | CX22: 0 | CY22: 0 | CZ22: 0 | DA22: 12224.78461 | DB22: 15198.87514 | DC22: 68.254526 | DD22: 512.8049953 | DE22: 58.73918304 | DF22: 9.515342962 | DG22: 297.3544676 | DH22: 2889.53835 | DI22: 1126.461512 | DJ22: 828.036114 | DK22: 664.307976 | DL22: 5508.343952 | DM22: -682.801868 | DN22: 909.0080679 | DO22: 0 | DP22: 802.045636 | DQ22: 0 | DR22: 1028.251836 | DS22: 6079.550054 | DT22: 0 | DU22: 0 | DV22: 0 | DW22: 6079.550054 | DX22: 7107.80189 | DY22: 179.70091 | DZ22: 39.55351083 | EA22: 0 | EB22: 1520.16865 | EC22: 4.557455503 | ED22: 2600.584515 | EE22: 352.0192225 | EF22: 207.0090285 | EG22: 110.717996 | EH22: 3270.330762 | EI22: -2920.815058 | EJ22: 909.0080679 | EK22: 0 | EL22: 200.511409 | EM22: 0 | EN22: -1811.295581 | EO22: 2945.672529 | EP22: 0 | EQ22: 0 | ER22: 0 | ES22: 2945.672529 | ET22: 1134.376948 | EU22: 179.70091 | EV22: 6.312583215 | EW22: 0 | EX22: 1520.16865 | EY22: 0.6280066611 | EZ22: 3241.516147 | FA22: 3314.734267 | FB22: 1599.55916 | FC22: 1042.443143 | FD22: 52.76091296 | FE22: 19.75786779 | FF22: 0.1723843754 | FH22: 0 | FI22: 12224.78461 | FJ22: 0 | FK22: 5923.17061 | FL22: 48.452147 | FM22: 54.73788918 | FN22: 0 | FO22: 0 | FP22: 10175.15294 | FQ22: 0 | FR22: 5569.66394 | FS22: 9746.81691 | FT22: 1207.41647 | FU22: 980.00817 | FV22: 8.730203057 | FW22: 8.427210654 | FX22: 9.945648627 | FY22: 8.730203057 | FZ22: 8.730203057 | GA22: 5 | GB22: 4.500232238 | GC22: 3.951474183 | GD22: 4.22585321 | GE22: 46 | GF22: 0.04733890404 | GG22: 2828.748525 | GH22: 15053.53314 | GI22: 170.8140679 | GJ22: 0.032 | GK22: 58.73918304 | GL22: 9.515342962 | GM22: 297.3544676 | GN22: 0 | GO22: 0.04686228353 | GP22: 259.48974 | GQ22: 0 | GR22: 1740.953221 | GS22: 0 | GT22: 1799.692404 | GU22: 8.730203057 | GV22: 0 | GW22: 25.19912 | GX22: 2114.45629 | GY22: 0 | GZ22: 8.931421081 | HA22: 16.95949612 | HC22: 1.244279255 | HD22: 40.5 | HE22: 43398.44315 | HF22: 26183.34279 | HG22: 14602.55173 | HH22: 0.2177323598 | HI22: 0.0582766743 | HJ22: 10499.00894 | HK22: 1793.935733 | HL22: 1713.528223 | HM22: 3.774654788 | HN22: 2.277341606 | HO22: 24.1917491 | HP22: 14.59547424 | HR22: 2889.53835 | HS22: 1408.07689 | HT22: 1380.06019 | HU22: 0 | HV22: 702.98799 | HW22: 0 | HX22: 312.39142 | HY22: 91.80055 | HZ22: 2083.80107 | IA22: 13.51991 | IB22: 2633.80081 | IC22: 1473.54394 | ID22: 0 | IE22: 0 | IF22: 0 | IG22: 0 | IH22: 2005.11409 | II22: 0 | IJ22: 29040.52536 | IK22: 13108.32061 | IL22: 738.194 | IM22: 145.342 | IN22: 6806.70661 | IO22: 1674.62929 | IP22: 20.6528 | IQ22: -42.79748 | IR22: 3357.59658 | IS22: 1957.31018 | IT22: 1957.31018 | IU22: 68.254526 | IV22: 0 | IW22: 43.24557 | IX22: 15.16731 | IY22: 23.56164 | IZ22: -157.68853 | JA22: -20.62566 | JB22: 32.44626 | JC22: 994.56967 | JD22: 179.70091 | JE22: 1260.67891 | JF22: 0 | JG22: 241.52412 | JH22: 39027.3872 | JI22: 42400.12436 | JJ22: 25185.024 | JK22: 2166.64998 | JL22: 0 | JM22: 4.18386 | JN22: 20.82021 | JO22: 24.38922 | JP22: 1.3827 | JQ22: 439.827 | JR22: 524.06329 | JS22: -157.45441 | JT22: 472.59872 | JU22: 77.64025 | JV22: 0.05352 | JW22: 1382.82101 | JX22: 272.47769 | JY22: 0 | JZ22: 66.22807 | KA22: 472.59872 | KB22: 0 | KC22: 0 | KD22: 1198.13092 | KE22: 0 | KF22: 0 | KG22: 40.5 | KH22: 4.86624 | KI22: 119.52248 | KJ22: 0 | KK22: 39.16084 | KL22: 56.8 | KM22: 0 | KN22: 23405.12544 | KO22: 2129.62359 | KP22: 0 | KQ22: 551.32113 | KR22: 291.83139 | KS22: 0 | KT22: 0 | KU22: 62.72248 | KV22: 0 | KW22: 0 | KX22: 0 | KY22: 0 | KZ22: 0 | LA22: 0 | LB22: 0 | LC22: 0 | LD22: 0 | LE22: 0 | LF22: 0 | LG22: 0 | LH22: 10798.85394 | LI22: 473.902 | LJ22: 149.799 | LK22: 6193.36494 | LL22: 3196.26218 | LM22: 1988.84571 | LN22: 9746.81691 | LO22: 0 | LP22: 0 | LQ22: 2481.74009 | LR22: 1501.73192 | LS22: 18.6079 | LT22: 10.8069 | LU22: 28.4103 | LV22: 38.247 | LW22: 28.8104 | LX22: 30.9984 | LY22: 28.8453 | LZ22: 19.9553 | MA22: 26.6569 | MB22: FIFO | MC22: 0 | MD22: 179.70091 | ME22: 0 | MF22: 0 | MG22: 0 | MH22: 0 | MI22: 0 | OH22: AUDIT | OX22: AUDIT | TO22: 1.28558806 | TP22: 702.98799 | TQ22: 0 | TR22: -84.23629 | TS22: 259.48974 | TT22: 1452.026268 | TU22: 1437.512082 | TV22: 1452.026268 | TW22: 5347.343308 | TX22: 17781.99978 | TY22: 11497.32772 | TZ22: 0.1170587579 | UA22: 0 | UB22: 2166.64998 | UC22: 2166.64998 | UD22: 13663.9777 | UE22: 0.09849715301 | UF22: 0.2372818575 | UG22: 0.04634430286 | UH22: 2.525850011 | UI22: 0.328344973 | UJ22: 0.04634430286 | UK22: 2.125334656 | UV22: x | UX22: x | UZ22: 3.48130513 | VA22: 22.31167218 | VB22: 2.929286541 | VC22: 22.31167218 | VE22: 2135.288145 | VF22: 18.74487342 | VG22: 11.20464 | VH22: 20.82021 | VI22: 4.18386 | VJ22: 35939.6062 | VK22: 0.073661 | VL22: 0.07352787591 | VM22: 0.115617 | VN22: 0.04485515728 | VO22: 0.057665 | VP22: 2709.12059 | VQ22: 0.3959063268 | VR22: 17763.32606 | VS22: 0.6116737159 | VT22: 3179.448048 | VU22: 0 | VV22: 0 | XN22: 3.184503798 | XO22: 0 | XP22: 56.63073805 | XQ22: 0.2475955241 | XR22: -0.1956827747 | XS22: 0 | XT22: -0.5307530163 | XU22: 0.1059137867 | XW22: 0 | XX22: 963.63919 | XY22: 0.56 | XZ22: Dec-2005 | YA22: $44.0/$25.5 | YB22: 0.1461355643 | YC22: 1.237567356 | YG22: 17781.99978 | YH22: 11497.32772 | YI22: 0.1170587579 | YJ22: 0.2372818575 | YK22: 0.04634430286 | YL22: 2.525850011 | YM22: 3.48130513 | YQ22: 33.80258 | YR22: 0 | YS22: 0 | YT22: 100.66793 | YU22: 0 | YV22: -42.79748 | YW22: 774.0602 | YX22: 992.23689 | YY22: 46.54908 | YZ22: -20.86764 | ZA22: -2.1198 | ZB22: 0 | ZC22: 0 | ZD22: 0 | ZE22: 0 | ZF22: 0 | ZG22: -233.81855 | ZH22: 0 | ZI22: 0 | ZJ22: 0 | ZK22: 0 | ZL22: 0 | ZM22: 303.8143 | ZN22: 0 | ZO22: 0 | ZP22: 0 | ZQ22: 0 | ZR22: 0 | ZS22: 0 | ZT22: 9897.98188 | ZU22: 10077.68279 | ZV22: 1.68665 | ZW22: 1.68665 | ZX22: 1460.02403 | ZY22: 0 | ZZ22: 0 | AAA22: 0 | AAB22: 0 | AAC22: 233.81855 | AAD22: 0 | AAE22: 0 | AAF22: 0 | AAG22: 0 | AAH22: 68.48879 | AAI22: 78.48485 | AAJ22: 0 | AAK22: 0 | AAL22: 32.72727 | AAM22: 0 | AAN22: 9656.45776 | AAP22: 235.5 | AAQ22: 29167.65862 | AAR22: 31552 | AAS22: 26532.5 | AAT22: 6 | AAU22: 0 | AAV22: 3452.41 | AAW22: 4089 | AAX22: 3384.06276 | AAY22: 3577.29455 | AAZ22: 5 | ABA22: 0 | ABB22: 2121.18891 | ABC22: 2681 | ABD22: 2079.98 | ABE22: 2241.03378 | ABF22: 5 | ABG22: 0 | ABH22: 0 | ABI22: 0 | ABJ22: 0 | ABK22: 0 | ABL22: 0 | ABM22: 0 | ABN22: 0 | ABO22: 0 | ABP22: 0 | ABQ22: 0 | ABR22: 1723 | ABS22: 1936 | ABT22: 1630 | ABU22: 6 | ABV22: 0 | ABW22: -1618 | ABX22: -1822 | ABY22: -1414 | ABZ22: 2 | ACA22: 0 | ACB22: 0 | ACC22: 0 | ACD22: 0 | ACE22: 0 | ACF22: 0 | ACG22: 0 | ACH22: 0 | ACI22: 0 | ACJ22: 0 | ACK22: 0 | ACL22: 0 | ACM22: 0 | ACN22: 0 | ACO22: 0 | ACP22: 0 | ACQ22: 19.38 | ACR22: 19.8 | ACS22: 17 | ACT22: 18.89 | ACU22: 4 | ACV22: 0.526 | ACW22: 0.6 | ACX22: 0.25 | ACY22: 0.487 | ACZ22: 6 | ADA22: 1.72948 | ADB22: 1.95 | ADC22: 1.674 | ADD22: 1.76549 | ADE22: 6 | ADG22: 1957.31018 | ADH22: 404.2393569 | ADI22: 1553.070823 | ADJ22: 3192.32905 | ADK22: 2633.80081 | ADL22: 4731.12179 | ADM22: -1538.79274 | ADN22: 0 | ADO22: 233.81855 | ADP22: 5034.09532 | ADQ22: 7200.7453 | ADR22: 0.06739926898 | ADS22: 6.254128018 | ADT22: 4.666065062 | ADU22: 0.4215236565 | ADV22: 0.3144893741 | ADW22: 0.3344672188 | ADX22: 0.2495385127 | ADY22: 702.98799 | ADZ22: 1231.05389 | AEA22: 1460.02403 | AEB22: 0 | AEC22: 10077.68279 | AED22: 146.97364 | AEE22: 32.72727 | AEF22: 0 | AEG22: 0 | AEH22: 421.22503 | AEI22: 9656.45776 | AEJ22: -0.1347610018 | AEK22: 39027.3872 | AEL22: 421.22503 | AEM22: 39448.61223 | AEN22: 37345.73494 | AEO22: 0.06040674446 | AEP22: 2.881666943 | AEQ22: 7911.03281 | AER22: 3.670889258 | AET22: 0 | AEU22: 0 | AEV22: 70.64568
A23: PSE:JFC0991 | B23: PSE:JFC | C23: 0 | D23: CapIQ Raw | E23: 0 | F23: 2016-02-24 | G23: Jollibee Foods Corp. | H23: 991 | I23: 2006 | J23: 991 | K23: 2006 | L23: 2006-12-31 | M23: Consumer Discretionary | N23: Consumer Services | O23: Hotels, Restaurants and Leisure | P23: Restaurants | Q23: Philippines | R23: PH | S23: PHP | T23: PSE | U23: JFC | V23: PHP | W23: 42 | X23: 0 | Z23: 0.05290095301 | AA23: 2.660340795 | AB23: 0.1407345634 | AC23: 0.05431139066 | AD23: 0.1250255656 | AE23: 0.06 | AF23: 3.319986641 | AG23: 3.39293556 | AH23: 20.70058527 | AI23: 21.08253199 | AJ23: 23.5904142 | AK23: 24.47061818 | AM23: 0.05290095301 | AN23: 2.363389665 | AO23: 0.1250255656 | AP23: 0.06420715948 | AQ23: 0.06 | AR23: 2.949404878 | AS23: 20.70058527 | AT23: 23.5904142 | AU23: 21229.49589 | AV23: 6880.944664 | AW23: 14348.55123 | AX23: 1793.935733 | AY23: 42319.68698 | BA23: 0 | BB23: 0 | BC23: 1695.560884 | BD23: 1695.560884 | BE23: 2756.882916 | BF23: 1695.560884 | BG23: 1266.34278 | BH23: 1298.47757 | BI23: 5748.808194 | BJ23: 3493.75763 | BK23: 6316.26239 | BL23: -567.454196 | BM23: 888.6984288 | BN23: 0 | BO23: 0 | BP23: 2104.28373 | BQ23: 0 | BR23: 2425.527963 | BS23: 0 | BT23: 2425.527963 | BU23: 16240.81994 | BV23: 961.54172 | BW23: 0 | BX23: 0 | BY23: 17202.36166 | BZ23: 19627.88962 | CA23: 6880.944664 | CB23: 12746.94496 | CC23: 50.90973603 | CD23: 0 | CE23: 1573.84476 | CF23: 0 | CG23: 763.3705016 | CH23: 154.42234 | CI23: 121.56449 | CJ23: 0 | CK23: 0 | CL23: 0 | CM23: 3835.223457 | CN23: 1793.935733 | CO23: 1.790093959 | CP23: 1713.528223 | CQ23: 1.709858644 | CR23: 296.68338 | CS23: 3124.000416 | CT23: 2756.882916 | CU23: 42319.68698 | CW23: 0 | CX23: 0 | CY23: 0 | CZ23: 0 | DA23: 13012.456 | DB23: 16240.81994 | DC23: 131.980155 | DD23: 961.54172 | DE23: 114.0996422 | DF23: 17.88051285 | DG23: 558.7660264 | DH23: 4452.4438 | DI23: 1190.741568 | DJ23: 759.805668 | DK23: 779.086542 | DL23: 7182.077578 | DM23: 865.815188 | DN23: 888.6984288 | DO23: 0 | DP23: 841.713492 | DQ23: 0 | DR23: 2596.227109 | DS23: 6496.327976 | DT23: 0 | DU23: 0 | DV23: 0 | DW23: 6496.327976 | DX23: 9092.555085 | DY23: 228.09651 | DZ23: 39.86275408 | EA23: 0 | EB23: 2040.4545 | EC23: 4.344354934 | ED23: 4007.19942 | EE23: 372.10674 | EF23: 189.951417 | EG23: 129.847757 | EH23: 4699.105334 | EI23: -1617.157056 | EJ23: 888.6984288 | EK23: 0 | EL23: 210.428373 | EM23: 0 | EN23: -518.0302542 | EO23: 3019.562863 | EP23: 0 | EQ23: 0 | ER23: 0 | ES23: 3019.562863 | ET23: 2501.532609 | EU23: 228.09651 | EV23: 10.96699204 | EW23: 0 | EX23: 2040.4545 | EY23: 1.114181227 | EZ23: 3956.787947 | FA23: 4027.396587 | FB23: 566.8032 | FC23: 1326.467683 | FD23: 98.28802285 | FE23: 13.49572048 | FF23: 0.1719578343 | FH23: 0 | FI23: 13012.456 | FJ23: 0 | FK23: 6048.329 | FL23: 46.48107167 | FM23: 48.452147 | FN23: 0 | FO23: 0 | FP23: 12224.78461 | FQ23: 0 | FR23: 5923.17061 | FS23: 10175.15294 | FT23: 1400.2864 | FU23: 1207.41647 | FV23: 8.267941242 | FW23: 8.730203057 | FX23: 8.427210654 | FY23: 8.427210654 | FZ23: 8.427210654 | GA23: 5 | GB23: 4.51015283 | GC23: 4.34404616 | GD23: 4.427099495 | GE23: 47 | GF23: 0.0462687724 | GG23: 2944.62294 | GH23: 15957.07894 | GI23: 163.9950388 | GJ23: 0.032 | GK23: 114.0996422 | GL23: 17.88051285 | GM23: 558.7660264 | GN23: 0 | GO23: 0.05419103229 | GP23: 778.23472 | GQ23: 0 | GR23: 1927.188082 | GS23: 0 | GT23: 2041.287724 | GU23: 8.427210654 | GV23: 0 | GW23: 25.09218 | GX23: 2899.41469 | GY23: 0 | GZ23: 20.57427162 | HA23: 21.95745263 | HC23: 1.202171527 | HD23: 42 | HE23: 42319.68698 | HF23: 30741.65554 | HG23: 17781.99978 | HH23: 0.1038066511 | HI23: 0.04949526042 | HJ23: 12358.35286 | HK23: 2044.37152 | HL23: 1988.90223 | HM23: 3.319986641 | HN23: 2.411688106 | HO23: 20.70058527 | HP23: 15.03721571 | HR23: 4452.4438 | HS23: 1488.42696 | HT23: 1266.34278 | HU23: 0 | HV23: 450.86505 | HW23: 0 | HX23: 221.34331 | HY23: 626.26921 | HZ23: 2813.65441 | IA23: 8.85035 | IB23: 1762.25489 | IC23: 1740.35309 | ID23: 0 | IE23: 0 | IF23: 0 | IG23: 0 | IH23: 2104.28373 | II23: 0 | IJ23: 33911.21768 | IK23: 14020.90039 | IL23: 724.70339 | IM23: 283.741 | IN23: 7056.77339 | IO23: 2156.61846 | IP23: 25.5875 | IQ23: 68.41557 | IR23: 3986.59195 | IS23: 2412.74719 | IT23: 2412.74719 | IU23: 131.980155 | IV23: 0 | IW23: 80.40751 | IX23: 3.53946 | IY23: 32.85786 | IZ23: -135.49081 | JA23: -22.90759 | JB23: 40.04249 | JC23: 1002.14613 | JD23: 228.09651 | JE23: 1262.21978 | JF23: 0 | JG23: 21.4746 | JH23: 41931.09488 | JI23: 41931.09488 | JJ23: 30353.06344 | JK23: 1601.60627 | JL23: 0 | JM23: 3.83225 | JN23: 16.86711 | JO23: 21.03172 | JP23: 1.3809 | JQ23: 742.79623 | JR23: 614.03174 | JS23: 58.15585 | JT23: 659.64118 | JU23: 49.57984 | JV23: 0.05722 | JW23: 1920.24418 | JX23: 78.48485 | JY23: 0 | JZ23: 32.81369 | KA23: 659.64118 | KB23: 0 | KC23: 0 | KD23: 358.38232 | KE23: 0 | KF23: 0 | KG23: 42 | KH23: 7.06389 | KI23: 154.42234 | KJ23: 0 | KK23: 64.26449 | KL23: 57.3 | KM23: 0 | KN23: 27805.66161 | KO23: 2902.95416 | KP23: 557.66249 | KQ23: 1208.55416 | KR23: 430.31944 | KS23: 0 | KT23: 0 | KU23: 97.12234 | KV23: 0 | KW23: 0 | KX23: 0 | KY23: 0 | KZ23: 0 | LA23: 0 | LB23: 0 | LC23: 0 | LD23: 0 | LE23: 0 | LF23: 0 | LG23: 0 | LH23: 13108.32061 | LI23: 738.194 | LJ23: 145.342 | LK23: 6806.70661 | LL23: 3357.59658 | LM23: 1957.31018 | LN23: 10798.85394 | LO23: 473.902 | LP23: 149.799 | LQ23: 3196.26218 | LR23: 1988.84571 | LS23: 20.6528 | LT23: 18.6079 | LU23: 10.8069 | LV23: 28.4103 | LW23: 38.247 | LX23: 28.8104 | LY23: 30.9984 | LZ23: 28.8453 | MA23: 19.9553 | MB23: FIFO | MC23: 0 | MD23: 228.09651 | ME23: 59.93054 | MF23: 47.15896 | MG23: 0 | MH23: 0 | MI23: 0 | QD23: AUDIT | TO23: 1.258583565 | TP23: 450.86505 | TQ23: 0 | TR23: 128.76449 | TS23: 778.23472 | TT23: 1695.560884 | TU23: 2756.882916 | TV23: 1695.560884 | TW23: 5748.808194 | TX23: 19627.88962 | TY23: 12746.94496 | TZ23: 0.1407345634 | UA23: 0 | UB23: 1601.60627 | UC23: 1601.60627 | UD23: 14348.55123 | UE23: 0.1250255656 | UF23: 0.1086876242 | UG23: 0.05290095301 | UH23: 2.660340795 | UI23: 0.05010060316 | UJ23: 0.05290095301 | UK23: 2.363389665 | UV23: x | UX23: x | UZ23: 3.319986641 | VA23: 20.70058527 | VB23: 2.949404878 | VC23: 20.70058527 | VE23: 2910.649557 | VF23: 14.5396023 | VG23: 9.32484 | VH23: 16.86711 | VI23: 3.83225 | VJ23: 38469.33688 | VK23: 0.081441 | VL23: 0.08583146687 | VM23: 0.117559 | VN23: 0.05052983467 | VO23: 0.063596 | VP23: 4697.57502 | VQ23: 0.375891691 | VR23: 19268.3545 | VS23: 0.5682000181 | VT23: 1845.889846 | VU23: 0 | VV23: 0 | XN23: 3.480039576 | XO23: 0 | XP23: 35.26754687 | XQ23: 0.06855407361 | XR23: -0.3275035474 | XS23: 0 | XT23: 0.8750630917 | XU23: 0.1677205305 | XW23: 0 | XX23: 998.3594 | XY23: 0.58 | XZ23: Dec-2006 | YA23: $42.5/$30.0 | YB23: 0.283133359 | YC23: 1.134413315 | YG23: 19627.88962 | YH23: 12746.94496 | YI23: 0.1407345634 | YJ23: 0.1086876242 | YK23: 0.05290095301 | YL23: 2.660340795 | YM23: 3.319986641 | YQ23: 35.67854 | YR23: 68.41557 | YS23: 0 | YT23: 366.7081 | YU23: 0 | YV23: 0 | YW23: 850.38719 | YX23: 1001.4483 | YY23: 63.0294 | YZ23: -29.27237 | ZA23: -0.89918 | ZB23: 0 | ZC23: 0 | ZD23: 0 | ZE23: 0 | ZF23: 0 | ZG23: -290.22444 | ZH23: 0 | ZI23: 0 | ZJ23: 0 | ZK23: 0 | ZL23: 639.91726 | ZM23: 209.19876 | ZN23: 0 | ZO23: 0 | ZP23: 0 | ZQ23: 0 | ZR23: 0 | ZS23: 0 | ZT23: 10961.79093 | ZU23: 11189.88744 | ZV23: 2.161 | ZW23: 2.161 | ZX23: 1731.50274 | ZY23: 0 | ZZ23: 0 | AAA23: 0 | AAB23: 0 | AAC23: 290.22444 | AAD23: 0 | AAE23: 0 | AAF23: 0 | AAG23: 209.76044 | AAH23: 121.00701 | AAI23: 59.93054 | AAJ23: 0 | AAK23: 0 | AAL23: 47.15896 | AAM23: 0 | AAN23: 10940.31633 | AAP23: 235.5 | AAQ23: 34273 | AAR23: 35538 | AAS23: 33135 | AAT23: 5 | AAU23: 0 | AAV23: 4190 | AAW23: 4577.3 | AAX23: 4128 | AAY23: 4278.66 | AAZ23: 5 | ABA23: 0 | ABB23: 2659 | ABC23: 2889 | ABD23: 2560 | ABE23: 2689.4 | ABF23: 5 | ABG23: 0 | ABH23: 0 | ABI23: 0 | ABJ23: 0 | ABK23: 0 | ABL23: 0 | ABM23: 0 | ABN23: 0 | ABO23: 0 | ABP23: 0 | ABQ23: 0 | ABR23: 2116 | ABS23: 2206 | ABT23: 2031 | ABU23: 5 | ABV23: 0 | ABW23: -1500 | ABX23: -1794 | ABY23: -1500 | ABZ23: 3 | ACA23: 0 | ACB23: 0 | ACC23: 0 | ACD23: 0 | ACE23: 0 | ACF23: 0 | ACG23: 0 | ACH23: 0 | ACI23: 0 | ACJ23: 0 | ACK23: 3405 | ACL23: 3666 | ACM23: 3317 | ACN23: 3462.66667 | ACO23: 3 | ACP23: 0 | ACQ23: 19.2 | ACR23: 20.3 | ACS23: 17.9 | ACT23: 19.2 | ACU23: 5 | ACV23: 0.62 | ACW23: 0.71 | ACX23: 0.59 | ACY23: 0.638 | ACZ23: 5 | ADA23: 2.11 | ADB23: 2.22 | ADC23: 2.06 | ADD23: 2.128 | ADE23: 5 | ADG23: 2344.33162 | ADH23: 599.8558533 | ADI23: 1812.891337 | ADJ23: 3602.38226 | ADK23: 1762.25489 | ADL23: 4584.75965 | ADM23: -982.37739 | ADN23: 0 | ADO23: 290.22444 | ADP23: 5784.17156 | ADQ23: 7385.77783 | ADR23: 0.07114893994 | ADS23: 6.269251453 | ADT23: 4.649664266 | ADU23: 0.4460505951 | ADV23: 0.3308186836 | ADW23: 0.3319173991 | ADX23: 0.2461704529 | ADY23: 450.86505 | ADZ23: 1253.89654 | AEA23: 1731.50274 | AEB23: 209.76044 | AEC23: 11189.88745 | AED23: 180.93755 | AEE23: 47.15896 | AEF23: 0 | AEG23: 0 | AEH23: 249.57111 | AEI23: 10940.31633 | AEJ23: -0.3004978883 | AEK23: 41931.09488 | AEL23: 249.57111 | AEM23: 42180.66599 | AEN23: 39226.94356 | AEO23: 0.04854346392 | AEP23: 3.030523572 | AEQ23: 9588.28118 | AER23: 3.536735839 | AET23: 0 | AEU23: 0 | AEV23: 79.55225
A24: PSE:JFC0992 | B24: PSE:JFC | C24: 0 | D24: CapIQ Raw | E24: 0 | F24: 2016-02-24 | G24: Jollibee Foods Corp. | H24: 992 | I24: 2007 | J24: 992 | K24: 2007 | L24: 2007-12-31 | M24: Consumer Discretionary | N24: Consumer Services | O24: Hotels, Restaurants and Leisure | P24: Restaurants | Q24: Philippines | R24: PH | S24: PHP | T24: PSE | U24: JFC | V24: PHP | W24: 52 | X24: 0 | Z24: 0.05283479071 | AA24: 2.773257338 | AB24: 0.1465244711 | AC24: 0.06216380506 | AD24: 0.09478845241 | AE24: 0.06 | AF24: 3.712219051 | AG24: 3.533519269 | AH24: 28.60417772 | AI24: 30.94338113 | AJ24: 25.33514726 | AK24: 26.53653654 | AM24: 0.05283479071 | AN24: 2.050583873 | AO24: 0.1083421698 | AP24: 0.242221112 | AQ24: 0.06 | AR24: 2.744864825 | AS24: 28.60417772 | AT24: 25.33514726 | AU24: 26371.72799 | AV24: 7502.145406 | AW24: 18869.58259 | AX24: 2044.37152 | AY24: 51794.45351 | BA24: 0 | BB24: 0 | BC24: 1934.683087 | BD24: 1934.683087 | BE24: 3641.260003 | BF24: 1934.683087 | BG24: 1629.42802 | BH24: 1385.36269 | BI24: 6767.820437 | BJ24: 5015.40115 | BK24: 7356.38187 | BL24: -588.561433 | BM24: 890.6621621 | BN24: 0 | BO24: 0 | BP24: 2397.10498 | BQ24: 0 | BR24: 2745.370049 | BS24: 0 | BT24: 2699.205709 | BU24: 17264.57475 | BV24: 1490.788764 | BW24: 0 | BX24: 0 | BY24: 18755.36351 | BZ24: 21454.56922 | CA24: 7502.145406 | CB24: 13952.42382 | CC24: -24.61356904 | CD24: 0 | CE24: 1579.55887 | CF24: 0 | CG24: 811.5429191 | CH24: 236.11888 | CI24: 166.86055 | CJ24: 0 | CK24: 0 | CL24: 0 | CM24: 4192.702251 | CN24: 2044.37152 | CO24: 2.005468736 | CP24: 1988.90223 | CQ24: 1.951054983 | CR24: 0 | CS24: 2697.892941 | CT24: 3687.424343 | CU24: 51794.45351 | CW24: 0 | CX24: 0 | CY24: 0 | CZ24: 0 | DA24: 14063.702 | DB24: 17264.57475 | DC24: 198.424511 | DD24: 1490.788764 | DE24: 170.7622095 | DF24: 27.66230146 | DG24: 864.4469206 | DH24: 5575.94309 | DI24: 1454.677312 | DJ24: 977.656812 | DK24: 831.217614 | DL24: 8839.494828 | DM24: 1483.112958 | DN24: 890.6621621 | DO24: 46.16434 | DP24: 958.841992 | DQ24: 0 | DR24: 3378.781452 | DS24: 6905.8299 | DT24: 0 | DU24: 0 | DV24: 0 | DW24: 6905.8299 | DX24: 10284.61135 | DY24: 300.87001 | DZ24: 34.18290627 | EA24: 0 | EB24: 1532.57601 | EC24: 6.51435314 | ED24: 5018.348781 | EE24: 454.58666 | EF24: 244.414203 | EG24: 138.536269 | EH24: 5855.885913 | EI24: -1500.495957 | EJ24: 890.6621621 | EK24: 46.16434 | EL24: 239.710498 | EM24: 0 | EN24: -323.9589569 | EO24: 3243.168019 | EP24: 0 | EQ24: 0 | ER24: 0 | ES24: 3243.168019 | ET24: 2919.209062 | EU24: 300.87001 | EV24: 9.702559129 | EW24: 0 | EX24: 1532.57601 | EY24: 1.708456243 | EZ24: 4359.562801 | FA24: 4225.135101 | FB24: 297.92788 | FC24: 1712.25567 | FD24: 83.13159146 | FE24: 20.5969312 | FF24: 0.1757155869 | FH24: 0 | FI24: 14063.702 | FJ24: 0 | FK24: 6604.702 | FL24: 46.96275561 | FM24: 46.48107167 | FN24: 0 | FO24: 0 | FP24: 13012.456 | FQ24: 0 | FR24: 6048.329 | FS24: 12224.78461 | FT24: 1573.84476 | FU24: 1400.2864 | FV24: 8.903563056 | FW24: 8.267941242 | FX24: 8.730203057 | FY24: 8.730203057 | FZ24: 8.730203057 | GA24: 5 | GB24: 4.630259131 | GC24: 4.672311117 | GD24: 4.651285124 | GE24: 48 | GF24: 0.0432583941 | GG24: 3046.646751 | GH24: 17110.34875 | GI24: 158.5901621 | GJ24: 0.032 | GK24: 170.7622095 | GL24: 27.66230146 | GM24: 864.4469206 | GN24: 0 | GO24: 0.04466975961 | GP24: 463.59703 | GQ24: 0 | GR24: 1977.568521 | GS24: 0 | GT24: 2148.330731 | GU24: 8.730203057 | GV24: 0 | GW24: 25.47831 | GX24: 3133.37902 | GY24: 51.67522019 | GZ24: 13.21089892 | HA24: 19.49350667 | HC24: 1.16746012 | HD24: 52 | HE24: 58917.44092 | HF24: 40946.97168 | HG24: 19627.88962 | HH24: 0.09306551221 | HI24: 0.03090170715 | HJ24: 14936.54702 | HK24: 1810.730377 | HL24: 1705.649957 | HM24: 4.222738765 | HN24: 2.934756872 | HO24: 32.53794251 | HP24: 22.61351121 | HR24: 5575.94309 | HS24: 1818.34664 | HT24: 1629.42802 | HU24: 0 | HV24: 1142.77994 | HW24: 0 | HX24: 222.27598 | HY24: 20.30677 | HZ24: 2257.25563 | IA24: 83.72509 | IB24: 2294.24563 | IC24: 2804.88061 | ID24: 0 | IE24: 0 | IF24: 0 | IG24: 46.16434 | IH24: 2397.10498 | II24: 0 | IJ24: 38693.66174 | IK24: 14950 | IL24: 732.072 | IM24: 154.226 | IN24: 7491 | IO24: 2386.72222 | IP24: 23.8166 | IQ24: -32.30831 | IR24: 4575.77338 | IS24: 2996.21451 | IT24: 2996.21451 | IU24: 198.424511 | IV24: 0 | IW24: 55.46929 | IX24: 1.63543 | IY24: 69.25834 | IZ24: -142.98898 | JA24: 0 | JB24: 84.89513 | JC24: 1019.39835 | JD24: 300.87001 | JE24: 1068.97898 | JF24: 0 | JG24: 5.4082 | JH24: 52778.57671 | JI24: 59901.56412 | JJ24: 41931.09488 | JK24: 1601.60627 | JL24: 3315.5525 | JM24: 4.13732 | JN24: 17.95614 | JO24: 21.20138 | JP24: 1.5384 | JQ24: 746.6568 | JR24: 778.50159 | JS24: 102.58291 | JT24: 364.5487 | JU24: 82.49202 | JV24: 0.06575 | JW24: 2055.99838 | JX24: 96.18041 | JY24: -132.49914 | JZ24: -260.22942 | KA24: 364.5487 | KB24: 0 | KC24: 0 | KD24: 413.65715 | KE24: 0 | KF24: 0 | KG24: 52 | KH24: 0 | KI24: 236.11888 | KJ24: 0 | KK24: 111.56055 | KL24: 55.3 | KM24: 0 | KN24: 31763.26598 | KO24: 3135.01445 | KP24: 315.49277 | KQ24: 896.92268 | KR24: 433.32565 | KS24: 0 | KT24: 0 | KU24: 180.81888 | KV24: 0 | KW24: 0 | KX24: 0 | KY24: 0 | KZ24: 0 | LA24: 0 | LB24: 0 | LC24: 0 | LD24: 0 | LE24: 0 | LF24: 0 | LG24: 0 | LH24: 14020.90039 | LI24: 724.70339 | LJ24: 283.741 | LK24: 7056.77339 | LL24: 3986.59195 | LM24: 2412.74719 | LN24: 13108.32061 | LO24: 738.194 | LP24: 145.342 | LQ24: 3357.59658 | LR24: 1957.31018 | LS24: 25.5875 | LT24: 20.6528 | LU24: 18.6079 | LV24: 10.8069 | LW24: 28.4103 | LX24: 38.247 | LY24: 28.8104 | LZ24: 30.9984 | MA24: 28.8453 | MB24: FIFO | MC24: 0 | MD24: 300.87001 | ME24: 40.54992 | MF24: 32.80539 | MG24: 35.0202 | MH24: 16.226 | MI24: 17.31269 | NI24: AUDIT | OY24: AUDIT | TO24: 1.200019882 | TP24: 1142.77994 | TQ24: 0 | TR24: -31.84479 | TS24: 463.59703 | TT24: 1934.683087 | TU24: 3641.260003 | TV24: 1934.683087 | TW24: 6767.820437 | TX24: 21454.56922 | TY24: 13952.42382 | TZ24: 0.1465244711 | UA24: 6013.6975 | UB24: 7615.30377 | UC24: 4917.15877 | UD24: 21567.72759 | UE24: 0.09478845241 | UF24: 0.09457002154 | UG24: 0.05283479071 | UH24: 2.773257338 | UI24: 0.5031292877 | UJ24: 0.05283479071 | UK24: 1.794053712 | UV24: x | UX24: x | UZ24: 3.712219051 | VA24: 28.60417772 | VB24: 2.4014794 | VC24: 28.60417772 | VE24: 3253.924091 | VF24: 15.91753589 | VG24: 9.21639 | VH24: 17.95614 | VI24: 4.13732 | VJ24: 48038.30371 | VK24: 0.090875 | VL24: 0.08409449879 | VM24: 0.118256 | VN24: 0.05140124094 | VO24: 0.061682 | VP24: 4304.32829 | VQ24: 0.3605868039 | VR24: 21945.00155 | VS24: 0.5671471906 | VT24: 1826.679601 | VU24: 0 | VV24: 0 | XN24: 3.735361986 | XO24: 0 | XP24: 25.95516057 | XQ24: 0.06303590675 | XR24: 0.03719637135 | XS24: 0 | XT24: 0.5504150603 | XU24: 0.141028379 | XW24: 0 | XX24: 1014.97263 | XY24: 0.8 | XZ24: Dec-2007 | YA24: $61.0/$41.5 | YB24: 0.1512912003 | YC24: 1.24150317 | YG24: 24770.12172 | YH24: 17267.97632 | YI24: 0.1183909152 | YJ24: 0.3546756791 | YK24: 0.05283479071 | YL24: 2.240775701 | YM24: 2.999451271 | YQ24: 44.85662 | YR24: 0 | YS24: 0 | YT24: 83.58856 | YU24: 0 | YV24: -32.30831 | YW24: 874.16687 | YX24: 1019.82085 | YY24: 94.2727 | YZ24: -43.77768 | ZA24: 18.76331 | ZB24: 0 | ZC24: 0 | ZD24: 0 | ZE24: 0 | ZF24: 0 | ZG24: -443.61307 | ZH24: 0 | ZI24: 0 | ZJ24: 0 | ZK24: 0 | ZL24: 638.55258 | ZM24: 203.40328 | ZN24: 0 | ZO24: 0 | ZP24: 0 | ZQ24: 0 | ZR24: 0 | ZS24: 0 | ZT24: 12648.33704 | ZU24: 12949.20705 | ZV24: 2.3642 | ZW24: 2.3642 | ZX24: 2721.15552 | ZY24: 0 | ZZ24: 0 | AAA24: 0 | AAB24: 0 | AAC24: 443.61307 | AAD24: 0 | AAE24: 0 | AAF24: 0 | AAG24: 126.82059 | AAH24: 157.46178 | AAI24: 40.54992 | AAJ24: 0 | AAK24: 0 | AAL24: 102.85831 | AAM24: 0 | AAN24: 12642.92885 | AAP24: 235.5 | AAQ24: 38933.5 | AAR24: 41562 | AAS24: 37685 | AAT24: 7 | AAU24: 0 | AAV24: 5236.06365 | AAW24: 5475.2 | AAX24: 4893 | AAY24: 5210.08183 | AAZ24: 4 | ABA24: 0 | ABB24: 3371 | ABC24: 3564.03 | ABD24: 3095 | ABE24: 3364.278 | ABF24: 6 | ABG24: 0 | ABH24: 0 | ABI24: 0 | ABJ24: 0 | ABK24: 0 | ABL24: 0 | ABM24: 0 | ABN24: 0 | ABO24: 0 | ABP24: 0 | ABQ24: 0 | ABR24: 2564 | ABS24: 2910.9 | ABT24: 2519 | ABU24: 7 | ABV24: 0 | ABW24: -2100 | ABX24: -2376 | ABY24: -1901 | ABZ24: 5 | ACA24: 0 | ACB24: 0 | ACC24: 0 | ACD24: 0 | ACE24: 0 | ACF24: 0 | ACG24: 0 | ACH24: 0 | ACI24: 0 | ACJ24: 0 | ACK24: 0 | ACL24: 0 | ACM24: 0 | ACN24: 0 | ACO24: 0 | ACP24: 0 | ACQ24: 21.4 | ACR24: 24.47 | ACS24: 17.9 | ACT24: 21.428 | ACU24: 7 | ACV24: 0.849 | ACW24: 0.94 | ACX24: 0.68 | ACY24: 0.83108 | ACZ24: 6 | ADA24: 2.55 | ADB24: 2.93 | ADC24: 2.475 | ADD24: 2.64 | ADE24: 7 | ADG24: 2996.21451 | ADH24: 713.596425 | ADI24: 2282.618085 | ADJ24: 3690.35741 | ADK24: 2294.24563 | ADL24: 4635.22635 | ADM24: -944.86894 | ADN24: 0 | ADO24: 443.61307 | ADP24: 6102.51799 | ADQ24: 11019.67676 | ADR24: 0.07743424569 | ADS24: 6.510418494 | ADT24: 4.204586369 | ADU24: 0.5041293452 | ADV24: 0.3255789739 | ADW24: 0.3840628756 | ADX24: 0.248037132 | ADY24: 1142.77994 | ADZ24: 1522.93811 | AEA24: 2721.15552 | AEB24: 126.82059 | AEC24: 16264.71402 | AED24: 198.0117 | AEE24: 102.85831 | AEF24: 0 | AEG24: 0 | AEH24: 306.27821 | AEI24: 12642.92885 | AEJ24: -0.134688694 | AEK24: 52778.57671 | AEL24: 306.27821 | AEM24: 53084.85492 | AEN24: 48713.98453 | AEO24: 0.05819005708 | AEP24: 2.378994287 | AEQ24: 11347.55525 | AER24: 3.409867666 | AET24: 0 | AEU24: 0 | AEV24: 311.3437
A25: PSE:JFC0993 | B25: PSE:JFC | C25: 0 | D25: CapIQ Raw | E25: 0 | F25: 2016-02-24 | G25: Jollibee Foods Corp. | H25: 993 | I25: 2008 | J25: 993 | K25: 2008 | L25: 2008-12-31 | M25: Consumer Discretionary | N25: Consumer Services | O25: Hotels, Restaurants and Leisure | P25: Restaurants | Q25: Philippines | R25: PH | S25: PHP | T25: PSE | U25: JFC | V25: PHP | W25: 41.5 | X25: 0 | Z25: 0.04125463804 | AA25: 2.711681683 | AB25: 0.1118694463 | AC25: 0.0812460725 | AD25: 0.0934693243 | AE25: 0.06 | AF25: 2.671938365 | AG25: 2.765064636 | AH25: 19.87546189 | AI25: 21.66230147 | AJ25: 23.88443362 | AK25: 24.85520381 | AM25: 0.04125463804 | AN25: 2.265668268 | AO25: 0.0934693243 | AP25: 0.06188007707 | AQ25: 0.06 | AR25: 2.232461872 | AS25: 19.87546189 | AT25: 23.88443362 | AU25: 28003.61255 | AV25: 8631.156502 | AW25: 19372.45605 | AX25: 1810.730377 | AY25: 43248.26951 | BA25: 0 | BB25: 0 | BC25: 2194.577947 | BD25: 2194.577947 | BE25: 4684.273122 | BF25: 2194.577947 | BG25: 2727.46441 | BH25: 1353.91799 | BI25: 8081.100807 | BJ25: 4913.03734 | BK25: 8504.25205 | BL25: -423.1512425 | BM25: 840.2219714 | BN25: 0 | BO25: 0 | BP25: 2822.29749 | BQ25: 0 | BR25: 3316.125429 | BS25: 0 | BT25: 3239.368219 | BU25: 20419.69668 | BV25: 1158.194571 | BW25: 0 | BX25: 0 | BY25: 21577.89126 | BZ25: 24817.25947 | CA25: 8631.156502 | CB25: 16186.10297 | CC25: -2.742466772 | CD25: 0 | CE25: 1728.87977 | CF25: 0 | CG25: 918.3482009 | CH25: 228.49198 | CI25: 173.85436 | CJ25: 0 | CK25: 0 | CL25: 0 | CM25: 4234.242304 | CN25: 1810.730377 | CO25: 1.759475057 | CP25: 1705.649957 | CQ25: 1.657369089 | CR25: 478.3218791 | CS25: 5611.685072 | CT25: 4761.030333 | CU25: 43248.26951 | CW25: 0 | CX25: 0 | CY25: 0 | CZ25: 0 | DA25: 16157.92378 | DB25: 20419.69668 | DC25: 151.548688 | DD25: 1158.194571 | DE25: 130.0821439 | DF25: 21.4665441 | DG25: 670.8295032 | DH25: 6878.85107 | DI25: 1444.112368 | DJ25: 1636.478646 | DK25: 812.350794 | DL25: 10771.79288 | DM25: 2267.540828 | DN25: 840.2219714 | DO25: 76.75721 | DP25: 1128.918996 | DQ25: 0 | DR25: 4313.439005 | DS25: 8167.878674 | DT25: 0 | DU25: 0 | DV25: 0 | DW25: 8167.878674 | DX25: 12481.31768 | DY25: 2929.35539 | DZ25: 4.26077277 | EA25: 0 | EB25: 1533.1783 | EC25: 6.230170548 | ED25: 6190.965963 | EE25: 451.285115 | EF25: 409.1196615 | EG25: 135.391799 | EH25: 7186.762538 | EI25: -1317.489512 | EJ25: 840.2219714 | EK25: 76.75721 | EL25: 282.229749 | EM25: 0 | EN25: -118.2805811 | EO25: 3750.690989 | EP25: 0 | EQ25: 0 | ER25: 0 | ES25: 3750.690989 | ET25: 3632.410408 | EU25: 2929.35539 | EV25: 1.24000332 | EW25: 0 | EX25: 1533.1783 | EY25: 0.4585605067 | EZ25: 4408.096664 | FA25: 4081.423224 | FB25: -779.06221 | FC25: 445.1281173 | FD25: 126.5469641 | FE25: 3.51749345 | FF25: 6.580926425 | FH25: 0 | FI25: 16157.92378 | FJ25: 0 | FK25: 7419.72078 | FL25: 45.92001349 | FM25: 23.38783202 | FN25: 0 | FO25: 0 | FP25: 14063.702 | FQ25: 0 | FR25: 3289.195 | FS25: 13012.456 | FT25: 1579.55887 | FU25: 1573.84476 | FV25: 9.345892098 | FW25: 8.903563056 | FX25: 8.267941242 | FY25: 8.903563056 | FZ25: 8.903563056 | GA25: 5 | GB25: 4.815045699 | GC25: 6.821212685 | GD25: 5.818129192 | GE25: 49 | GF25: 0.04784266043 | GG25: 4077.489905 | GH25: 20235.41368 | GI25: 169.3069714 | GJ25: 0.032 | GK25: 130.0821439 | GL25: 21.4665441 | GM25: 670.8295032 | GN25: 0 | GO25: 0.04869419526 | GP25: 453.81374 | GQ25: 0 | GR25: 2293.429783 | GS25: 0 | GT25: 2423.511927 | GU25: 8.903563056 | GV25: 0 | GW25: 25.3631 | GX25: 3208.33593 | GY25: 0 | GZ25: 29.10013087 | HA25: 13.53808262 | HC25: 1.2807472 | HD25: 9.467 | HE25: 54269.95969 | HF25: 33998.38653 | HG25: 21454.56922 | HH25: 0.1567353889 | HI25: 0.07548931638 | HJ25: 15332.11078 | HK25: 2175.962992 | HL25: 1957.053242 | HM25: 3.352873745 | HN25: 2.100467703 | HO25: 24.94066301 | HP25: 15.62452425 | HR25: 6878.85107 | HS25: 1805.14046 | HT25: 2727.46441 | HU25: 0 | HV25: 517.09323 | HW25: 0 | HX25: 395.81765 | HY25: 441.00711 | HZ25: 3508.73155 | IA25: 82.48316 | IB25: 2491.70339 | IC25: 2503.81711 | ID25: 0 | IE25: 0 | IF25: 0 | IG25: 76.75721 | IH25: 2822.29749 | II25: 0 | IJ25: 43891.55895 | IK25: 17013.12178 | IL25: 670.915 | IM25: 184.283 | IN25: 8274.91878 | IO25: 2319.08786 | IP25: 27.6932 | IQ25: -3.79282 | IR25: 4462.89341 | IS25: 2734.01364 | IT25: 2734.01364 | IU25: 151.548688 | IV25: 0 | IW25: 105.08042 | IX25: 2.72925 | IY25: 54.63763 | IZ25: -208.46408 | JA25: 0 | JB25: 107.10044 | JC25: 1029.13103 | JD25: 2929.35539 | JE25: 1079.36456 | JF25: 0 | JG25: 3.33745 | JH25: 42394.27732 | JI25: 53415.9675 | JJ25: 33144.39434 | JK25: 3186.35308 | JL25: 0 | JM25: 3.0027 | JN25: 16.62989 | JO25: 19.35936 | JP25: 2.024 | JQ25: 889.24807 | JR25: 830.89804 | JS25: 385.02347 | JT25: 1212.78318 | JU25: 42.47122 | JV25: 0.65638 | JW25: 2921.79761 | JX25: 49.74732 | JY25: -2464.76363 | JZ25: -94.48469 | KA25: 1212.78318 | KB25: 0 | KC25: 0 | KD25: 1584.74681 | KE25: 0 | KF25: 32.033 | KG25: 41.5 | KH25: 50.52518 | KI25: 228.49198 | KJ25: 0 | KK25: 91.05436 | KL25: 82.8 | KM25: 0 | KN25: 36924.63852 | KO25: 3211.06519 | KP25: 338.96227 | KQ25: 985.57397 | KR25: 531.76023 | KS25: 0 | KT25: 0 | KU25: 145.69198 | KV25: 0 | KW25: 0 | KX25: 0 | KY25: 0 | KZ25: 0 | LA25: 0 | LB25: 0 | LC25: 0 | LD25: 0 | LE25: 0 | LF25: 0 | LG25: 0 | LH25: 14950 | LI25: 732.072 | LJ25: 154.226 | LK25: 4175.493 | LL25: 4575.77338 | LM25: 2996.21451 | LN25: 14020.90039 | LO25: 724.70339 | LP25: 283.741 | LQ25: 3986.59195 | LR25: 2412.74719 | LS25: 23.8166 | LT25: 25.5875 | LU25: 20.6528 | LV25: 18.6079 | LW25: 10.8069 | LX25: 28.4103 | LY25: 38.247 | LZ25: 28.8104 | MA25: 30.9984 | MB25: FIFO | MC25: 2403.8869 | MD25: 525.46849 | ME25: 37.76913 | MF25: 40.17384 | MG25: 2422.56568 | MH25: 19.92975 | MI25: 1.71985 | OQ25: AUDIT | TO25: 1.359650525 | TP25: 517.09323 | TQ25: 0 | TR25: 58.35003 | TS25: 453.81374 | TT25: 2194.577947 | TU25: 4684.273122 | TV25: 2194.577947 | TW25: 8081.100807 | TX25: 24817.25947 | TY25: 16186.10297 | TZ25: 0.1118694463 | UA25: 0 | UB25: 3186.35308 | UC25: 3186.35308 | UD25: 19372.45605 | UE25: 0.0934693243 | UF25: 0.1600925533 | UG25: 0.04125463804 | UH25: 2.711681683 | UI25: -0.1017850178 | UJ25: 0.04125463804 | UK25: 2.265668268 | UV25: x | UX25: x | UZ25: 2.671938365 | VA25: 19.87546189 | VB25: 2.232461872 | VC25: 19.87546189 | VE25: 3293.628591 | VF25: 13.13088842 | VG25: 8.95992 | VH25: 16.62989 | VI25: 3.0027 | VJ25: 36885.00932 | VK25: 0.069644 | VL25: 0.07504013687 | VM25: 0.101679 | VN25: 0.03886054627 | VO25: 0.052836 | VP25: 4708.49352 | VQ25: 0.3687748478 | VR25: 27125.70051 | VS25: 0.6180163375 | VT25: 3362.690251 | VU25: 0 | VV25: 0 | XN25: 3.582452736 | XO25: 0 | XP25: 37.89653316 | XQ25: 0.1827512105 | XR25: -0.2810415043 | XS25: 0 | XT25: -0.2230994767 | XU25: 0.1343345906 | XW25: 0 | XX25: 1021.54885 | XY25: 0.84 | XZ25: Dec-2008 | YA25: $52.5/$32.0 | YB25: 0.1790666053 | YC25: 0.8403668086 | YG25: 24817.25947 | YH25: 16186.10297 | YI25: 0.1118694463 | YJ25: -0.06265200541 | YK25: 0.04125463804 | YL25: 2.711681683 | YM25: 2.671938365 | YQ25: 36.58953 | YR25: 0 | YS25: 0 | YT25: 377.46071 | YU25: 0 | YV25: -3.79282 | YW25: 760.12442 | YX25: 1021.54885 | YY25: 88.43247 | YZ25: -34.80376 | ZA25: 1.00891 | ZB25: 0 | ZC25: 0 | ZD25: 0 | ZE25: 0 | ZF25: -400.52698 | ZG25: -400.52698 | ZH25: 0 | ZI25: 0 | ZJ25: 0 | ZK25: 0 | ZL25: 848.08873 | ZM25: 158.01 | ZN25: 0 | ZO25: 0 | ZP25: 0 | ZQ25: 0 | ZR25: 0 | ZS25: 0 | ZT25: 14139.83142 | ZU25: 17069.18681 | ZV25: 2.26821 | ZW25: 2.26821 | ZX25: 2421.33395 | ZY25: 0 | ZZ25: 0 | AAA25: 0 | AAB25: 0 | AAC25: 400.52698 | AAD25: 0 | AAE25: 0 | AAF25: 0 | AAG25: 72.3701 | AAH25: 407.19715 | AAI25: 37.76913 | AAJ25: 0 | AAK25: 0 | AAL25: 2484.38911 | AAM25: 0 | AAN25: 14136.49397 | AAP25: 235.5 | AAQ25: 43322 | AAR25: 45381.6 | AAS25: 40559.6528 | AAT25: 6 | AAU25: 0 | AAV25: 4817.12 | AAW25: 5979.174 | AAX25: 4267.339 | AAY25: 4990.862 | AAZ25: 7 | ABA25: 0 | ABB25: 2978 | ABC25: 3834.585 | ABD25: 2344.905 | ABE25: 3025.042 | ABF25: 6 | ABG25: 0 | ABH25: 0 | ABI25: 0 | ABJ25: 0 | ABK25: 0 | ABL25: 0 | ABM25: 0 | ABN25: 0 | ABO25: 0 | ABP25: 0 | ABQ25: 0 | ABR25: 2215 | ABS25: 2920.857 | ABT25: 1948.092 | ABU25: 7 | ABV25: 0 | ABW25: -4450 | ABX25: -5974 | ABY25: -4000 | ABZ25: 4 | ACA25: 0 | ACB25: 0 | ACC25: 0 | ACD25: 0 | ACE25: 0 | ACF25: 0 | ACG25: 0 | ACH25: 0 | ACI25: 0 | ACJ25: 0 | ACK25: 3870 | ACL25: 3870 | ACM25: 3870 | ACN25: 3870 | ACO25: 1 | ACP25: 0 | ACQ25: 16.6 | ACR25: 20.8836 | ACS25: 13.6741 | ACT25: 17.00667 | ACU25: 7 | ACV25: 0.821 | ACW25: 0.9547 | ACX25: 0.73 | ACY25: 0.83824 | ACZ25: 7 | ADA25: 2.18 | ADB25: 2.947 | ADC25: 1.972 | ADD25: 2.293 | ADE25: 7 | ADG25: 2734.01364 | ADH25: 757.1358654 | ADI25: 1976.877775 | ADJ25: 5369.42963 | ADK25: 2491.70339 | ADL25: 6082.9181 | ADM25: -713.48847 | ADN25: 0 | ADO25: 0 | ADP25: 7561.43031 | ADQ25: 10747.78339 | ADR25: 0.06229019213 | ADS25: 6.424432819 | ADT25: 4.032768054 | ADU25: 0.4001791547 | ADV25: 0.2512018969 | ADW25: 0.289356741 | ADX25: 0.1816360532 | ADY25: 517.09323 | ADZ25: 2062.17307 | AEA25: 2421.33395 | AEB25: 72.3701 | AEC25: 17469.71378 | AED25: 444.96628 | AEE25: 2484.38911 | AEF25: -400.52698 | AEG25: 0 | AEH25: 3333.21982 | AEI25: 14136.49397 | AEJ25: -0.2411049011 | AEK25: 42394.27732 | AEL25: 3333.21982 | AEM25: 45727.49714 | AEN25: 39765.69117 | AEO25: 0.04058131959 | AEP25: 2.51243721 | AEQ25: 14283.3607 | AER25: 3.072915392 | AET25: 0 | AEU25: 0 | AEV25: 5.86626
A26: PSE:JFC0994 | B26: PSE:JFC | C26: 0 | D26: CapIQ Raw | E26: 0 | F26: 2016-02-24 | G26: Jollibee Foods Corp. | H26: 994 | I26: 2009 | J26: 994 | K26: 2009 | L26: 2009-12-31 | M26: Consumer Discretionary | N26: Consumer Services | O26: Hotels, Restaurants and Leisure | P26: Restaurants | Q26: Philippines | R26: PH | S26: PHP | T26: PSE | U26: JFC | V26: PHP | W26: 55 | X26: 0 | Z26: 0.0453725532 | AA26: 2.833667263 | AB26: 0.1285707186 | AC26: 0.05515483373 | AD26: 0.07405927801 | AE26: 0.06 | AF26: 3.314513152 | AG26: 3.216367168 | AH26: 25.35170899 | AI26: 28.14816272 | AJ26: 25.77968909 | AK26: 29.04626917 | AM26: 0.0453725532 | AN26: 1.890304891 | AO26: 0.08576795921 | AP26: 0.2612828065 | AQ26: 0.06 | AR26: 2.211071322 | AS26: 25.35170899 | AT26: 25.77968909 | AU26: 35320.47504 | AV26: 9950.126813 | AW26: 25370.34822 | AX26: 2175.962992 | AY26: 56095.64939 | BA26: 0 | BB26: 64.14418657 | BC26: 2397.884666 | BD26: 2397.884666 | BE26: 6515.229547 | BF26: 2462.028853 | BG26: 1729.409425 | BH26: 1421.1351 | BI26: 7367.103928 | BJ26: 5418.76733 | BK26: 9275.11474 | BL26: -1908.010812 | BM26: 827.4310368 | BN26: 0 | BO26: 0 | BP26: 3079.63961 | BQ26: 0 | BR26: 2154.288324 | BS26: 0 | BT26: 1999.059834 | BU26: 23479.59322 | BV26: 1395.723808 | BW26: 0 | BX26: 0 | BY26: 24875.31703 | BZ26: 26874.37687 | CA26: 9950.126813 | CB26: 16924.25005 | CC26: 167.6963679 | CD26: 0 | CE26: 2085.94987 | CF26: 0 | CG26: 1047.467681 | CH26: 247.55386 | CI26: 189.0755 | CJ26: 0 | CK26: 0 | CL26: 0 | CM26: 4969.82393 | CN26: 2175.962992 | CO26: 2.107537304 | CP26: 1957.053242 | CQ26: 1.895511426 | CR26: 1031.330478 | CS26: 5917.798103 | CT26: 6670.458037 | CU26: 56095.64939 | CW26: 0 | CX26: 0 | CY26: 0 | CZ26: 0 | DA26: 18313.643 | DB26: 23479.59322 | DC26: 182.629169 | DD26: 1395.723808 | DE26: 156.7601419 | DF26: 25.86902706 | DG26: 808.4070956 | DH26: 8977.2584 | DI26: 1403.62444 | DJ26: 1037.645655 | DK26: 852.68106 | DL26: 12271.20956 | DM26: 2996.094815 | DN26: 827.4310368 | DO26: 155.22849 | DP26: 1231.855844 | DQ26: 0 | DR26: 5210.610186 | DS26: 9391.837289 | DT26: 0 | DU26: 0 | DV26: 0 | DW26: 9391.837289 | DX26: 14602.44747 | DY26: 2796.70185 | DZ26: 5.22131005 | EA26: 1.00000002e-05 | EB26: 1281.35868 | EC26: 9.213458971 | ED26: 8079.53256 | EE26: 438.6326375 | EF26: 259.4114137 | EG26: 142.11351 | EH26: 8919.690121 | EI26: -355.4246187 | EJ26: 827.4310368 | EK26: 155.22849 | EL26: 307.963961 | EM26: 0 | EN26: 935.198869 | EO26: 3844.01178 | EP26: 0 | EQ26: 0 | ER26: 0 | ES26: 3844.01178 | ET26: 4779.210649 | EU26: 2796.70185 | EV26: 1.708873847 | EW26: 1.00000002e-05 | EX26: 1281.35868 | EY26: 1.547192703 | EZ26: 5158.89943 | FA26: 4623.34976 | FB26: -581.73688 | FC26: 985.5828017 | FD26: 244.7787771 | FE26: 4.026422607 | FF26: 2.837612279 | FH26: 0 | FI26: 18313.643 | FJ26: 0 | FK26: 7495.643 | FL26: 40.92928425 | FM26: 45.92001349 | FN26: 0 | FO26: 0 | FP26: 16157.92378 | FQ26: 0 | FR26: 7419.72078 | FS26: 14063.702 | FT26: 1728.87977 | FU26: 1579.55887 | FV26: 8.779522108 | FW26: 9.345892098 | FX26: 8.903563056 | FY26: 8.903563056 | FZ26: 8.903563056 | GA26: 5 | GB26: 5.259398425 | GC26: 4.815045699 | GD26: 5.037222062 | GE26: 50 | GF26: 0.04664248923 | GG26: 4962.028223 | GH26: 23275.67122 | GI26: 176.3960368 | GJ26: 0.032 | GK26: 156.7601419 | GL26: 25.86902706 | GM26: 808.4070956 | GN26: 0 | GO26: 0.04014542092 | GP26: 240.69072 | GQ26: 0 | GR26: 2637.100796 | GS26: 0 | GT26: 2793.860938 | GU26: 8.903563056 | GV26: 0 | GW26: 24.96703 | GX26: 3652.90263 | GY26: 0 | GZ26: 59.18816148 | HA26: 22.88208722 | HC26: 1.224571889 | HD26: 20.92 | HE26: 56095.64939 | HF26: 39090.95935 | HG26: 24817.25947 | HH26: 0.08289059448 | HI26: 0.02773576075 | HJ26: 17673.6959 | HK26: 2212.696959 | HL26: 2019.495759 | HM26: 3.314513152 | HN26: 2.309760209 | HO26: 25.35170899 | HP26: 17.66665751 | HR26: 8977.2584 | HS26: 1754.53055 | HT26: 1729.409425 | HU26: 0 | HV26: 240.15873 | HW26: 0 | HX26: 509.91031 | HY26: 671.06606 | HZ26: 3720.41315 | IA26: 135.93426 | IB26: 4508.90154 | IC26: 1045.80005 | ID26: 0 | IE26: 0 | IF26: 0 | IG26: 155.22849 | IH26: 3079.63961 | II26: 67.1929 | IJ26: 47957.69332 | IK26: 19168.6 | IL26: 651.035 | IM26: 203.922 | IN26: 8350.6 | IO26: 2664.62311 | IP26: 27.0377 | IQ26: 229.83975 | IR26: 5473.68221 | IS26: 3387.73234 | IT26: 3387.73234 | IU26: 182.629169 | IV26: 0 | IW26: 218.90975 | IX26: 2.27664 | IY26: 58.47836 | IZ26: -163.68062 | JA26: 0 | JB26: 147.52218 | JC26: 1032.46713 | JD26: 2796.70186 | JE26: 1040.66795 | JF26: 0 | JG26: 3.21409 | JH26: 56845.09523 | JI26: 56845.09523 | JJ26: 39840.40519 | JK26: 4205.12372 | JL26: 4240.97445 | JM26: 7.40159 | JN26: 19.16343 | JO26: 22.51922 | JP26: 1.5454 | JQ26: 988.27952 | JR26: 932.5768 | JS26: 591.25239 | JT26: 843.90602 | JU26: 25.00429 | JV26: 0.51094 | JW26: 2575.11699 | JX26: 444.96628 | JY26: -305.02402 | JZ26: -1697.71582 | KA26: 843.90602 | KB26: 0 | KC26: 0 | KD26: 835.28282 | KE26: 0 | KF26: 34.08 | KG26: 55 | KH26: 49.29878 | KI26: 247.55386 | KJ26: 0 | KK26: 82.2755 | KL26: 106.8 | KM26: 0 | KN26: 39572.49731 | KO26: 3655.17926 | KP26: 559.40975 | KQ26: 1213.95456 | KR26: 973.26384 | KS26: 0 | KT26: 0 | KU26: 140.75386 | KV26: 0 | KW26: 0 | KX26: 0 | KY26: 0 | KZ26: 0 | LA26: 0 | LB26: 0 | LC26: 0 | LD26: 0 | LE26: 0 | LF26: 0 | LG26: 0 | LH26: 17013.12178 | LI26: 670.915 | LJ26: 184.283 | LK26: 8274.91878 | LL26: 4462.89341 | LM26: 2734.01364 | LN26: 14950 | LO26: 732.072 | LP26: 154.226 | LQ26: 4575.77338 | LR26: 2996.21451 | LS26: 27.6932 | LT26: 23.8166 | LU26: 25.5875 | LV26: 20.6528 | LW26: 18.6079 | LX26: 10.8069 | LY26: 28.4103 | LZ26: 38.247 | MA26: 28.8104 | MB26: FIFO | MC26: 2351.95983 | MD26: 444.74202 | ME26: 53.69747 | MF26: 2384.5577 | MG26: 33.76477 | MH26: 16.06075 | MI26: 3.59716 | NP26: AUDIT | OA26: AUDIT | OD26: AUDIT | OY26: AUDIT | TO26: 1.361548604 | TP26: 240.15873 | TQ26: 0 | TR26: 55.70272 | TS26: 240.69072 | TT26: 2397.884666 | TU26: 6515.229547 | TV26: 2462.028853 | TW26: 7367.103928 | TX26: 26874.37687 | TY26: 16924.25005 | TZ26: 0.1285707186 | UA26: 8251.99545 | UB26: 12457.11917 | UC26: 8446.09817 | UD26: 29381.36922 | UE26: 0.07405927801 | UF26: 0.0456037554 | UG26: 0.0453725532 | UH26: 2.833667263 | UI26: 0.5166569042 | UJ26: 0.0453725532 | UK26: 1.632248414 | UV26: x | UX26: x | UZ26: 3.314513152 | VA26: 25.35170899 | VB26: 1.909225161 | VC26: 25.35170899 | VE26: 3774.581599 | VF26: 14.86142183 | VG26: 10.22596 | VH26: 19.16343 | VI26: 3.60357 | VJ26: 51359.3862 | VK26: 0.074484 | VL26: 0.07870648769 | VM26: 0.114135 | VN26: 0.04080791018 | VO26: 0.055561 | VP26: 6777.01408 | VQ26: 0.3528995846 | VR26: 29727.49339 | VS26: 0.6198691249 | VT26: 2057.117391 | VU26: 0 | VV26: 0 | XN26: 3.404210972 | XO26: 0 | XP26: 34.36044655 | XQ26: 0.1498502444 | XR26: 3.50905166 | XS26: 0 | XT26: 0.2050857807 | XU26: 0.09264046362 | XW26: 0 | XX26: 1033.54719 | XY26: 0.85 | XZ26: Dec-2009 | YA26: $55.0/$38.5 | YB26: 0.1975094355 | YC26: 1.07093112 | YG26: 31115.35132 | YH26: 21165.2245 | YI26: 0.1028084059 | YJ26: 0.3076170675 | YK26: 0.0453725532 | YL26: 2.265872177 | YM26: 2.650368739 | YQ26: 49.32793 | YR26: 0 | YS26: 0 | YT26: 92.83631 | YU26: 0 | YV26: 195.31288 | YW26: 841.1082 | YX26: 1033.10152 | YY26: 97.06431 | YZ26: -40.46908 | ZA26: 1.88313 | ZB26: 0 | ZC26: 0 | ZD26: 0 | ZE26: 0 | ZF26: -174.19762 | ZG26: -174.19762 | ZH26: 0 | ZI26: 0 | ZJ26: 0 | ZK26: 0 | ZL26: 722.35614 | ZM26: 0 | ZN26: 2085.94987 | ZO26: 0 | ZP26: 0 | ZQ26: 0 | ZR26: 0 | ZS26: 0 | ZT26: 16285.20573 | ZU26: 19081.90758 | ZV26: 2.61007 | ZW26: 2.61007 | ZX26: 842.6729 | ZY26: 0 | ZZ26: 0 | AAA26: 0 | AAB26: 0 | AAC26: 174.19762 | AAD26: 0 | AAE26: 0 | AAF26: 0 | AAG26: 155.6055 | AAH26: 305.02402 | AAI26: 53.69747 | AAJ26: 0 | AAK26: 0 | AAL26: 2437.98037 | AAM26: 0 | AAN26: 16281.99164 | AAP26: 235.5 | AAQ26: 48136.65176 | AAR26: 49493.602 | AAS26: 45272.208 | AAT26: 5 | AAU26: 0 | AAV26: 5469.55679 | AAW26: 5639 | AAX26: 5395.305 | AAY26: 5493.35465 | AAZ26: 4 | ABA26: 0 | ABB26: 3552.98779 | ABC26: 3659 | ABD26: 3287.871 | ABE26: 3513.21165 | ABF26: 4 | ABG26: 0 | ABH26: 0 | ABI26: 0 | ABJ26: 0 | ABK26: 0 | ABL26: 0 | ABM26: 0 | ABN26: 0 | ABO26: 0 | ABP26: 0 | ABQ26: 0 | ABR26: 2601.50605 | ABS26: 2639 | ABT26: 2568 | ABU26: 5 | ABV26: 0 | ABW26: -4039 | ABX26: -4039 | ABY26: -4039 | ABZ26: 1 | ACA26: 0 | ACB26: 0 | ACC26: 0 | ACD26: 0 | ACE26: 0 | ACF26: 0 | ACG26: 0 | ACH26: 0 | ACI26: 0 | ACJ26: 0 | ACK26: 5882 | ACL26: 5882 | ACM26: 5882 | ACN26: 5882 | ACO26: 1 | ACP26: 0 | ACQ26: 16.4245 | ACR26: 17.49611 | ACS26: 11.31 | ACT26: 15.41378 | ACU26: 4 | ACV26: 0.83998 | ACW26: 0.85 | ACX26: 0.8 | ACY26: 0.83249 | ACZ26: 4 | ADA26: 2.54529 | ADB26: 2.607 | ADC26: 2.487 | ADD26: 2.53786 | ADE26: 5 | ADG26: 3387.73234 | ADH26: 915.9649069 | ADI26: 2471.767433 | ADJ26: 4664.916345 | ADK26: 4576.09444 | ADL26: 8432.44185 | ADM26: -3767.525505 | ADN26: 0 | ADO26: 0 | ADP26: 4583.074495 | ADQ26: 13029.17267 | ADR26: 0.07064001843 | ADS26: 7.897842537 | ADT26: 4.033964079 | ADU26: 0.5579037424 | ADV26: 0.2849592969 | ADW26: 0.4070594022 | ADX26: 0.2079128571 | ADY26: 240.15873 | ADZ26: 2238.53141 | AEA26: 842.6729 | AEB26: 155.6055 | AEC26: 23442.51155 | AED26: 358.72149 | AEE26: 2437.98037 | AEF26: -174.19762 | AEG26: 0 | AEH26: 2974.11357 | AEI26: 16281.99164 | AEJ26: -0.2041288408 | AEK26: 56845.09523 | AEL26: 2974.11357 | AEM26: 59819.2088 | AEN26: 50246.97812 | AEO26: 0.06215829174 | AEP26: 2.045757479 | AEQ26: 14996.41338 | AER26: 3.19794421 | AET26: 0 | AEU26: 0 | AEV26: 82.60987
A27: PSE:JFC0995 | B27: PSE:JFC | C27: 0 | D27: CapIQ Raw | E27: 0 | F27: 2016-02-24 | G27: Jollibee Foods Corp. | H27: 995 | I27: 2010 | J27: 995 | K27: 2010 | L27: 2010-12-31 | M27: Consumer Discretionary | N27: Consumer Services | O27: Hotels, Restaurants and Leisure | P27: Restaurants | Q27: Philippines | R27: PH | S27: PHP | T27: PSE | U27: JFC | V27: PHP | W27: 88.9 | X27: 0 | Z27: 0.04145822479 | AA27: 2.834274448 | AB27: 0.1175039872 | AC27: 0.05749264332 | AD27: 0.08249722685 | AE27: 0.06 | AF27: 5.101330028 | AG27: 6.225851015 | AH27: 41.06671252 | AI27: 44.93050125 | AJ27: 43.41410151 | AK27: 45.56095381 | AM27: 0.04145822479 | AN27: 1.989888069 | AO27: 0.08249722685 | AP27: 0.06297373672 | AQ27: 0.06 | AR27: 3.581542981 | AS27: 41.06671252 | AT27: 43.41410151 | AU27: 37544.73733 | AV27: 10723.26656 | AW27: 26821.47078 | AX27: 2212.696959 | AY27: 96062.2504 | BA27: 0 | BB27: 117.9541346 | BC27: 2668.586234 | BD27: 2668.586234 | BE27: 5383.948931 | BF27: 2786.540369 | BG27: 2134.467155 | BH27: 1429.8053 | BI27: 8188.524174 | BJ27: 5741.29754 | BK27: 9510.64949 | BL27: -1322.125316 | BM27: 834.7669187 | BN27: 0 | BO27: 0 | BP27: 3233.28305 | BQ27: 0 | BR27: 2925.026292 | BS27: 0 | BT27: 2745.924652 | BU27: 25233.41414 | BV27: 1507.274471 | BW27: 67.47777371 | BX27: 0 | BY27: 26808.16639 | BZ27: 29554.09104 | CA27: 10723.26656 | CB27: 18830.82449 | CC27: 365.071827 | CD27: 0 | CE27: 1978.00599 | CF27: 0 | CG27: 1063.171792 | CH27: 251.01787 | CI27: 186.39656 | CJ27: 0 | CK27: 0 | CL27: 0 | CM27: 5087.416283 | CN27: 2212.696959 | CO27: 2.128871679 | CP27: 2019.495759 | CQ27: 1.942989667 | CR27: 2445.312126 | CS27: 9053.223429 | CT27: 5563.050571 | CU27: 96062.2504 | CW27: 0 | CX27: 0 | CY27: 0 | CZ27: 0 | DA27: 19703.09457 | DB27: 25233.41414 | DC27: 189.141492 | DD27: 1507.274471 | DE27: 161.2766823 | DF27: 27.86480969 | DG27: 870.7753028 | DH27: 8170.4893 | DI27: 1470.16908 | DJ27: 1280.680293 | DK27: 857.88318 | DL27: 11779.22185 | DM27: 2268.572363 | DN27: 834.7669187 | DO27: 179.10164 | DP27: 1293.31322 | DQ27: 0 | DR27: 4575.754142 | DS27: 10093.36566 | DT27: 0 | DU27: 26.99110949 | DV27: 0 | DW27: 10120.35677 | DX27: 14696.11091 | DY27: 4234.74451 | DZ27: 3.47036542 | EA27: 0 | EB27: 1502.39149 | EC27: 6.963142742 | ED27: 7353.44037 | EE27: 459.4278375 | EF27: 320.1700733 | EG27: 142.98053 | EH27: 8276.018811 | EI27: -1234.630679 | EJ27: 834.7669187 | EK27: 179.10164 | EL27: 323.328305 | EM27: 0 | EN27: 102.5661844 | EO27: 4050.99821 | EP27: 0 | EQ27: 10.12166606 | ER27: 0 | ES27: 4061.119876 | ET27: 4163.68606 | EU27: 4234.74451 | EV27: 0.9832201329 | EW27: 0 | EX27: 1502.39149 | EY27: -0.04729689328 | EZ27: 5273.812843 | FA27: 4854.686363 | FB27: 1594.38313 | FC27: 702.7417891 | FD27: 221.0660097 | FE27: 3.178877612 | FF27: 6.026032002 | FH27: 0 | FI27: 19703.09457 | FJ27: 0 | FK27: 7907.88757 | FL27: 40.13525663 | FM27: 17.77167983 | FN27: 0 | FO27: 0 | FP27: 18313.643 | FQ27: 0 | FR27: 3254.642 | FS27: 16157.92378 | FT27: 2085.94987 | FU27: 1728.87977 | FV27: 9.961089435 | FW27: 8.779522108 | FX27: 9.345892098 | FY27: 9.345892098 | FZ27: 9.345892098 | GA27: 5 | GB27: 5.59489432 | GC27: 7.684970076 | GD27: 6.639932198 | GE27: 51 | GF27: 0.0436835999 | GG27: 5324.853575 | GH27: 25027.94814 | GI27: 177.6019187 | GJ27: 0.032 | GK27: 161.2766823 | GL27: 27.86480969 | GM27: 870.7753028 | GN27: 61.84507397 | GO27: 0.04454659119 | GP27: 163.69184 | GQ27: 0 | GR27: 2699.947087 | GS27: 13.49555474 | GT27: 2874.719324 | GU27: 9.325490028 | GV27: 0 | GW27: 24.41138 | GX27: 4171.18974 | GY27: 44.84921795 | GZ27: 44.92681385 | HA27: 20.86821023 | HC27: 1.445201959 | HD27: 52.512 | HE27: 104432.1138 | HF27: 57779.24694 | HG27: 26874.37687 | HH27: 0.09971260689 | HI27: 0.04221996357 | HJ27: 14778.72708 | HK27: 2339.175563 | HL27: 2047.832773 | HM27: 5.545806765 | HN27: 3.068333358 | HO27: 44.64483789 | HP27: 24.7006885 | HR27: 8170.4893 | HS27: 1837.71135 | HT27: 2134.467155 | HU27: 0 | HV27: 784.3605 | HW27: 0 | HX27: 518.97032 | HY27: 126.47448 | HZ27: 3601.60045 | IA27: 167.7515 | IB27: 4886.92987 | IC27: 1022.11917 | ID27: 0 | IE27: 0 | IF27: 0 | IG27: 179.10164 | IH27: 3233.28305 | II27: 123.05581 | IJ27: 53371.72468 | IK27: 20565.72557 | IL27: 657.165 | IM27: 205.466 | IN27: 8770.51857 | IO27: 3197.79398 | IP27: 23.2539 | IQ27: 475.68779 | IR27: 5577.34085 | IS27: 3599.33486 | IT27: 3599.33486 | IU27: 189.141492 | IV27: 61.84507397 | IW27: 193.2012 | IX27: 14.74202 | IY27: 64.62131 | IZ27: -163.08112 | JA27: -2.18141 | JB27: 65.65786 | JC27: 1039.37545 | JD27: 4234.74451 | JE27: 1338.69965 | JF27: 0 | JG27: 561.92455 | JH27: 92010.15299 | JI27: 100380.0164 | JJ27: 53727.14953 | JK27: 5986.39035 | JL27: 2004.25594 | JM27: 10.6466 | JN27: 26.37411 | JO27: 30.90441 | JP27: 1.1248 | JQ27: 973.39576 | JR27: 1068.5563 | JS27: 323.96594 | JT27: 1277.22525 | JU27: 28.86804 | JV27: 0.75928 | JW27: 2553.44915 | JX27: 358.72148 | JY27: -1842.03087 | JZ27: 206.76351 | KA27: 1277.22525 | KB27: 0 | KC27: 0 | KD27: 2714.81114 | KE27: 0 | KF27: 36.388 | KG27: 88.9 | KH27: 46.56673 | KI27: 251.01787 | KJ27: 0 | KK27: 91.49656 | KL27: 94.9 | KM27: 0 | KN27: 44542.50933 | KO27: 4185.93176 | KP27: 875.5198 | KQ27: 1364.74419 | KR27: 1201.05235 | KS27: 0 | KT27: 0 | KU27: 156.11787 | KV27: 61.84507397 | KW27: 0 | KX27: 0 | KY27: 0 | KZ27: 0 | LA27: 0 | LB27: 0 | LC27: 0 | LD27: 0 | LE27: 0 | LF27: 0 | LG27: 0 | LH27: 19168.6 | LI27: 651.035 | LJ27: 203.922 | LK27: 4109.599 | LL27: 5473.68221 | LM27: 3387.73234 | LN27: 17013.12178 | LO27: 670.915 | LP27: 184.283 | LQ27: 4462.89341 | LR27: 2734.01364 | LS27: 27.0377 | LT27: 27.6932 | LU27: 23.8166 | LV27: 25.5875 | LW27: 20.6528 | LX27: 18.6079 | LY27: 10.8069 | LZ27: 28.4103 | MA27: 38.247 | MB27: FIFO | MC27: 2309.79466 | MD27: 1924.94985 | ME27: 2341.12507 | MF27: 32.4377 | MG27: 15.63804 | MH27: 3.51284 | MI27: 0 | OA27: AUDIT | OD27: AUDIT | OY27: AUDIT | TO27: 1.583461597 | TP27: 784.3605 | TQ27: 0 | TR27: -95.16054 | TS27: 163.69184 | TT27: 2668.586234 | TU27: 5383.948931 | TV27: 2786.540369 | TW27: 8188.524174 | TX27: 29554.09104 | TY27: 18830.82449 | TZ27: 0.1175039872 | UA27: 0 | UB27: 7990.64629 | UC27: 7990.64629 | UD27: 26821.47078 | UE27: 0.08249722685 | UF27: 0.1126534072 | UG27: 0.04145822479 | UH27: 2.834274448 | UI27: -0.08712658787 | UJ27: 0.04145822479 | UK27: 1.989888069 | UV27: x | UX27: x | UZ27: 5.101330028 | VA27: 41.06671252 | VB27: 3.581542981 | VC27: 41.06671252 | VE27: 3997.809848 | VF27: 24.02871924 | VG27: 14.49342 | VH27: 26.37411 | VI27: 5.41674 | VJ27: 85458.26468 | VK27: 0.070882 | VL27: 0.07490501519 | VM27: 0.104499 | VN27: 0.03783830804 | VO27: 0.059915 | VP27: 5504.21594 | VQ27: 0.3528239831 | VR27: 33746.00685 | VS27: 0.6322824876 | VT27: 2679.714176 | VU27: 0 | VV27: 0 | XN27: 3.525201701 | XO27: 790.952661 | XP27: 35.40942656 | XQ27: 0.07469554116 | XR27: -0.3070661299 | XS27: 0 | XT27: 0.07992316358 | XU27: 0.1128918216 | XW27: 0 | XX27: 1034.98485 | XY27: 1 | XZ27: Dec-2010 | YA27: $100.0/$51.5 | YB27: 0.1976821754 | YC27: 1.601189866 | YG27: 31558.34698 | YH27: 20835.08043 | YI27: 0.106200548 | YJ27: -0.01559842076 | YK27: 0.04145822479 | YL27: 2.561627965 | YM27: 4.610601372 | YQ27: 82.4812 | YR27: 0 | YS27: 0 | YT27: 141.0292 | YU27: 0 | YV27: 369.68089 | YW27: 920.13937 | YX27: 1036.99148 | YY27: 135.96978 | YZ27: -71.41218 | ZA27: 0.06371 | ZB27: 0 | ZC27: 0 | ZD27: 0 | ZE27: 0 | ZF27: -212.08919 | ZG27: -212.08919 | ZH27: 0 | ZI27: 0 | ZJ27: 0 | ZK27: 0 | ZL27: 753.17583 | ZM27: 0 | ZN27: 1978.00599 | ZO27: 0 | ZP27: 0 | ZQ27: 0 | ZR27: 0 | ZS27: 0 | ZT27: 17681.44277 | ZU27: 21916.18728 | ZV27: 3.118 | ZW27: 3.118 | ZX27: 731.31186 | ZY27: 0 | ZZ27: 0 | AAA27: 0 | AAB27: 0 | AAC27: 212.08919 | AAD27: 0 | AAE27: 0 | AAF27: 0 | AAG27: 768.38124 | AAH27: 1842.03087 | AAI27: 2341.12507 | AAJ27: 0 | AAK27: 0 | AAL27: 51.58858 | AAM27: 0 | AAN27: 17119.51822 | AAP27: 235.5 | AAQ27: 54220.14787 | AAR27: 55558.009 | AAS27: 52784 | AAT27: 6 | AAU27: 0 | AAV27: 6321.11737 | AAW27: 6821 | AAX27: 6171.90544 | AAY27: 6392.04803 | AAZ27: 6 | ABA27: 0 | ABB27: 4059.08342 | ABC27: 4294 | ABD27: 3865.76253 | ABE27: 4066.78389 | ABF27: 6 | ABG27: 0 | ABH27: 0 | ABI27: 0 | ABJ27: 0 | ABK27: 0 | ABL27: 0 | ABM27: 0 | ABN27: 0 | ABO27: 0 | ABP27: 0 | ABQ27: 0 | ABR27: 3120.294 | ABS27: 3253 | ABT27: 3098 | ABU27: 5 | ABV27: 0 | ABW27: -4669.698 | ABX27: -7786 | ABY27: -4031 | ABZ27: 3 | ACA27: 0 | ACB27: 0 | ACC27: 0 | ACD27: 0 | ACE27: 0 | ACF27: 18.40713 | ACG27: 18.40713 | ACH27: 18.40713 | ACI27: 18.40713 | ACJ27: 1 | ACK27: 5290 | ACL27: 5363 | ACM27: 5217 | ACN27: 5290 | ACO27: 2 | ACP27: 0 | ACQ27: 18.21112 | ACR27: 18.8 | ACS27: 12.01693 | ACT27: 17.10653 | ACU27: 6 | ACV27: 1.47281 | ACW27: 1.97464 | ACX27: 0.97098 | ACY27: 1.47281 | ACZ27: 2 | ADA27: 3.02 | ADB27: 3.15 | ADC27: 2.87 | ADD27: 2.99275 | ADE27: 5 | ADG27: 3599.33486 | ADH27: 836.985729 | ADI27: 2762.349131 | ADJ27: 4617.623305 | ADK27: 5009.98568 | ADL27: 8779.33763 | ADM27: -4161.714325 | ADN27: 0 | ADO27: 0 | ADP27: 4608.804245 | ADQ27: 12599.45053 | ADR27: 0.0674389835 | ADS27: 11.61279999 | ADT27: 4.16500912 | ADU27: 0.783155427 | ADV27: 0.2808839813 | ADW27: 0.6010412472 | ADX27: 0.2155675012 | ADY27: 784.3605 | ADZ27: 2313.14368 | AEA27: 731.31186 | AEB27: 768.38124 | AEC27: 22128.29228 | AED27: 4183.15594 | AEE27: 51.58858 | AEF27: -212.08919 | AEG27: 0 | AEH27: 5008.75826 | AEI27: 17119.51822 | AEJ27: -0.2336652647 | AEK27: 92010.15299 | AEL27: 5008.75826 | AEM27: 97018.91125 | AEN27: 88410.20888 | AEO27: 0.05497542806 | AEP27: 2.411922439 | AEQ27: 14137.64599 | AER27: 3.775149324 | AET27: 0 | AEU27: 0 | AEV27: 27.88662
A28: PSE:JFC0996 | B28: PSE:JFC | C28: 0 | D28: CapIQ Raw | E28: 0 | F28: 2016-02-24 | G28: Jollibee Foods Corp. | H28: 996 | I28: 2011 | J28: 996 | K28: 2011 | L28: 2012-01-01 | M28: Consumer Discretionary | N28: Consumer Services | O28: Hotels, Restaurants and Leisure | P28: Restaurants | Q28: Philippines | R28: PH | S28: PHP | T28: PSE | U28: JFC | V28: PHP | W28: 90.45 | X28: 0 | Z28: 0.03739394598 | AA28: 2.440796603 | AB28: 0.09127101631 | AC28: 0.2609336516 | AD28: 0.05154927836 | AE28: 0.06 | AF28: 3.965150675 | AG28: 5.284430436 | AH28: 34.23050604 | AI28: 33.92652019 | AJ28: 43.44370026 | AK28: 45.77067311 | AM28: 0.03739394598 | AN28: 1.571416458 | AO28: 0.05876146216 | AP28: 0.4018863401 | AQ28: 0.06 | AR28: 2.552815349 | AS28: 34.23050604 | AT28: 43.44370026 | AU28: 52633.45441 | AV28: 12825.4667 | AW28: 39807.98771 | AX28: 2339.175563 | AY28: 101622.442 | BA28: 123.6901479 | BB28: 0 | BC28: 3127.746353 | BD28: 3127.746353 | BE28: 3527.566527 | BF28: 3127.746353 | BG28: 2860.10328 | BH28: 1530.2147 | BI28: 9906.681383 | BJ28: 104.76318 | BK28: 10425.07513 | BL28: -518.393747 | BM28: 864.0427922 | BN28: 0 | BO28: 0 | BP28: 6045.04886 | BQ28: 0 | BR28: 6514.535855 | BS28: 0 | BT28: 6390.697905 | BU28: 29501.37979 | BV28: 2419.756337 | BW28: 142.5306261 | BX28: 0 | BY28: 32063.66675 | BZ28: 38454.36466 | CA28: 12825.4667 | CB28: 25628.89796 | CC28: 348.4516788 | CD28: 0 | CE28: 2401.5939 | CF28: 0 | CG28: 1183.770741 | CH28: 121.2 | CI28: 121.2 | CJ28: 0 | CK28: 0 | CL28: 0 | CM28: 5750.336613 | CN28: 2339.175563 | CO28: 2.240813465 | CP28: 2047.832773 | CQ28: 1.96172161 | CR28: 2269.434571 | CS28: 10839.47081 | CT28: 3651.404477 | CU28: 101622.442 | CW28: 0 | CX28: 0 | CY28: 0 | CZ28: 0 | DA28: 22663.147 | DB28: 29501.37979 | DC28: 301.131943 | DD28: 2419.756337 | DE28: 256.4194663 | DF28: 44.71247666 | DG28: 1397.264896 | DH28: 6655.31288 | DI28: 1910.89364 | DJ28: 1716.061968 | DK28: 918.12882 | DL28: 11200.39731 | DM28: 775.322178 | DN28: 864.0427922 | DO28: 123.83795 | DP28: 2418.019544 | DQ28: 0 | DR28: 4181.222464 | DS28: 11800.55191 | DT28: 0 | DU28: 57.01225045 | DV28: 0 | DW28: 11857.56417 | DX28: 16038.78663 | DY28: 5620.04402 | DZ28: 2.853854271 | EA28: 0 | EB28: 1552.72732 | EC28: 6.709962835 | ED28: 5989.781592 | EE28: 597.1542625 | EF28: 429.015492 | EG28: 153.02147 | EH28: 7168.972816 | EI28: -3256.102314 | EJ28: 864.0427922 | EK28: 123.83795 | EL28: 604.504886 | EM28: 0 | EN28: -1663.716685 | EO28: 4805.139721 | EP28: 0 | EQ28: 21.37959392 | ER28: 0 | ES28: 4826.519315 | ET28: 3162.80263 | EU28: 5620.04402 | EV28: 0.5627718607 | EW28: 0 | EX28: 1552.72732 | EY28: -1.582532463 | EZ28: 5871.536613 | FA28: 5288.943643 | FB28: -384.25988 | FC28: 681.1609133 | FD28: 336.0552667 | FE28: 2.026931225 | FF28: 8.250684839 | FH28: 0 | FI28: 22663.147 | FJ28: 0 | FK28: 9228.347 | FL28: 40.71961851 | FM28: 40.13525663 | FN28: 0 | FO28: 0 | FP28: 19703.09457 | FQ28: 0 | FR28: 7907.88757 | FS28: 18313.643 | FT28: 1978.00599 | FU28: 2085.94987 | FV28: 9.436710761 | FW28: 9.961089435 | FX28: 8.779522108 | FY28: 9.436710761 | FZ28: 9.436710761 | GA28: 5 | GB28: 5.59411814 | GC28: 5.64926268 | GD28: 5.62169041 | GE28: 52 | GF28: 0.04395283868 | GG28: 6165.433787 | GH28: 28828.58079 | GI28: 184.7887922 | GJ28: 0.032 | GK28: 256.4194663 | GL28: 44.71247666 | GM28: 1397.264896 | GN28: 132.768224 | GO28: 0.03611276333 | GP28: 0 | GQ28: 0 | GR28: 3126.235458 | GS28: 28.50612522 | GT28: 3411.161049 | GU28: 9.399634402 | GV28: 0 | GW28: 23.1127 | GX28: 4372.82119 | GY28: 0 | GZ28: 73.59377144 | HA28: 18.4368954 | HC28: 1.394783817 | HD28: 50.231 | HE28: 109848.9448 | HF28: 78322.295 | HG28: 29554.09104 | HH28: 0.3011519996 | HI28: 0.04021834808 | HJ28: 17737.14038 | HK28: 2968.768324 | HL28: 2762.755624 | HM28: 4.286136101 | HN28: 3.056014938 | HO28: 37.00152144 | HP28: 26.3820839 | HR28: 6655.31288 | HS28: 2388.61705 | HT28: 2860.10328 | HU28: 0 | HV28: 1354.9147 | HW28: 0 | HX28: 0 | HY28: 175.3 | HZ28: 10165.59487 | IA28: 154.71708 | IB28: 0 | IC28: 259.48026 | ID28: 0 | IE28: 0 | IF28: 0 | IG28: 123.83795 | IH28: 6045.04886 | II28: 0 | IJ28: 62554.92706 | IK28: 24015.2 | IL28: 679.254 | IM28: 672.799 | IN28: 10580.4 | IO28: 3262.64422 | IP28: 25.2602 | IQ28: 466.21971 | IR28: 6341.01731 | IS28: 3939.42341 | IT28: 3939.42341 | IU28: 301.131943 | IV28: 70.92315 | IW28: 291.34279 | IX28: 22.13598 | IY28: 0 | IZ28: -179.76324 | JA28: 0.29971 | JB28: 73.59618 | JC28: 1043.89571 | JD28: 5620.04402 | JE28: 1552.72732 | JF28: 0 | JG28: 703.69125 | JH28: 93730.68445 | JI28: 101957.1872 | JJ28: 70430.53742 | JK28: 6530.38481 | JL28: 7648.70494 | JM28: 8.26883 | JN28: 26.20435 | JO28: 30.4046 | JP28: 1.1829 | JQ28: 1110.17697 | JR28: 1206.99421 | JS28: 485.77573 | JT28: 1196.62168 | JU28: 21.7648 | JV28: 0.8863 | JW28: 3700.44926 | JX28: 2721.85665 | JY28: -4031.02035 | JZ28: 287.24139 | KA28: 1196.62168 | KB28: 0 | KC28: 0 | KD28: 637.66243 | KE28: 0 | KF28: 40.219 | KG28: 90.45 | KH28: 45.17996 | KI28: 121.2 | KJ28: 0 | KK28: 0 | KL28: 121.2 | KM28: 0 | KN28: 52731.425 | KO28: 4394.95718 | KP28: 1008.43672 | KQ28: 0 | KR28: 0 | KS28: 0 | KT28: 0 | KU28: 0 | KV28: 70.92315 | KW28: 61.84507397 | KX28: 0 | KY28: 0 | KZ28: 0 | LA28: 0 | LB28: 0 | LC28: 0 | LD28: 0 | LE28: 0 | LF28: 0 | LG28: 0 | LH28: 20565.72557 | LI28: 657.165 | LJ28: 205.466 | LK28: 8770.51857 | LL28: 5577.34085 | LM28: 3599.33486 | LN28: 19168.6 | LO28: 651.035 | LP28: 203.922 | LQ28: 5473.68221 | LR28: 3387.73234 | LS28: 23.2539 | LT28: 27.0377 | LU28: 27.6932 | LV28: 23.8166 | LW28: 25.5875 | LX28: 20.6528 | LY28: 18.6079 | LZ28: 10.8069 | MA28: 28.4103 | MB28: FIFO | MC28: 0 | MD28: 5620.04402 | ME28: 782.93433 | MF28: 3023.33331 | MG28: 764.54799 | MH28: 0 | MI28: 149.22838 | NM28: AUDIT | OY28: AUDIT | TO28: 1.59321809 | TP28: 1354.9147 | TQ28: 0 | TR28: -96.81724 | TS28: 0 | TT28: 3127.746353 | TU28: 3527.566527 | TV28: 3127.746353 | TW28: 9906.681383 | TX28: 38454.36466 | TY28: 25628.89796 | TZ28: 0.09127101631 | UA28: 13218.18202 | UB28: 19748.56683 | UC28: 14179.08975 | UD28: 45377.46479 | UE28: 0.05154927836 | UF28: 0.3610077442 | UG28: 0.03739394598 | UH28: 2.440796603 | UI28: 0.6918335749 | UJ28: 0.03739394598 | UK28: 1.378546099 | UV28: x | UX28: x | UZ28: 3.965150675 | VA28: 34.23050604 | VB28: 2.239491398 | VC28: 34.23050604 | VE28: 4247.587863 | VF28: 23.9247416 | VG28: 15.87393 | VH28: 26.20435 | VI28: 4.9926 | VJ28: 93094.44279 | VK28: 0.068112 | VL28: 0.06790173152 | VM28: 0.101367 | VN28: 0.03273655441 | VO28: 0.052156 | VP28: 5880.56075 | VQ28: 0.4097023074 | VR28: 38550.52247 | VS28: 0.616266764 | VT28: 8900.273615 | VU28: 0 | VV28: 0 | XN28: 3.534011376 | XO28: 438.8876185 | XP28: 25.85174635 | XQ28: 0.1691394442 | XR28: -0.6079087659 | XS28: 1.112260353 | XT28: 0.6053853391 | XU28: 0.1720611885 | XW28: 0 | XX28: 1036.2707 | XY28: 1.07 | XZ28: Jan-2012 | YA28: $98.6/$67.6 | YB28: 0.6445078695 | YC28: 1.488203203 | YG28: 46103.0696 | YH28: 33277.6029 | YI28: 0.07029279034 | YJ28: 0.5971909979 | YK28: 0.03739394598 | YL28: 1.879790658 | YM28: 3.053778914 | YQ28: 84.89191 | YR28: 0 | YS28: 0 | YT28: 100.89362 | YU28: 0 | YV28: 466.21971 | YW28: 636.38959 | YX28: 1038.36406 | YY28: 0 | YZ28: 0 | ZA28: 0 | ZB28: 0 | ZC28: 0 | ZD28: 0 | ZE28: 0 | ZF28: 0 | ZG28: 0 | ZH28: 0 | ZI28: 0 | ZJ28: 0 | ZK28: 0 | ZL28: 2434.76004 | ZM28: 0 | ZN28: 2401.5939 | ZO28: 0 | ZP28: 0 | ZQ28: 0 | ZR28: 0 | ZS28: 0 | ZT28: 20414.87033 | ZU28: 26034.91435 | ZV28: 3.16841 | ZW28: 3.16841 | ZX28: 104.76318 | ZY28: 0 | ZZ28: 0 | AAA28: 0 | AAB28: 0 | AAC28: 9.37902 | AAD28: 0 | AAE28: 0 | AAF28: 0 | AAG28: 528.42666 | AAH28: 900 | AAI28: 777.30199 | AAJ28: 0 | AAK28: 0 | AAL28: 3942.74203 | AAM28: 0 | AAN28: 19711.17908 | AAP28: 235.5 | AAQ28: 61080 | AAR28: 65437.74492 | AAS28: 60490.7818 | AAT28: 5 | AAU28: 0 | AAV28: 6550.21208 | AAW28: 7082.147 | AAX28: 6271.96972 | AAY28: 6613.63522 | AAZ28: 4 | ABA28: 0 | ABB28: 4262 | ABC28: 4590.53923 | ABD28: 3979.3433 | ABE28: 4283.47425 | ABF28: 5 | ABG28: 0 | ABH28: -319 | ABI28: -319 | ABJ28: -319 | ABK28: -319 | ABL28: 1 | ABM28: 30 | ABN28: 30 | ABO28: 30 | ABP28: 30 | ABQ28: 1 | ABR28: 3573.964 | ABS28: 3598.928 | ABT28: 3549 | ABU28: 3 | ABV28: 0 | ABW28: -4065.80975 | ABX28: -5021 | ABY28: -3110.6195 | ABZ28: 2 | ACA28: 2547 | ACB28: 2547 | ACC28: 2547 | ACD28: 2547 | ACE28: 1 | ACF28: 18.6 | ACG28: 18.6 | ACH28: 18.6 | ACI28: 18.6 | ACJ28: 1 | ACK28: 9133 | ACL28: 9133 | ACM28: 9133 | ACN28: 9133 | ACO28: 1 | ACP28: 0 | ACQ28: 18.1 | ACR28: 20.0269 | ACS28: 16.70166 | ACT28: 18.08291 | ACU28: 5 | ACV28: 1.0153 | ACW28: 1.16488 | ACX28: 0.96084 | ACY28: 1.0552 | ACZ28: 5 | ADA28: 3.22325 | ADB28: 3.53781 | ADC28: 2.89357 | ADD28: 3.21947 | ADE28: 4 | ADG28: 3939.42341 | ADH28: 995.1062322 | ADI28: 2944.317178 | ADJ28: 5424.02033 | ADK28: 0 | ADL28: 10320.31195 | ADM28: -4896.29162 | ADN28: 0 | ADO28: 9.37902 | ADP28: 5674.72936 | ADQ28: 19853.81911 | ADR28: 0.06297542968 | ADS28: 12.16603737 | ADT28: 3.855077023 | ADU28: 0.7661614308 | ADV28: 0.2427751319 | ADW28: 0.572627521 | ADX28: 0.1814496481 | ADY28: 1354.9147 | ADZ28: 5408.65927 | AEA28: 104.76318 | AEB28: 528.42666 | AEC28: 31847.01634 | AED28: 1677.30199 | AEE28: 3942.74203 | AEF28: 0 | AEG28: 0 | AEH28: 6323.73527 | AEI28: 19711.17908 | AEJ28: -0.2417684581 | AEK28: 93730.68445 | AEL28: 6323.73527 | AEM28: 100054.4197 | AEN28: 88697.61208 | AEO28: 0.03330290942 | AEP28: 1.964231952 | AEQ28: 17667.92659 | AER28: 3.540592426 | AET28: 0 | AEU28: 0 | AEV28: 68.7
A29: PSE:JFC0997 | B29: PSE:JFC | C29: 0 | D29: CapIQ Raw | E29: 0 | F29: 2016-02-24 | G29: Jollibee Foods Corp. | H29: 997 | I29: 2012 | J29: 997 | K29: 2012 | L29: 2012-12-31 | M29: Consumer Discretionary | N29: Consumer Services | O29: Hotels, Restaurants and Leisure | P29: Restaurants | Q29: Philippines | R29: PH | S29: PHP | T29: PSE | U29: JFC | V29: PHP | W29: 102 | X29: 0 | Z29: 0.04177889765 | AA29: 2.837034015 | AB29: 0.1185281537 | AC29: -0.005824680292 | AD29: 0.06514216374 | AE29: 0.06 | AF29: 4.455363002 | AG29: 5.350319553 | AH29: 26.48279357 | AI29: 26.21118777 | AJ29: 37.58906945 | AK29: 38.52694361 | AM29: 0.04177889765 | AN29: 1.798780284 | AO29: 0.07515105738 | AP29: 0.01502736194 | AQ29: 0.06 | AR29: 2.824858315 | AS29: 26.50299025 | AT29: 37.58906945 | AU29: 53424.39638 | AV29: 13920.3837 | AW29: 39504.01268 | AX29: 2968.768324 | AY29: 111593.2387 | BA29: 123.6901479 | BB29: 72.71102461 | BC29: 3552.951957 | BD29: 3552.951957 | BE29: 5222.928598 | BF29: 3625.662982 | BG29: 2629.743481 | BH29: 1690.22084 | BI29: 10400.2528 | BJ29: 7252.37008 | BK29: 12048.39271 | BL29: -1648.139907 | BM29: 829.1879963 | BN29: 0 | BO29: 0 | BP29: 4985.32285 | BQ29: 0 | BR29: 5428.953699 | BS29: 0 | BT29: 4166.370939 | BU29: 31413.97268 | BV29: 3185.160378 | BW29: 201.8261847 | BX29: 0 | BY29: 34800.95925 | BZ29: 38967.33019 | CA29: 13920.3837 | CB29: 25046.94649 | CC29: 255.9242848 | CD29: 0 | CE29: 2705.62636 | CF29: 0 | CG29: 1198.422139 | CH29: 382.57221 | CI29: 280.2 | CJ29: 0 | CK29: 0 | CL29: 0 | CM29: 6675.573482 | CN29: 2968.768324 | CO29: 2.798420888 | CP29: 2762.755624 | CQ29: 2.604229163 | CR29: 1452.188753 | CS29: 10905.11895 | CT29: 6485.511358 | CU29: 111593.2387 | CW29: 0 | CX29: 0 | CY29: 0 | CZ29: 0 | DA29: 24838.56 | DB29: 31413.97268 | DC29: 396.384346 | DD29: 3185.160378 | DE29: 337.5286642 | DF29: 58.85568181 | DG29: 1839.240057 | DH29: 8848.59158 | DI29: 1963.7004 | DJ29: 1577.846089 | DK29: 1014.132504 | DL29: 13404.27057 | DM29: 1355.877863 | DN29: 829.1879963 | DO29: 1262.58276 | DP29: 1994.12914 | DQ29: 0 | DR29: 5441.777759 | DS29: 12565.58907 | DT29: 0 | DU29: 80.73047386 | DV29: 0 | DW29: 12646.31955 | DX29: 18088.09731 | DY29: 5427.45642 | DZ29: 3.33270245 | EA29: 22.78282 | EB29: 2186.23372 | EC29: 5.791073832 | ED29: 7963.732422 | EE29: 613.656375 | EF29: 394.4615222 | EG29: 169.022084 | EH29: 9140.872403 | EI29: -2907.520307 | EJ29: 829.1879963 | EK29: 1262.58276 | EL29: 498.532285 | EM29: 0 | EN29: -317.2172655 | EO29: 5111.947628 | EP29: 0 | EQ29: 30.2739277 | ER29: 0 | ES29: 5142.221556 | ET29: 4825.00429 | EU29: 5427.45642 | EV29: 0.888999177 | EW29: 22.78282 | EX29: 2186.23372 | EY29: -0.2755662051 | EZ29: 6955.773482 | FA29: 6131.884212 | FB29: -1294.32096 | FC29: 1195.014824 | FD29: 264.8683818 | FE29: 4.511730752 | FF29: 4.560813082 | FH29: 0 | FI29: 24838.56 | FJ29: 0 | FK29: 10104.852 | FL29: 40.68211684 | FM29: 15.84751226 | FN29: 0 | FO29: 0 | FP29: 22663.147 | FQ29: 0 | FR29: 3591.545 | FS29: 19703.09457 | FT29: 2401.5939 | FU29: 1978.00599 | FV29: 9.180336342 | FW29: 9.436710761 | FX29: 9.961089435 | FY29: 9.436710761 | FZ29: 9.436710761 | GA29: 5 | GB29: 5.597657064 | GC29: 7.941226866 | GD29: 6.769441965 | GE29: 53 | GF29: 0.04110576622 | GG29: 6282.658684 | GH29: 31121.21868 | GI29: 167.3939963 | GJ29: 0.032 | GK29: 337.5286642 | GL29: 58.85568181 | GM29: 1839.240057 | GN29: 189.531056 | GO29: 0.03192602167 | GP29: 521.5786 | GQ29: 0 | GR29: 3328.911257 | GS29: 40.36523693 | GT29: 3706.805158 | GU29: 9.388397221 | GV29: 0 | GW29: 22.63648 | GX29: 4876.78835 | GY29: 0 | GZ29: 48.71808931 | HA29: 22.75424639 | HC29: 1.255431173 | HD29: 26.597 | HE29: 129237.2139 | HF29: 97588.05465 | HG29: 38454.36466 | HH29: 0.01333959185 | HI29: 0.01916427215 | HJ29: 19894.23792 | HK29: 4213.801629 | HL29: 4060.881599 | HM29: 5.159799177 | HN29: 3.896205659 | HO29: 30.66998051 | HP29: 23.15914778 | HR29: 8848.59158 | HS29: 2454.6255 | HT29: 2629.743481 | HU29: 0 | HV29: 662.84258 | HW29: 0 | HX29: 751.36466 | HY29: 276.0136 | HZ29: 4717.06444 | IA29: 78.95819 | IB29: 5986.48401 | IC29: 1344.84426 | ID29: 0 | IE29: 0 | IF29: 0 | IG29: 1262.58276 | IH29: 4985.32285 | II29: 75.88126 | IJ29: 71059.03915 | IK29: 25793.108 | IL29: 661.794 | IM29: 292.754 | IN29: 11059.4 | IO29: 3727.0843 | IP29: 23.6481 | IQ29: 335.19046 | IR29: 7101.32151 | IS29: 4395.69515 | IT29: 4395.69515 | IU29: 396.384346 | IV29: 56.762832 | IW29: 206.0127 | IX29: -15.08865 | IY29: 102.37221 | IZ29: -270.11416 | JA29: -50.95438 | JB29: 76.98437 | JC29: 1060.8727 | JD29: 5450.23924 | JE29: 1641.8723 | JF29: 0 | JG29: 733.10098 | JH29: 106440.5301 | JI29: 124084.5053 | JJ29: 92435.34608 | JK29: 6822.52634 | JL29: 7634.53985 | JM29: 11.09439 | JN29: 26.47587 | JO29: 29.44366 | JP29: 1.2156 | JQ29: 1149.70405 | JR29: 1363.04532 | JS29: 610.548 | JT29: 1230.06423 | JU29: 34.47031 | JV29: 0.7675 | JW29: 3755.90688 | JX29: 1628.86389 | JY29: -1700.8 | JZ29: -1452.34228 | KA29: 1230.06423 | KB29: 0 | KC29: 0 | KD29: 127.58522 | KE29: 0 | KF29: 75.403 | KG29: 102 | KH29: 54.59972 | KI29: 382.57221 | KJ29: 0 | KK29: 0 | KL29: 280.2 | KM29: 0 | KN29: 59837.8311 | KO29: 4861.6997 | KP29: 1248.76382 | KQ29: 1879.41745 | KR29: 1357.83885 | KS29: 0 | KT29: 0 | KU29: 102.37221 | KV29: 56.762832 | KW29: 70.92315 | KX29: 61.84507397 | KY29: 0 | KZ29: 0 | LA29: 0 | LB29: 0 | LC29: 0 | LD29: 0 | LE29: 0 | LF29: 0 | LG29: 0 | LH29: 24015.2 | LI29: 679.254 | LJ29: 672.799 | LK29: 4943.598 | LL29: 6341.01731 | LM29: 3939.42341 | LN29: 20565.72557 | LO29: 657.165 | LP29: 205.466 | LQ29: 5577.34085 | LR29: 3599.33486 | LS29: 25.2602 | LT29: 23.2539 | LU29: 27.0377 | LV29: 27.6932 | LW29: 23.8166 | LX29: 25.5875 | LY29: 20.6528 | LZ29: 18.6079 | MA29: 10.8069 | MB29: FIFO | MC29: 0 | MD29: 5427.45642 | ME29: 4559.9302 | MF29: 362.83712 | MG29: 362.83712 | MH29: 70.92599 | MI29: 70.92599 | NM29: AUDIT | NO29: AUDIT | QD29: AUDIT | TO29: 1.349045956 | TP29: 662.84258 | TQ29: 0 | TR29: -213.34127 | TS29: 521.5786 | TT29: 3552.951957 | TU29: 5222.928598 | TV29: 3625.662982 | TW29: 10400.2528 | TX29: 38967.33019 | TY29: 25046.94649 | TZ29: 0.1185281537 | UA29: 13704.21022 | UB29: 20526.73656 | UC29: 14457.06619 | UD29: 45573.68305 | UE29: 0.06514216374 | UF29: -0.02270684715 | UG29: 0.04177889765 | UH29: 2.837034015 | UI29: 0.004324134509 | UJ29: 0.04177889765 | UK29: 1.559212124 | UV29: x | UX29: x | UZ29: 4.455363002 | VA29: 26.48279357 | VB29: 2.448633317 | VC29: 26.48279357 | VE29: 4790.47536 | VF29: 23.2948153 | VG29: 14.92369 | VH29: 26.47587 | VI29: 4.95731 | VJ29: 104176.0873 | VK29: 0.06841 | VL29: 0.0674154255 | VM29: 0.099935 | VN29: 0.0388797211 | VO29: 0.05245 | VP29: 8237.96393 | VQ29: 0.3524807932 | VR29: 41768.13071 | VS29: 0.5877947578 | VT29: 512.9655296 | VU29: 0 | VV29: 0 | XN29: 3.770033581 | XO29: 352.0803768 | XP29: 22.30940698 | XQ29: 0.06483062522 | XR29: 2.179320577 | XS29: 0.4160197717 | XT29: 0.31631451 | XU29: 0.1359463193 | XW29: 0 | XX29: 1043.53461 | XY29: 1.24 | XZ29: Dec-2012 | YA29: $120.0/$89.0 | YB29: 0.2759558239 | YC29: 1.46604976 | YG29: 46601.87004 | YH29: 32681.48634 | YI29: 0.09083945243 | YJ29: -0.01791344648 | YK29: 0.04177889765 | YL29: 2.174290313 | YM29: 3.414570486 | YQ29: 97.73442 | YR29: 0 | YS29: 0 | YT29: 66.71264 | YU29: 0 | YV29: 335.19046 | YW29: 685.82245 | YX29: 1045.96966 | YY29: 0 | YZ29: 0 | ZA29: 0 | ZB29: 0 | ZC29: 0 | ZD29: 0 | ZE29: 0 | ZF29: -521.5786 | ZG29: -521.5786 | ZH29: 0 | ZI29: 0 | ZJ29: 0 | ZK29: 0 | ZL29: 2391.67168 | ZM29: 0 | ZN29: 0 | ZO29: 0 | ZP29: 0 | ZQ29: 0 | ZR29: 0 | ZS29: 0 | ZT29: 21731.30303 | ZU29: 27181.54226 | ZV29: 3.57712 | ZW29: 3.57712 | ZX29: 1190.00482 | ZY29: 0 | ZZ29: 0 | AAA29: 0 | AAB29: 0 | AAC29: 521.5786 | AAD29: 0 | AAE29: 0 | AAF29: 0 | AAG29: 374.74483 | AAH29: 0 | AAI29: 4572.83993 | AAJ29: 0 | AAK29: 0 | AAL29: 877.39931 | AAM29: 0 | AAN29: 20998.20205 | AAP29: 235.5 | AAQ29: 71428.1678 | AAR29: 72780.93342 | AAS29: 69832 | AAT29: 7 | AAU29: 0 | AAV29: 7216.03564 | AAW29: 7958.01 | AAX29: 6803.19494 | AAY29: 7250.96719 | AAZ29: 6 | ABA29: 0 | ABB29: 4495.94344 | ABC29: 4943.665 | ABD29: 4338 | ABE29: 4540.27068 | ABF29: 6 | ABG29: 0 | ABH29: -227.5 | ABI29: -343 | ABJ29: -112 | ABK29: -227.5 | ABL29: 2 | ABM29: 30 | ABN29: 30 | ABO29: 30 | ABP29: 30 | ABQ29: 1 | ABR29: 3715.2 | ABS29: 4068.941 | ABT29: 3395.33257 | ABU29: 4 | ABV29: Includes Amortization of Intangible Assets and Stock Based Compensation Expense | ABW29: -5622.62671 | ABX29: -5775 | ABY29: -2828.46814 | ABZ29: 4 | ACA29: 2455 | ACB29: 2853 | ACC29: 2334 | ACD29: 2547.33333 | ACE29: 3 | ACF29: 17.73975 | ACG29: 19.75453 | ACH29: 17 | ACI29: 18.16476 | ACJ29: 3 | ACK29: 6441 | ACL29: 7783 | ACM29: 6106 | ACN29: 6776.66667 | ACO29: 3 | ACP29: 0 | ACQ29: 18 | ACR29: 20.16751 | ACS29: 16.2 | ACT29: 18.05766 | ACU29: 7 | ACV29: 1.22759 | ACW29: 2.2 | ACX29: 0.79848 | ACY29: 1.50774 | ACZ29: 8 | ADA29: 3.48 | ADB29: 3.51417 | ADC29: 3.30967 | ADD29: 3.45157 | ADE29: 5 | ADG29: 4395.69515 | ADH29: 1039.498385 | ADI29: 3356.196765 | ADJ29: 6111.747241 | ADK29: 6062.36527 | ADL29: 10858.3879 | ADM29: -4746.640659 | ADN29: 0 | ADO29: 0 | ADP29: 6312.759341 | ADQ29: 20769.82553 | ADR29: 0.0618597606 | ADS29: 11.85553387 | ADT29: 3.498407874 | ADU29: 0.7333804869 | ADV29: 0.2164106736 | ADW29: 0.559949936 | ADX29: 0.1652336611 | ADY29: 662.84258 | ADZ29: 4299.5004 | AEA29: 1190.00482 | AEB29: 374.74483 | AEC29: 33322.54335 | AED29: 4572.83993 | AEE29: 877.39931 | AEF29: -521.5786 | AEG29: 0 | AEH29: 6704.91882 | AEI29: 20998.20205 | AEJ29: -0.1679733075 | AEK29: 106440.5301 | AEL29: 6704.91882 | AEM29: 113145.4489 | AEN29: 101278.5536 | AEO29: 0.03783863721 | AEP29: 2.132461451 | AEQ29: 18865.47716 | AER29: 3.766617645 | AET29: 0 | AEU29: 0 | AEV29: 301.59734
A30: PSE:JFC0998 | B30: PSE:JFC | C30: 0 | D30: CapIQ Raw | E30: 0 | F30: 2016-02-24 | G30: Jollibee Foods Corp. | H30: 998 | I30: 2013 | J30: 998 | K30: 2013 | L30: 2013-12-31 | M30: Consumer Discretionary | N30: Consumer Services | O30: Hotels, Restaurants and Leisure | P30: Restaurants | Q30: Philippines | R30: PH | S30: PHP | T30: PSE | U30: JFC | V30: PHP | W30: 173.1 | X30: 0 | Z30: 0.05248699903 | AA30: 3.049046758 | AB30: 0.1600353142 | AC30: 0.03019634754 | AD30: 0.08749530621 | AE30: 0.06 | AF30: 7.223851422 | AG30: 9.962023632 | AH30: 45.08087975 | AI30: 44.79288262 | AJ30: 45.13910855 | AK30: 44.85786834 | AM30: 0.05244700116 | AN30: 1.947575188 | AO30: 0.1021444781 | AP30: 0.04445088745 | AQ30: 0.06 | AR30: 4.614226972 | AS30: 45.14298258 | AT30: 45.17353318 | AU30: 55799.15821 | AV30: 14577.24816 | AW30: 41221.91004 | AX30: 4210.590489 | AY30: 190207.2492 | BA30: 141.8463 | BB30: 45.12913462 | BC30: 4014.13846 | BD30: 4014.13846 | BE30: 5844.609475 | BF30: 4059.267595 | BG30: 3560.432132 | BH30: 2066.01685 | BI30: 12539.61375 | BJ30: 8350.95305 | BK30: 14512.33743 | BL30: -1972.723683 | BM30: 814.6449063 | BN30: 0 | BO30: 0 | BP30: 5622.65522 | BQ30: 0 | BR30: 5608.300993 | BS30: 0 | BT30: 4464.576443 | BU30: 33556.01149 | BV30: 2604.517451 | BW30: 282.5914623 | BX30: 0 | BY30: 36443.1204 | BZ30: 40907.69685 | CA30: 14577.24816 | CB30: 26330.44868 | CC30: 100.5722883 | CD30: 0 | CE30: 3072.45582 | CF30: 3.21114 | CG30: 1559.991197 | CH30: 363.09077 | CI30: 319.7028 | CJ30: 0 | CK30: 0 | CL30: 0 | CM30: 8209.231046 | CN30: 4213.801629 | CO30: 3.932617731 | CP30: 4060.881599 | CQ30: 3.789901943 | CR30: 4879.788502 | CS30: 14221.02978 | CT30: 6988.334025 | CU30: 190207.2492 | CW30: 0 | CX30: 0 | CY30: 0 | CZ30: 0 | DA30: 26993.843 | DB30: 33556.01149 | DC30: 331.899441 | DD30: 2604.517451 | DE30: 283.7061034 | DF30: 48.19333765 | DG30: 1506.041802 | DH30: 9903.87707 | DI30: 2283.117736 | DJ30: 2136.259279 | DK30: 1239.61011 | DL30: 15562.8642 | DM30: 1050.526765 | DN30: 814.6449063 | DO30: 1143.72455 | DP30: 2249.062088 | DQ30: 0 | DR30: 5257.95831 | DS30: 13422.4046 | DT30: 0 | DU30: 113.0365849 | DV30: 0 | DW30: 13535.44118 | DX30: 18793.39949 | DY30: 5169.24574 | DZ30: 3.635617348 | EA30: 4.5326 | EB30: 2665.95374 | EC30: 5.110423915 | ED30: 8913.489363 | EE30: 713.4742925 | EF30: 534.0648198 | EG30: 206.601685 | EH30: 10367.63016 | EI30: -4144.70727 | EJ30: 814.6449063 | EK30: 1143.72455 | EL30: 562.265522 | EM30: 0 | EN30: -1624.072291 | EO30: 5249.944982 | EP30: 0 | EQ30: 42.38871935 | ER30: 0 | ES30: 5292.333701 | ET30: 3668.26141 | EU30: 5169.24574 | EV30: 0.7096318485 | EW30: 4.5326 | EX30: 2665.95374 | EY30: -0.5630196457 | EZ30: 8528.933846 | FA30: 7461.888296 | FB30: 14.80741 | FC30: 2333.753969 | FD30: 201.1133676 | FE30: 11.6041713 | FF30: 2.216933922 | FH30: 0 | FI30: 26993.843 | FJ30: 0 | FK30: 10558.182 | FL30: 39.11329706 | FM30: 18.05824895 | FN30: 0 | FO30: 0 | FP30: 24838.56 | FQ30: 0 | FR30: 4485.409 | FS30: 22663.147 | FT30: 2705.62636 | FU30: 2401.5939 | FV30: 8.785754648 | FW30: 9.180336342 | FX30: 9.436710761 | FY30: 9.180336342 | FZ30: 9.180336342 | GA30: 5 | GB30: 5.589604117 | GC30: 7.522528351 | GD30: 6.556066234 | GE30: 54 | GF30: 0.03664019961 | GG30: 6014.16449 | GH30: 33008.00749 | GI30: 148.4309063 | GJ30: 0.032 | GK30: 283.7061034 | GL30: 48.19333765 | GM30: 1506.041802 | GN30: 269.121726 | GO30: 0.02471982553 | GP30: 932.84111 | GQ30: 0 | GR30: 3655.205021 | GS30: 56.51829247 | GT30: 3995.429417 | GU30: 9.121202405 | GV30: 0 | GW30: 23.99387 | GX30: 6194.26746 | GY30: 0 | GZ30: 37.28312667 | HA30: 18.82393991 | HC30: 1.108632964 | HD30: 90.196 | HE30: 202311.9659 | HF30: 116781.0633 | HG30: 38967.33019 | HH30: 0.04979470369 | HI30: 0.01959835615 | HJ30: 18285.69163 | HK30: 4219.244395 | HL30: 4066.773145 | HM30: 7.683574571 | HN30: 4.435209772 | HO30: 47.94980974 | HP30: 27.67819363 | HR30: 9903.87707 | HS30: 2853.89717 | HT30: 3560.432132 | HU30: 0 | HV30: 953.08784 | HW30: 0 | HX30: 909.4676 | HY30: 203.46141 | HZ30: 6006.63984 | IA30: 154.74454 | IB30: 7256.55937 | IC30: 1249.13822 | ID30: 0 | IE30: 0 | IF30: 0 | IG30: 1143.72455 | IH30: 5622.65522 | II30: 47.62904 | IJ30: 80282.7692 | IK30: 28208.061 | IL30: 666.214 | IM30: 548.004 | IN30: 11772.4 | IO30: 4671.55939 | IP30: 24.3808 | IQ30: 132.99835 | IR30: 8993.46336 | IS30: 5921.00754 | IT30: 5917.7964 | IU30: 331.899441 | IV30: 79.59067 | IW30: 152.92003 | IX30: 51.24713 | IY30: 43.38797 | IZ30: -245.57381 | JA30: -115.56061 | JB30: 150.41874 | JC30: 1071.50044 | JD30: 5173.77834 | JE30: 1728.58003 | JF30: 0 | JG30: 812.0613 | JH30: 182162.4921 | JI30: 194267.2089 | JJ30: 108736.3063 | JK30: 6822.52634 | JL30: 8068.93502 | JM30: 24.14426 | JN30: 35.31285 | JO30: 42.15504 | JP30: 1.9757 | JQ30: 1522.70807 | JR30: 1446.92172 | JS30: 1142.8319 | JT30: 1132.70491 | JU30: 58.81155 | JV30: 0.57528 | JW30: 3907.87589 | JX30: 3149.35177 | JY30: -2582.58 | JZ30: -758.25513 | KA30: 1132.70491 | KB30: 0 | KC30: 0 | KD30: 0 | KE30: 0 | KF30: 82.904 | KG30: 173.1 | KH30: 54.10205 | KI30: 363.09077 | KJ30: 0 | KK30: 162.9028 | KL30: 156.8 | KM30: 0 | KN30: 67021.3605 | KO30: 6245.5146 | KP30: 1191.05206 | KQ30: 2405.92044 | KR30: 1473.07933 | KS30: 0 | KT30: 0 | KU30: 206.29077 | KV30: 79.59067 | KW30: 56.762832 | KX30: 70.92315 | KY30: 61.84507397 | KZ30: 0 | LA30: 0 | LB30: 0 | LC30: 0 | LD30: 0 | LE30: 0 | LF30: 0 | LG30: 0 | LH30: 25793.108 | LI30: 661.794 | LJ30: 292.754 | LK30: 5439.957 | LL30: 7101.32151 | LM30: 4395.69515 | LN30: 24015.2 | LO30: 679.254 | LP30: 672.799 | LQ30: 6341.01731 | LR30: 3939.42341 | LS30: 23.6481 | LT30: 25.2602 | LU30: 23.2539 | LV30: 27.0377 | LW30: 27.6932 | LX30: 23.8166 | LY30: 25.5875 | LZ30: 20.6528 | MA30: 18.6079 | MB30: NA | MC30: 0 | MD30: 5169.24574 | ME30: 1106.27524 | MF30: 648.72694 | MG30: 648.72694 | MH30: 648.72694 | MI30: 648.72694 | TO30: 1.150380595 | TP30: 953.08784 | TQ30: 0 | TR30: 75.78635 | TS30: 932.84111 | TT30: 4014.13846 | TU30: 5844.609475 | TV30: 4059.267595 | TW30: 12539.61375 | TX30: 40907.69685 | TY30: 26330.44868 | TZ30: 0.1600353142 | UA30: 15007.34136 | UB30: 21829.8677 | UC30: 14891.46136 | UD30: 48160.31638 | UE30: 0.08749530621 | UF30: 0.05124385914 | UG30: 0.05248699903 | UH30: 3.049046758 | UI30: 0.05675717135 | UJ30: 0.05248699903 | UK30: 1.66699007 | UV30: x | UX30: x | UZ30: 7.223851422 | VA30: 45.08087975 | VB30: 3.949460125 | VC30: 45.08087975 | VE30: 6356.542027 | VF30: 29.92306955 | VG30: 21.72045 | VH30: 35.31285 | VI30: 8.31046 | VJ30: 177252.7604 | VK30: 0.084256 | VL30: 0.07917691542 | VM30: 0.112022 | VN30: 0.05058223128 | VO30: 0.058188 | VP30: 9219.5002 | VQ30: 0.3279713561 | VR30: 46026.63411 | VS30: 0.5733065086 | VT30: 1940.36666 | VU30: 0 | VV30: 0 | XN30: 3.987500582 | XO30: 284.0948149 | XP30: 30.82443129 | XQ30: 0.06818745363 | XR30: 0.1969394559 | XS30: 0.4001724446 | XT30: -0.1822962921 | XU30: 0.1298037542 | XW30: 0 | XX30: 1052.35409 | XY30: 3.42 | XZ30: Dec-2013 | YA30: $186.2/$102.0 | YB30: 0.5114360942 | YC30: 2.207855586 | YG30: 48976.63187 | YH30: 34399.3837 | YI30: 0.1224030792 | YJ30: 0.05256484818 | YK30: 0.05244700116 | YL30: 2.333843242 | YM30: 5.529379561 | YQ30: 169.41017 | YR30: 0 | YS30: 0 | YT30: 102.06607 | YU30: 0 | YV30: 132.99835 | YW30: 756.19686 | YX30: 1052.68631 | YY30: 0 | YZ30: 0 | ZA30: 0 | ZB30: 0 | ZC30: 0 | ZD30: 0 | ZE30: 0 | ZF30: -932.84111 | ZG30: -932.84111 | ZH30: 0 | ZI30: 0 | ZJ30: 0 | ZK30: 0 | ZL30: 2500.83122 | ZM30: 0 | ZN30: 0 | ZO30: 0 | ZP30: 0 | ZQ30: 0 | ZR30: 0 | ZS30: 0 | ZT30: 23360.94008 | ZU30: 28534.71842 | ZV30: 4.45036 | ZW30: 4.45036 | ZX30: 1046.76465 | ZY30: 0 | ZZ30: 0 | AAA30: 0 | AAB30: 0 | AAC30: 932.84111 | AAD30: 0 | AAE30: 0 | AAF30: 0 | AAG30: 318.15712 | AAH30: 0 | AAI30: 1106.27524 | AAJ30: 0 | AAK30: 0 | AAL30: 4067.5031 | AAM30: 0 | AAN30: 22548.87878 | AAP30: 235.5 | AAQ30: 80661.30575 | AAR30: 82089 | AAS30: 79447 | AAT30: 7 | AAU30: 0 | AAV30: 8704.83757 | AAW30: 9405 | AAX30: 8512.72 | AAY30: 8825.76397 | AAZ30: 6 | ABA30: 0 | ABB30: 5753.48094 | ABC30: 6251 | ABD30: 5155.97598 | ABE30: 5721.62447 | ABF30: 7 | ABG30: 0 | ABH30: -256 | ABI30: -256 | ABJ30: -256 | ABK30: -256 | ABL30: 1 | ABM30: 25.3 | ABN30: 27.6 | ABO30: 23.6 | ABP30: 25.45 | ABQ30: 4 | ABR30: 4713 | ABS30: 4923 | ABT30: 4131.56198 | ABU30: 5 | ABV30: Includes Amortization of Intangible Assets and Stock Based Compensation Expense | ABW30: -4617.88864 | ABX30: -5168 | ABY30: -3298.9265 | ABZ30: 4 | ACA30: 2989 | ACB30: 3451 | ACC30: 2905 | ACD30: 3114.6 | ACE30: 5 | ACF30: 18.8918 | ACG30: 19.1 | ACH30: 18.32319 | ACI30: 18.8017 | ACJ30: 4 | ACK30: 7644 | ACL30: 8072 | ACM30: 5560 | ACN30: 7221.6 | ACO30: 5 | ACP30: 0 | ACQ30: 20.85565 | ACR30: 22.6 | ACS30: 18.5 | ACT30: 20.74703 | ACU30: 6 | ACV30: 2.5775 | ACW30: 3.57 | ACX30: 1.33262 | ACY30: 2.51627 | ACZ30: 6 | ADA30: 4.337 | ADB30: 4.72 | ADC30: 4.08427 | ADD30: 4.3783 | ADE30: 7 | ADG30: 5917.7964 | ADH30: 1442.806105 | ADI30: 4474.990295 | ADJ30: 7527.258312 | ADK30: 7304.18841 | ADL30: 13465.57279 | ADM30: -5938.314478 | ADN30: 0 | ADO30: 0 | ADP30: 5834.085522 | ADQ30: 20725.54688 | ADR30: 0.07375190964 | ADS30: 13.21870331 | ADT30: 3.869480597 | ADU30: 0.9749046121 | ADV30: 0.2853815833 | ADW30: 0.7372150685 | ADX30: 0.2158032703 | ADY30: 953.08784 | ADZ30: 4866.45836 | AEA30: 1046.76465 | AEB30: 318.15712 | AEC30: 35255.38976 | AED30: 1106.27524 | AEE30: 4067.5031 | AEF30: -932.84111 | AEG30: 0 | AEH30: 6918.68075 | AEI30: 22548.87878 | AEJ30: -0.2044073395 | AEK30: 182162.4921 | AEL30: 6918.68075 | AEM30: 189081.1729 | AEN30: 175307.5268 | AEO30: 0.04418497439 | AEP30: 2.277177185 | AEQ30: 20363.9284 | AER30: 3.942400877 | AET30: 0 | AEU30: 0 | AEV30: 210.9078
A31: PSE:JFC0999 | B31: PSE:JFC | C31: 0 | D31: CapIQ Raw | E31: 0 | F31: 2016-02-24 | G31: Jollibee Foods Corp. | H31: 999 | I31: 2014 | J31: 999 | K31: 2014 | L31: 2014-12-31 | M31: Consumer Discretionary | N31: Consumer Services | O31: Hotels, Restaurants and Leisure | P31: Restaurants | Q31: Philippines | R31: PH | S31: PHP | T31: PSE | U31: JFC | V31: PHP | W31: 215 | X31: 0 | Z31: 0.04653343749 | AA31: 2.539800335 | AB31: 0.1181856401 | AC31: 0.2314533578 | AD31: 0.0935836881 | AE31: 0.06 | AF31: 6.7985508 | AG31: 10.26182429 | AH31: 57.52433878 | AI31: 44.00830953 | AJ31: 57.52433878 | AK31: 56.39849647 | AM31: 0.04646942182 | AN31: 2.011106274 | AO31: 0.09345494578 | AP31: 0.09519602599 | AQ31: 0.06 | AR31: 5.383339779 | AS31: 44.69944072 | AT31: 57.60358356 | AU31: 61111.01632 | AV31: 16025.76182 | AW31: 45085.2545 | AX31: 4213.440015 | AY31: 242709.244 | BA31: 155.2192389 | BB31: 64.48692911 | BC31: 4533.56191 | BD31: 4533.56191 | BE31: 3020.424431 | BF31: 4598.048839 | BG31: 5971.813994 | BH31: 3160.842016 | BI31: 21000.96703 | BJ31: 9752.70499 | BK31: 16510.40032 | BL31: 4490.566709 | BM31: 914.8734023 | BN31: 0 | BO31: 0 | BP31: 6256.06136 | BQ31: 0 | BR31: 12754.0508 | BS31: 0 | BT31: 11661.50147 | BU31: 36550.43258 | BV31: 3151.006408 | BW31: 362.965572 | BX31: 0 | BY31: 40064.40456 | BZ31: 51725.90603 | CA31: 16025.76182 | CB31: 35700.14421 | CC31: 330.8521179 | CD31: 0 | CE31: 3149.11657 | CF31: 5.80438 | CG31: 1621.303124 | CH31: 599.98373 | CI31: 550.39658 | CJ31: 0 | CK31: 0 | CL31: 0 | CM31: 8616.45455 | CN31: 4219.244395 | CO31: 3.898953368 | CP31: 4066.773145 | CQ31: 3.758056507 | CR31: 5233.707421 | CS31: 16574.63201 | CT31: 4112.973761 | CU31: 242709.244 | CW31: 0 | CX31: 0 | CY31: 0 | CZ31: 0 | DA31: 29176.92225 | DB31: 36550.43258 | DC31: 401.539742 | DD31: 3151.006408 | DE31: 343.2343098 | DF31: 58.30543223 | DG31: 1822.044757 | DH31: 7618.47327 | DI31: 5816.209744 | DJ31: 3583.088396 | DK31: 1896.50521 | DL31: 18914.27662 | DM31: 2403.8763 | DN31: 914.8734023 | DO31: 1092.54933 | DP31: 2502.424544 | DQ31: 0 | DR31: 6913.723576 | DS31: 14620.17303 | DT31: 0 | DU31: 145.1862288 | DV31: 0 | DW31: 14765.35926 | DX31: 21679.08284 | DY31: 7008.53297 | DZ31: 3.093241186 | EA31: 1.54547 | EB31: 2510.34686 | EC31: 5.84403299 | ED31: 6856.625943 | EE31: 1817.565545 | EF31: 895.7720991 | EG31: 316.0842016 | EH31: 9886.047789 | EI31: -6624.352531 | EJ31: 914.8734023 | EK31: 1092.54933 | EL31: 625.606136 | EM31: 0 | EN31: -3991.323663 | EO31: 5682.133466 | EP31: 0 | EQ31: 54.4448358 | ER31: 0 | ES31: 5736.578301 | ET31: 1745.254638 | EU31: 7008.53297 | EV31: 0.2490185387 | EW31: 1.54547 | EX31: 2510.34686 | EY31: -2.096633902 | EZ31: 9166.85113 | FA31: 8320.38992 | FB31: 4348.59162 | FC31: 2362.521905 | FD31: 210.7766822 | FE31: 11.20864927 | FF31: 2.967201458 | FH31: 0 | FI31: 29176.92225 | FJ31: 0 | FK31: 11339.61725 | FL31: 38.865022 | FM31: 17.67217065 | FN31: 0 | FO31: 0 | FP31: 26993.843 | FQ31: 0 | FR31: 4770.398 | FS31: 24838.56 | FT31: 3072.45582 | FU31: 2705.62636 | FV31: 9.265113439 | FW31: 8.785754648 | FX31: 9.180336342 | FY31: 9.180336342 | FZ31: 9.180336342 | GA31: 5 | GB31: 5.612396603 | GC31: 7.557971637 | GD31: 6.58518412 | GE31: 55 | GF31: 0.03439668901 | GG31: 6098.273326 | GH31: 35275.19558 | GI31: 158.1606558 | GJ31: 0.032 | GK31: 343.2343098 | GL31: 58.30543223 | GM31: 1822.044757 | GN31: 346.7313454 | GO31: 0.02314259233 | GP31: 832.39025 | GQ31: 0 | GR31: 3981.382731 | GS31: 72.5931144 | GT31: 4397.210156 | GU31: 9.111323576 | GV31: 0 | GW31: 24.0127 | GX31: 6632.50831 | GY31: 322.114783 | GZ31: 28.65880109 | HA31: 12.67438594 | HC31: 1.270838631 | HD31: 116.616 | HE31: 242709.244 | HF31: 172271.43 | HG31: 40907.69685 | HH31: 0.2644541252 | HI31: 0.03300076746 | HJ31: 22350.79109 | HK31: 4219.244395 | HL31: 5211.740539 | HM31: 6.7985508 | HN31: 4.825510759 | HO31: 57.52433878 | HP31: 40.82992447 | HR31: 7618.47327 | HS31: 7270.26218 | HT31: 5971.813994 | HU31: 0 | HV31: 1679.37895 | HW31: 0 | HX31: 1191.15773 | HY31: 290.305336 | HZ31: 6575.8662 | IA31: 181.82913 | IB31: 8542.96857 | IC31: 1391.56555 | ID31: 0 | IE31: 0 | IF31: 0 | IG31: 1092.54933 | IH31: 6256.06136 | II31: 67.63418 | IJ31: 90671.2382 | IK31: 31208.872 | IL31: 756.7127465 | IM31: 1275.237 | IN31: 13371.567 | IO31: 5361.97877 | IP31: 18.7962 | IQ31: 407.43428 | IR31: 9231.04078 | IS31: 6081.92421 | IT31: 6076.11983 | IU31: 401.539742 | IV31: 77.60961944 | IW31: 152.47125 | IX31: 126.96274 | IY31: 49.58715 | IZ31: -242.04534 | JA31: -126.1741 | JB31: 166.49089 | JC31: 1082.14795 | JD31: 7010.07844 | JE31: 1676.41114 | JF31: 0 | JG31: 887.69487 | JH31: 229359.8908 | JI31: 229359.8908 | JJ31: 158922.0768 | JK31: 6822.52634 | JL31: 2562.58395 | JM31: 20.05079 | JN31: 37.51782 | JO31: 44.89109 | JP31: 0.8279 | JQ31: 1270.52954 | JR31: 1667.68396 | JS31: 449.30679 | JT31: 1560.65786 | JU31: 60.54283 | JV31: 0.7594 | JW31: 5045.47442 | JX31: 1096.9875 | JY31: -2918.535 | JZ31: 5924.55539 | KA31: 1560.65786 | KB31: 0 | KC31: 0 | KD31: 0 | KE31: 0 | KF31: 98.384 | KG31: 215 | KH31: 44.87984 | KI31: 599.98373 | KJ31: 0 | KK31: 195.99658 | KL31: 354.4 | KM31: 0 | KN31: 75689.0753 | KO31: 6759.47105 | KP31: 1915.16222 | KQ31: 2329.21172 | KR31: 1496.82147 | KS31: 0 | KT31: 0 | KU31: 245.58373 | KV31: 77.60961944 | KW31: 79.59067 | KX31: 56.762832 | KY31: 70.92315 | KZ31: 61.84507397 | LA31: 0 | LB31: 0 | LC31: 0 | LD31: 0 | LE31: 0 | LF31: 0 | LG31: 0 | LH31: 28208.061 | LI31: 666.214 | LJ31: 548.004 | LK31: 5984.616 | LL31: 8993.46336 | LM31: 5921.00754 | LN31: 25793.108 | LO31: 661.794 | LP31: 292.754 | LQ31: 7101.32151 | LR31: 4395.69515 | LS31: 24.3808 | LT31: 23.6481 | LU31: 25.2602 | LV31: 23.2539 | LW31: 27.0377 | LX31: 27.6932 | LY31: 23.8166 | LZ31: 25.5875 | MA31: 20.6528 | MB31: NA | MC31: 0 | MD31: 7008.53297 | ME31: 715.52 | MF31: 1107.00324 | MG31: 1107.00324 | MH31: 1107.00324 | MI31: 1107.00324 | NF31: AUDIT | OA31: AUDIT | OY31: AUDIT | TO31: 1.318484848 | TP31: 1679.37895 | TQ31: 0 | TR31: -397.15442 | TS31: 832.39025 | TT31: 4533.56191 | TU31: 3020.424431 | TV31: 4598.048839 | TW31: 21000.96703 | TX31: 51725.90603 | TY31: 35700.14421 | TZ31: 0.1181856401 | UA31: 2040.56515 | UB31: 9385.11029 | UC31: 9385.11029 | UD31: 45085.2545 | UE31: 0.0935836881 | UF31: 0.3558502035 | UG31: 0.04653343749 | UH31: 2.539800335 | UI31: -0.06385053336 | UJ31: 0.04653343749 | UK31: 2.011106274 | UV31: x | UX31: x | UZ31: 6.7985508 | VA31: 47.26169141 | VB31: 5.383339779 | VC31: 47.26169141 | VE31: 6672.81368 | VF31: 36.37284894 | VG31: 23.80424 | VH31: 37.51782 | VI31: 8.80319 | VJ31: 225069.7305 | VK31: 0.075841 | VL31: 0.07359349902 | VM31: 0.101807 | VN31: 0.04485185408 | VO31: 0.059136 | VP31: 2862.42822 | VQ31: 0.393731738 | VR31: 54118.6796 | VS31: 0.5968671066 | VT31: 10818.20918 | VU31: 0 | VV31: 0 | XN31: 4.134526452 | XO31: 249.8067178 | XP31: 28.7753265 | XQ31: 0.0892365021 | XR31: -3.27632828 | XS31: 0.2844180393 | XT31: 0.2098234959 | XU31: 0.1293984887 | XW31: 0 | XX31: 1066.79019 | XY31: 1.78 | XZ31: Dec-2014 | YA31: $215.0/$150.8 | YB31: 0 | YC31: 2.482261574 | YG31: 54288.48998 | YH31: 38262.72816 | YI31: 0.1101186512 | YJ31: 0.1123085368 | YK31: 0.04646942182 | YL31: 2.36970134 | YM31: 6.343228924 | YQ31: 212.27022 | YR31: 0 | YS31: 0 | YT31: 149.3964 | YU31: 0 | YV31: 444.38072 | YW31: 751.96532 | YX31: 1066.79019 | YY31: 125.94781 | YZ31: -76.36066 | ZA31: 0 | ZB31: 0 | ZC31: 0 | ZD31: 0 | ZE31: 0 | ZF31: -832.39025 | ZG31: -832.39025 | ZH31: 0 | ZI31: 0 | ZJ31: 0 | ZK31: 0 | ZL31: 1254.61438 | ZM31: 0 | ZN31: 3149.116 | ZO31: 0 | ZP31: 0 | ZQ31: 0 | ZR31: 0 | ZS31: 0 | ZT31: 28078.02152 | ZU31: 35088.09996 | ZV31: 5.07479 | ZW31: 5.07479 | ZX31: 1142.10224 | ZY31: 0 | ZZ31: 0 | AAA31: 0 | AAB31: 0 | AAC31: 832.39025 | AAD31: 0 | AAE31: 0 | AAF31: 0 | AAG31: 11.37793 | AAH31: 1865 | AAI31: 715.52 | AAJ31: 0 | AAK31: 0 | AAL31: 4429.55844 | AAM31: 0 | AAN31: 27190.32666 | AAP31: 235.5 | AAQ31: 91716.69 | AAR31: 93252.79195 | AAS31: 87257 | AAT31: 9 | AAU31: Represents Revenue Includes Royalty, Franchise Fees and Others | AAV31: 10643.79668 | AAW31: 13625.68627 | AAX31: 10103.413 | AAY31: 11155.45376 | AAZ31: 7 | ABA31: 0 | ABB31: 7085.65027 | ABC31: 10236.71156 | ABD31: 6761.697 | ABE31: 7366.05023 | ABF31: 9 | ABG31: 0 | ABH31: 0 | ABI31: 0 | ABJ31: 0 | ABK31: 0 | ABL31: 0 | ABM31: 24.2 | ABN31: 24.3 | ABO31: 24.1 | ABP31: 24.2 | ABQ31: 3 | ABR31: 5459.31018 | ABS31: 5550 | ABT31: 5414 | ABU31: 6 | ABV31: Includes Amortization of Intangible Assets and Stock Based Compensation Expense | ABW31: -5541.72886 | ABX31: -6300 | ABY31: -4945.93085 | ABZ31: 4 | ACA31: 3429.05 | ACB31: 3640 | ACC31: 3117 | ACD31: 3403.775 | ACE31: 4 | ACF31: 19.5 | ACG31: 19.88921 | ACH31: 18.42281 | ACI31: 19.27067 | ACJ31: 3 | ACK31: 9832.6 | ACL31: 12559 | ACM31: 8683 | ACN31: 10358.2 | ACO31: 3 | ACP31: 0 | ACQ31: 23 | ACR31: 27.68436 | ACS31: 19.1 | ACT31: 23.08516 | ACU31: 9 | ACV31: 1.7435 | ACW31: 3.105 | ACX31: 1.04528 | ACY31: 1.84564 | ACZ31: 6 | ADA31: 5.20973 | ADB31: 5.3332 | ADC31: 5.054 | ADD31: 5.19695 | ADE31: 8 | ADG31: 6076.11983 | ADH31: 1142.079635 | ADI31: 4934.040195 | ADJ31: 14723.53924 | ADK31: 8610.60275 | ADL31: 15368.29808 | ADM31: -644.75884 | ADN31: 0 | ADO31: 0 | ADP31: 12726.80816 | ADQ31: 22111.91845 | ADR31: 0.06707666434 | ADS31: 9.770137123 | ADT31: 4.233268122 | ADU31: 0.6553482084 | ADV31: 0.2839535049 | ADW31: 0.5321676484 | ADX31: 0.2305810362 | ADY31: 1679.37895 | ADZ31: 5504.09604 | AEA31: 1142.10224 | AEB31: 11.37793 | AEC31: 35928.49005 | AED31: 2580.52 | AEE31: 4429.55844 | AEF31: -832.39025 | AEG31: 0 | AEH31: 8730.16356 | AEI31: 27190.32666 | AEJ31: -0.2365467689 | AEK31: 229359.8908 | AEL31: 8730.16356 | AEM31: 238090.0544 | AEN31: 225025.4481 | AEO31: 0.0281450562 | AEP31: 2.523658469 | AEQ31: 26543.37976 | AER31: 3.41596432 | AET31: 0 | AEU31: 0 | AEV31: 657.38634
A32: PSE:JFC01000 | B32: PSE:JFC | C32: 0 | D32: CapIQ Raw | E32: 0 | F32: 2016-05-24 | G32: Jollibee Foods Corp. | H32: 1000 | I32: 2015 | J32: 1000 | K32: 2015 | L32: 2015-12-31 | M32: Consumer Discretionary | N32: Consumer Services | O32: Hotels, Restaurants and Leisure | P32: Restaurants | Q32: Philippines | R32: PH | S32: PHP | T32: PSE | U32: JFC | V32: PHP | W32: 219 | X32: 0 | Z32: 0.03537583946 | AA32: 2.899842429 | AB32: 0.1025843602 | AC32: -0.01092788513 | AD32: 0.06090040542 | AE32: 0.06 | AF32: 6.971616344 | AG32: 8.766548202 | AH32: 44.56050775 | AI32: 70.14452877 | AJ32: 67.95983645 | AK32: 70.14452877 | AM32: 0.03530161897 | AN32: 2.018003111 | AO32: 0.0712387769 | AP32: 0.1031317481 | AQ32: 0.06 | AR32: 4.85155446 | AS32: 44.62189284 | AT32: 68.10271976 | AU32: 67413.50226 | AV32: 17473.18393 | AW32: 49940.31833 | AX32: 3557.687196 | AY32: 242288.1741 | BA32: 155.2192389 | BB32: 104.994864 | BC32: 5038.985888 | BD32: 5038.985888 | BE32: 7275.895888 | BF32: 5143.980752 | BG32: 5478.41631 | BH32: 4215.73398 | BI32: 19893.26992 | BJ32: 10188.13137 | BK32: 19857.8781 | BL32: 35.39182202 | BM32: 796.2985222 | BN32: 0 | BO32: 0 | BP32: 7712.0489 | BQ32: 0 | BR32: 14466.28683 | BS32: 0 | BT32: 8543.739244 | BU32: 40207.51093 | BV32: 3100.395864 | BW32: 375.0530246 | BX32: 0 | BY32: 43682.95982 | BZ32: 52226.69906 | CA32: 17473.18393 | CB32: 34753.51513 | CC32: 712.4923968 | CD32: 0 | CE32: 3352.72041 | CF32: 7.47992 | CG32: 1571.36656 | CH32: 312.63574 | CI32: 244.81985 | CJ32: 0 | CK32: 0 | CL32: 0 | CM32: 8300.091076 | CN32: 3565.167116 | CO32: 3.275839591 | CP32: 3339.622796 | CQ32: 3.068599092 | CR32: 5156.75483 | CS32: 20096.98445 | CT32: 13198.44348 | CU32: 242288.1741 | CW32: 0 | CX32: 0 | CY32: 0 | CZ32: 0 | DA32: 32750.55891 | DB32: 40207.51093 | DC32: 390.934123 | DD32: 3100.395864 | DE32: 333.6013482 | DF32: 57.33277475 | DG32: 1791.649211 | DH32: 12419.87664 | DI32: 4044.111104 | DJ32: 3287.049786 | DK32: 2529.440388 | DL32: 22280.47792 | DM32: 2422.599818 | DN32: 796.2985222 | DO32: 5922.54759 | DP32: 3084.81956 | DQ32: 0 | DR32: 12226.26549 | DS32: 16083.00437 | DT32: 0 | DU32: 150.0212098 | DV32: 0 | DW32: 16233.02558 | DX32: 28459.29107 | DY32: 10000.98861 | DZ32: 2.845647784 | EA32: 34.92127 | EB32: 3147.5918 | EC32: 5.864261834 | ED32: 11177.88898 | EE32: 1263.78472 | EF32: 821.7624465 | EG32: 421.573398 | EH32: 13685.00954 | EI32: -6172.868559 | EJ32: 796.2985222 | EK32: 5922.54759 | EL32: 771.20489 | EM32: 0 | EN32: 1317.182443 | EO32: 6346.988041 | EP32: 0 | EQ32: 56.25795368 | ER32: 0 | ES32: 6403.245994 | ET32: 7720.428437 | EU32: 10000.98861 | EV32: 0.7719665263 | EW32: 34.92127 | EX32: 3147.5918 | EY32: -0.7245412741 | EZ32: 8544.910926 | FA32: 7238.827136 | FB32: -7533.91105 | FC32: 604.2375661 | FD32: 282.8770948 | FE32: 2.136042745 | FF32: 16.60921208 | FH32: 0 | FI32: 32750.55891 | FJ32: 0 | FK32: 12924.66264 | FL32: 39.46394526 | FM32: 20.25619227 | FN32: 0 | FO32: 0 | FP32: 29266.992 | FQ32: 0 | FR32: 5928.37817 | FS32: 26993.843 | FT32: 3149.11657 | FU32: 3072.45582 | FV32: 9.768353727 | FW32: 9.293715031 | FX32: 8.785754648 | FY32: 9.293715031 | FZ32: 9.293715031 | GA32: 5 | GB32: 5.626048419 | GC32: 7.411162245 | GD32: 6.518605332 | GE32: 56 | GF32: 0.03124435258 | GG32: 6189.054013 | GH32: 38939.61293 | GI32: 126.5635222 | GJ32: 0.032 | GK32: 333.6013482 | GL32: 57.33277475 | GM32: 1791.649211 | GN32: 357.8808904 | GO32: 0.02371032012 | GP32: 1466.53039 | GQ32: 0 | GR32: 4326.312007 | GS32: 75.01060491 | GT32: 4734.92396 | GU32: 9.225694052 | GV32: 0 | GW32: 24.10533 | GX32: 6316.84414 | GY32: 134.0882155 | GZ32: 48.67043436 | HA32: 15.56505908 | HC32: 1.382329655 | HD32: 96.907 | HE32: 259581.0336 | HF32: 200494.5238 | HG32: 51725.90603 | HH32: 0.00968166763 | HI32: 0.02060955276 | HJ32: 26721.60831 | HK32: 5437.284859 | HL32: 3339.622796 | HM32: 7.469202255 | HN32: 5.769043017 | HO32: 47.74092959 | HP32: 36.87401507 | HR32: 12419.87664 | HS32: 5055.13888 | HT32: 5478.41631 | HU32: 0 | HV32: 2466.75759 | HW32: 0 | HX32: 1526.00974 | HY32: 222.96665 | HZ32: 9433.76673 | IA32: 235.98 | IB32: 8669.55746 | IC32: 1754.55391 | ID32: 0 | IE32: 0 | IF32: 0 | IG32: 5922.54759 | IH32: 7712.0489 | II32: 108.84536 | IJ32: 100779.7178 | IK32: 34688.19191 | IL32: 669.735 | IM32: 1267.898 | IN32: 14862.29564 | IO32: 4928.23623 | IP32: 21.5791 | IQ32: 908.54912 | IR32: 8715.23076 | IS32: 5362.51035 | IT32: 5355.03043 | IU32: 390.934123 | IV32: 72.99461894 | IW32: 225.54432 | IX32: 118.09716 | IY32: 67.8159 | IZ32: -257.78359 | JA32: -189.08597 | JB32: 173.21169 | JC32: 1088.32164 | JD32: 10035.90988 | JE32: 1646.14014 | JF32: 0 | JG32: 1133.36585 | JH32: 234256.2673 | JI32: 251549.1268 | JJ32: 192462.617 | JK32: 6822.52634 | JL32: 8364.27686 | JM32: 14.63334 | JN32: 36.55993 | JO32: 42.75901 | JP32: 0.8082 | JQ32: 1388.60791 | JR32: 1871.92711 | JS32: 822.76459 | JT32: 1899.66561 | JU32: 38.64088 | JV32: 1.15154 | JW32: 4596.78655 | JX32: 9925.36 | JY32: -12770.8 | JZ32: -5001.10679 | KA32: 1899.66561 | KB32: 0 | KC32: 0 | KD32: 0 | KE32: 0 | KF32: 122.093 | KG32: 219 | KH32: 53.21344 | KI32: 312.63574 | KJ32: 0 | KK32: 244.81985 | KL32: 0 | KM32: 0 | KN32: 85271.87351 | KO32: 6434.94131 | KP32: 3134.01172 | KQ32: 2999.15215 | KR32: 1532.62176 | KS32: 0 | KT32: 0 | KU32: 312.63574 | KV32: 72.99461894 | KW32: 77.60961944 | KX32: 79.59067 | KY32: 56.762832 | KZ32: 70.92315 | LA32: 61.84507397 | LB32: 0 | LC32: 0 | LD32: 0 | LE32: 0 | LF32: 0 | LG32: 0 | LH32: 31208.872 | LI32: 666.643 | LJ32: 1275.237 | LK32: 7870.25817 | LL32: 9231.04078 | LM32: 6081.92421 | LN32: 28208.061 | LO32: 666.214 | LP32: 548.004 | LQ32: 8990.25222 | LR32: 5917.7964 | LS32: 18.7962 | LT32: 24.3808 | LU32: 23.6481 | LV32: 25.2602 | LW32: 23.2539 | LX32: 27.0377 | LY32: 27.6932 | LZ32: 23.8166 | MA32: 25.5875 | MB32: FIFO | MC32: 0 | MD32: 10000.98861 | ME32: 927.25421 | MF32: 767.37259 | MG32: 320.64455 | MH32: 1100.47961 | MI32: 1100.47961 | NT32: AUDIT | OD32: AUDIT | TO32: 1.475686486 | TP32: 2466.75759 | TQ32: 0 | TR32: -483.3192 | TS32: 1466.53039 | TT32: 5038.985888 | TU32: 7275.895888 | TV32: 5143.980752 | TW32: 19893.26992 | TX32: 52226.69906 | TY32: 34753.51513 | TZ32: 0.1025843602 | UA32: 16964.90077 | UB32: 23787.42711 | UC32: 15186.8032 | UD32: 58540.94224 | UE32: 0.06090040542 | UF32: -0.02651611342 | UG32: 0.03537583946 | UH32: 2.899842429 | UI32: 0.2984498568 | UJ32: 0.03537583946 | UK32: 1.721525379 | UV32: x | UX32: x | UZ32: 6.971616344 | VA32: 47.17969836 | VB32: 4.138781592 | VC32: 47.17969836 | VE32: 6110.125273 | VF32: 39.65355264 | VG32: 24.50594 | VH32: 36.55993 | VI32: 7.57409 | VJ32: 228581.2944 | VK32: 0.056306 | VL32: 0.06062852138 | VM32: 0.086478 | VN32: 0.03313784629 | VO32: 0.048901 | VP32: 13485.11041 | VQ32: 0.3448463233 | VR32: 64763.04841 | VS32: 0.6426198629 | VT32: 500.7930301 | VU32: 0 | VV32: 0 | XN32: 4.177483072 | XO32: 268.707919 | XP32: 32.50543549 | XQ32: 0.100055679 | XR32: -0.992118629 | XS32: 0.03330192587 | XT32: -0.01606170749 | XU32: 0.1114849622 | XW32: 0 | XX32: 1069.66332 | XY32: 1.77 | XZ32: Dec-2015 | YA32: $241.0/$175.5 | YB32: 1.165003022 | YC32: 2.268127948 | YG32: 60590.97592 | YH32: 43117.79199 | YI32: 0.08251088545 | YJ32: 0.1268875501 | YK32: 0.03530161897 | YL32: 2.337311655 | YM32: 5.619215709 | YQ32: 218.17467 | YR32: 0 | YS32: 0 | YT32: 139.1225 | YU32: 0 | YV32: 908.54912 | YW32: 1408.48854 | YX32: 1071.53617 | YY32: 136.91725 | YZ32: -69.10135 | ZA32: 0 | ZB32: 0 | ZC32: 0 | ZD32: 0 | ZE32: 0 | ZF32: -1466.53039 | ZG32: -1466.53039 | ZH32: 0 | ZI32: 0 | ZJ32: 0 | ZK32: 0 | ZL32: 1532.58326 | ZM32: 0 | ZN32: 3352.728 | ZO32: 0 | ZP32: 0 | ZQ32: 0 | ZR32: 0 | ZS32: 0 | ZT32: 31756.5899 | ZU32: 41792.49979 | ZV32: 4.61751 | ZW32: 4.61751 | ZX32: 1409.72855 | ZY32: 0 | ZZ32: 0 | AAA32: 0 | AAB32: 0 | AAC32: 1466.53039 | AAD32: 0 | AAE32: 0 | AAF32: 0 | AAG32: 0 | AAH32: 282.36 | AAI32: 927.91627 | AAJ32: 0 | AAK32: 0 | AAL32: 8825.63361 | AAM32: 0 | AAN32: 30623.22406 | AAP32: 235.5 | AAQ32: 101765.8216 | AAR32: 103854 | AAS32: 99412.183 | AAT32: 10 | AAU32: Represents Revenue Includes Royalty, Franchise Fees and Others | AAV32: 10405 | AAW32: 13999 | AAX32: 9764.272 | AAY32: 10994.45817 | AAZ32: 9 | ABA32: Includes Stock Based Compensation Expense | ABB32: 6665.812 | ABC32: 8101 | ABD32: 6194.097 | ABE32: 6782.1452 | ABF32: 9 | ABG32: Includes Amortization of Intangible Assets and Stock Based Compensation Expense | ABH32: -315 | ABI32: -315 | ABJ32: -315 | ABK32: -315 | ABL32: 1 | ABM32: 22.3 | ABN32: 27 | ABO32: 20 | ABP32: 23.1 | ABQ32: 3 | ABR32: 5614.12634 | ABS32: 6008.84233 | ABT32: 4812.28479 | ABU32: 9 | ABV32: Includes Amortization of Intangible Assets and Stock Based Compensation Expense | ABW32: -6504.4 | ABX32: -9007 | ABY32: -5490 | ABZ32: 5 | ACA32: 3721 | ACB32: 5898 | ACC32: 3446 | ACD32: 4089.72 | ACE32: 5 | ACF32: 18.90724 | ACG32: 21 | ACH32: 18 | ACI32: 19.20362 | ACJ32: 4 | ACK32: 12591.9 | ACL32: 18448 | ACM32: 11089 | ACN32: 13412.98 | ACO32: 5 | ACP32: Represents After Working Capital Changes | ACQ32: 19.1995 | ACR32: 26.6 | ACS32: 16.58041 | ACT32: 19.76928 | ACU32: 10 | ACV32: 1.77742 | ACW32: 3.72 | ACX32: 1.12083 | ACY32: 2.06569 | ACZ32: 10 | ADA32: 5.1405 | ADB32: 5.84 | ADC32: 4.54211 | ADD32: 5.1982 | ADE32: 10 | ADG32: 5355.03043 | ADH32: 1155.567372 | ADI32: 4199.463058 | ADJ32: 12282.53158 | ADK32: 8778.40282 | ADL32: 18448.14955 | ADM32: -6165.61797 | ADN32: 0 | ADO32: 0 | ADP32: 8696.677671 | ADQ32: 23883.48087 | ADR32: 0.05321021401 | ADS32: 9.408339852 | ADT32: 4.38216514 | ADU32: 0.500619777 | ADV32: 0.2331759449 | ADW32: 0.3925905347 | ADX32: 0.1828586746 | ADY32: 2466.75759 | ADZ32: 6303.56036 | AEA32: 1409.72855 | AEB32: 0 | AEC32: 49348.8429 | AED32: 1210.27627 | AEE32: 8825.63361 | AEF32: -1466.53039 | AEG32: 0 | AEH32: 12635.80612 | AEI32: 30623.22406 | AEJ32: -0.2683377996 | AEK32: 234256.2673 | AEL32: 12635.80612 | AEM32: 246892.0734 | AEN32: 222835.1999 | AEO32: 0.01866216952 | AEP32: 2.042190087 | AEQ32: 34162.0397 | AER32: 2.950049782 | AET32: 0 | AEU32: 0 | AEV32: 435.02852
A33: PSE:JFC0500 | B33: PSE:JFC | C33: 0 | D33: CapIQ Raw | E33: 0 | F33: 2016-09-02 | G33: Jollibee Foods Corp. | H33: 500 | I33: 2016 | J33: 500 | K33: 2016 | L33: 2016-06-30 | M33: Consumer Discretionary | N33: Consumer Services | O33: Hotels, Restaurants and Leisure | P33: Restaurants | Q33: Philippines | R33: PH | S33: PHP | T33: PSE | U33: JFC | V33: PHP | W33: 242 | X33: NA | Y33: Q2 | Z33: 0.09435719974 | AA33: 3.806020244 | AB33: 0.3591254124 | AC33: -0.0004526357312 | AD33: 0.1923589807 | AE33: 0.06 | AF33: 9.501234037 | AG33: 15.95731737 | AH33: NA | AI33: NA | AJ33: NA | AK33: NA | AM33: 0.09428164152 | AN33: 2.46537061 | AO33: 0.1162195941 | AP33: -0.1050798513 | AQ33: 0.06 | AR33: 6.154476764 | AS33: NA | AT33: NA | AU33: 60329.70147 | AV33: 16177.76108 | AW33: 44151.94038 | AX33: 5131.320588 | AY33: 271732.0912 | BA33: 0 | BB33: 65.73697924 | BC33: 2721.272405 | BD33: 2721.272405 | BE33: 11566.78907 | BF33: 2787.009385 | BG33: 4895.93546 | BH33: 3869.69384 | BI33: 14682.77303 | BJ33: 10056.39873 | BK33: 19387.75729 | BL33: -4704.984255 | BM33: 698.1897567 | BN33: 0 | BO33: 0 | BP33: 8339.81584 | BQ33: 0 | BR33: 10216.26665 | BS33: 0 | BT33: 4333.021341 | BU33: 21584.94669 | BV33: 18859.45602 | BW33: 0 | BX33: 0 | BY33: 40444.40271 | BZ33: 44777.42405 | CA33: 16177.76108 | CB33: 28599.66296 | CC33: 200.9100048 | CD33: 0 | CE33: 1906.45874 | CF33: 4.11229 | CG33: 912.6377888 | CH33: 118.11144 | CI33: 0 | CJ33: 0 | CK33: 0 | CL33: 0 | CM33: 9117.919596 | CN33: 5135.432878 | CO33: 4.700004487 | CP33: 5010.586958 | CQ33: 4.585744132 | CR33: 5731.036511 | CS33: 29448.26808 | CT33: 17450.03438 | CU33: 271732.0912 | CW33: 0 | CX33: 0 | CY33: 0 | CZ33: 0 | DA33: 19519.116 | DB33: 21584.94669 | DC33: 4083.01817 | DD33: 18859.45602 | DE33: 3714.112613 | DF33: 368.9055572 | DG33: 11528.29866 | DH33: 14353.79845 | DI33: 2504.10748 | DJ33: 2937.561276 | DK33: 2321.816304 | DL33: 22117.28351 | DM33: 2729.52622 | DN33: 698.1897567 | DO33: 5883.24531 | DP33: 3335.926336 | DQ33: 0 | DR33: 12646.88762 | DS33: 8633.978675 | DT33: 0 | DU33: 0 | DV33: 0 | DW33: 8633.978675 | DX33: 21280.8663 | DY33: 10323.31376 | DZ33: 2.061437518 | EA33: 222.55037 | EB33: 1865.61915 | EC33: 5.873413412 | ED33: 12918.41861 | EE33: 782.5335875 | EF33: 734.390319 | EG33: 386.969384 | EH33: 14822.3119 | EI33: -4565.445395 | EJ33: 698.1897567 | EK33: 5883.24531 | EL33: 833.981584 | EM33: 0 | EN33: 2849.971256 | EO33: 3173.713419 | EP33: 0 | EQ33: 0 | ER33: 0 | ES33: 3173.713419 | ET33: 6023.684675 | EU33: 10323.31376 | EV33: 0.5835030122 | EW33: 222.55037 | EX33: 1865.61915 | EY33: -2.304666033 | EZ33: 9117.919596 | FA33: 8335.147116 | FB33: -596.35329 | FC33: -478.1443702 | FD33: 493.7514772 | FE33: -0.968390764 | FF33: -22.05581575 | FH33: 0 | FI33: 19519.116 | FJ33: 0 | FK33: 7174.917 | FL33: 36.7584116 | FM33: 37.07430924 | FN33: 0 | FO33: 0 | FP33: 15990.529 | FQ33: 0 | FR33: 5928.37817 | FS33: 13992.61 | FT33: 3149.11657 | FU33: 3072.45582 | FV33: 5.119207563 | FW33: 5.077782497 | FX33: 4.554210319 | FY33: 5.077782497 | FZ33: 5.077782497 | GA33: 5 | GB33: 3.211270307 | GC33: 3.195229712 | GD33: 3.203250009 | GE33: 57 | GF33: 0.01304142629 | GG33: 829.3006885 | GH33: 20348.41669 | GI33: 28.45475669 | GJ33: 0.032 | GK33: 3714.112613 | GL33: 368.9055572 | GM33: 11528.29866 | GN33: 0 | GO33: 0.01247485696 | GP33: 0 | GQ33: 0 | GR33: 4250.860824 | GS33: 0 | GT33: 3982.486718 | GU33: 10.15556499 | GV33: 0 | GW33: 23.77992 | GX33: 3741.64326 | GY33: 202.3538939 | GZ33: 22.87801484 | HA33: 9.285523366 | HC33: 0.5947380586 | HD33: 115.82 | HE33: 271732.0912 | HF33: 204807.1974 | HG33: 44777.42405 | HH33: 0 | HI33: 0.01497455424 | HJ33: 16255.08253 | HK33: 5135.432878 | HL33: 5010.586958 | HM33: 9.501234037 | HN33: 7.161175209 | HO33: 52.91318135 | HP33: 39.88119449 | HR33: 14353.79845 | HS33: 3130.13435 | HT33: 4895.93546 | HU33: 0 | HV33: 1833.35573 | HW33: 0 | HX33: 1789.58921 | HY33: 246.7489 | HZ33: 9083.74286 | IA33: 247.6157 | IB33: 8660.89671 | IC33: 1643.11772 | ID33: 0 | IE33: 0 | IF33: 0 | IG33: 5883.24531 | IH33: 8339.81584 | II33: 72.58599 | IJ33: 54425.44811 | IK33: 21425.381 | IL33: 669.735 | IM33: 1236.53 | IN33: 9081.182 | IO33: 3054.23738 | IP33: 18.325 | IQ33: 245.98715 | IR33: 5557.97885 | IS33: 3651.52011 | IT33: 3647.40782 | IU33: 4083.01817 | IV33: 0 | IW33: 124.84592 | IX33: 9.53922 | IY33: 118.11144 | IZ33: -114.18613 | JA33: -240.90228 | JB33: 117.0222 | JC33: 1092.64425 | JD33: 10545.86413 | JE33: 1643.06878 | JF33: 0 | JG33: 346.34673 | JH33: 259387.5108 | JI33: 259387.5108 | JJ33: 192462.617 | JK33: 6822.52634 | JL33: 8729.75108 | JM33: 15.62097 | JN33: 34.82022 | JO33: 51.33078 | JP33: 0.7561 | JQ33: 687.40588 | JR33: 1101.7137 | JS33: 368.46466 | JT33: 848.31805 | JU33: 44.5187 | JV33: 0.94871 | JW33: 2810.6559 | JX33: 663.94 | JY33: -995 | JZ33: -2383.40473 | KA33: 848.31805 | KB33: 0 | KC33: 0 | KD33: 2000 | KE33: 0 | KF33: 126.18 | KG33: 242 | KH33: 49.48227 | KI33: 118.11144 | KJ33: 0 | KK33: 0 | KL33: 0 | KM33: 0 | KN33: 45461.32311 | KO33: 3751.18247 | KP33: 4096.57454 | KQ33: 0 | KR33: 0 | KS33: 0 | KT33: 0 | KU33: 118.11144 | KV33: 0 | KW33: 0 | KX33: 0 | KY33: 0 | KZ33: 0 | LA33: 0 | LB33: 0 | LC33: 0 | LD33: 0 | LE33: 0 | LF33: 0 | LG33: 0 | LH33: 17932.409 | LI33: 666.643 | LJ33: 1275.237 | LK33: 7870.25817 | LL33: 9231.04078 | LM33: 6081.92421 | LN33: 15206.828 | LO33: 666.214 | LP33: 548.004 | LQ33: 8990.25222 | LR33: 5917.7964 | LS33: 18.7962 | LT33: 24.3808 | LU33: 23.6481 | LV33: 25.2602 | LW33: 23.2539 | LX33: 27.0377 | LY33: 27.6932 | LZ33: 23.8166 | MA33: 25.5875 | MB33: FIFO | MC33: 0 | MD33: 10323.31376 | ME33: 927.25421 | MF33: 767.37259 | MG33: 320.64455 | MH33: 1100.47961 | MI33: 1100.47961 | TO33: 0.6095568055 | TP33: 1833.35573 | TQ33: 0 | TR33: -414.30782 | TS33: 0 | TT33: 2721.272405 | TU33: 11566.78907 | TV33: 2787.009385 | TW33: 14682.77303 | TX33: 44777.42405 | TY33: 28599.66296 | TZ33: 0.1795627062 | UA33: 17972.07239 | UB33: 24794.59873 | UC33: 15552.27742 | UD33: 53394.26169 | UE33: 0.09617949036 | UF33: -0.1770713594 | UG33: 0.09435719974 | UH33: 1.903010122 | UI33: -0.0879159158 | UJ33: 0.09435719974 | UK33: 1.019312682 | UV33: x | UW33: x | UX33: x | UZ33: 9.501234037 | VA33: NA | VB33: 5.089162816 | VC33: NA | VE33: 8392.472751 | VF33: 32.3780725 | VG33: 28.92871 | VH33: 34.82022 | VI33: 8.1118 | VJ33: 256705.323 | VK33: 0.06882 | VL33: 0.1542012614 | VM33: 0.096752 | VN33: 0.09206331105 | VO33: 0.058459 | VP33: 4332.82466 | VQ33: 0.5254832796 | VR33: 65106.08265 | VS33: 1.196243392 | VT33: -7449.275014 | VU33: 0 | VV33: 0 | XN33: 4.202423174 | XO33: 0 | XP33: 2.885844006 | XQ33: -0.46316133 | XR33: -133.939871 | XS33: -1 | XT33: 5.082918712 | XU33: -0.4599563353 | XW33: 2.44431 | XX33: 1071.84922 | XY33: 1.83 | XZ33: Jun-2016 | YA33: $249.4/$175.5 | YB33: 1.131416766 | YC33: 4.716641422 | YG33: 53507.17513 | YH33: 37329.41404 | YI33: 0.1374605179 | YJ33: -0.1342456949 | YK33: 0.09428164152 | YL33: 1.457977563 | YM33: 7.279302345 | YQ33: 242 | YR33: 0 | YS33: 0 | YT33: -72.63949 | YU33: 0 | YV33: 234.9 | YW33: 1829.0918 | YX33: 1074.9993 | YY33: 0 | YZ33: 0 | ZA33: 0 | ZB33: 0 | ZC33: 0 | ZD33: 0 | ZE33: 0 | ZF33: 0 | ZG33: 0 | ZH33: 0 | ZI33: 0 | ZJ33: 0 | ZK33: 0 | ZL33: 0 | ZM33: 0 | ZN33: 932.51 | ZO33: 0 | ZP33: 0 | ZQ33: 0 | ZR33: 0 | ZS33: 0 | ZT33: 31944.44654 | ZU33: 42490.31067 | ZV33: 1.545 | ZW33: 1.545 | ZX33: 1322.91604 | ZY33: 0 | ZZ33: 0 | AAA33: 0 | AAB33: 0 | AAC33: 1584.94591 | AAD33: 0 | AAE33: 0 | AAF33: 0 | AAG33: 0 | AAH33: 0 | AAI33: 1215.50511 | AAJ33: 0 | AAK33: 0 | AAL33: 9330.35902 | AAM33: 0 | AAN33: 31598.09981 | AAP33: 220 | AAQ33: 0 | AAR33: 0 | AAS33: 0 | AAT33: 0 | AAU33: 0 | AAV33: 0 | AAW33: 0 | AAX33: 0 | AAY33: 0 | AAZ33: 0 | ABA33: 0 | ABB33: 0 | ABC33: 0 | ABD33: 0 | ABE33: 0 | ABF33: 0 | ABG33: 0 | ABH33: 0 | ABI33: 0 | ABJ33: 0 | ABK33: 0 | ABL33: 0 | ABM33: 0 | ABN33: 0 | ABO33: 0 | ABP33: 0 | ABQ33: 0 | ABR33: 0 | ABS33: 0 | ABT33: 0 | ABU33: 0 | ABV33: 0 | ABW33: 0 | ABX33: 0 | ABY33: 0 | ABZ33: 0 | ACA33: 0 | ACB33: 0 | ACC33: 0 | ACD33: 0 | ACE33: 0 | ACF33: 0 | ACG33: 0 | ACH33: 0 | ACI33: 0 | ACJ33: 0 | ACK33: 0 | ACL33: 0 | ACM33: 0 | ACN33: 0 | ACO33: 0 | ACP33: 0 | ACQ33: 0 | ACR33: 0 | ACS33: 0 | ACT33: 0 | ACU33: 0 | ACV33: 0 | ACW33: 0 | ACX33: 0 | ACY33: 0 | ACZ33: 0 | ADA33: 1.74 | ADB33: 1.74 | ADC33: 1.74 | ADD33: 1.74 | ADE33: 1 | ADG33: 3647.40782 | ADH33: 668.387483 | ADI33: 2979.020337 | ADJ33: 10062.40792 | ADK33: 8733.4827 | ADL33: 18064.84126 | ADM33: -8002.43334 | ADN33: 0 | ADO33: 1584.94591 | ADP33: -506.19725 | ADQ33: 15046.08017 | ADR33: 0.06709214599 | ADS33: 13.28992814 | ADT33: 2.796098731 | ADU33: 0.8916497989 | ADV33: 0.1875962642 | ADW33: 0.7282549732 | ADX33: 0.1532192488 | ADY33: 1833.35573 | ADZ33: 6510.72404 | AEA33: 1322.91604 | AEB33: 0 | AEC33: 42490.31068 | AED33: 1215.50511 | AEE33: 9330.35902 | AEF33: 0 | AEG33: 0 | AEH33: 10892.21086 | AEI33: 31598.09981 | AEJ33: -0.1057376793 | AEK33: 259387.5108 | AEL33: 10892.21086 | AEM33: 270279.7216 | AEN33: 255925.9232 | AEO33: 0.01336871526 | AEP33: 1.280890802 | AEQ33: 26938.03326 | AER33: 2.020394272 | AET33: 0 | AEU33: 0 | AEV33: 166.31704
A34: PSE:JFC01001 | B34: PSE:JFC | C34: 0 | D34: CapIQ Raw | E34: 0 | F34: 2016-09-02 | G34: Jollibee Foods Corp. | H34: 1001 | I34: 2016 | J34: 1000 | K34: 2016 | L34: 2016-09-03 | M34: Consumer Discretionary | N34: Consumer Services | O34: Hotels, Restaurants and Leisure | P34: Restaurants | Q34: Philippines | R34: PH | S34: PHP | T34: PSE | U34: JFC | V34: PHP | W34: 250 | X34: NA | Z34: 0.04779641703 | AA34: 3.09831132 | AB34: 0.14808818 | AC34: 0.03468743281 | AD34: 0.08986659153 | AE34: 0.06 | AF34: 7.535613041 | AG34: 9.337129263 | AH34: 47.78039514 | AI34: 51.56583693 | AJ34: 61.46805372 | AK34: 62.85495124 | AM34: 0.04773066484 | AN34: 2.176427029 | AO34: 0.1038823091 | AP34: 0.04389559618 | AQ34: 0.06 | AR34: 5.293435749 | AS34: 47.84219358 | AT34: 61.57036839 | AU34: 70372.65813 | AV34: 18103.8456 | AW34: 52268.81253 | AX34: 5429.804939 | AY34: 276681.6008 | BA34: 155.2192389 | BB34: 116.9912384 | BC34: 5687.962819 | BD34: 5687.962819 | BE34: 8214.493132 | BF34: 5804.954057 | BG34: 6183.988003 | BH34: 4758.683328 | BI34: 22453.82156 | BJ34: 11500.27282 | BK34: 22415.39762 | BL34: 38.42393859 | BM34: 817.0500065 | BN34: 0 | BO34: 0 | BP34: 8705.292767 | BQ34: 0 | BR34: 16246.08619 | BS34: 0 | BT34: 9560.766712 | BU34: 41381.28834 | BV34: 3499.699502 | BW34: 378.6261641 | BX34: 0 | BY34: 45259.614 | BZ34: 54820.38071 | CA34: 18103.8456 | CB34: 36716.53511 | CC34: 0 | CD34: 0 | CE34: 3965.903794 | CF34: 7.47992 | CG34: 1862.770856 | CH34: 312.63574 | CI34: 244.81985 | CJ34: 0 | CK34: 0 | CL34: 0 | CM34: 10342.18633 | CN34: 5437.284859 | CO34: 4.97507966 | CP34: 5211.740539 | CQ34: 4.7687081 | CR34: 6806.37147 | CS34: 22487.30395 | CT34: 14899.81261 | CU34: 276681.6008 | CW34: 0 | CX34: 0 | CY34: 0 | CZ34: 0 | DA34: 36857.9797 | DB34: 41381.28834 | DC34: 441.2829894 | DD34: 3499.699502 | DE34: 376.566259 | DF34: 64.71673038 | DG34: 2022.397824 | DH34: 14019.44719 | DI34: 4564.956939 | DJ34: 3710.392802 | DK34: 2855.209997 | DL34: 25150.00693 | DM34: 2734.609304 | DN34: 817.0500065 | DO34: 6685.319474 | DP34: 3482.117107 | DQ34: 0 | DR34: 13719.09589 | DS34: 16552.51533 | DT34: 0 | DU34: 151.4504656 | DV34: 0 | DW34: 16703.9658 | DX34: 30423.06169 | DY34: 10000.98861 | DZ34: 3.042005433 | EA34: 544.87552 | EB34: 3657.54605 | EC34: 5.583545033 | ED34: 12617.50247 | EE34: 1426.549043 | EF34: 927.5982004 | EG34: 475.8683328 | EH34: 15447.51805 | EI34: -6967.879576 | EJ34: 817.0500065 | EK34: 6685.319474 | EL34: 870.5292767 | EM34: 0 | EN34: 1405.019181 | EO34: 6532.27559 | EP34: 0 | EQ34: 56.79392461 | ER34: 0 | ES34: 6589.069515 | ET34: 7994.088696 | EU34: 10000.98861 | EV34: 0.799329847 | EW34: 544.87552 | EX34: 3657.54605 | EY34: -0.5487012021 | EZ34: 10587.00618 | FA34: 9280.922395 | FB34: 0 | FC34: 2476.355309 | FD34: 290.2610504 | FE34: 8.531476427 | FF34: 4.258623184 | FH34: 0 | FI34: 36857.9797 | FJ34: 0 | FK34: 14545.61293 | FL34: 39.46394526 | FM34: 37.07430924 | FN34: 0 | FO34: 0 | FP34: 15990.529 | FQ34: 0 | FR34: 5928.37817 | FS34: 13992.61 | FT34: 3149.11657 | FU34: 3072.45582 | FV34: 9.768353727 | FW34: 9.293715031 | FX34: 8.785754648 | FY34: 9.293715031 | FZ34: 9.293715031 | GA34: 5 | GB34: 5.626048419 | GC34: 5.848134381 | GD34: 5.7370914 | GE34: 57 | GF34: 0.01444124496 | GG34: 3096.39684 | GH34: 39954.37654 | GI34: 63.31999838 | GJ34: 0.032 | GK34: 376.566259 | GL34: 64.71673038 | GM34: 2022.397824 | GN34: 369.3534223 | GO34: 0.01247485696 | GP34: 1466.53039 | GQ34: 0 | GR34: 4452.609984 | GS34: 75.72523282 | GT34: 4904.901476 | GU34: 9.227425713 | GV34: 0 | GW34: 24.10533 | GX34: 7525.72324 | GY34: 425.4925119 | GZ34: 48.67043436 | HA34: 13.78913954 | HC34: 1.128709547 | HD34: 127.907 | HE34: 287431.5113 | HF34: 203782.34 | HG34: 52226.69906 | HH34: 0.04966198705 | HI34: 0.01497455424 | HJ34: 28782.69703 | HK34: 6144.10119 | HL34: 5211.740539 | HM34: 7.828394222 | HN34: 5.550151706 | HO34: 46.78170207 | HP34: 33.16715231 | HR34: 14019.44719 | HS34: 5706.196174 | HT34: 6183.988003 | HU34: 0 | HV34: 2784.454207 | HW34: 0 | HX34: 1722.546333 | HY34: 251.6827876 | HZ34: 10648.75266 | IA34: 266.3721423 | IB34: 9786.119982 | IC34: 1980.524976 | ID34: 0 | IE34: 0 | IF34: 0 | IG34: 6685.319474 | IH34: 8705.292767 | II34: 122.8636822 | IJ34: 113759.2564 | IK34: 39038.6215 | IL34: 753.7300081 | IM34: 1426.911793 | IN34: 16726.25473 | IO34: 6137.11533 | IP34: 21.5791 | IQ34: 0 | IR34: 8715.23076 | IS34: 5362.51035 | IT34: 5355.03043 | IU34: 441.2829894 | IV34: 0 | IW34: 225.54432 | IX34: -133.3070324 | IY34: 67.8159 | IZ34: -257.78359 | JA34: -189.08597 | JB34: 173.21169 | JC34: 1092.90408 | JD34: 10545.86413 | JE34: 1646.14014 | JF34: 0 | JG34: 346.34673 | JH34: 268747.7627 | JI34: 279497.6733 | JJ34: 195848.5019 | JK34: 6822.52634 | JL34: 8729.75108 | JM34: 16.7489 | JN34: 33.42303 | JO34: 50.66604 | JP34: 0.732 | JQ34: 1388.60791 | JR34: 1871.92711 | JS34: 822.76459 | JT34: 1899.66561 | JU34: 38.64088 | JV34: 1.15154 | JW34: 7703.15 | JX34: 9925.36 | JY34: -12770.8 | JZ34: -5001.10679 | KA34: 1899.66561 | KB34: 0 | KC34: 0 | KD34: 0 | KE34: 0 | KF34: 122.093 | KG34: 250 | KH34: 53.21344 | KI34: 312.63574 | KJ34: 0 | KK34: 244.81985 | KL34: 0 | KM34: 0 | KN34: 85271.87351 | KO34: 6434.94131 | KP34: 3134.01172 | KQ34: 2999.15215 | KR34: 1532.62176 | KS34: 0 | KT34: 0 | KU34: 312.63574 | KV34: 82.39568194 | KW34: 72.99461894 | KX34: 77.60961944 | KY34: 79.59067 | KZ34: 56.762832 | LA34: 70.92315 | LB34: 61.84507397 | LC34: 0 | LD34: 0 | LE34: 0 | LF34: 0 | LG34: 0 | LH34: 17932.409 | LI34: 666.643 | LJ34: 1275.237 | LK34: 7870.25817 | LL34: 9231.04078 | LM34: 6081.92421 | LN34: 15206.828 | LO34: 666.214 | LP34: 548.004 | LQ34: 8990.25222 | LR34: 5917.7964 | LS34: 18.7962 | LT34: 24.3808 | LU34: 23.6481 | LV34: 25.2602 | LW34: 23.2539 | LX34: 27.0377 | LY34: 27.6932 | LZ34: 23.8166 | MA34: 25.5875 | MB34: FIFO | MC34: 0 | MD34: 10000.98861 | ME34: 927.25421 | MF34: 767.37259 | MG34: 320.64455 | MH34: 1100.47961 | MI34: 1100.47961 | MK34: 14353.79845 | ML34: 3054.23738 | MM34: 0.5 | MN34: 4654.781482 | MO34: 949.832805 | MP34: 2226.304992 | MQ34: 37.86261641 | MR34: 188.2831295 | MS34: 0 | MT34: 145.1305252 | MU34: 862.5475643 | MV34: 0.2431482617 | MW34: -64.70664571 | MX34: -0.01446065757 | MY34: 14289.0918 | MZ34: 0 | NA34: 0 | NB34: 0 | NC34: 14289.0918 | NE34: 12419.87664 | NF34: 5055.13888 | NG34: 5478.41631 | NH34: 0 | NI34: 2466.75759 | NJ34: 0 | NK34: 1526.00974 | NL34: 222.96665 | NM34: 9433.76673 | NN34: 235.98 | NO34: 8669.55746 | NP34: 1754.55391 | NQ34: 0 | NR34: 0 | NS34: 0 | NT34: 5922.54759 | NU34: 7712.0489 | NV34: 108.84536 | NW34: 100779.7178 | NX34: 34688.19191 | NY34: 669.735 | NZ34: 1267.898 | OA34: 14862.29564 | OB34: 4928.23623 | OC34: 21.5791 | OD34: 908.54912 | OE34: 8715.23076 | OF34: 5362.51035 | OG34: 5355.03043 | OH34: 390.934123 | OI34: 0 | OJ34: 225.54432 | OK34: 118.09716 | OL34: 67.8159 | OM34: -257.78359 | ON34: -189.08597 | OO34: 173.21169 | OP34: 1088.32164 | OQ34: 10035.90988 | OR34: 1646.14014 | OS34: 0 | OT34: 1133.36585 | OU34: 268747.7627 | OV34: 279497.6733 | OW34: 195848.5019 | OX34: 6822.52634 | OY34: 8364.27686 | OZ34: 14.63334 | PA34: 33.42303 | PB34: 50.66604 | PC34: 0.732 | PD34: 1388.60791 | PE34: 1871.92711 | PF34: 822.76459 | PG34: 1899.66561 | PH34: 38.64088 | PI34: 1.15154 | PJ34: 4596.78655 | PK34: 9925.36 | PL34: -12770.8 | PM34: -5001.10679 | PN34: 1899.66561 | PO34: 0 | PP34: 0 | PQ34: 0 | PR34: 0 | PS34: 122.093 | PT34: 250 | PU34: 53.21344 | PV34: 312.63574 | PW34: 0 | PX34: 244.81985 | PY34: 0 | PZ34: 0 | QA34: 85271.87351 | QB34: 6434.94131 | QC34: 3134.01172 | QD34: 2999.15215 | QE34: 1532.62176 | QF34: 0 | QG34: 0 | QH34: 312.63574 | QI34: 72.99461894 | QJ34: 77.60961944 | QK34: 79.59067 | QL34: 56.762832 | QM34: 70.92315 | QN34: 61.84507397 | QO34: 0 | QP34: 0 | QQ34: 0 | QR34: 0 | QS34: 0 | QT34: 0 | QV34: 0.3487573664 | QW34: 0.06705452658 | QX34: 165.9716992 | QY34: 23 | QZ34: IG4+ | RA34: Baa1 | RB34: NA | RC34: NA | RD34: NA | RE34: NA | RF34: NA | RG34: NA | RI34: 113759.2564 | RJ34: 8 | RK34: 6137.11533 | RL34: 5 | RM34: -7703.15 | RN34: 2 | RO34: 127410.624 | RP34: 9 | RQ34: 7109.47602 | RR34: 6 | RS34: -6844.4263 | RT34: 4 | RU34: 144946.0257 | RV34: 7 | RW34: 8420.80699 | RX34: 5 | RY34: -6909.75237 | RZ34: 4 | SA34: 0 | SB34: 0 | SC34: 0 | SD34: 0 | SE34: 0 | SF34: 0 | SG34: 0 | SH34: 0 | SI34: 0 | SJ34: 0 | SK34: 0 | SL34: 0 | SM34: 100779.7178 | SN34: 113759.2564 | SO34: 127410.624 | SP34: 144946.0257 | SQ34: 144946.0257 | SR34: 144946.0257 | SS34: 0.1287911785 | ST34: 0.1200022577 | SU34: 0.1376290392 | SV34: 0 | SW34: 0.35 | SX34: 6137.11533 | SY34: 7109.47602 | SZ34: 8420.80699 | TA34: 8420.80699 | TB34: 8420.80699 | TC34: 7703.15 | TD34: 6844.4263 | TE34: 6844.4263 | TF34: 6844.4263 | TG34: 6844.4263 | TH34: 113759.2564 | TI34: 0.1287911785 | TJ34: 6137.11533 | TK34: 7703.15 | TM34: 19008.57993 | TN34: 19008.57993 | TO34: 1.177555806 | TP34: 2784.454207 | TQ34: 0 | TR34: -483.3192 | TS34: 1466.53039 | TT34: 5687.962819 | TU34: 8214.493132 | TV34: 5804.954057 | TW34: 22453.82156 | TX34: 54820.38071 | TY34: 36716.53511 | TZ34: 0.14808818 | UA34: 16964.90077 | UB34: 23787.42711 | UC34: 15552.27742 | UD34: 60503.96222 | UE34: 0.08986659153 | UF34: 0.05648406991 | UG34: 0.04779641703 | UH34: 3.09831132 | UI34: 0.03353242881 | UJ34: 0.04779641703 | UK34: 1.880195151 | UL34: 5751.15261 | UM34: 6079.90501 | UN34: 6137.11533 | UO34: 0.1375762207 | UP34: 0.1465300177 | UQ34: 0.14808818 | UR34: 1.051195923 | US34: 0.1558162278 | UT34: 0 | UV34: x | UW34: x | UX34: x | UZ34: 7.535613041 | VA34: 47.78039514 | VB34: 4.572950112 | VC34: 47.78039514 | VE34: 7786.761905 | VF34: 35.53230524 | VG34: 28.74068 | VH34: 33.42303 | VI34: 8.50525 | VJ34: 265286.1752 | VK34: 0.056306 | VL34: 0.06844947965 | VM34: 0.086478 | VN34: 0.04581377116 | VO34: 0.048901 | VP34: 13485.11041 | VQ34: 0.322756462 | VR34: 64763.04841 | VS34: 0.5692991539 | VT34: 10042.95667 | VU34: 0 | VV34: 0 | XN34: 4.581751034 | XO34: 300.4527082 | XP34: 32.50543549 | XQ34: 0.0291929886 | XR34: 0.08567280233 | XS34: 0 | XT34: 0.1287911785 | XU34: 0.1287911785 | XW34: 0.64423 | XX34: 1074.99105 | XY34: 1.83 | XZ34: Sep-2016 | YA34: $260.0/$183.1 | YB34: 1.311112212 | YC34: 2.33199639 | YG34: 63550.13179 | YH34: 45446.28619 | YI34: 0.1194774182 | YJ34: 0.05400309456 | YK34: 0.04773066484 | YL34: 2.503158474 | YM34: 6.088101449 | YO34: 0 | YQ34: 250 | YR34: 0 | YS34: 0 | YT34: 139.1225 | YU34: 0 | YV34: 908.54912 | YW34: 1408.48854 | YX34: 1071.53617 | YY34: 136.91725 | YZ34: -69.10135 | ZA34: 0 | ZB34: 0 | ZC34: 0 | ZD34: 0 | ZE34: 0 | ZF34: -1466.53039 | ZG34: -1466.53039 | ZH34: 0 | ZI34: 0 | ZJ34: 0 | ZK34: 0 | ZL34: 1532.58326 | ZM34: 0 | ZN34: 3352.728 | ZO34: 0 | ZP34: 0 | ZQ34: 0 | ZR34: 0 | ZS34: 0 | ZT34: 31756.5899 | ZU34: 41792.49979 | ZV34: 4.61751 | ZW34: 4.61751 | ZX34: 1409.72855 | ZY34: 0 | ZZ34: 0 | AAA34: 0 | AAB34: 0 | AAC34: 1466.53039 | AAD34: 0 | AAE34: 0 | AAF34: 0 | AAG34: 0 | AAH34: 282.36 | AAI34: 927.91627 | AAJ34: 0 | AAK34: 0 | AAL34: 8825.63361 | AAM34: 0 | AAN34: 30623.22406 | AAP34: 220 | AAQ34: 101765.8216 | AAR34: 103854 | AAS34: 99412.183 | AAT34: 10 | AAU34: Represents Revenue Includes Royalty, Franchise Fees and Others | AAV34: 10405 | AAW34: 13999 | AAX34: 9764.272 | AAY34: 10994.45817 | AAZ34: 9 | ABA34: Includes Stock Based Compensation Expense | ABB34: 6665.812 | ABC34: 8101 | ABD34: 6194.097 | ABE34: 6782.1452 | ABF34: 9 | ABG34: Includes Amortization of Intangible Assets and Stock Based Compensation Expense | ABH34: -315 | ABI34: -315 | ABJ34: -315 | ABK34: -315 | ABL34: 1 | ABM34: 22.3 | ABN34: 27 | ABO34: 20 | ABP34: 23.1 | ABQ34: 3 | ABR34: 5614.12634 | ABS34: 6008.84233 | ABT34: 4812.28479 | ABU34: 9 | ABV34: Includes Amortization of Intangible Assets and Stock Based Compensation Expense | ABW34: -6504.4 | ABX34: -9007 | ABY34: -5490 | ABZ34: 5 | ACA34: 3721 | ACB34: 5898 | ACC34: 3446 | ACD34: 4089.72 | ACE34: 5 | ACF34: 18.90724 | ACG34: 21 | ACH34: 18 | ACI34: 19.20362 | ACJ34: 4 | ACK34: 12591.9 | ACL34: 18448 | ACM34: 11089 | ACN34: 13412.98 | ACO34: 5 | ACP34: Represents After Working Capital Changes | ACQ34: 19.1995 | ACR34: 26.6 | ACS34: 16.58041 | ACT34: 19.76928 | ACU34: 10 | ACV34: 1.77742 | ACW34: 3.72 | ACX34: 1.12083 | ACY34: 2.06569 | ACZ34: 10 | ADA34: 5.1405 | ADB34: 5.84 | ADC34: 4.54211 | ADD34: 5.1982 | ADE34: 10 | ADG34: 5355.03043 | ADH34: 1155.567372 | ADI34: 4199.463058 | ADJ34: 13864.4133 | ADK34: 9908.983665 | ADL34: 20824.10847 | ADM34: -6959.695175 | ADN34: 0 | ADO34: 0 | ADP34: 9766.559559 | ADQ34: 25318.83698 | ADR34: 0.0471391122 | ADS34: 24.56907248 | ADT34: 5.636541057 | ADU34: 1.158164264 | ADV34: 0.2657015413 | ADW34: 0.9082428394 | ADX34: 0.20836554 | ADY34: 2784.454207 | ADZ34: 7296.804227 | AEA34: 1409.72855 | AEB34: 0 | AEC34: 54457.48193 | AED34: 1210.27627 | AEE34: 8825.63361 | AEF34: -1466.53039 | AEG34: 0 | AEH34: 11848.787 | AEI34: 30623.22406 | AEJ34: -0.1000713901 | AEK34: 268747.7627 | AEL34: 11848.787 | AEM34: 280596.5498 | AEN34: 266577.1026 | AEO34: 0.01640890069 | AEP34: 2.0889555 | AEQ34: 38905.20451 | AER34: 2.924011269 | AET34: 0 | AEU34: 0 | AEV34: 435.02852
A35: PSE:JFC01002 | B35: PSE:JFC | C35: 0 | D35: CapIQ Raw | E35: 0 | F35: 2016-09-02 | G35: Jollibee Foods Corp. | H35: 1002 | I35: 2017 | J35: 1000 | K35: 2017 | L35: 2016-09-03 | M35: Consumer Discretionary | N35: Consumer Services | O35: Hotels, Restaurants and Leisure | P35: Restaurants | Q35: Philippines | R35: PH | S35: PHP | T35: PSE | U35: JFC | V35: PHP | W35: 250 | X35: NA | Z35: 0.04822283259 | AA35: 3.38617796 | AB35: 0.1632910928 | AC35: -0.005509987665 | AD35: 0.1000438139 | AE35: 0.06 | AF35: 7.312264756 | AG35: 8.603172468 | AH35: 38.63966678 | AI35: 45.40765066 | AJ35: 44.78054882 | AK35: 45.40765066 | AM35: 0.04816412539 | AN35: 2.395884342 | AO35: 0.1153956739 | AP35: 0.01173902958 | AQ35: 0.06 | AR35: 5.173780246 | AS35: 44.83513178 | AT35: 50.67147465 | AU35: 71198.76485 | AV35: 18019.81054 | AW35: 53178.95431 | AX35: 6136.62127 | AY35: 275136.2233 | BA35: 164.7913639 | BB35: 130.9717731 | BC35: 6370.531199 | BD35: 6370.531199 | BE35: 9200.309532 | BF35: 6501.502972 | BG35: 6926.080525 | BH35: 5329.736071 | BI35: 25148.27217 | BJ35: 12880.33152 | BK35: 25105.29595 | BL35: 42.97621995 | BM35: 804.0373137 | BN35: 0 | BO35: 0 | BP35: 9749.947552 | BQ35: 0 | BR35: 18084.53399 | BS35: 0 | BT35: 10596.96109 | BU35: 40713.57015 | BV35: 3919.671343 | BW35: 416.2848509 | BX35: 0 | BY35: 45049.52634 | BZ35: 55646.48743 | CA35: 18019.81054 | CB35: 37626.67689 | CC35: 0 | CD35: 0 | CE35: 3878.666708 | CF35: 7.47992 | CG35: 2097.161609 | CH35: 312.63574 | CI35: 244.81985 | CJ35: 0 | CK35: 0 | CL35: 0 | CM35: 11029.877 | CN35: 6144.10119 | CO35: 5.621811925 | CP35: 5918.55687 | CQ35: 5.415440365 | CR35: 6806.37147 | CS35: 22729.99626 | CT35: 16687.88244 | CU35: 275136.2233 | CW35: 0 | CX35: 0 | CY35: 0 | CZ35: 0 | DA35: 36047.22309 | DB35: 40713.57015 | DC35: 494.2379444 | DD35: 3919.671343 | DE35: 421.7550603 | DF35: 72.48288414 | DG35: 2265.090129 | DH35: 15701.8125 | DI35: 5112.762078 | DJ35: 4155.648315 | DK35: 3197.841642 | DL35: 28168.06454 | DM35: 3062.768594 | DN35: 804.0373137 | DO35: 7487.572904 | DP35: 3899.979021 | DQ35: 0 | DR35: 15254.35783 | DS35: 16285.42806 | DT35: 0 | DU35: 166.5139404 | DV35: 0 | DW35: 16451.942 | DX35: 31706.29983 | DY35: 10000.98861 | DZ35: 3.170316563 | EA35: 544.87552 | EB35: 3657.54605 | EC35: 5.934391782 | ED35: 14131.63125 | EE35: 1597.738149 | EF35: 1038.912079 | EG35: 532.9736071 | EH35: 17301.25509 | EI35: -7804.040857 | EJ35: 804.0373137 | EK35: 7487.572904 | EL35: 974.9947552 | EM35: 0 | EN35: 1462.564117 | EO35: 6426.872414 | EP35: 0 | EQ35: 62.44272764 | ER35: 0 | ES35: 6489.315142 | ET35: 7951.879258 | EU35: 10000.98861 | EV35: 0.7951093205 | EW35: 544.87552 | EX35: 3657.54605 | EY35: -0.5602415728 | EZ35: 11274.69685 | FA35: 9968.613056 | FB35: 0 | FC35: 3183.17164 | FD35: 298.0272041 | FE35: 10.68080899 | FF35: 3.313005179 | FH35: 0 | FI35: 36047.22309 | FJ35: 0 | FK35: 14225.65639 | FL35: 39.46394526 | FM35: 37.07430924 | FN35: 0 | FO35: 0 | FP35: 15990.529 | FQ35: 0 | FR35: 5928.37817 | FS35: 13992.61 | FT35: 3149.11657 | FU35: 3072.45582 | FV35: 9.768353727 | FW35: 9.293715031 | FX35: 8.785754648 | FY35: 9.293715031 | FZ35: 9.293715031 | GA35: 5 | GB35: 5.626048419 | GC35: 5.848134381 | GD35: 5.7370914 | GE35: 58 | GF35: 0.01555756991 | GG35: 3270.822724 | GH35: 39318.04581 | GI35: 66.88693354 | GJ35: 0.032 | GK35: 421.7550603 | GL35: 72.48288414 | GM35: 2265.090129 | GN35: 404.8739401 | GO35: 0.01399401426 | GP35: 1466.53039 | GQ35: 0 | GR35: 4380.763776 | GS35: 83.25697019 | GT35: 4885.775806 | GU35: 9.220547182 | GV35: 0 | GW35: 24.10533 | GX35: 8498.08393 | GY35: 659.883265 | GZ35: 48.67043436 | HA35: 12.31170692 | HC35: 1.157122222 | HD35: 127.907 | HE35: 285886.1338 | HF35: 202236.9625 | HG35: 54820.38071 | HH35: 0.01506933562 | HI35: 0.02057932328 | HJ35: 31238.21634 | HK35: 7120.564079 | HL35: 5918.55687 | HM35: 7.59796393 | HN35: 5.374829222 | HO35: 40.14936607 | HP35: 28.40181764 | HR35: 15701.8125 | HS35: 6390.952598 | HT35: 6926.080525 | HU35: 0 | HV35: 3118.594998 | HW35: 0 | HX35: 1929.255782 | HY35: 281.8852904 | HZ35: 11926.62703 | IA35: 298.3374008 | IB35: 10960.47647 | IC35: 2218.192444 | ID35: 0 | IE35: 0 | IF35: 0 | IG35: 7487.572904 | IH35: 9749.947552 | II35: 137.6076014 | IJ35: 127410.624 | IK35: 38179.8978 | IL35: 737.1503801 | IM35: 1395.524338 | IN35: 16358.3311 | IO35: 7109.47602 | IP35: 21.5791 | IQ35: 0 | IR35: 8715.23076 | IS35: 5362.51035 | IT35: 5355.03043 | IU35: 494.2379444 | IV35: 0 | IW35: 225.54432 | IX35: -149.3041773 | IY35: 67.8159 | IZ35: -257.78359 | JA35: -189.08597 | JB35: 173.21169 | JC35: 1092.90408 | JD35: 10545.86413 | JE35: 1646.14014 | JF35: 0 | JG35: 346.34673 | JH35: 268747.7627 | JI35: 279497.6733 | JJ35: 195848.5019 | JK35: 6822.52634 | JL35: 8729.75108 | JM35: 16.7489 | JN35: 33.42303 | JO35: 50.66604 | JP35: 0.732 | JQ35: 1388.60791 | JR35: 1871.92711 | JS35: 822.76459 | JT35: 1899.66561 | JU35: 38.64088 | JV35: 1.15154 | JW35: 6844.4263 | JX35: 9925.36 | JY35: -12770.8 | JZ35: -5001.10679 | KA35: 1899.66561 | KB35: 0 | KC35: 0 | KD35: 0 | KE35: 0 | KF35: 122.093 | KG35: 250 | KH35: 53.21344 | KI35: 312.63574 | KJ35: 0 | KK35: 244.81985 | KL35: 0 | KM35: 0 | KN35: 85271.87351 | KO35: 6434.94131 | KP35: 3134.01172 | KQ35: 2999.15215 | KR35: 1532.62176 | KS35: 0 | KT35: 0 | KU35: 312.63574 | KV35: 92.2833498 | KW35: 82.39568194 | KX35: 72.99461894 | KY35: 77.60961944 | KZ35: 79.59067 | LA35: 56.762832 | LB35: 70.92315 | LC35: 61.84507397 | LD35: 0 | LE35: 0 | LF35: 0 | LG35: 0 | LH35: 17932.409 | LI35: 666.643 | LJ35: 1275.237 | LK35: 7870.25817 | LL35: 9231.04078 | LM35: 6081.92421 | LN35: 15206.828 | LO35: 666.214 | LP35: 548.004 | LQ35: 8990.25222 | LR35: 5917.7964 | LS35: 18.7962 | LT35: 24.3808 | LU35: 23.6481 | LV35: 25.2602 | LW35: 23.2539 | LX35: 27.0377 | LY35: 27.6932 | LZ35: 23.8166 | MA35: 25.5875 | MB35: FIFO | MC35: 0 | MD35: 10000.98861 | ME35: 927.25421 | MF35: 767.37259 | MG35: 320.64455 | MH35: 1100.47961 | MI35: 1100.47961 | MK35: 14289.0918 | ML35: 7109.47602 | MM35: 0 | MN35: 9968.613056 | MO35: 1899.66561 | MP35: 4380.763776 | MQ35: 83.25697019 | MR35: 421.7550603 | MS35: 0 | MT35: 298.0272041 | MU35: 2640.324586 | MV35: 0.372744587 | MW35: 1872.951996 | MX35: 0.2385670459 | MY35: 16162.0438 | MZ35: 0 | NA35: 0 | NB35: 0 | NC35: 16162.0438 | NE35: 12419.87664 | NF35: 5055.13888 | NG35: 5478.41631 | NH35: 0 | NI35: 2466.75759 | NJ35: 0 | NK35: 1526.00974 | NL35: 222.96665 | NM35: 9433.76673 | NN35: 235.98 | NO35: 8669.55746 | NP35: 1754.55391 | NQ35: 0 | NR35: 0 | NS35: 0 | NT35: 5922.54759 | NU35: 7712.0489 | NV35: 108.84536 | NW35: 100779.7178 | NX35: 34688.19191 | NY35: 669.735 | NZ35: 1267.898 | OA35: 14862.29564 | OB35: 4928.23623 | OC35: 21.5791 | OD35: 908.54912 | OE35: 8715.23076 | OF35: 5362.51035 | OG35: 5355.03043 | OH35: 390.934123 | OI35: 0 | OJ35: 225.54432 | OK35: 118.09716 | OL35: 67.8159 | OM35: -257.78359 | ON35: -189.08597 | OO35: 173.21169 | OP35: 1088.32164 | OQ35: 10035.90988 | OR35: 1646.14014 | OS35: 0 | OT35: 1133.36585 | OU35: 268747.7627 | OV35: 279497.6733 | OW35: 195848.5019 | OX35: 6822.52634 | OY35: 8364.27686 | OZ35: 14.63334 | PA35: 33.42303 | PB35: 50.66604 | PC35: 0.732 | PD35: 1388.60791 | PE35: 1871.92711 | PF35: 822.76459 | PG35: 1899.66561 | PH35: 38.64088 | PI35: 1.15154 | PJ35: 4596.78655 | PK35: 9925.36 | PL35: -12770.8 | PM35: -5001.10679 | PN35: 1899.66561 | PO35: 0 | PP35: 0 | PQ35: 0 | PR35: 0 | PS35: 122.093 | PT35: 250 | PU35: 53.21344 | PV35: 312.63574 | PW35: 0 | PX35: 244.81985 | PY35: 0 | PZ35: 0 | QA35: 85271.87351 | QB35: 6434.94131 | QC35: 3134.01172 | QD35: 2999.15215 | QE35: 1532.62176 | QF35: 0 | QG35: 0 | QH35: 312.63574 | QI35: 72.99461894 | QJ35: 77.60961944 | QK35: 79.59067 | QL35: 56.762832 | QM35: 70.92315 | QN35: 61.84507397 | QO35: 0 | QP35: 0 | QQ35: 0 | QR35: 0 | QS35: 0 | QT35: 0 | RI35: 113759.2564 | RJ35: 8 | RK35: 6137.11533 | RL35: 5 | RM35: -7703.15 | RN35: 2 | RO35: 127410.624 | RP35: 9 | RQ35: 7109.47602 | RR35: 6 | RS35: -6844.4263 | RT35: 4 | RU35: 144946.0257 | RV35: 7 | RW35: 8420.80699 | RX35: 5 | RY35: -6909.75237 | RZ35: 4 | SA35: 0 | SB35: 0 | SC35: 0 | SD35: 0 | SE35: 0 | SF35: 0 | SG35: 0 | SH35: 0 | SI35: 0 | SJ35: 0 | SK35: 0 | SL35: 0 | SM35: 100779.7178 | SN35: 113759.2564 | SO35: 127410.624 | SP35: 144946.0257 | SQ35: 144946.0257 | SR35: 144946.0257 | SS35: 0.1287911785 | ST35: 0.1200022577 | SU35: 0.1376290392 | SV35: 0 | SW35: 0.35 | SX35: 6137.11533 | SY35: 7109.47602 | SZ35: 8420.80699 | TA35: 8420.80699 | TB35: 8420.80699 | TC35: 7703.15 | TD35: 6844.4263 | TE35: 6844.4263 | TF35: 6844.4263 | TG35: 6844.4263 | TH35: 127410.624 | TI35: 0.2642486684 | TJ35: 7109.47602 | TK35: 6844.4263 | TM35: 24257.70486 | TN35: 24257.70486 | TO35: 1.201217827 | TP35: 3118.594998 | TQ35: 0 | TR35: -483.3192 | TS35: 1466.53039 | TT35: 6370.531199 | TU35: 9200.309532 | TV35: 6501.502972 | TW35: 25148.27217 | TX35: 55646.48743 | TY35: 37626.67689 | TZ35: 0.1632910928 | UA35: 16964.90077 | UB35: 23787.42711 | UC35: 15552.27742 | UD35: 61414.104 | UE35: 0.1000438139 | UF35: 0.02478833518 | UG35: 0.04822283259 | UH35: 3.38617796 | UI35: 0.01504268061 | UJ35: 0.04822283259 | UK35: 2.074615042 | UV35: x | UW35: x | UX35: x | UZ35: 7.312264756 | VA35: 44.78054882 | VB35: 4.480016891 | VC35: 44.78054882 | XN35: 5.215731246 | XO35: 306.0659635 | XP35: 32.50543549 | XQ35: -0.01613575155 | XR35: 0.1184751362 | XS35: 0.09946139609 | XT35: 0.1200022577 | XU35: 0.1200022577 | XW35: 0.64423 | XX35: 1074.99105 | XY35: 1.83 | XZ35: Sep-2016 | YA35: $260.0/$183.1 | YB35: 1.282271975 | YC35: 2.082135436 | YG35: 64376.23851 | YH35: 46356.42797 | YI35: 0.1323790796 | YJ35: 0.02002675808 | YK35: 0.04816412539 | YL35: 2.748499605 | YM35: 5.93523348 | YQ35: 250 | YR35: 0 | YS35: 0 | YT35: 139.1225 | YU35: 0 | YV35: 908.54912 | YW35: 1408.48854 | YX35: 1071.53617 | YY35: 136.91725 | YZ35: -69.10135 | ZA35: 0 | ZB35: 0 | ZC35: 0 | ZD35: 0 | ZE35: 0 | ZF35: -1466.53039 | ZG35: -1466.53039 | ZH35: 0 | ZI35: 0 | ZJ35: 0 | ZK35: 0 | ZL35: 1532.58326 | ZM35: 0 | ZN35: 3352.728 | ZO35: 0 | ZP35: 0 | ZQ35: 0 | ZR35: 0 | ZS35: 0 | ZT35: 31756.5899 | ZU35: 41792.49979 | ZV35: 4.61751 | ZW35: 4.61751 | ZX35: 1409.72855 | ZY35: 0 | ZZ35: 0 | AAA35: 0 | AAB35: 0 | AAC35: 1466.53039 | AAD35: 0 | AAE35: 0 | AAF35: 0 | AAG35: 0 | AAH35: 282.36 | AAI35: 927.91627 | AAJ35: 0 | AAK35: 0 | AAL35: 8825.63361 | AAM35: 0 | AAN35: 30623.22406 | AAP35: 220 | AAQ35: 101765.8216 | AAR35: 103854 | AAS35: 99412.183 | AAT35: 10 | AAU35: Represents Revenue Includes Royalty, Franchise Fees and Others | AAV35: 10405 | AAW35: 13999 | AAX35: 9764.272 | AAY35: 10994.45817 | AAZ35: 9 | ABA35: Includes Stock Based Compensation Expense | ABB35: 6665.812 | ABC35: 8101 | ABD35: 6194.097 | ABE35: 6782.1452 | ABF35: 9 | ABG35: Includes Amortization of Intangible Assets and Stock Based Compensation Expense | ABH35: -315 | ABI35: -315 | ABJ35: -315 | ABK35: -315 | ABL35: 1 | ABM35: 22.3 | ABN35: 27 | ABO35: 20 | ABP35: 23.1 | ABQ35: 3 | ABR35: 5614.12634 | ABS35: 6008.84233 | ABT35: 4812.28479 | ABU35: 9 | ABV35: Includes Amortization of Intangible Assets and Stock Based Compensation Expense | ABW35: -6504.4 | ABX35: -9007 | ABY35: -5490 | ABZ35: 5 | ACA35: 3721 | ACB35: 5898 | ACC35: 3446 | ACD35: 4089.72 | ACE35: 5 | ACF35: 18.90724 | ACG35: 21 | ACH35: 18 | ACI35: 19.20362 | ACJ35: 4 | ACK35: 12591.9 | ACL35: 18448 | ACM35: 11089 | ACN35: 13412.98 | ACO35: 5 | ACP35: Represents After Working Capital Changes | ACQ35: 19.1995 | ACR35: 26.6 | ACS35: 16.58041 | ACT35: 19.76928 | ACU35: 10 | ACV35: 1.77742 | ACW35: 3.72 | ACX35: 1.12083 | ACY35: 2.06569 | ACZ35: 10 | ADA35: 5.1405 | ADB35: 5.84 | ADC35: 4.54211 | ADD35: 5.1982 | ADE35: 10 | ADG35: 5355.03043 | ADH35: 1155.567372 | ADI35: 4199.463058 | ADJ35: 15528.17419 | ADK35: 11098.08408 | ADL35: 23323.0485 | ADM35: -7794.874308 | ADN35: 0 | ADO35: 0 | ADP35: 8563.456795 | ADQ35: 24115.73421 | ADR35: 0.04208840819 | ADS35: 13.90185601 | ADT35: 5.154717474 | ADU35: 0.5851069902 | ADV35: 0.2169538532 | ADW35: 0.4588461677 | ADX35: 0.1701371642 | ADY35: 3118.594998 | ADZ35: 8341.459012 | AEA35: 1409.72855 | AEB35: 0 | AEC35: 57117.79348 | AED35: 1210.27627 | AEE35: 8825.63361 | AEF35: -1466.53039 | AEG35: 0 | AEH35: 11848.787 | AEI35: 30623.22406 | AEJ35: -0.07025428455 | AEK35: 268747.7627 | AEL35: 11848.787 | AEM35: 280596.5498 | AEN35: 264894.7372 | AEO35: 0.01575327745 | AEP35: 2.23066432 | AEQ35: 41565.51606 | AER35: 3.065296333 | AET35: 0 | AEU35: 0 | AEV35: 435.02852
A36: PSE:JFC01003 | B36: PSE:JFC | C36: 0 | D36: CapIQ Raw | E36: 0 | F36: 2016-09-02 | G36: Jollibee Foods Corp. | H36: 1003 | I36: 2018 | J36: 1000 | K36: 2018 | L36: 2016-09-03 | M36: Consumer Discretionary | N36: Consumer Services | O36: Hotels, Restaurants and Leisure | P36: Restaurants | Q36: Philippines | R36: PH | S36: PHP | T36: PSE | U36: JFC | V36: PHP | W36: 250 | X36: NA | Z36: 0.04912562481 | AA36: 3.68552198 | AB36: 0.1810535701 | AC36: 0.01332219971 | AD36: 0.1128172426 | AE36: 0.06 | AF36: 6.945373836 | AG36: 7.69495957 | AH36: 38.42318194 | AI36: 38.97708377 | AJ36: 38.36087758 | AK36: 38.97708377 | AM36: 0.04907401995 | AN36: 2.641107703 | AO36: 0.1296097721 | AP36: 0.02721475419 | AQ36: 0.06 | AR36: 4.977172958 | AS36: 38.4012168 | AT36: 44.51164165 | AU36: 73136.42173 | AV36: 18255.65122 | AW36: 54880.77051 | AX36: 7113.084159 | AY36: 273151.0869 | BA36: 184.5666996 | BB36: 148.8559635 | BC36: 7247.301287 | BD36: 7247.301287 | BE36: 10466.68062 | BF36: 7396.157251 | BG36: 7879.310333 | BH36: 6063.262525 | BI36: 28609.26337 | BJ36: 14653.03917 | BK36: 28560.5137 | BL36: 48.74966693 | BM36: 804.4431252 | BN36: 0 | BO36: 0 | BP36: 11091.82347 | BQ36: 0 | BR36: 20463.09663 | BS36: 0 | BT36: 11945.01626 | BU36: 40733.41465 | BV36: 4459.131944 | BW36: 446.5814637 | BX36: 0 | BY36: 45639.12805 | BZ36: 57584.14431 | CA36: 18255.65122 | CB36: 39328.49309 | CC36: 0 | CD36: 0 | CE36: 3878.666708 | CF36: 7.47992 | CG36: 2413.262267 | CH36: 312.63574 | CI36: 244.81985 | CJ36: 0 | CK36: 0 | CL36: 0 | CM36: 12072.58021 | CN36: 7120.564079 | CO36: 6.515269006 | CP36: 6895.019759 | CQ36: 6.308897446 | CR36: 6806.37147 | CS36: 23041.73844 | CT36: 18984.76099 | CU36: 273151.0869 | CW36: 0 | CX36: 0 | CY36: 0 | CZ36: 0 | DA36: 36047.22309 | DB36: 40733.41465 | DC36: 562.2594379 | DD36: 4459.131944 | DE36: 479.800804 | DF36: 82.45863384 | DG36: 2576.832307 | DH36: 17862.83787 | DI36: 5816.42661 | DJ36: 4727.5862 | DK36: 3637.957515 | DL36: 32044.8082 | DM36: 3484.294493 | DN36: 804.4431252 | DO36: 8518.080369 | DP36: 4436.729386 | DQ36: 0 | DR36: 17243.54737 | DS36: 16293.36586 | DT36: 0 | DU36: 178.6325855 | DV36: 0 | DW36: 16471.99844 | DX36: 33715.54582 | DY36: 10000.98861 | DZ36: 3.371221299 | EA36: 544.87552 | EB36: 3657.54605 | EC36: 6.483734417 | ED36: 16076.55408 | EE36: 1817.633316 | EF36: 1181.89655 | EG36: 606.3262525 | EH36: 19682.4102 | EI36: -8878.103501 | EJ36: 804.4431252 | EK36: 8518.080369 | EL36: 1109.182347 | EM36: 0 | EN36: 1553.602339 | EO36: 6430.004983 | EP36: 0 | EQ36: 66.98721955 | ER36: 0 | ES36: 6496.992202 | ET36: 8050.594542 | EU36: 10000.98861 | EV36: 0.8049798731 | EW36: 544.87552 | EX36: 3657.54605 | EY36: -0.5332520881 | EZ36: 12317.40006 | FA36: 11011.31627 | FB36: 0 | FC36: 4159.634529 | FD36: 308.0029538 | FE36: 13.50517739 | FF36: 2.535286227 | FH36: 0 | FI36: 36047.22309 | FJ36: 0 | FK36: 14225.65639 | FL36: 39.46394526 | FM36: 37.07430924 | FN36: 0 | FO36: 0 | FP36: 15990.529 | FQ36: 0 | FR36: 5928.37817 | FS36: 13992.61 | FT36: 3149.11657 | FU36: 3072.45582 | FV36: 9.768353727 | FW36: 9.293715031 | FX36: 8.785754648 | FY36: 9.293715031 | FZ36: 9.293715031 | GA36: 5 | GB36: 5.626048419 | GC36: 5.848134381 | GD36: 5.7370914 | GE36: 59 | GF36: 0.01564865749 | GG36: 3290.667222 | GH36: 39337.89031 | GI36: 67.29274508 | GJ36: 0.032 | GK36: 479.800804 | GL36: 82.45863384 | GM36: 2576.832307 | GN36: 430.2674887 | GO36: 0.01878157153 | GP36: 1466.53039 | GQ36: 0 | GR36: 4382.899036 | GS36: 89.31629273 | GT36: 4952.016132 | GU36: 9.216272087 | GV36: 0 | GW36: 24.10533 | GX36: 9809.4149 | GY36: 975.9839227 | GZ36: 48.67043436 | HA36: 10.82225092 | HC36: 1.18260392 | HD36: 127.907 | HE36: 283900.9974 | HF36: 200251.8261 | HG36: 55646.48743 | HH36: 0.03482083009 | HI36: 0.02149863038 | HJ36: 34925.16891 | HK36: 7109.017866 | HL36: 6895.019759 | HM36: 7.218710282 | HN36: 5.0917747 | HO36: 39.93533323 | HP36: 28.16870486 | HR36: 17862.83787 | HS36: 7270.533263 | HT36: 7879.310333 | HU36: 0 | HV36: 3547.804232 | HW36: 0 | HX36: 2194.777401 | HY36: 320.680892 | HZ36: 13568.07724 | IA36: 339.3972906 | IB36: 12468.95632 | IC36: 2523.480139 | ID36: 0 | IE36: 0 | IF36: 0 | IG36: 8518.080369 | IH36: 11091.82347 | II36: 156.5464034 | IJ36: 144946.0257 | IK36: 38179.8978 | IL36: 737.1503801 | IM36: 1395.524338 | IN36: 16358.3311 | IO36: 8420.80699 | IP36: 21.5791 | IQ36: 0 | IR36: 8715.23076 | IS36: 5362.51035 | IT36: 5355.03043 | IU36: 562.2594379 | IV36: 0 | IW36: 225.54432 | IX36: -169.8527677 | IY36: 67.8159 | IZ36: -257.78359 | JA36: -189.08597 | JB36: 173.21169 | JC36: 1092.90408 | JD36: 10545.86413 | JE36: 1646.14014 | JF36: 0 | JG36: 346.34673 | JH36: 268747.7627 | JI36: 279497.6733 | JJ36: 195848.5019 | JK36: 6822.52634 | JL36: 8729.75108 | JM36: 16.7489 | JN36: 33.42303 | JO36: 50.66604 | JP36: 0.732 | JQ36: 1388.60791 | JR36: 1871.92711 | JS36: 822.76459 | JT36: 1899.66561 | JU36: 38.64088 | JV36: 1.15154 | JW36: 6844.4263 | JX36: 9925.36 | JY36: -12770.8 | JZ36: -5001.10679 | KA36: 1899.66561 | KB36: 0 | KC36: 0 | KD36: 0 | KE36: 0 | KF36: 122.093 | KG36: 250 | KH36: 53.21344 | KI36: 312.63574 | KJ36: 0 | KK36: 244.81985 | KL36: 0 | KM36: 0 | KN36: 85271.87351 | KO36: 6434.94131 | KP36: 3134.01172 | KQ36: 2999.15215 | KR36: 1532.62176 | KS36: 0 | KT36: 0 | KU36: 312.63574 | KV36: 104.9842186 | KW36: 92.2833498 | KX36: 82.39568194 | KY36: 72.99461894 | KZ36: 77.60961944 | LA36: 79.59067 | LB36: 56.762832 | LC36: 70.92315 | LD36: 61.84507397 | LE36: 0 | LF36: 0 | LG36: 0 | LH36: 17932.409 | LI36: 666.643 | LJ36: 1275.237 | LK36: 7870.25817 | LL36: 9231.04078 | LM36: 6081.92421 | LN36: 15206.828 | LO36: 666.214 | LP36: 548.004 | LQ36: 8990.25222 | LR36: 5917.7964 | LS36: 18.7962 | LT36: 24.3808 | LU36: 23.6481 | LV36: 25.2602 | LW36: 23.2539 | LX36: 27.0377 | LY36: 27.6932 | LZ36: 23.8166 | MA36: 25.5875 | MB36: FIFO | MC36: 0 | MD36: 10000.98861 | ME36: 927.25421 | MF36: 767.37259 | MG36: 320.64455 | MH36: 1100.47961 | MI36: 1100.47961 | MK36: 16162.0438 | ML36: 8420.80699 | MM36: 0 | MN36: 11011.31627 | MO36: 1899.66561 | MP36: 4382.899036 | MQ36: 89.31629273 | MR36: 479.800804 | MS36: 0 | MT36: 308.0029538 | MU36: 3606.811725 | MV36: 0.5037668386 | MW36: 3286.167175 | MX36: 0.4393078255 | MY36: 19448.21098 | MZ36: 0 | NA36: 0 | NB36: 0 | NC36: 19448.21098 | NE36: 12419.87664 | NF36: 5055.13888 | NG36: 5478.41631 | NH36: 0 | NI36: 2466.75759 | NJ36: 0 | NK36: 1526.00974 | NL36: 222.96665 | NM36: 9433.76673 | NN36: 235.98 | NO36: 8669.55746 | NP36: 1754.55391 | NQ36: 0 | NR36: 0 | NS36: 0 | NT36: 5922.54759 | NU36: 7712.0489 | NV36: 108.84536 | NW36: 100779.7178 | NX36: 34688.19191 | NY36: 669.735 | NZ36: 1267.898 | OA36: 14862.29564 | OB36: 4928.23623 | OC36: 21.5791 | OD36: 908.54912 | OE36: 8715.23076 | OF36: 5362.51035 | OG36: 5355.03043 | OH36: 390.934123 | OI36: 0 | OJ36: 225.54432 | OK36: 118.09716 | OL36: 67.8159 | OM36: -257.78359 | ON36: -189.08597 | OO36: 173.21169 | OP36: 1088.32164 | OQ36: 10035.90988 | OR36: 1646.14014 | OS36: 0 | OT36: 1133.36585 | OU36: 268747.7627 | OV36: 279497.6733 | OW36: 195848.5019 | OX36: 6822.52634 | OY36: 8364.27686 | OZ36: 14.63334 | PA36: 33.42303 | PB36: 50.66604 | PC36: 0.732 | PD36: 1388.60791 | PE36: 1871.92711 | PF36: 822.76459 | PG36: 1899.66561 | PH36: 38.64088 | PI36: 1.15154 | PJ36: 4596.78655 | PK36: 9925.36 | PL36: -12770.8 | PM36: -5001.10679 | PN36: 1899.66561 | PO36: 0 | PP36: 0 | PQ36: 0 | PR36: 0 | PS36: 122.093 | PT36: 250 | PU36: 53.21344 | PV36: 312.63574 | PW36: 0 | PX36: 244.81985 | PY36: 0 | PZ36: 0 | QA36: 85271.87351 | QB36: 6434.94131 | QC36: 3134.01172 | QD36: 2999.15215 | QE36: 1532.62176 | QF36: 0 | QG36: 0 | QH36: 312.63574 | QI36: 72.99461894 | QJ36: 77.60961944 | QK36: 79.59067 | QL36: 56.762832 | QM36: 70.92315 | QN36: 61.84507397 | QO36: 0 | QP36: 0 | QQ36: 0 | QR36: 0 | QS36: 0 | QT36: 0 | RI36: 113759.2564 | RJ36: 8 | RK36: 6137.11533 | RL36: 5 | RM36: -7703.15 | RN36: 2 | RO36: 127410.624 | RP36: 9 | RQ36: 7109.47602 | RR36: 6 | RS36: -6844.4263 | RT36: 4 | RU36: 144946.0257 | RV36: 7 | RW36: 8420.80699 | RX36: 5 | RY36: -6909.75237 | RZ36: 4 | SA36: 0 | SB36: 0 | SC36: 0 | SD36: 0 | SE36: 0 | SF36: 0 | SG36: 0 | SH36: 0 | SI36: 0 | SJ36: 0 | SK36: 0 | SL36: 0 | SM36: 100779.7178 | SN36: 113759.2564 | SO36: 127410.624 | SP36: 144946.0257 | SQ36: 144946.0257 | SR36: 144946.0257 | SS36: 0.1287911785 | ST36: 0.1200022577 | SU36: 0.1376290392 | SV36: 0 | SW36: 0.35 | SX36: 6137.11533 | SY36: 7109.47602 | SZ36: 8420.80699 | TA36: 8420.80699 | TB36: 8420.80699 | TC36: 7703.15 | TD36: 6844.4263 | TE36: 6844.4263 | TF36: 6844.4263 | TG36: 6844.4263 | TH36: 144946.0257 | TI36: 0.4382459979 | TJ36: 8420.80699 | TK36: 6844.4263 | TM36: 27173.36007 | TN36: 27173.36007 | TO36: 1.221288304 | TP36: 3547.804232 | TQ36: 0 | TR36: -483.3192 | TS36: 1466.53039 | TT36: 7247.301287 | TU36: 10466.68062 | TV36: 7396.157251 | TW36: 28609.26337 | TX36: 57584.14431 | TY36: 39328.49309 | TZ36: 0.1810535701 | UA36: 16964.90077 | UB36: 23787.42711 | UC36: 15552.27742 | UD36: 63115.9202 | UE36: 0.1128172426 | UF36: 0.04522897954 | UG36: 0.04912562481 | UH36: 3.68552198 | UI36: 0.02771051091 | UJ36: 0.04912562481 | UK36: 2.296504991 | UV36: x | UW36: x | UX36: x | UZ36: 6.945373836 | VA36: 38.36087758 | VB36: 4.327768431 | VC36: 38.36087758 | XN36: 5.930676612 | XO36: 324.5679401 | XP36: 32.50543549 | XQ36: 0.0004874172887 | XR36: 0.1343405025 | XS36: 0.07277856169 | XT36: 0.1376290392 | XU36: 0.1376290392 | XW36: 0.64423 | XX36: 1074.99105 | XY36: 1.83 | XZ36: Sep-2016 | YA36: $260.0/$183.1 | YB36: 1.282271975 | YC36: 1.830241111 | YG36: 66313.89539 | YH36: 48058.24417 | YI36: 0.1480096554 | YJ36: 0.03671154732 | YK36: 0.04907401995 | YL36: 3.016049135 | YM36: 5.683750866 | YQ36: 250 | YR36: 0 | YS36: 0 | YT36: 139.1225 | YU36: 0 | YV36: 908.54912 | YW36: 1408.48854 | YX36: 1071.53617 | YY36: 136.91725 | YZ36: -69.10135 | ZA36: 0 | ZB36: 0 | ZC36: 0 | ZD36: 0 | ZE36: 0 | ZF36: -1466.53039 | ZG36: -1466.53039 | ZH36: 0 | ZI36: 0 | ZJ36: 0 | ZK36: 0 | ZL36: 1532.58326 | ZM36: 0 | ZN36: 3352.728 | ZO36: 0 | ZP36: 0 | ZQ36: 0 | ZR36: 0 | ZS36: 0 | ZT36: 31756.5899 | ZU36: 41792.49979 | ZV36: 4.61751 | ZW36: 4.61751 | ZX36: 1409.72855 | ZY36: 0 | ZZ36: 0 | AAA36: 0 | AAB36: 0 | AAC36: 1466.53039 | AAD36: 0 | AAE36: 0 | AAF36: 0 | AAG36: 0 | AAH36: 282.36 | AAI36: 927.91627 | AAJ36: 0 | AAK36: 0 | AAL36: 8825.63361 | AAM36: 0 | AAN36: 30623.22406 | AAP36: 220 | AAQ36: 101765.8216 | AAR36: 103854 | AAS36: 99412.183 | AAT36: 10 | AAU36: Represents Revenue Includes Royalty, Franchise Fees and Others | AAV36: 10405 | AAW36: 13999 | AAX36: 9764.272 | AAY36: 10994.45817 | AAZ36: 9 | ABA36: Includes Stock Based Compensation Expense | ABB36: 6665.812 | ABC36: 8101 | ABD36: 6194.097 | ABE36: 6782.1452 | ABF36: 9 | ABG36: Includes Amortization of Intangible Assets and Stock Based Compensation Expense | ABH36: -315 | ABI36: -315 | ABJ36: -315 | ABK36: -315 | ABL36: 1 | ABM36: 22.3 | ABN36: 27 | ABO36: 20 | ABP36: 23.1 | ABQ36: 3 | ABR36: 5614.12634 | ABS36: 6008.84233 | ABT36: 4812.28479 | ABU36: 9 | ABV36: Includes Amortization of Intangible Assets and Stock Based Compensation Expense | ABW36: -6504.4 | ABX36: -9007 | ABY36: -5490 | ABZ36: 5 | ACA36: 3721 | ACB36: 5898 | ACC36: 3446 | ACD36: 4089.72 | ACE36: 5 | ACF36: 18.90724 | ACG36: 21 | ACH36: 18 | ACI36: 19.20362 | ACJ36: 4 | ACK36: 12591.9 | ACL36: 18448 | ACM36: 11089 | ACN36: 13412.98 | ACO36: 5 | ACP36: Represents After Working Capital Changes | ACQ36: 19.1995 | ACR36: 26.6 | ACS36: 16.58041 | ACT36: 19.76928 | ACU36: 10 | ACV36: 1.77742 | ACW36: 3.72 | ACX36: 1.12083 | ACY36: 2.06569 | ACZ36: 10 | ADA36: 5.1405 | ADB36: 5.84 | ADC36: 4.54211 | ADD36: 5.1982 | ADE36: 10 | ADG36: 5355.03043 | ADH36: 1155.567372 | ADI36: 4199.463058 | ADJ36: 17665.30189 | ADK36: 12625.50272 | ADL36: 26532.97726 | ADM36: -8867.67537 | ADN36: 0 | ADO36: 0 | ADP36: 7490.655733 | ADQ36: 23042.93315 | ADR36: 0.03699660148 | ADS36: 18.05718323 | ADT36: 6.14716377 | ADU36: 0.6680544117 | ADV36: 0.2274241682 | ADW36: 0.5238942821 | ADX36: 0.1783480795 | ADY36: 3547.804232 | ADZ36: 9683.334926 | AEA36: 1409.72855 | AEB36: 0 | AEC36: 61007.6104 | AED36: 1210.27627 | AEE36: 8825.63361 | AEF36: -1466.53039 | AEG36: 0 | AEH36: 11848.787 | AEI36: 30623.22406 | AEJ36: -0.05012723737 | AEK36: 268747.7627 | AEL36: 11848.787 | AEM36: 280596.5498 | AEN36: 262733.7119 | AEO36: 0.01585332764 | AEP36: 2.375867941 | AEQ36: 45455.33298 | AER36: 3.188757319 | AET36: 0 | AEU36: 0 | AEV36: 435.02852
A37: PSE:JFC01004 | B37: PSE:JFC | C37: 0 | D37: CapIQ Raw | E37: 0 | F37: 2016-09-02 | G37: Jollibee Foods Corp. | H37: 1004 | I37: 2019 | J37: 1000 | K37: 2019 | L37: 2016-09-03 | M37: Consumer Discretionary | N37: Consumer Services | O37: Hotels, Restaurants and Leisure | P37: Restaurants | Q37: Philippines | R37: PH | S37: PHP | T37: PSE | U37: JFC | V37: PHP | W37: 250 | X37: NA | Z37: 0.04904596611 | AA37: 3.680851519 | AB37: 0.1805309189 | AC37: -0.01849822969 | AD37: 0.1125453229 | AE37: 0.06 | AF37: 6.936572659 | AG37: 7.683983215 | AH37: 38.75129404 | AI37: 39.04246322 | AJ37: 38.4231837 | AK37: 39.04246322 | AM37: 0.04899436125 | AN37: 2.638708373 | AO37: 0.1292818313 | AP37: 0.001127527304 | AQ37: 0.06 | AR37: 4.972651643 | AS37: 38.46365414 | AT37: 38.40121856 | AU37: 73218.88504 | AV37: 18288.21244 | AW37: 54930.6726 | AX37: 7101.537946 | AY37: 273151.0994 | BA37: 209.9684371 | BB37: 148.8684338 | BC37: 7247.301287 | BD37: 7247.301287 | BE37: 10466.66815 | BF37: 7396.169721 | BG37: 7879.310333 | BH37: 6063.262525 | BI37: 28609.27584 | BJ37: 14653.03917 | BK37: 28560.5137 | BL37: 48.76213722 | BM37: 805.4909174 | BN37: 0 | BO37: 0 | BP37: 11091.82347 | BQ37: 0 | BR37: 20464.15689 | BS37: 0 | BT37: 11946.07652 | BU37: 40784.65249 | BV37: 4459.131944 | BW37: 476.746668 | BX37: 0 | BY37: 45720.5311 | BZ37: 57666.60762 | CA37: 18288.21244 | CB37: 39378.39518 | CC37: 0 | CD37: 0 | CE37: 3878.666708 | CF37: 7.47992 | CG37: 2413.262267 | CH37: 312.63574 | CI37: 244.81985 | CJ37: 0 | CK37: 0 | CL37: 0 | CM37: 12072.58021 | CN37: 7109.017866 | CO37: 6.504704298 | CP37: 6883.473546 | CQ37: 6.298332738 | CR37: 6806.37147 | CS37: 23041.73844 | CT37: 18984.74852 | CU37: 273151.0994 | CW37: 0 | CX37: 0 | CY37: 0 | CZ37: 0 | DA37: 36047.22309 | DB37: 40784.65249 | DC37: 562.2594379 | DD37: 4459.131944 | DE37: 479.800804 | DF37: 82.45863384 | DG37: 2576.832307 | DH37: 17862.83787 | DI37: 5816.42661 | DJ37: 4727.5862 | DK37: 3637.957515 | DL37: 32044.8082 | DM37: 3484.294493 | DN37: 805.4909174 | DO37: 8518.080369 | DP37: 4436.729386 | DQ37: 0 | DR37: 17244.59517 | DS37: 16313.861 | DT37: 0 | DU37: 190.6986672 | DV37: 0 | DW37: 16504.55966 | DX37: 33749.15483 | DY37: 10000.98861 | DZ37: 3.374581868 | EA37: 544.87552 | EB37: 3657.54605 | EC37: 6.492923369 | ED37: 16076.55408 | EE37: 1817.633316 | EF37: 1181.89655 | EG37: 606.3262525 | EH37: 19682.4102 | EI37: -8878.103501 | EJ37: 805.4909174 | EK37: 8518.080369 | EL37: 1109.182347 | EM37: 0 | EN37: 1554.650131 | EO37: 6438.093173 | EP37: 0 | EQ37: 71.5120002 | ER37: 0 | ES37: 6509.605173 | ET37: 8064.255305 | EU37: 10000.98861 | EV37: 0.8063458143 | EW37: 544.87552 | EX37: 3657.54605 | EY37: -0.529517135 | EZ37: 12317.40006 | FA37: 11011.31627 | FB37: 0 | FC37: 4148.088316 | FD37: 308.0029538 | FE37: 13.46769005 | FF37: 2.542343201 | FH37: 0 | FI37: 36047.22309 | FJ37: 0 | FK37: 14225.65639 | FL37: 39.46394526 | FM37: 37.07430924 | FN37: 0 | FO37: 0 | FP37: 15990.529 | FQ37: 0 | FR37: 5928.37817 | FS37: 13992.61 | FT37: 3149.11657 | FU37: 3072.45582 | FV37: 9.768353727 | FW37: 9.293715031 | FX37: 8.785754648 | FY37: 9.293715031 | FZ37: 9.293715031 | GA37: 5 | GB37: 5.626048419 | GC37: 5.848134381 | GD37: 5.7370914 | GE37: 60 | GF37: 0.01588366806 | GG37: 3341.905068 | GH37: 39389.12815 | GI37: 68.34053723 | GJ37: 0.032 | GK37: 479.800804 | GL37: 82.45863384 | GM37: 2576.832307 | GN37: 457.6420878 | GO37: 0.02065943393 | GP37: 1466.53039 | GQ37: 0 | GR37: 4388.412207 | GS37: 95.3493336 | GT37: 4963.562345 | GU37: 9.21123337 | GV37: 0 | GW37: 24.10533 | GX37: 9809.4149 | GY37: 975.9839227 | GZ37: 48.67043436 | HA37: 10.82225092 | HC37: 1.184524663 | HD37: 127.907 | HE37: 283901.0099 | HF37: 200251.8386 | HG37: 57584.14431 | HH37: 0.001432048933 | HI37: 0.01993027863 | HJ37: 34975.05854 | HK37: 7048.825236 | HL37: 6883.473546 | HM37: 7.209562721 | HN37: 5.085322488 | HO37: 40.27635817 | HP37: 28.40925003 | HR37: 17862.83787 | HS37: 7270.533263 | HT37: 7879.310333 | HU37: 0 | HV37: 3547.804232 | HW37: 0 | HX37: 2194.777401 | HY37: 320.680892 | HZ37: 13568.07724 | IA37: 339.3972906 | IB37: 12468.95632 | IC37: 2523.480139 | ID37: 0 | IE37: 0 | IF37: 0 | IG37: 8518.080369 | IH37: 11091.82347 | II37: 156.5464034 | IJ37: 144946.0257 | IK37: 38179.8978 | IL37: 737.1503801 | IM37: 1395.524338 | IN37: 16358.3311 | IO37: 8420.80699 | IP37: 21.5791 | IQ37: 0 | IR37: 8715.23076 | IS37: 5362.51035 | IT37: 5355.03043 | IU37: 562.2594379 | IV37: 0 | IW37: 225.54432 | IX37: -169.8527677 | IY37: 67.8159 | IZ37: -257.78359 | JA37: -189.08597 | JB37: 173.21169 | JC37: 1092.90408 | JD37: 10545.86413 | JE37: 1646.14014 | JF37: 0 | JG37: 346.34673 | JH37: 268747.7627 | JI37: 279497.6733 | JJ37: 195848.5019 | JK37: 6822.52634 | JL37: 8729.75108 | JM37: 16.7489 | JN37: 33.42303 | JO37: 50.66604 | JP37: 0.732 | JQ37: 1388.60791 | JR37: 1871.92711 | JS37: 822.76459 | JT37: 1899.66561 | JU37: 38.64088 | JV37: 1.15154 | JW37: 6844.4263 | JX37: 9925.36 | JY37: -12770.8 | JZ37: -5001.10679 | KA37: 1899.66561 | KB37: 0 | KC37: 0 | KD37: 0 | KE37: 0 | KF37: 122.093 | KG37: 250 | KH37: 53.21344 | KI37: 312.63574 | KJ37: 0 | KK37: 244.81985 | KL37: 0 | KM37: 0 | KN37: 85271.87351 | KO37: 6434.94131 | KP37: 3134.01172 | KQ37: 2999.15215 | KR37: 1532.62176 | KS37: 0 | KT37: 0 | KU37: 312.63574 | KV37: 104.9842186 | KW37: 104.9842186 | KX37: 92.2833498 | KY37: 82.39568194 | KZ37: 72.99461894 | LA37: 77.60961944 | LB37: 79.59067 | LC37: 56.762832 | LD37: 70.92315 | LE37: 61.84507397 | LF37: 0 | LG37: 0 | LH37: 17932.409 | LI37: 666.643 | LJ37: 1275.237 | LK37: 7870.25817 | LL37: 9231.04078 | LM37: 6081.92421 | LN37: 15206.828 | LO37: 666.214 | LP37: 548.004 | LQ37: 8990.25222 | LR37: 5917.7964 | LS37: 18.7962 | LT37: 24.3808 | LU37: 23.6481 | LV37: 25.2602 | LW37: 23.2539 | LX37: 27.0377 | LY37: 27.6932 | LZ37: 23.8166 | MA37: 25.5875 | MB37: FIFO | MC37: 0 | MD37: 10000.98861 | ME37: 927.25421 | MF37: 767.37259 | MG37: 320.64455 | MH37: 1100.47961 | MI37: 1100.47961 | MK37: 19448.21098 | ML37: 8420.80699 | MM37: 0 | MN37: 11011.31627 | MO37: 1899.66561 | MP37: 4388.412207 | MQ37: 95.3493336 | MR37: 479.800804 | MS37: 0 | MT37: 308.0029538 | MU37: 3595.265513 | MV37: 0.5013456627 | MW37: 2494.785903 | MX37: 0.3016045952 | MY37: 21942.99688 | MZ37: 0 | NA37: 0 | NB37: 0 | NC37: 21942.99688 | NE37: 12419.87664 | NF37: 5055.13888 | NG37: 5478.41631 | NH37: 0 | NI37: 2466.75759 | NJ37: 0 | NK37: 1526.00974 | NL37: 222.96665 | NM37: 9433.76673 | NN37: 235.98 | NO37: 8669.55746 | NP37: 1754.55391 | NQ37: 0 | NR37: 0 | NS37: 0 | NT37: 5922.54759 | NU37: 7712.0489 | NV37: 108.84536 | NW37: 100779.7178 | NX37: 34688.19191 | NY37: 669.735 | NZ37: 1267.898 | OA37: 14862.29564 | OB37: 4928.23623 | OC37: 21.5791 | OD37: 908.54912 | OE37: 8715.23076 | OF37: 5362.51035 | OG37: 5355.03043 | OH37: 390.934123 | OI37: 0 | OJ37: 225.54432 | OK37: 118.09716 | OL37: 67.8159 | OM37: -257.78359 | ON37: -189.08597 | OO37: 173.21169 | OP37: 1088.32164 | OQ37: 10035.90988 | OR37: 1646.14014 | OS37: 0 | OT37: 1133.36585 | OU37: 268747.7627 | OV37: 279497.6733 | OW37: 195848.5019 | OX37: 6822.52634 | OY37: 8364.27686 | OZ37: 14.63334 | PA37: 33.42303 | PB37: 50.66604 | PC37: 0.732 | PD37: 1388.60791 | PE37: 1871.92711 | PF37: 822.76459 | PG37: 1899.66561 | PH37: 38.64088 | PI37: 1.15154 | PJ37: 4596.78655 | PK37: 9925.36 | PL37: -12770.8 | PM37: -5001.10679 | PN37: 1899.66561 | PO37: 0 | PP37: 0 | PQ37: 0 | PR37: 0 | PS37: 122.093 | PT37: 250 | PU37: 53.21344 | PV37: 312.63574 | PW37: 0 | PX37: 244.81985 | PY37: 0 | PZ37: 0 | QA37: 85271.87351 | QB37: 6434.94131 | QC37: 3134.01172 | QD37: 2999.15215 | QE37: 1532.62176 | QF37: 0 | QG37: 0 | QH37: 312.63574 | QI37: 72.99461894 | QJ37: 77.60961944 | QK37: 79.59067 | QL37: 56.762832 | QM37: 70.92315 | QN37: 61.84507397 | QO37: 0 | QP37: 0 | QQ37: 0 | QR37: 0 | QS37: 0 | QT37: 0 | RI37: 113759.2564 | RJ37: 8 | RK37: 6137.11533 | RL37: 5 | RM37: -7703.15 | RN37: 2 | RO37: 127410.624 | RP37: 9 | RQ37: 7109.47602 | RR37: 6 | RS37: -6844.4263 | RT37: 4 | RU37: 144946.0257 | RV37: 7 | RW37: 8420.80699 | RX37: 5 | RY37: -6909.75237 | RZ37: 4 | SA37: 0 | SB37: 0 | SC37: 0 | SD37: 0 | SE37: 0 | SF37: 0 | SG37: 0 | SH37: 0 | SI37: 0 | SJ37: 0 | SK37: 0 | SL37: 0 | SM37: 100779.7178 | SN37: 113759.2564 | SO37: 127410.624 | SP37: 144946.0257 | SQ37: 144946.0257 | SR37: 144946.0257 | SS37: 0.1287911785 | ST37: 0.1200022577 | SU37: 0.1376290392 | SV37: 0 | SW37: 0.35 | SX37: 6137.11533 | SY37: 7109.47602 | SZ37: 8420.80699 | TA37: 8420.80699 | TB37: 8420.80699 | TC37: 7703.15 | TD37: 6844.4263 | TE37: 6844.4263 | TF37: 6844.4263 | TG37: 6844.4263 | TH37: 144946.0257 | TI37: 0.4382459979 | TJ37: 8420.80699 | TK37: 6844.4263 | TM37: 30459.52725 | TN37: 30459.52725 | TO37: 1.223336871 | TP37: 3547.804232 | TQ37: 0 | TR37: -483.3192 | TS37: 1466.53039 | TT37: 7247.301287 | TU37: 10466.66815 | TV37: 7396.169721 | TW37: 28609.27584 | TX37: 57666.60762 | TY37: 39378.39518 | TZ37: 0.1805309189 | UA37: 16964.90077 | UB37: 23787.42711 | UC37: 15552.27742 | UD37: 63165.82229 | UE37: 0.1125453229 | UF37: 0.001268853406 | UG37: 0.04904596611 | UH37: 3.680851519 | UI37: 0.0007906419214 | UJ37: 0.04904596611 | UK37: 2.294690712 | UV37: x | UW37: x | UX37: x | UZ37: 6.936572659 | VA37: 38.4231837 | VB37: 4.324349616 | VC37: 38.4231837 | XN37: 5.92322589 | XO37: 304.0315444 | XP37: 32.50543549 | XQ37: 0.001257882407 | XR37: 0.0002558024348 | XS37: 0.0675469243 | XT37: 0 | XU37: 0 | XW37: 0.64423 | XX37: 1074.99105 | XY37: 1.83 | XZ37: Sep-2016 | YA37: $260.0/$183.1 | YB37: 1.282271975 | YC37: 1.830241111 | YG37: 66396.3587 | YH37: 48108.14626 | YI37: 0.1476161211 | YJ37: 0.00103836695 | YK37: 0.04899436125 | YL37: 3.012920617 | YM37: 5.677855428 | YQ37: 250 | YR37: 0 | YS37: 0 | YT37: 139.1225 | YU37: 0 | YV37: 908.54912 | YW37: 1408.48854 | YX37: 1071.53617 | YY37: 136.91725 | YZ37: -69.10135 | ZA37: 0 | ZB37: 0 | ZC37: 0 | ZD37: 0 | ZE37: 0 | ZF37: -1466.53039 | ZG37: -1466.53039 | ZH37: 0 | ZI37: 0 | ZJ37: 0 | ZK37: 0 | ZL37: 1532.58326 | ZM37: 0 | ZN37: 3352.728 | ZO37: 0 | ZP37: 0 | ZQ37: 0 | ZR37: 0 | ZS37: 0 | ZT37: 31756.5899 | ZU37: 41792.49979 | ZV37: 4.61751 | ZW37: 4.61751 | ZX37: 1409.72855 | ZY37: 0 | ZZ37: 0 | AAA37: 0 | AAB37: 0 | AAC37: 1466.53039 | AAD37: 0 | AAE37: 0 | AAF37: 0 | AAG37: 0 | AAH37: 282.36 | AAI37: 927.91627 | AAJ37: 0 | AAK37: 0 | AAL37: 8825.63361 | AAM37: 0 | AAN37: 30623.22406 | AAP37: 220 | AAQ37: 101765.8216 | AAR37: 103854 | AAS37: 99412.183 | AAT37: 10 | AAU37: Represents Revenue Includes Royalty, Franchise Fees and Others | AAV37: 10405 | AAW37: 13999 | AAX37: 9764.272 | AAY37: 10994.45817 | AAZ37: 9 | ABA37: Includes Stock Based Compensation Expense | ABB37: 6665.812 | ABC37: 8101 | ABD37: 6194.097 | ABE37: 6782.1452 | ABF37: 9 | ABG37: Includes Amortization of Intangible Assets and Stock Based Compensation Expense | ABH37: -315 | ABI37: -315 | ABJ37: -315 | ABK37: -315 | ABL37: 1 | ABM37: 22.3 | ABN37: 27 | ABO37: 20 | ABP37: 23.1 | ABQ37: 3 | ABR37: 5614.12634 | ABS37: 6008.84233 | ABT37: 4812.28479 | ABU37: 9 | ABV37: Includes Amortization of Intangible Assets and Stock Based Compensation Expense | ABW37: -6504.4 | ABX37: -9007 | ABY37: -5490 | ABZ37: 5 | ACA37: 3721 | ACB37: 5898 | ACC37: 3446 | ACD37: 4089.72 | ACE37: 5 | ACF37: 18.90724 | ACG37: 21 | ACH37: 18 | ACI37: 19.20362 | ACJ37: 4 | ACK37: 12591.9 | ACL37: 18448 | ACM37: 11089 | ACN37: 13412.98 | ACO37: 5 | ACP37: Represents After Working Capital Changes | ACQ37: 19.1995 | ACR37: 26.6 | ACS37: 16.58041 | ACT37: 19.76928 | ACU37: 10 | ACV37: 1.77742 | ACW37: 3.72 | ACX37: 1.12083 | ACY37: 2.06569 | ACZ37: 10 | ADA37: 5.1405 | ADB37: 5.84 | ADC37: 4.54211 | ADD37: 5.1982 | ADE37: 10 | ADG37: 5355.03043 | ADH37: 1155.567372 | ADI37: 4199.463058 | ADJ37: 17665.30189 | ADK37: 12625.50272 | ADL37: 26532.97726 | ADM37: -8867.67537 | ADN37: 0 | ADO37: 0 | ADP37: 7490.655733 | ADQ37: 23042.93315 | ADR37: 0.03699660148 | ADS37: 19.35024528 | ADT37: 6.290259351 | ADU37: 0.7158933131 | ADV37: 0.2327182184 | ADW37: 0.5614099791 | ADX37: 0.1824997213 | ADY37: 3547.804232 | ADZ37: 9683.334926 | AEA37: 1409.72855 | AEB37: 0 | AEC37: 61007.6104 | AED37: 1210.27627 | AEE37: 8825.63361 | AEF37: -1466.53039 | AEG37: 0 | AEH37: 11848.787 | AEI37: 30623.22406 | AEJ37: -0.05012723737 | AEK37: 268747.7627 | AEL37: 11848.787 | AEM37: 280596.5498 | AEN37: 262733.7119 | AEO37: 0.0159837237 | AEP37: 2.375867941 | AEQ37: 45455.33298 | AER37: 3.188757319 | AET37: 0 | AEU37: 0 | AEV37: 435.02852
A38: PSE:JFC01005 | B38: PSE:JFC | C38: 0 | D38: CapIQ Raw | E38: 0 | F38: 2016-09-02 | G38: Jollibee Foods Corp. | H38: 1005 | I38: 2020 | J38: 1000 | K38: 2020 | L38: 2016-09-03 | M38: Consumer Discretionary | N38: Consumer Services | O38: Hotels, Restaurants and Leisure | P38: Restaurants | Q38: Philippines | R38: PH | S38: PHP | T38: PSE | U38: JFC | V38: PHP | W38: 250 | X38: NA | Z38: 0.04863068994 | AA38: 3.466877515 | AB38: 0.1685966455 | AC38: 0.034702521 | AD38: 0.107457767 | AE38: 0.06 | AF38: 6.335312022 | AG38: 5.882662899 | AH38: 37.57673827 | AI38: 39.38688236 | AJ38: 37.57673827 | AK38: 39.38688236 | AM38: 0.04857908508 | AN38: 2.526905094 | AO38: 0.1227547375 | AP38: 0.04288861897 | AQ38: 0.06 | AR38: 4.617622673 | AS38: 37.6166555 | AT38: 37.29781676 | AU38: 76359.14191 | AV38: 18998.05379 | AW38: 57361.08811 | AX38: 7041.345316 | AY38: 264871.861 | BA38: 209.9684371 | BB38: 201.0601491 | BC38: 7247.301287 | BD38: 7247.301287 | BE38: 16666.46969 | BF38: 7448.361436 | BG38: 10637.06895 | BH38: 8185.404409 | BI38: 36086.0547 | BJ38: 19781.60288 | BK38: 38556.6935 | BL38: -2470.638802 | BM38: 808.4071282 | BN38: 0 | BO38: 0 | BP38: 14973.96168 | BQ38: 0 | BR38: 24811.1385 | BS38: 0 | BT38: 13311.73001 | BU38: 40927.25746 | BV38: 6019.828124 | BW38: 548.0489012 | BX38: 0 | BY38: 47495.13448 | BZ38: 60806.86449 | CA38: 18998.05379 | CB38: 41808.81069 | CC38: 0 | CD38: 0 | CE38: 3878.666708 | CF38: 7.47992 | CG38: 2413.262267 | CH38: 312.63574 | CI38: 244.81985 | CJ38: 0 | CK38: 0 | CL38: 0 | CM38: 12209.92255 | CN38: 7048.825236 | CO38: 6.44962844 | CP38: 6823.280916 | CQ38: 6.24325688 | CR38: 6806.37147 | CS38: 23943.62975 | CT38: 28165.87819 | CU38: 264871.861 | CW38: 0 | CX38: 0 | CY38: 0 | CZ38: 0 | DA38: 36047.22309 | DB38: 40927.25746 | DC38: 759.0502411 | DD38: 6019.828124 | DE38: 647.7310854 | DF38: 111.3191557 | DG38: 3478.723615 | DH38: 24114.83113 | DI38: 7852.175924 | DJ38: 6382.24137 | DK38: 4911.242645 | DL38: 43260.49107 | DM38: 4703.797565 | DN38: 808.4071282 | DO38: 11499.4085 | DP38: 5989.584672 | DQ38: 0 | DR38: 23001.19786 | DS38: 16370.90298 | DT38: 0 | DU38: 219.2195605 | DV38: 0 | DW38: 16590.12254 | DX38: 39591.32041 | DY38: 10000.98861 | DZ38: 3.958740676 | EA38: 544.87552 | EB38: 3657.54605 | EC38: 8.09021442 | ED38: 21703.34801 | EE38: 2453.804976 | EF38: 1595.560342 | EG38: 818.5404409 | EH38: 26571.25377 | EI38: -11985.43973 | EJ38: 808.4071282 | EK38: 11499.4085 | EL38: 1497.396168 | EM38: 0 | EN38: 1819.772067 | EO38: 6460.604191 | EP38: 0 | EQ38: 82.20733518 | ER38: 0 | ES38: 6542.811526 | ET38: 8362.583593 | EU38: 10000.98861 | EV38: 0.8361756942 | EW38: 544.87552 | EX38: 3657.54605 | EY38: -0.4479519859 | EZ38: 12454.7424 | FA38: 11148.65861 | FB38: 0 | FC38: 4087.895686 | FD38: 336.8634757 | FE38: 12.13517042 | FF38: 2.579778189 | FH38: 0 | FI38: 36047.22309 | FJ38: 0 | FK38: 14225.65639 | FL38: 39.46394526 | FM38: 37.07430924 | FN38: 0 | FO38: 0 | FP38: 15990.529 | FQ38: 0 | FR38: 5928.37817 | FS38: 13992.61 | FT38: 3149.11657 | FU38: 3072.45582 | FV38: 9.768353727 | FW38: 9.293715031 | FX38: 8.785754648 | FY38: 9.293715031 | FZ38: 9.293715031 | GA38: 5 | GB38: 5.626048419 | GC38: 5.848134381 | GD38: 5.7370914 | GE38: 61 | GF38: 0.0165364277 | GG38: 3484.510032 | GH38: 39531.73312 | GI38: 71.25674808 | GJ38: 0.032 | GK38: 647.7310854 | GL38: 111.3191557 | GM38: 3478.723615 | GN38: 526.3761639 | GO38: 0.02037908532 | GP38: 1466.53039 | GQ38: 0 | GR38: 4403.756444 | GS38: 109.6097802 | GT38: 5161.09731 | GU38: 9.202526446 | GV38: 0 | GW38: 24.10533 | GX38: 9809.4149 | GY38: 975.9839227 | GZ38: 48.67043436 | HA38: 8.016482164 | HC38: 1.194639774 | HD38: 127.907 | HE38: 275621.7715 | HF38: 191972.6002 | HG38: 57666.60762 | HH38: 0.05445537706 | HI38: 0.01975285606 | HJ38: 45684.71241 | HK38: 7048.825236 | HL38: 6823.280916 | HM38: 6.592432719 | HN38: 4.591678094 | HO38: 39.1018024 | HP38: 27.23469426 | HR38: 24114.83113 | HS38: 9815.219905 | HT38: 10637.06895 | HU38: 0 | HV38: 4789.535713 | HW38: 0 | HX38: 2962.949492 | HY38: 432.9192042 | HZ38: 18316.90428 | IA38: 458.1863423 | IB38: 16833.09103 | IC38: 3406.698188 | ID38: 0 | IE38: 0 | IF38: 0 | IG38: 11499.4085 | IH38: 14973.96168 | II38: 211.3376446 | IJ38: 144946.0257 | IK38: 38179.8978 | IL38: 737.1503801 | IM38: 1395.524338 | IN38: 16358.3311 | IO38: 8420.80699 | IP38: 21.5791 | IQ38: 0 | IR38: 8715.23076 | IS38: 5362.51035 | IT38: 5355.03043 | IU38: 759.0502411 | IV38: 0 | IW38: 225.54432 | IX38: -229.3012364 | IY38: 67.8159 | IZ38: -257.78359 | JA38: -189.08597 | JB38: 173.21169 | JC38: 1092.90408 | JD38: 10545.86413 | JE38: 1646.14014 | JF38: 0 | JG38: 346.34673 | JH38: 268747.7627 | JI38: 279497.6733 | JJ38: 195848.5019 | JK38: 6822.52634 | JL38: 8729.75108 | JM38: 16.7489 | JN38: 33.42303 | JO38: 50.66604 | JP38: 0.732 | JQ38: 1388.60791 | JR38: 1871.92711 | JS38: 822.76459 | JT38: 1899.66561 | JU38: 38.64088 | JV38: 1.15154 | JW38: 6844.4263 | JX38: 9925.36 | JY38: -12770.8 | JZ38: -5001.10679 | KA38: 1899.66561 | KB38: 0 | KC38: 0 | KD38: 0 | KE38: 0 | KF38: 122.093 | KG38: 250 | KH38: 53.21344 | KI38: 312.63574 | KJ38: 0 | KK38: 244.81985 | KL38: 0 | KM38: 0 | KN38: 85271.87351 | KO38: 6434.94131 | KP38: 3134.01172 | KQ38: 2999.15215 | KR38: 1532.62176 | KS38: 0 | KT38: 0 | KU38: 312.63574 | KV38: 141.7286951 | KW38: 104.9842186 | KX38: 104.9842186 | KY38: 92.2833498 | KZ38: 82.39568194 | LA38: 72.99461894 | LB38: 77.60961944 | LC38: 79.59067 | LD38: 56.762832 | LE38: 70.92315 | LF38: 61.84507397 | LG38: 0 | LH38: 17932.409 | LI38: 666.643 | LJ38: 1275.237 | LK38: 7870.25817 | LL38: 9231.04078 | LM38: 6081.92421 | LN38: 15206.828 | LO38: 666.214 | LP38: 548.004 | LQ38: 8990.25222 | LR38: 5917.7964 | LS38: 18.7962 | LT38: 24.3808 | LU38: 23.6481 | LV38: 25.2602 | LW38: 23.2539 | LX38: 27.0377 | LY38: 27.6932 | LZ38: 23.8166 | MA38: 25.5875 | MB38: FIFO | MC38: 0 | MD38: 10000.98861 | ME38: 927.25421 | MF38: 767.37259 | MG38: 320.64455 | MH38: 1100.47961 | MI38: 1100.47961 | MK38: 21942.99688 | ML38: 8420.80699 | MM38: 0 | MN38: 11148.65861 | MO38: 1899.66561 | MP38: 4403.756444 | MQ38: 109.6097802 | MR38: 647.7310854 | MS38: 0 | MT38: 336.8634757 | MU38: 3506.21236 | MV38: 0.4739645088 | MW38: 2405.73275 | MX38: 0.2830904614 | MY38: 24348.72963 | MZ38: 0 | NA38: 0 | NB38: 0 | NC38: 24348.72963 | NE38: 12419.87664 | NF38: 5055.13888 | NG38: 5478.41631 | NH38: 0 | NI38: 2466.75759 | NJ38: 0 | NK38: 1526.00974 | NL38: 222.96665 | NM38: 9433.76673 | NN38: 235.98 | NO38: 8669.55746 | NP38: 1754.55391 | NQ38: 0 | NR38: 0 | NS38: 0 | NT38: 5922.54759 | NU38: 7712.0489 | NV38: 108.84536 | NW38: 100779.7178 | NX38: 34688.19191 | NY38: 669.735 | NZ38: 1267.898 | OA38: 14862.29564 | OB38: 4928.23623 | OC38: 21.5791 | OD38: 908.54912 | OE38: 8715.23076 | OF38: 5362.51035 | OG38: 5355.03043 | OH38: 390.934123 | OI38: 0 | OJ38: 225.54432 | OK38: 118.09716 | OL38: 67.8159 | OM38: -257.78359 | ON38: -189.08597 | OO38: 173.21169 | OP38: 1088.32164 | OQ38: 10035.90988 | OR38: 1646.14014 | OS38: 0 | OT38: 1133.36585 | OU38: 268747.7627 | OV38: 279497.6733 | OW38: 195848.5019 | OX38: 6822.52634 | OY38: 8364.27686 | OZ38: 14.63334 | PA38: 33.42303 | PB38: 50.66604 | PC38: 0.732 | PD38: 1388.60791 | PE38: 1871.92711 | PF38: 822.76459 | PG38: 1899.66561 | PH38: 38.64088 | PI38: 1.15154 | PJ38: 4596.78655 | PK38: 9925.36 | PL38: -12770.8 | PM38: -5001.10679 | PN38: 1899.66561 | PO38: 0 | PP38: 0 | PQ38: 0 | PR38: 0 | PS38: 122.093 | PT38: 250 | PU38: 53.21344 | PV38: 312.63574 | PW38: 0 | PX38: 244.81985 | PY38: 0 | PZ38: 0 | QA38: 85271.87351 | QB38: 6434.94131 | QC38: 3134.01172 | QD38: 2999.15215 | QE38: 1532.62176 | QF38: 0 | QG38: 0 | QH38: 312.63574 | QI38: 72.99461894 | QJ38: 77.60961944 | QK38: 79.59067 | QL38: 56.762832 | QM38: 70.92315 | QN38: 61.84507397 | QO38: 0 | QP38: 0 | QQ38: 0 | QR38: 0 | QS38: 0 | QT38: 0 | RI38: 113759.2564 | RJ38: 8 | RK38: 6137.11533 | RL38: 5 | RM38: -7703.15 | RN38: 2 | RO38: 127410.624 | RP38: 9 | RQ38: 7109.47602 | RR38: 6 | RS38: -6844.4263 | RT38: 4 | RU38: 144946.0257 | RV38: 7 | RW38: 8420.80699 | RX38: 5 | RY38: -6909.75237 | RZ38: 4 | SA38: 0 | SB38: 0 | SC38: 0 | SD38: 0 | SE38: 0 | SF38: 0 | SG38: 0 | SH38: 0 | SI38: 0 | SJ38: 0 | SK38: 0 | SL38: 0 | SM38: 100779.7178 | SN38: 113759.2564 | SO38: 127410.624 | SP38: 144946.0257 | SQ38: 144946.0257 | SR38: 144946.0257 | SS38: 0.1287911785 | ST38: 0.1200022577 | SU38: 0.1376290392 | SV38: 0 | SW38: 0.35 | SX38: 6137.11533 | SY38: 7109.47602 | SZ38: 8420.80699 | TA38: 8420.80699 | TB38: 8420.80699 | TC38: 7703.15 | TD38: 6844.4263 | TE38: 6844.4263 | TF38: 6844.4263 | TG38: 6844.4263 | TH38: 144946.0257 | TI38: 0.9416320972 | TJ38: 8420.80699 | TK38: 6844.4263 | TM38: 33091.65548 | TN38: 33091.65548 | TO38: 1.234128727 | TP38: 4789.535713 | TQ38: 0 | TR38: -483.3192 | TS38: 1466.53039 | TT38: 7247.301287 | TU38: 16666.46969 | TV38: 7448.361436 | TW38: 36086.0547 | TX38: 60806.86449 | TY38: 41808.81069 | TZ38: 0.1685966455 | UA38: 16964.90077 | UB38: 23787.42711 | UC38: 15552.27742 | UD38: 65596.2378 | UE38: 0.107457767 | UF38: 0.0617195165 | UG38: 0.04863068994 | UH38: 3.466877515 | UI38: 0.03847674934 | UJ38: 0.04863068994 | UK38: 2.209669801 | UV38: x | UW38: x | UX38: x | UZ38: 6.335312022 | VA38: 37.57673827 | VB38: 4.037912385 | VC38: 37.57673827 | VX38: 24348.72963 | VY38: 8420.80699 | VZ38: 0 | WA38: 11148.65861 | WB38: 1899.66561 | WC38: 4403.756444 | WD38: 109.6097802 | WE38: 647.7310854 | WF38: 0 | WG38: 336.8634757 | WH38: 3506.21236 | WI38: 0.4739645088 | WJ38: 0 | WK38: 3506.21236 | WL38: 0.4739645088 | WM38: 27854.94199 | WN38: 0 | WO38: 0 | WP38: 0 | WQ38: 27854.94199 | WS38: 27854.94199 | WT38: 8420.80699 | WU38: 0 | WV38: 11148.65861 | WW38: 1899.66561 | WX38: 4403.756444 | WY38: 109.6097802 | WZ38: 647.7310854 | XA38: 0 | XB38: 336.8634757 | XC38: 3506.21236 | XD38: 0.4739645088 | XE38: 0 | XF38: 3506.21236 | XG38: 0.4739645088 | XH38: 31361.15435 | XI38: 0 | XJ38: 0 | XK38: 0 | XL38: 31361.15435 | XN38: 5.902587287 | XO38: 264.4764462 | XP38: 24.07810036 | XQ38: 0.003496534967 | XR38: -51.66715576 | XS38: 0.1495600032 | XT38: 0.35 | XU38: 0 | XW38: 0.64423 | XX38: 1074.99105 | XY38: 1.83 | XZ38: Sep-2016 | YA38: $260.0/$183.1 | YB38: 1.282271975 | YC38: 1.830241111 | YG38: 69536.61557 | YH38: 50538.56177 | YI38: 0.1393261911 | YJ38: 0.05051983292 | YK38: 0.04857908508 | YL38: 2.868028307 | YM38: 5.240985333 | YQ38: 250 | YR38: 0 | YS38: 0 | YT38: 139.1225 | YU38: 0 | YV38: 908.54912 | YW38: 1408.48854 | YX38: 1071.53617 | YY38: 136.91725 | YZ38: -69.10135 | ZA38: 0 | ZB38: 0 | ZC38: 0 | ZD38: 0 | ZE38: 0 | ZF38: -1466.53039 | ZG38: -1466.53039 | ZH38: 0 | ZI38: 0 | ZJ38: 0 | ZK38: 0 | ZL38: 1532.58326 | ZM38: 0 | ZN38: 3352.728 | ZO38: 0 | ZP38: 0 | ZQ38: 0 | ZR38: 0 | ZS38: 0 | ZT38: 31756.5899 | ZU38: 41792.49979 | ZV38: 4.61751 | ZW38: 4.61751 | ZX38: 1409.72855 | ZY38: 0 | ZZ38: 0 | AAA38: 0 | AAB38: 0 | AAC38: 1466.53039 | AAD38: 0 | AAE38: 0 | AAF38: 0 | AAG38: 0 | AAH38: 282.36 | AAI38: 927.91627 | AAJ38: 0 | AAK38: 0 | AAL38: 8825.63361 | AAM38: 0 | AAN38: 30623.22406 | AAP38: 220 | AAQ38: 101765.8216 | AAR38: 103854 | AAS38: 99412.183 | AAT38: 10 | AAU38: Represents Revenue Includes Royalty, Franchise Fees and Others | AAV38: 10405 | AAW38: 13999 | AAX38: 9764.272 | AAY38: 10994.45817 | AAZ38: 9 | ABA38: Includes Stock Based Compensation Expense | ABB38: 6665.812 | ABC38: 8101 | ABD38: 6194.097 | ABE38: 6782.1452 | ABF38: 9 | ABG38: Includes Amortization of Intangible Assets and Stock Based Compensation Expense | ABH38: -315 | ABI38: -315 | ABJ38: -315 | ABK38: -315 | ABL38: 1 | ABM38: 22.3 | ABN38: 27 | ABO38: 20 | ABP38: 23.1 | ABQ38: 3 | ABR38: 5614.12634 | ABS38: 6008.84233 | ABT38: 4812.28479 | ABU38: 9 | ABV38: Includes Amortization of Intangible Assets and Stock Based Compensation Expense | ABW38: -6504.4 | ABX38: -9007 | ABY38: -5490 | ABZ38: 5 | ACA38: 3721 | ACB38: 5898 | ACC38: 3446 | ACD38: 4089.72 | ACE38: 5 | ACF38: 18.90724 | ACG38: 21 | ACH38: 18 | ACI38: 19.20362 | ACJ38: 4 | ACK38: 12591.9 | ACL38: 18448 | ACM38: 11089 | ACN38: 13412.98 | ACO38: 5 | ACP38: Represents After Working Capital Changes | ACQ38: 19.1995 | ACR38: 26.6 | ACS38: 16.58041 | ACT38: 19.76928 | ACU38: 10 | ACV38: 1.77742 | ACW38: 3.72 | ACX38: 1.12083 | ACY38: 2.06569 | ACZ38: 10 | ADA38: 5.1405 | ADB38: 5.84 | ADC38: 4.54211 | ADD38: 5.1982 | ADE38: 10 | ADG38: 5355.03043 | ADH38: 1155.567372 | ADI38: 4199.463058 | ADJ38: 23848.15755 | ADK38: 17044.42868 | ADL38: 35819.5193 | ADM38: -11971.36175 | ADN38: 0 | ADO38: 0 | ADP38: 4386.969354 | ADQ38: 19939.24677 | ADR38: 0.03699660148 | ADS38: 24.40656691 | ADT38: 6.744470661 | ADU38: 0.9029600296 | ADV38: 0.2495224932 | ADW38: 0.7081093818 | ADX38: 0.1956777849 | ADY38: 4789.535713 | ADZ38: 13565.47314 | AEA38: 1409.72855 | AEB38: 0 | AEC38: 72261.1151 | AED38: 1210.27627 | AEE38: 8825.63361 | AEF38: -1466.53039 | AEG38: 0 | AEH38: 11848.787 | AEI38: 30623.22406 | AEJ38: -0.0494943325 | AEK38: 268747.7627 | AEL38: 11848.787 | AEM38: 280596.5498 | AEN38: 256481.7186 | AEO38: 0.0159837237 | AEP38: 2.00586478 | AEQ38: 56708.83768 | AER38: 2.555968905 | AET38: 0 | AEU38: 0 | AEV38: 435.02852

Sheet CHARTS ==>
B10: Valens - Performance and Valuation Prime
B12: Ticker: | C12: ='PERFORMANCE METRICS'!C1 -> PSE:JFC
B13: Company: | C13: ='PERFORMANCE METRICS'!C3 -> Jollibee Foods Corp.
B14: Data Date: | C14: ='Performance and Valuation Chart'!R40 -> 2016-09-13
B15: Template | C15: 3
B17: CONTACT: | C17: Angelica Lim
C18: Valens Securities
C23: angelica.lim@valens-research.com
C24: www.valens-research.com
C26: For training materials, videos, programs, or events regarding this spreadsheet or other Valens Research, please contact Angelica Lim.

Sheet Performance and Valuation Chart (hidden)
A1: d
O2: Market Implied ROA' (Formula Driven)
O3: =((W14/((1+Y12-0.02)^5))*0.06) -> 0.4082663954
C4: =C5 -> 1996 | D4: =D5 -> 1997 | E4: 1998 | F4: 1999 | G4: 2000 | H4: 2001 | I4: 2002 | J4: 2003 | K4: 2004 | L4: 2005 | M4: =M5 -> 2006 | N4: =N5 -> 2007 | O4: 2008 | P4: 2009 | Q4: 2010 | R4: 2011 | S4: 2012 | T4: 2013 | U4: 2014 | V4: 2015 | W4: YTD | Y4: 5Yr CAGR
C5: ='Earnings Prime'!D1 -> 1996 | D5: ='Earnings Prime'!E1 -> 1997 | E5: ='Earnings Prime'!F1 -> 1998 | F5: ='Earnings Prime'!G1 -> 1999 | G5: ='Earnings Prime'!H1 -> 2000 | H5: ='Earnings Prime'!I1 -> 2001 | I5: ='Earnings Prime'!J1 -> 2002 | J5: ='Earnings Prime'!K1 -> 2003 | K5: ='Earnings Prime'!L1 -> 2004 | L5: ='Earnings Prime'!M1 -> 2005 | M5: ='Earnings Prime'!N1 -> 2006 | N5: ='Earnings Prime'!O1 -> 2007 | O5: ='Earnings Prime'!P1 -> 2008 | P5: ='Earnings Prime'!Q1 -> 2009 | Q5: ='Earnings Prime'!R1 -> 2010 | R5: ='Earnings Prime'!S1 -> 2011 | S5: ='Earnings Prime'!T1 -> 2012 | T5: ='Earnings Prime'!U1 -> 2013 | U5: ='Earnings Prime'!V1 -> 2014 | V5: ='Earnings Prime'!W1 -> 2015 | W5: =V5+1&"E" -> 2016E | X5: =V5+2&"E" -> 2017E | Y5: Mkt Imp | Z5: =V5+4&"E" -> 2019E | AA5: =V5+5&"E" -> 2020E
B6: ROA | C6: ='PERFORMANCE METRICS'!D13-C8 -> 0 | D6: ='PERFORMANCE METRICS'!E13-D8 -> 0 | E6: ='PERFORMANCE METRICS'!F13-E8 -> 0 | F6: ='PERFORMANCE METRICS'!G13-F8 -> 0 | G6: ='PERFORMANCE METRICS'!H13-G8 -> 0 | H6: ='PERFORMANCE METRICS'!I13-H8 -> 0 | I6: ='PERFORMANCE METRICS'!J13-I8 -> 0 | J6: ='PERFORMANCE METRICS'!K13-J8 -> 0 | K6: ='PERFORMANCE METRICS'!L13-K8 -> 0.01491243322 | L6: ='PERFORMANCE METRICS'!M13-L8 -> 0.0185616049 | M6: ='PERFORMANCE METRICS'!N13-M8 -> 0.01570899776 | N6: ='PERFORMANCE METRICS'!O13-N8 -> 0.01508769819 | O6: ='PERFORMANCE METRICS'!P13-O8 -> 0.018400122 | P6: ='PERFORMANCE METRICS'!Q13-P8 -> 0.02558787517 | Q6: ='PERFORMANCE METRICS'!R13-Q8 -> 0.02913683719 | R6: ='PERFORMANCE METRICS'!S13-R8 -> 0.01909577628 | S6: ='PERFORMANCE METRICS'!T13-S8 -> 0.02585943668 | T6: ='PERFORMANCE METRICS'!U13-T8 -> 0.03355570944 | U6: ='PERFORMANCE METRICS'!V13-U8 -> 0.01931108223 | V6: ='PERFORMANCE METRICS'!W13-V8 -> 0.01720957323 | W6: ='PERFORMANCE METRICS'!X13-W8 -> 0.02526988317 | X6: ='PERFORMANCE METRICS'!Y13-X8 -> 0.02489901459 | Y6: =IF(O3="",'PERFORMANCE METRICS'!Z13,O3) -> 0.4082663954 | Z6: ='PERFORMANCE METRICS'!AA13 -> 0.1799475322 | AA6: ='PERFORMANCE METRICS'!AB13 -> 0.1675443461
